Workbook

Sheet README
A1: README | C1: for Luminous Tool V3
H3: README FOR NORMAL USERS
H4: For the ones who want to have the tools. Basic operations.
H6: Photonic Sheet
I7: Function: Based on given SPD, compute CCT, CRI and plot the points onto CIE coordinates.
A11: VERSION HISTORY
B12: 1.0 | C12: Function trials
B13: 2.0 | C13: New optimization subroutine
B14: 3.0 | C14: Based on V2.0, add README files
A22: HOW TO USE README?
A23: --For the first time user, please read "README FOR NORMAL USERS"
A24: --For the programmers, please read "README FOR ADVANCED USERS"
I25: If the SPD was not in 1nm, the EXP tool can be use:
H45: CM Sheet (Color mixing): 2 independent functions
I46: -Provide mixing of the spectrums (in intensity, not current ratio)
I47: -Optimize the mixing ratio for given CCT

Sheet Photonic
B1: Luminous Tool from Spectrum
H3: Luminous Efficacy | J3: Lum/W | S3: CRI
I4: =AU11 -> CIE1924 | J4: =SUMPRODUCT($D$32:$D$412,$AU$32:$AU$412)*683.002 -> 199.1002642 | S4: R1 | T4: R2 | U4: R3 | V4: R4 | W4: R5 | X4: R6 | Y4: R7
I5: =AV11 -> CIE 1951, Judd | J5: =SUMPRODUCT($D$32:$D$412,$AV$32:$AV$412)*683.002 -> 199.840064 | S5: =CRI!BD35 -> 0 | T5: =CRI!BE35 -> 42.46786979 | U5: =CRI!BF35 -> 31.05968881 | V5: =CRI!BG35 -> 0 | W5: =CRI!BH35 -> 0 | X5: =CRI!BI35 -> 17.01804795 | Y5: =CRI!BJ35 -> 30.09294271
I6: =AW11 -> CIE Judd & Vos | J6: =SUMPRODUCT($D$32:$D$412,$AW$32:$AW$412)*683.002 -> 199.0828624 | S6: R8 | T6: R9 | U6: R10 | V6: R11 | W6: R12 | X6: R13 | Y6: R14
I7: =AX11 -> CIE1951(Scotopic) | J7: =SUMPRODUCT($D$32:$D$412,$AX$32:$AX$412)*683.002 -> 5.965898121 | N7: K= | S7: =CRI!BK35 -> 0 | T7: =CRI!BL35 -> 0 | U7: =CRI!BM35 -> 19.79996622 | V7: =CRI!BN35 -> 0 | W7: =CRI!BO35 -> 0 | X7: =CRI!BP35 -> 0 | Y7: =CRI!BQ35 -> 48.56325726 | BB7: CIE (1931) 2-deg color matching functions
I8: =AY11 -> 2 degree | J8: =SUMPRODUCT($D$32:$D$412,$AY$32:$AY$412)*683.002 -> 221.6764918 | AU8: Luminosity function
I9: =AZ11 -> 10 degree | J9: =SUMPRODUCT($D$32:$D$412,$AZ$32:$AZ$412)*683.002 -> 206.4500349 | S9: CRI= | T9: =AVERAGE(S5:Y5,S7:Y7) -> 13.50012662 | AU9: (http://www.cvrl.org/lumindex.htm) | AY9: Photopic (V(lamda)) | BB9: CIE1931 | BF9: CIE1964 | BJ9: CIE bar | BQ9: CIE2006 | BT9: RGB
B10: wd | C10: Target SPD | D10: nomalized SPD | F10: Power | S10: R8= | T10: =AVERAGE(S5:Y5,S7) -> 15.07981866 | AY10: 2005 | AZ10: 2005 | BB10: =SUM(BB12:BB505) -> 106.8633658 | BC10: =SUM(BC12:BC505) -> 106.8551972 | BD10: =SUM(BD12:BD505) -> 106.8680333 | BF10: =SUM(BF12:BF505) -> 116.6455417 | BG10: =SUM(BG12:BG505) -> 116.6596481 | BH10: =SUM(BH12:BH505) -> 116.6743464 | BQ10: 2-deg XYZ CMFs transformed from the CIE (2006) 2-deg LMS cone fundamentals | BT10: Stiles & Burch (1955) 2-deg, RGB CMFs
C11: =SUM(C12:C412) -> 24.175777 | F11: V | H11: CIE1931(2-deg) | AT11: WD | AU11: CIE1924 | AV11: CIE 1951, Judd | AW11: CIE Judd & Vos | AX11: CIE1951(Scotopic) | AY11: 2 degree | AZ11: 10 degree | BB11: x-bar(2-deg) | BC11: y-bar(2-deg) | BD11: z-bar(2-deg) | BF11: x-bar(10-deg) | BG11: y-bar(10-deg) | BH11: z-bar(10-deg) | BJ11: x | BK11: y | BL11: z | BQ11: x | BR11: y | BS11: z | BT11: R | BU11: G | BV11: B
B12: 360 | C12: 0.00126 | D12: =C12/$C$11 -> 5.211828352e-05 | F12: I(A) | G12: 0.128 | I12: x= | J12: =L14/(SUM(L14:L16)) -> 0.6916371643 | AT12: 360 | AU12: 0 | AV12: 0 | AW12: 0 | AX12: 0 | AY12: 0 | AZ12: 0 | BB12: 0.00013 | BC12: 3.92e-06 | BD12: 0.0006061 | BF12: 0 | BG12: 0 | BH12: 0 | BJ12: 0 | BK12: 0 | BL12: 0
B13: 361 | C13: 0.001568 | D13: =C13/$C$11 -> 6.485830838e-05 | F13: 71.1 | G13: mW | I13: y= | J13: =L15/(SUM(L14:L16)) -> 0.3039877551 | AT13: 361 | AU13: 0 | AV13: 0 | AW13: 0 | AX13: 0 | AY13: 0 | AZ13: 0 | BB13: 0.00015034 | BC13: 4.53e-06 | BD13: 0.00070208 | BF13: 2.81614e-07 | BG13: 3.08484e-08 | BH13: 1.2336816e-06 | BJ13: 0.00015034 | BK13: 4.53e-06 | BL13: 0.00070208 | BQ13: 0 | BR13: 0 | BS13: 0 | BT13: 0 | BU13: 0 | BV13: 0
B14: 362 | C14: 0.001877 | D14: 7.763969696e-05 | J14: =I17 -> 1937.873155 | K14: X | L14: =SUMPRODUCT($D$32:$D$412,$BB$32:$BB$412)*100/SUMPRODUCT($D$32:$D$412,$BC$32:$BC$412) -> 227.5213895 | N14: K= | O14: =100/+SUMPRODUCT($D$32:$D$412,$BC$32:$BC$412) -> 343.0541015 | AT14: 362 | AU14: 0 | AV14: 0 | AW14: 0 | AX14: 0 | AY14: 0 | AZ14: 0 | BB14: 0.00017078 | BC14: 5.14e-06 | BD14: 0.00079806 | BF14: 4.41028e-07 | BG14: 4.82988e-08 | BH14: 1.9323362e-06 | BJ14: 0.00017078 | BK14: 5.14e-06 | BL14: 0.00079806 | BQ14: 0 | BR14: 0 | BS14: 0 | BT14: 0 | BU14: 0 | BV14: 0
B15: 363 | C15: 0.000948 | D15: 3.921280379e-05 | F15: , | H15: CCT Calculation | K15: Y | L15: =SUMPRODUCT($D$32:$D$412,$BC$32:$BC$412)*(100/+SUMPRODUCT($D$32:$D$412,$BC$32:$BC$412)) -> 100 | AT15: 363 | AU15: 0 | AV15: 0 | AW15: 0 | AX15: 0 | AY15: 0 | AZ15: 0 | BB15: 0.00019122 | BC15: 5.75e-06 | BD15: 0.00089404 | BF15: 6.00442e-07 | BG15: 6.57492e-08 | BH15: 2.6309908e-06 | BJ15: 0.00019122 | BK15: 5.75e-06 | BL15: 0.00089404 | BQ15: 0 | BR15: 0 | BS15: 0 | BT15: 0 | BU15: 0 | BV15: 0
B16: 364 | C16: 0.001241 | D16: 5.13323729e-05 | H16: CCT test | I16: =-449*L19^3+3525*L19^2-6823.3*L19+5520.33 -> 4746.050136 | K16: Z | L16: =SUMPRODUCT($D$32:$D$412,$BD$32:$BD$412)*(100/+SUMPRODUCT($D$32:$D$412,$BC$32:$BC$412)) -> 1.439229213 | AT16: 364 | AU16: 0 | AV16: 0 | AW16: 0 | AX16: 0 | AY16: 0 | AZ16: 0 | BB16: 0.00021166 | BC16: 6.36e-06 | BD16: 0.00099002 | BF16: 7.59856e-07 | BG16: 8.31996e-08 | BH16: 3.3296454e-06 | BJ16: 0.00021166 | BK16: 6.36e-06 | BL16: 0.00099002 | BQ16: 0 | BR16: 0 | BS16: 0 | BT16: 0 | BU16: 0 | BV16: 0
B17: 365 | C17: 0.001535 | D17: 6.349330572e-05 | H17: CCT | I17: =IF(ISERROR(J17),IF(ERROR.TYPE(J17)<=3,I16,0),J17) -> 1937.873155 | J17: =CCT!J23 -> 1937.873155 | AT17: 365 | AU17: 0 | AV17: 0 | AW17: 0 | AX17: 0 | AY17: 0 | AZ17: 0 | BB17: 0.0002321 | BC17: 6.97e-06 | BD17: 0.001086 | BF17: 9.1927e-07 | BG17: 1.0065e-07 | BH17: 4.0283e-06 | BJ17: 0.0002321 | BK17: 6.97e-06 | BL17: 0.001086 | BQ17: 0 | BR17: 0 | BS17: 0 | BT17: 0 | BU17: 0 | BV17: 0
B18: 366 | C18: 0.001731 | D18: 7.160059426e-05 | H18: duv | I18: =IF(ISERROR(J18),IF(ERROR.TYPE(J18)<=3,"error",0),J18) -> 0.188144043 | J18: =CCT!J15 -> 0.188144043 | AT18: 366 | AU18: 0 | AV18: 0 | AW18: 0 | AX18: 0 | AY18: 0 | AZ18: 0 | BB18: 0.00026866 | BC18: 8.054e-06 | BD18: 0.001258 | BF18: 1.927136e-06 | BG18: 2.1074e-07 | BH18: 8.45138e-06 | BJ18: 0.00026866 | BK18: 8.054e-06 | BL18: 0.001258 | BQ18: 0 | BR18: 0 | BS18: 0 | BT18: 0 | BU18: 0 | BV18: 0
B19: 367 | C19: 0.00134 | D19: 5.542738089e-05 | K19: n= | L19: =(J12-0.332)/(J13-0.1858) -> 3.042930834 | AT19: 367 | AU19: 0 | AV19: 0 | AW19: 0 | AX19: 0 | AY19: 0 | AZ19: 0 | BB19: 0.00030522 | BC19: 9.138e-06 | BD19: 0.00143 | BF19: 2.935002e-06 | BG19: 3.2083e-07 | BH19: 1.287446e-05 | BJ19: 0.00030522 | BK19: 9.138e-06 | BL19: 0.00143 | BQ19: 0 | BR19: 0 | BS19: 0 | BT19: 0 | BU19: 0 | BV19: 0
B20: 368 | C20: 0.001356 | D20: 5.608920036e-05 | AT20: 368 | AU20: 0 | AV20: 0 | AW20: 0 | AX20: 0 | AY20: 0 | AZ20: 0 | BB20: 0.00034178 | BC20: 1.0222e-05 | BD20: 0.001602 | BF20: 3.942868e-06 | BG20: 4.3092e-07 | BH20: 1.729754e-05 | BJ20: 0.00034178 | BK20: 1.0222e-05 | BL20: 0.001602 | BQ20: 0 | BR20: 0 | BS20: 0 | BT20: 0 | BU20: 0 | BV20: 0
B21: 369 | C21: 0.001372 | D21: 5.675101983e-05 | AT21: 369 | AU21: 0 | AV21: 0 | AW21: 0 | AX21: 0 | AY21: 0 | AZ21: 0 | BB21: 0.00037834 | BC21: 1.1306e-05 | BD21: 0.001774 | BF21: 4.950734e-06 | BG21: 5.4101e-07 | BH21: 2.172062e-05 | BJ21: 0.00037834 | BK21: 1.1306e-05 | BL21: 0.001774 | BQ21: 0 | BR21: 0 | BS21: 0 | BT21: 0 | BU21: 0 | BV21: 0
B22: 370 | C22: 0.00141 | D22: 5.832284108e-05 | M22: 0.41847 | N22: -0.15866 | O22: -0.08835 | AT22: 370 | AU22: 0 | AV22: 0 | AW22: 0 | AX22: 0 | AY22: 0 | AZ22: 0 | BB22: 0.0004149 | BC22: 1.239e-05 | BD22: 0.001946 | BF22: 5.9586e-06 | BG22: 6.511e-07 | BH22: 2.61437e-05 | BJ22: 0.0004149 | BK22: 1.239e-05 | BL22: 0.001946 | BQ22: 0 | BR22: 0 | BS22: 0 | BT22: 0 | BU22: 0 | BV22: 0
B23: 371 | C23: 0.001448 | D23: 5.989466233e-05 | M23: -0.091169 | N23: 0.25243 | O23: 0.015708 | AT23: 371 | AU23: 0 | AV23: 0.00013 | AW23: 0 | AX23: 0 | AY23: 0 | AZ23: 0 | BB23: 0.00048024 | BC23: 1.4316e-05 | BD23: 0.002254 | BF23: 1.142008e-05 | BG23: 1.24588e-06 | BH23: 5.015896e-05 | BJ23: 0.00048024 | BK23: 1.4316e-05 | BL23: 0.002254 | BQ23: 0 | BR23: 0 | BS23: 0 | BT23: 0 | BU23: 0 | BV23: 0
B24: 372 | C24: 0.001421 | D24: 5.877784197e-05 | M24: 0.0009209 | N24: -0.0025498 | O24: 0.1786 | AT24: 372 | AU24: 0 | AV24: 0.00016 | AW24: 0 | AX24: 0 | AY24: 0 | AZ24: 0 | BB24: 0.00054558 | BC24: 1.6242e-05 | BD24: 0.002562 | BF24: 1.688156e-05 | BG24: 1.84066e-06 | BH24: 7.417422e-05 | BJ24: 0.00054558 | BK24: 1.6242e-05 | BL24: 0.002562 | BQ24: 0 | BR24: 0 | BS24: 0 | BT24: 0 | BU24: 0 | BV24: 0
B25: 373 | C25: 0.001393 | D25: 5.761965789e-05 | AT25: 373 | AU25: 0 | AV25: 0.00019 | AW25: 0 | AX25: 0 | AY25: 0 | AZ25: 0 | BB25: 0.00061092 | BC25: 1.8168e-05 | BD25: 0.00287 | BF25: 2.234304e-05 | BG25: 2.43544e-06 | BH25: 9.818948e-05 | BJ25: 0.00061092 | BK25: 1.8168e-05 | BL25: 0.00287 | BQ25: 0 | BR25: 0 | BS25: 0 | BT25: 0 | BU25: 0 | BV25: 0
B26: 374 | C26: 0.001457 | D26: 6.026693578e-05 | AT26: 374 | AU26: 0 | AV26: 0.00022 | AW26: 0 | AX26: 0 | AY26: 0 | AZ26: 0 | BB26: 0.00067626 | BC26: 2.0094e-05 | BD26: 0.003178 | BF26: 2.780452e-05 | BG26: 3.03022e-06 | BH26: 0.00012220474 | BJ26: 0.00067626 | BK26: 2.0094e-05 | BL26: 0.003178 | BQ26: 0 | BR26: 0 | BS26: 0 | BT26: 0 | BU26: 0 | BV26: 0
B27: 375 | C27: 0.001521 | D27: 6.291421368e-05 | P27: [XYZ] | Q27: [RGB] | AT27: 375 | AU27: 0 | AV27: 0.00025 | AW27: 0 | AX27: 0 | AY27: 0 | AZ27: 0 | BB27: 0.0007416 | BC27: 2.202e-05 | BD27: 0.003486 | BF27: 3.3266e-05 | BG27: 3.625e-06 | BH27: 0.00014622 | BJ27: 0.0007416 | BK27: 2.202e-05 | BL27: 0.003486 | BQ27: 0 | BR27: 0 | BS27: 0 | BT27: 0 | BU27: 0 | BV27: 0
B28: 376 | C28: 0.001561 | D28: 6.456876236e-05 | M28: 2.36461 | N28: -0.89654 | O28: -0.46807 | P28: =+L14 -> 227.5213895 | Q28: =M28*P28+N28*P29+O28*P30 -> 447.6716928 | AT28: 376 | AU28: 0 | AV28: 0.00028 | AW28: 0 | AX28: 0 | AY28: 0 | AZ28: 0 | BB28: 0.00086688 | BC28: 2.5616e-05 | BD28: 0.0029178 | BF28: 5.86032e-05 | BG28: 6.3728e-06 | BH28: 0.0002579312 | BJ28: 0.00086688 | BK28: 2.5616e-05 | BL28: 0.0029178 | BQ28: 0 | BR28: 0 | BS28: 0 | BT28: 0 | BU28: 0 | BV28: 0
B29: 377 | C29: 0.001601 | D29: 6.622331104e-05 | M29: -0.51517 | N29: 1.42641 | O29: 0.08876 | P29: =+L15 -> 100 | Q29: =+M29*P28+N29*P29+O29*P30 -> 25.55655176 | AT29: 377 | AU29: 0 | AV29: 0.00031 | AW29: 0 | AX29: 0 | AY29: 0 | AZ29: 0 | BB29: 0.00099216 | BC29: 2.9212e-05 | BD29: 0.0023496 | BF29: 8.39404e-05 | BG29: 9.1206e-06 | BH29: 0.0003696424 | BJ29: 0.00099216 | BK29: 2.9212e-05 | BL29: 0.0023496 | BQ29: 0 | BR29: 0 | BS29: 0 | BT29: 0 | BU29: 0 | BV29: 0
B30: 378 | C30: 0.001819 | D30: 7.524060137e-05 | M30: 0.0052 | N30: -0.01441 | O30: 1.0092 | P30: =+L16 -> 1.439229213 | Q30: =+M30*P28+N30*P29+O30*P30 -> 1.194581347 | AT30: 378 | AU30: 0 | AV30: 0.00034 | AW30: 0 | AX30: 0 | AY30: 0 | AZ30: 0 | BB30: 0.00111744 | BC30: 3.2808e-05 | BD30: 0.0017814 | BF30: 0.0001092776 | BG30: 1.18684e-05 | BH30: 0.0004813536 | BJ30: 0.00111744 | BK30: 3.2808e-05 | BL30: 0.0017814 | BQ30: 0 | BR30: 0 | BS30: 0 | BT30: 0 | BU30: 0 | BV30: 0
B31: 379 | C31: 0.001574 | D31: 6.510649068e-05 | AT31: 379 | AU31: 0 | AV31: 0.00037 | AW31: 0 | AX31: 0 | AY31: 0 | AZ31: 0 | BB31: 0.00124272 | BC31: 3.6404e-05 | BD31: 0.0012132 | BF31: 0.0001346148 | BG31: 1.46162e-05 | BH31: 0.0005930648 | BJ31: 0.00124272 | BK31: 3.6404e-05 | BL31: 0.0012132 | BQ31: 0 | BR31: 0 | BS31: 0 | BT31: 0 | BU31: 0 | BV31: 0
B32: 380 | C32: 0.001329 | D32: 5.497238e-05 | O32: r | P32: =Q28/(SUM(Q$28:Q$30)) -> 0.9436133094 | AT32: 380 | AU32: 0 | AV32: 0.0004 | AW32: 0 | AX32: 0 | AY32: 0 | AZ32: 0 | BB32: 0.001368 | BC32: 4e-05 | BD32: 0.000645 | BF32: 0.000159952 | BG32: 1.7364e-05 | BH32: 0.000704776 | BJ32: 0.001368 | BK32: 4e-05 | BL32: 0.000645 | BQ32: 0 | BR32: 0 | BS32: 0 | BT32: 0 | BU32: 0 | BV32: 0
B33: 381 | C33: 0.001449 | D33: 5.993602605e-05 | O33: g | P33: =Q29/(SUM(Q$28:Q$30)) -> 0.05386872294 | AT33: 381 | AU33: 4.4e-05 | AV33: 0.00051 | AW33: 0.000239112 | AX33: 0.0006928 | AY33: 0 | AZ33: 0 | BB33: 0.0015416 | BC33: 4.4e-05 | BD33: 0.002626 | BF33: 0.0002604496 | BG33: 2.82032e-05 | BH33: 0.0011493808 | BJ33: 0.0015416 | BK33: 4.4e-05 | BL33: 0.002626 | BQ33: 0 | BR33: 0 | BS33: 0 | BT33: 0 | BU33: 0 | BV33: 0
B34: 382 | C34: 0.001568 | D34: 6.485830838e-05 | O34: b | P34: =Q30/(SUM(Q$28:Q$30)) -> 0.002517967691 | AT34: 382 | AU34: 4.9e-05 | AV34: 0.00062 | AW34: 0.000278224 | AX34: 0.0007966 | AY34: 0 | AZ34: 0 | BB34: 0.0017152 | BC34: 4.8e-05 | BD34: 0.004607 | BF34: 0.0003609472 | BG34: 3.90424e-05 | BH34: 0.0015939856 | BJ34: 0.0017152 | BK34: 4.8e-05 | BL34: 0.004607 | BQ34: 0 | BR34: 0 | BS34: 0 | BT34: 0 | BU34: 0 | BV34: 0
B35: 383 | C35: 0.001469 | D35: 6.076330039e-05 | AT35: 383 | AU35: 5.4e-05 | AV35: 0.00073 | AW35: 0.000317336 | AX35: 0.0009004 | AY35: 0 | AZ35: 0 | BB35: 0.0018888 | BC35: 5.2e-05 | BD35: 0.006588 | BF35: 0.0004614448 | BG35: 4.98816e-05 | BH35: 0.0020385904 | BJ35: 0.0018888 | BK35: 5.2e-05 | BL35: 0.006588 | BQ35: 0 | BR35: 0 | BS35: 0 | BT35: 0 | BU35: 0 | BV35: 0
B36: 384 | C36: 0.00137 | D36: 5.66682924e-05 | AT36: 384 | AU36: 5.9e-05 | AV36: 0.00084 | AW36: 0.000356448 | AX36: 0.0010042 | AY36: 0 | AZ36: 0 | BB36: 0.0020624 | BC36: 5.6e-05 | BD36: 0.008569 | BF36: 0.0005619424 | BG36: 6.07208e-05 | BH36: 0.0024831952 | BJ36: 0.0020624 | BK36: 5.6e-05 | BL36: 0.008569 | BQ36: 0 | BR36: 0 | BS36: 0 | BT36: 0 | BU36: 0 | BV36: 0
B37: 385 | C37: 0.0014 | D37: 5.790920391e-05 | AT37: 385 | AU37: 6.4e-05 | AV37: 0.00095 | AW37: 0.00039556 | AX37: 0.001108 | AY37: 0 | AZ37: 0 | BB37: 0.002236 | BC37: 6e-05 | BD37: 0.01055 | BF37: 0.00066244 | BG37: 7.156e-05 | BH37: 0.0029278 | BJ37: 0.002236 | BK37: 6e-05 | BL37: 0.01055 | BQ37: 0 | BR37: 0 | BS37: 0 | BT37: 0 | BU37: 0 | BV37: 0
B38: 386 | C38: 0.00143 | D38: 5.915011542e-05 | AT38: 386 | AU38: 7.52e-05 | AV38: 0.00106 | AW38: 0.000476448 | AX38: 0.0013282 | AY38: 0 | AZ38: 0 | BB38: 0.0026374 | BC38: 7.2e-05 | BD38: 0.01245 | BF38: 0.001002272 | BG38: 0.000107928 | BH38: 0.00443868 | BJ38: 0.0026374 | BK38: 7.2e-05 | BL38: 0.01245 | BQ38: 0 | BR38: 0 | BS38: 0 | BT38: 0 | BU38: 0 | BV38: 0
B39: 387 | C39: 0.001453 | D39: 6.010148092e-05 | AT39: 387 | AU39: 8.64e-05 | AV39: 0.00117 | AW39: 0.000557336 | AX39: 0.0015484 | AY39: 0 | AZ39: 0 | BB39: 0.0030388 | BC39: 8.4e-05 | BD39: 0.01435 | BF39: 0.001342104 | BG39: 0.000144296 | BH39: 0.00594956 | BJ39: 0.0030388 | BK39: 8.4e-05 | BL39: 0.01435 | BQ39: 0 | BR39: 0 | BS39: 0 | BT39: 0 | BU39: 0 | BV39: 0
B40: 388 | C40: 0.001406 | D40: 5.815738621e-05 | AT40: 388 | AU40: 9.76e-05 | AV40: 0.00128 | AW40: 0.000638224 | AX40: 0.0017686 | AY40: 0 | AZ40: 0 | BB40: 0.0034402 | BC40: 9.6e-05 | BD40: 0.01625 | BF40: 0.001681936 | BG40: 0.000180664 | BH40: 0.00746044 | BJ40: 0.0034402 | BK40: 9.6e-05 | BL40: 0.01625 | BQ40: 0 | BR40: 0 | BS40: 0 | BT40: 0 | BU40: 0 | BV40: 0
B41: 389 | C41: 0.001561 | D41: 6.456876236e-05 | AT41: 389 | AU41: 0.0001088 | AV41: 0.00139 | AW41: 0.000719112 | AX41: 0.0019888 | AY41: 0 | AZ41: 0 | BB41: 0.0038416 | BC41: 0.000108 | BD41: 0.01815 | BF41: 0.002021768 | BG41: 0.000217032 | BH41: 0.00897132 | BJ41: 0.0038416 | BK41: 0.000108 | BL41: 0.01815 | BQ41: 0 | BR41: 0 | BS41: 0 | BT41: 0 | BU41: 0 | BV41: 0
B42: 390 | C42: 0.001716 | D42: 7.098013851e-05 | AT42: 390 | AU42: 0.00012 | AV42: 0.0015 | AW42: 0.0008 | AX42: 0.002209 | AY42: 0.000414616 | AZ42: 0.000407678 | BB42: 0.004243 | BC42: 0.00012 | BD42: 0.02005 | BF42: 0.0023616 | BG42: 0.0002534 | BH42: 0.0104822 | BJ42: 0.004243 | BK42: 0.00012 | BL42: 0.02005 | BQ42: 0.003769647 | BR42: 0.0004146161 | BS42: 0.0184726 | BT42: 0.0015 | BU42: -0.0004 | BV42: 0.0062
B43: 391 | C43: 0.001355 | D43: 5.604783664e-05 | AT43: 391 | AU43: 0.0001394 | AV43: 0.0018 | AW43: 0.00094914 | AX43: 0.0026732 | AY43: 0.000502833 | AZ43: 0.000497777 | BB43: 0.0049244 | BC43: 0.0001394 | BD43: 0.023282 | BF43: 0.00333774 | BG43: 0.00035642 | BH43: 0.01485456 | BJ43: 0.0049244 | BK43: 0.0001394 | BL43: 0.023282 | BQ43: 0.004532416 | BR43: 0.0005028333 | BS43: 0.02221101 | BT43: 0.00196 | BU43: -0.00052 | BV43: 0.00818
B44: 392 | C44: 0.001283 | D44: 5.306964901e-05 | AT44: 392 | AU44: 0.0001588 | AV44: 0.0021 | AW44: 0.00109828 | AX44: 0.0031374 | AY44: 0.000608499 | AZ44: 0.000606475 | BB44: 0.0056058 | BC44: 0.0001588 | BD44: 0.026514 | BF44: 0.00431388 | BG44: 0.00045944 | BH44: 0.01922692 | BJ44: 0.0056058 | BK44: 0.0001588 | BL44: 0.026514 | BQ44: 0.005446553 | BR44: 0.0006084991 | BS44: 0.02669819 | BT44: 0.00242 | BU44: -0.00064 | BV44: 0.01016
B45: 393 | C45: 0.001211 | D45: 5.009146138e-05 | AT45: 393 | AU45: 0.0001782 | AV45: 0.0024 | AW45: 0.00124742 | AX45: 0.0036016 | AY45: 0.000734444 | AZ45: 0.000737004 | BB45: 0.0062872 | BC45: 0.0001782 | BD45: 0.029746 | BF45: 0.00529002 | BG45: 0.00056246 | BH45: 0.02359928 | BJ45: 0.0062872 | BK45: 0.0001782 | BL45: 0.029746 | BQ45: 0.006538868 | BR45: 0.0007344436 | BS45: 0.03206937 | BT45: 0.00288 | BU45: -0.00076 | BV45: 0.01214
B46: 394 | C46: 0.001323 | D46: 5.47241977e-05 | AT46: 394 | AU46: 0.0001976 | AV46: 0.0027 | AW46: 0.00139656 | AX46: 0.0040658 | AY46: 0.000883739 | AZ46: 0.000892939 | BB46: 0.0069686 | BC46: 0.0001976 | BD46: 0.032978 | BF46: 0.00626616 | BG46: 0.00066548 | BH46: 0.02797164 | BJ46: 0.0069686 | BK46: 0.0001976 | BL46: 0.032978 | BQ46: 0.007839699 | BR46: 0.0008837389 | BS46: 0.03847832 | BT46: 0.00334 | BU46: -0.00088 | BV46: 0.01412
B47: 395 | C47: 0.001435 | D47: 5.935693401e-05 | AT47: 395 | AU47: 0.000217 | AV47: 0.003 | AW47: 0.0015457 | AX47: 0.00453 | AY47: 0.00105965 | AZ47: 0.00107817 | BB47: 0.00765 | BC47: 0.000217 | BD47: 0.03621 | BF47: 0.0072423 | BG47: 0.0007685 | BH47: 0.032344 | BJ47: 0.00765 | BK47: 0.000217 | BL47: 0.03621 | BQ47: 0.009382967 | BR47: 0.001059646 | BS47: 0.04609784 | BT47: 0.0038 | BU47: -0.001 | BV47: 0.0161
B48: 396 | C48: 0.001169 | D48: 4.835418527e-05 | AT48: 396 | AU48: 0.0002528 | AV48: 0.0033 | AW48: 0.00179656 | AX48: 0.005482 | AY48: 0.00126553 | AZ48: 0.00129682 | BB48: 0.008982 | BC48: 0.0002536 | BD48: 0.042538 | BF48: 0.00961578 | BG48: 0.00101568 | BH48: 0.04307738 | BJ48: 0.008982 | BK48: 0.0002536 | BL48: 0.042538 | BQ48: 0.01120608 | BR48: 0.001265532 | BS48: 0.05511953 | BT48: 0.00482 | BU48: 0.00482 | BV48: 0.00482
B49: 397 | C49: 0.000903 | D49: 3.735143652e-05 | AT49: 397 | AU49: 0.0002886 | AV49: 0.0036 | AW49: 0.00204742 | AX49: 0.006434 | AY49: 0.00150475 | AZ49: 0.00155316 | BB49: 0.010314 | BC49: 0.0002902 | BD49: 0.048866 | BF49: 0.01198926 | BG49: 0.00126286 | BH49: 0.05381076 | BJ49: 0.010314 | BK49: 0.0002902 | BL49: 0.048866 | BQ49: 0.01334965 | BR49: 0.001504753 | BS49: 0.06575257 | BT49: 0.00584 | BU49: -0.0016 | BV49: 0.02566
B50: 398 | C50: 0.001083 | D50: 4.47969056e-05 | AT50: 398 | AU50: 0.0003244 | AV50: 0.0039 | AW50: 0.00229828 | AX50: 0.007386 | AY50: 0.00178049 | AZ50: 0.00185146 | BB50: 0.011646 | BC50: 0.0003268 | BD50: 0.055194 | BF50: 0.01436274 | BG50: 0.00151004 | BH50: 0.06454414 | BJ50: 0.011646 | BK50: 0.0003268 | BL50: 0.055194 | BQ50: 0.0158569 | BR50: 0.001780493 | BS50: 0.07822113 | BT50: 0.00686 | BU50: -0.0019 | BV50: 0.03044
B51: 399 | C51: 0.001263 | D51: 5.224237467e-05 | AT51: 399 | AU51: 0.0003602 | AV51: 0.0042 | AW51: 0.00254914 | AX51: 0.008338 | AY51: 0.00209557 | AZ51: 0.00219579 | BB51: 0.012978 | BC51: 0.0003634 | BD51: 0.061522 | BF51: 0.01673622 | BG51: 0.00175722 | BH51: 0.07527752 | BJ51: 0.012978 | BK51: 0.0003634 | BL51: 0.061522 | BQ51: 0.01877286 | BR51: 0.002095572 | BS51: 0.09276013 | BT51: 0.00788 | BU51: -0.0022 | BV51: 0.03522
B52: 400 | C52: 0.00136 | D52: 5.625465523e-05 | AT52: 400 | AU52: 0.000396 | AV52: 0.0045 | AW52: 0.0028 | AX52: 0.00929 | AY52: 0.00245219 | AZ52: 0.00258977 | BB52: 0.01431 | BC52: 0.0004 | BD52: 0.06785 | BF52: 0.0191097 | BG52: 0.0020044 | BH52: 0.0860109 | BJ52: 0.01431 | BK52: 0.0004 | BL52: 0.06785 | BQ52: 0.02214302 | BR52: 0.002452194 | BS52: 0.109609 | BT52: 0.0089 | BU52: -0.0025 | BV52: 0.04
B53: 401 | C53: 0.001456 | D53: 6.022557207e-05 | AT53: 401 | AU53: 0.0004448 | AV53: 0.00498 | AW53: 0.00317124 | AX53: 0.011136 | AY53: 0.00285222 | AZ53: 0.0030368 | BB53: 0.016086 | BC53: 0.000448 | BD53: 0.07632 | BF53: 0.02396776 | BG53: 0.00250532 | BH53: 0.10823272 | BJ53: 0.016086 | BK53: 0.000448 | BL53: 0.07632 | BQ53: 0.02601285 | BR53: 0.002852216 | BS53: 0.1290077 | BT53: 0.01088 | BU53: -0.00318 | BV53: 0.05012
B54: 402 | C54: 0.001485 | D54: 6.142511986e-05 | AT54: 402 | AU54: 0.0004936 | AV54: 0.00546 | AW54: 0.00354248 | AX54: 0.012982 | AY54: 0.00329912 | AZ54: 0.00354193 | BB54: 0.017862 | BC54: 0.000496 | BD54: 0.08479 | BF54: 0.02882582 | BG54: 0.00300624 | BH54: 0.13045454 | BJ54: 0.017862 | BK54: 0.000496 | BL54: 0.08479 | BQ54: 0.03043036 | BR54: 0.003299115 | BS54: 0.1512047 | BT54: 0.01286 | BU54: -0.00386 | BV54: 0.06024
B55: 403 | C55: 0.001514 | D55: 6.262466766e-05 | AT55: 403 | AU55: 0.0005424 | AV55: 0.00594 | AW55: 0.00391372 | AX55: 0.014828 | AY55: 0.00379747 | AZ55: 0.00411142 | BB55: 0.019638 | BC55: 0.000544 | BD55: 0.09326 | BF55: 0.03368388 | BG55: 0.00350716 | BH55: 0.15267636 | BJ55: 0.019638 | BK55: 0.000544 | BL55: 0.09326 | BQ55: 0.03544325 | BR55: 0.003797466 | BS55: 0.1764441 | BT55: 0.01484 | BU55: -0.00454 | BV55: 0.07036
B56: 404 | C56: 0.000993 | D56: 4.107417106e-05 | AT56: 404 | AU56: 0.0005912 | AV56: 0.00642 | AW56: 0.00428496 | AX56: 0.016674 | AY56: 0.00435277 | AZ56: 0.00475262 | BB56: 0.021414 | BC56: 0.000592 | BD56: 0.10173 | BF56: 0.03854194 | BG56: 0.00400808 | BH56: 0.17489818 | BJ56: 0.021414 | BK56: 0.000592 | BL56: 0.10173 | BQ56: 0.0410964 | BR56: 0.004352768 | BS56: 0.2049517 | BT56: 0.01682 | BU56: -0.00522 | BV56: 0.08048
B57: 405 | C57: 0.001146 | D57: 4.740281977e-05 | AT57: 405 | AU57: 0.00064 | AV57: 0.0069 | AW57: 0.0046562 | AX57: 0.01852 | AY57: 0.00497172 | AZ57: 0.00547421 | BB57: 0.02319 | BC57: 0.00064 | BD57: 0.1102 | BF57: 0.0434 | BG57: 0.004509 | BH57: 0.19712 | BJ57: 0.02319 | BK57: 0.00064 | BL57: 0.1102 | BQ57: 0.04742986 | BR57: 0.004971717 | BS57: 0.2369246 | BT57: 0.0188 | BU57: -0.0059 | BV57: 0.0906
B58: 406 | C58: 0.0013 | D58: 5.37728322e-05 | AT58: 406 | AU58: 0.000754 | AV58: 0.00738 | AW58: 0.00520496 | AX58: 0.021784 | AY58: 0.00566101 | AZ58: 0.00628503 | BB58: 0.027254 | BC58: 0.000754 | BD58: 0.12964 | BF58: 0.0516672 | BG58: 0.0053584 | BH58: 0.2355692 | BJ58: 0.027254 | BK58: 0.000754 | BL58: 0.12964 | BQ58: 0.05447394 | BR58: 0.005661014 | BS58: 0.2725123 | BT58: 0.02204 | BU58: -0.0071 | BV58: 0.10852
B59: 407 | C59: 0.001202 | D59: 4.971918793e-05 | AT59: 407 | AU59: 0.000868 | AV59: 0.00786 | AW59: 0.00575372 | AX59: 0.025048 | AY59: 0.00642161 | AZ59: 0.00718807 | BB59: 0.031318 | BC59: 0.000868 | BD59: 0.14908 | BF59: 0.0599344 | BG59: 0.0062078 | BH59: 0.2740184 | BJ59: 0.031318 | BK59: 0.000868 | BL59: 0.14908 | BQ59: 0.06223612 | BR59: 0.006421615 | BS59: 0.311782 | BT59: 0.02528 | BU59: -0.0083 | BV59: 0.12644
B60: 408 | C60: 0.001104 | D60: 4.566554366e-05 | AT60: 408 | AU60: 0.000982 | AV60: 0.00834 | AW60: 0.00630248 | AX60: 0.028312 | AY60: 0.00725031 | AZ60: 0.00818179 | BB60: 0.035382 | BC60: 0.000982 | BD60: 0.16852 | BF60: 0.0682016 | BG60: 0.0070572 | BH60: 0.3124676 | BJ60: 0.035382 | BK60: 0.000982 | BL60: 0.16852 | BQ60: 0.07070048 | BR60: 0.007250312 | BS60: 0.3547064 | BT60: 0.02852 | BU60: -0.0095 | BV60: 0.14436
B61: 409 | C61: 0.001236 | D61: 5.112555431e-05 | AT61: 409 | AU61: 0.001096 | AV61: 0.00882 | AW61: 0.00685124 | AX61: 0.031576 | AY61: 0.00814017 | AZ61: 0.00926042 | BB61: 0.039446 | BC61: 0.001096 | BD61: 0.18796 | BF61: 0.0764688 | BG61: 0.0079066 | BH61: 0.3509168 | BJ61: 0.039446 | BK61: 0.001096 | BL61: 0.18796 | BQ61: 0.07982513 | BR61: 0.008140173 | BS61: 0.4011473 | BT61: 0.03176 | BU61: -0.0107 | BV61: 0.16228
B62: 410 | C62: 0.001367 | D62: 5.654420125e-05 | AT62: 410 | AU62: 0.00121 | AV62: 0.0093 | AW62: 0.0074 | AX62: 0.03484 | AY62: 0.00907986 | AZ62: 0.010413 | BB62: 0.04351 | BC62: 0.00121 | BD62: 0.2074 | BF62: 0.084736 | BG62: 0.008756 | BH62: 0.389366 | BJ62: 0.04351 | BK62: 0.00121 | BL62: 0.2074 | BQ62: 0.08953803 | BR62: 0.00907986 | BS62: 0.4508369 | BT62: 0.035 | BU62: -0.0119 | BV62: 0.1802
B63: 411 | C63: 0.001485 | D63: 6.142511986e-05 | AT63: 411 | AU63: 0.001404 | AV63: 0.01012 | AW63: 0.0082758 | AX63: 0.039952 | AY63: 0.0100561 | AZ63: 0.0116264 | BB63: 0.050334 | BC63: 0.001404 | BD63: 0.24018 | BF63: 0.0959164 | BG63: 0.009896 | BH63: 0.4428448 | BJ63: 0.050334 | BK63: 0.001404 | BL63: 0.24018 | BQ63: 0.09974848 | BR63: 0.01005608 | BS63: 0.5034164 | BT63: 0.03862 | BU63: -0.01354 | BV63: 0.20592
B64: 412 | C64: 0.00125 | D64: 5.170464635e-05 | AT64: 412 | AU64: 0.001598 | AV64: 0.01094 | AW64: 0.0091516 | AX64: 0.045064 | AY64: 0.0110646 | AZ64: 0.0128988 | BB64: 0.057158 | BC64: 0.001598 | BD64: 0.27296 | BF64: 0.1070968 | BG64: 0.011036 | BH64: 0.4963236 | BJ64: 0.057158 | BK64: 0.001598 | BL64: 0.27296 | BQ64: 0.1104019 | BR64: 0.01106456 | BS64: 0.5586361 | BT64: 0.04224 | BU64: -0.01518 | BV64: 0.23164
B65: 413 | C65: 0.001172 | D65: 4.847827642e-05 | AT65: 413 | AU65: 0.001792 | AV65: 0.01176 | AW65: 0.0100274 | AX65: 0.050176 | AY65: 0.0121052 | AZ65: 0.0142344 | BB65: 0.063982 | BC65: 0.001792 | BD65: 0.30574 | BF65: 0.1182772 | BG65: 0.012176 | BH65: 0.5498024 | BJ65: 0.063982 | BK65: 0.001792 | BL65: 0.30574 | BQ65: 0.1214566 | BR65: 0.01210522 | BS65: 0.6162734 | BT65: 0.04586 | BU65: -0.01682 | BV65: 0.25736
B66: 414 | C66: 0.001095 | D66: 4.52932702e-05 | AT66: 414 | AU66: 0.001986 | AV66: 0.01258 | AW66: 0.0109032 | AX66: 0.055288 | AY66: 0.0131801 | AZ66: 0.0156408 | BB66: 0.070806 | BC66: 0.001986 | BD66: 0.33852 | BF66: 0.1294576 | BG66: 0.013316 | BH66: 0.6032812 | BJ66: 0.070806 | BK66: 0.001986 | BL66: 0.33852 | BQ66: 0.1328741 | BR66: 0.01318014 | BS66: 0.6760982 | BT66: 0.04948 | BU66: -0.01846 | BV66: 0.28308
B67: 415 | C67: 0.001243 | D67: 5.141510033e-05 | AT67: 415 | AU67: 0.00218 | AV67: 0.0134 | AW67: 0.011779 | AX67: 0.0604 | AY67: 0.0142938 | AZ67: 0.0171297 | BB67: 0.07763 | BC67: 0.00218 | BD67: 0.3713 | BF67: 0.140638 | BG67: 0.014456 | BH67: 0.65676 | BJ67: 0.07763 | BK67: 0.00218 | BL67: 0.3713 | BQ67: 0.1446214 | BR67: 0.01429377 | BS67: 0.7378822 | BT67: 0.0531 | BU67: -0.0201 | BV67: 0.3088
B68: 416 | C68: 0.001391 | D68: 5.753693046e-05 | AT68: 416 | AU68: 0.002544 | AV68: 0.01422 | AW68: 0.0129232 | AX68: 0.06764 | AY68: 0.01545 | AZ68: 0.0187127 | BB68: 0.08898 | BC68: 0.002544 | BD68: 0.42616 | BF68: 0.1534088 | BG68: 0.015843 | BH68: 0.7199164 | BJ68: 0.08898 | BK68: 0.002544 | BL68: 0.42616 | BQ68: 0.1566468 | BR68: 0.01545004 | BS68: 0.8013019 | BT68: 0.05652 | BU68: -0.02186 | BV68: 0.34044
B69: 417 | C69: 0.000987 | D69: 4.082598876e-05 | AT69: 417 | AU69: 0.002908 | AV69: 0.01504 | AW69: 0.0140674 | AX69: 0.07488 | AY69: 0.0166409 | AZ69: 0.0203839 | BB69: 0.10033 | BC69: 0.002908 | BD69: 0.48102 | BF69: 0.1661796 | BG69: 0.01723 | BH69: 0.7830728 | BJ69: 0.10033 | BK69: 0.002908 | BL69: 0.48102 | BQ69: 0.1687901 | BR69: 0.01664093 | BS69: 0.8655573 | BT69: 0.05994 | BU69: -0.02362 | BV69: 0.37208
B70: 418 | C70: 0.000861 | D70: 3.561416041e-05 | AT70: 418 | AU70: 0.003272 | AV70: 0.01586 | AW70: 0.0152116 | AX70: 0.08212 | AY70: 0.017853 | AZ70: 0.0221294 | BB70: 0.11168 | BC70: 0.003272 | BD70: 0.53588 | BF70: 0.1789504 | BG70: 0.018617 | BH70: 0.8462292 | BJ70: 0.11168 | BK70: 0.003272 | BL70: 0.53588 | BQ70: 0.1808328 | BR70: 0.01785302 | BS70: 0.9295791 | BT70: 0.06336 | BU70: -0.02538 | BV70: 0.40372
B71: 419 | C71: 0.000735 | D71: 3.040233205e-05 | AT71: 419 | AU71: 0.003636 | AV71: 0.01668 | AW71: 0.0163558 | AX71: 0.08936 | AY71: 0.0190702 | AZ71: 0.0239299 | BB71: 0.12303 | BC71: 0.003636 | BD71: 0.59074 | BF71: 0.1917212 | BG71: 0.020004 | BH71: 0.9093856 | BJ71: 0.12303 | BK71: 0.003636 | BL71: 0.59074 | BQ71: 0.1925216 | BR71: 0.01907018 | BS71: 0.9921293 | BT71: 0.06678 | BU71: -0.02714 | BV71: 0.43536
B72: 420 | C72: 0.000872 | D72: 3.606916129e-05 | AT72: 420 | AU72: 0.004 | AV72: 0.0175 | AW72: 0.0175 | AX72: 0.0966 | AY72: 0.0202737 | AZ72: 0.0257613 | BB72: 0.13438 | BC72: 0.004 | BD72: 0.6456 | BF72: 0.204492 | BG72: 0.021391 | BH72: 0.972542 | BJ72: 0.13438 | BK72: 0.004 | BL72: 0.6456 | BQ72: 0.2035729 | BR72: 0.02027369 | BS72: 1.051821 | BT72: 0.0702 | BU72: -0.0289 | BV72: 0.467
B73: 421 | C73: 0.001009 | D73: 4.173599053e-05 | AT73: 421 | AU73: 0.00466 | AV73: 0.01848 | AW73: 0.0185356 | AX73: 0.106 | AY73: 0.0214481 | AZ73: 0.0276016 | BB73: 0.150458 | BC73: 0.00466 | BD73: 0.72429 | BF73: 0.216541 | BG73: 0.0230122 | BH73: 1.0345336 | BJ73: 0.150458 | BK73: 0.00466 | BL73: 0.72429 | BQ73: 0.2137531 | BR73: 0.02144805 | BS73: 1.107509 | BT73: 0.07142 | BU73: -0.02988 | BV73: 0.49664
B74: 422 | C74: 0.001026 | D74: 4.243917372e-05 | AT74: 422 | AU74: 0.00532 | AV74: 0.01946 | AW74: 0.0195712 | AX74: 0.1154 | AY74: 0.0226004 | AZ74: 0.0294551 | BB74: 0.166536 | BC74: 0.00532 | BD74: 0.80298 | BF74: 0.22859 | BG74: 0.0246334 | BH74: 1.0965252 | BJ74: 0.166536 | BK74: 0.00532 | BL74: 0.80298 | BQ74: 0.2231348 | BR74: 0.02260041 | BS74: 1.159527 | BT74: 0.07264 | BU74: -0.03086 | BV74: 0.52628
B75: 423 | C75: 0.001044 | D75: 4.318372063e-05 | AT75: 423 | AU75: 0.00598 | AV75: 0.02044 | AW75: 0.0206068 | AX75: 0.1248 | AY75: 0.0237479 | AZ75: 0.0313388 | BB75: 0.182614 | BC75: 0.00598 | BD75: 0.88167 | BF75: 0.240639 | BG75: 0.0262546 | BH75: 1.1585168 | BJ75: 0.182614 | BK75: 0.00598 | BL75: 0.88167 | BQ75: 0.2319245 | BR75: 0.02374789 | BS75: 1.208869 | BT75: 0.07386 | BU75: -0.03184 | BV75: 0.55592
B76: 424 | C76: 0.001059 | D76: 4.380417639e-05 | AT76: 424 | AU76: 0.00664 | AV76: 0.02142 | AW76: 0.0216424 | AX76: 0.1342 | AY76: 0.0249125 | AZ76: 0.0332758 | BB76: 0.198692 | BC76: 0.00664 | BD76: 0.96036 | BF76: 0.252688 | BG76: 0.0278758 | BH76: 1.2205084 | BJ76: 0.198692 | BK76: 0.00664 | BL76: 0.96036 | BQ76: 0.2403892 | BR76: 0.02491247 | BS76: 1.256834 | BT76: 0.07508 | BU76: -0.03282 | BV76: 0.58556
B77: 425 | C77: 0.001075 | D77: =C77/$C$11 -> 4.446599586e-05 | AT77: 425 | AU77: 0.0073 | AV77: 0.0224 | AW77: 0.022678 | AX77: 0.1436 | AY77: 0.0261211 | AZ77: 0.0352955 | BB77: 0.21477 | BC77: 0.0073 | BD77: 1.03905 | BF77: 0.264737 | BG77: 0.029497 | BH77: 1.2825 | BJ77: 0.21477 | BK77: 0.0073 | BL77: 1.03905 | BQ77: 0.2488523 | BR77: 0.02612106 | BS77: 1.305008 | BT77: 0.0763 | BU77: -0.0338 | BV77: 0.6152
B78: 426 | C78: 0.000947 | D78: 3.917144007e-05 | AT78: 426 | AU78: 0.00816 | AV78: 0.02338 | AW78: 0.0236024 | AX78: 0.15484 | AY78: 0.0273992 | AZ78: 0.0374271 | BB78: 0.228596 | BC78: 0.00816 | BD78: 1.10836 | BF78: 0.2747254 | BG78: 0.0313328 | BH78: 1.336696 | BJ78: 0.228596 | BK78: 0.00816 | BL78: 1.10836 | BQ78: 0.2575896 | BR78: 0.02739923 | BS78: 1.354758 | BT78: 0.07594 | BU78: -0.03402 | BV78: 0.64492
B79: 427 | C79: 0.000819 | D79: 3.387688429e-05 | AT79: 427 | AU79: 0.00902 | AV79: 0.02436 | AW79: 0.0245268 | AX79: 0.16608 | AY79: 0.0287499 | AZ79: 0.0396714 | BB79: 0.242422 | BC79: 0.00902 | BD79: 1.17767 | BF79: 0.2847138 | BG79: 0.0331686 | BH79: 1.390892 | BJ79: 0.242422 | BK79: 0.00902 | BL79: 1.17767 | BQ79: 0.2664991 | BR79: 0.02874993 | BS79: 1.405594 | BT79: 0.07558 | BU79: -0.03424 | BV79: 0.67464
B80: 428 | C80: 0.000985 | D80: 4.074326132e-05 | AT80: 428 | AU80: 0.00988 | AV80: 0.02534 | AW80: 0.0254512 | AX80: 0.17732 | AY80: 0.0301691 | AZ80: 0.04202 | BB80: 0.256248 | BC80: 0.00988 | BD80: 1.24698 | BF80: 0.2947022 | BG80: 0.0350044 | BH80: 1.445088 | BJ80: 0.256248 | BK80: 0.00988 | BL80: 1.24698 | BQ80: 0.2753532 | BR80: 0.03016909 | BS80: 1.456414 | BT80: 0.07522 | BU80: -0.03446 | BV80: 0.70436
B81: 429 | C81: 0.001151 | D81: 4.760963836e-05 | AT81: 429 | AU81: 0.01074 | AV81: 0.02632 | AW81: 0.0263756 | AX81: 0.18856 | AY81: 0.0316514 | AZ81: 0.0444617 | BB81: 0.270074 | BC81: 0.01074 | BD81: 1.31629 | BF81: 0.3046906 | BG81: 0.0368402 | BH81: 1.499284 | BJ81: 0.270074 | BK81: 0.01074 | BL81: 1.31629 | BQ81: 0.2838921 | BR81: 0.03165145 | BS81: 1.50596 | BT81: 0.07486 | BU81: -0.03468 | BV81: 0.73408
B82: 430 | C82: 0.000816 | D82: 3.375279314e-05 | AT82: 430 | AU82: 0.0116 | AV82: 0.0273 | AW82: 0.0273 | AX82: 0.1998 | AY82: 0.0331904 | AZ82: 0.0469823 | BB82: 0.2839 | BC82: 0.0116 | BD82: 1.3856 | BF82: 0.314679 | BG82: 0.038676 | BH82: 1.55348 | BJ82: 0.2839 | BK82: 0.0116 | BL82: 1.3856 | BQ82: 0.2918246 | BR82: 0.03319038 | BS82: 1.552826 | BT82: 0.0745 | BU82: -0.0349 | BV82: 0.7638
B83: 431 | C83: 0.000714 | D83: 2.953369399e-05 | AT83: 431 | AU83: 0.012648 | AV83: 0.02836 | AW83: 0.0283568 | AX83: 0.21234 | AY83: 0.0347791 | AZ83: 0.0495674 | BB83: 0.29282 | BC83: 0.012648 | BD83: 1.433072 | BF83: 0.323287 | BG83: 0.0408612 | BH83: 1.602484 | BJ83: 0.29282 | BK83: 0.012648 | BL83: 1.433072 | BQ83: 0.29892 | BR83: 0.03477912 | BS83: 1.595902 | BT83: 0.07082 | BU83: -0.03344 | BV83: 0.7866
B84: 432 | C84: 0.000612 | D84: 2.531459485e-05 | AT84: 432 | AU84: 0.013696 | AV84: 0.02942 | AW84: 0.0294136 | AX84: 0.22488 | AY84: 0.0364149 | AZ84: 0.0522122 | BB84: 0.30174 | BC84: 0.013696 | BD84: 1.480544 | BF84: 0.331895 | BG84: 0.0430464 | BH84: 1.651488 | BJ84: 0.30174 | BK84: 0.013696 | BL84: 1.480544 | BQ84: 0.3052993 | BR84: 0.03641495 | BS84: 1.635768 | BT84: 0.06714 | BU84: -0.03198 | BV84: 0.8094
B85: 433 | C85: 0.000817 | D85: 3.379415685e-05 | AT85: 433 | AU85: 0.014744 | AV85: 0.03048 | AW85: 0.0304704 | AX85: 0.23742 | AY85: 0.0380957 | AZ85: 0.0549139 | BB85: 0.31066 | BC85: 0.014744 | BD85: 1.528016 | BF85: 0.340503 | BG85: 0.0452316 | BH85: 1.700492 | BJ85: 0.31066 | BK85: 0.014744 | BL85: 1.528016 | BQ85: 0.3112031 | BR85: 0.03809569 | BS85: 1.673573 | BT85: 0.06346 | BU85: -0.03052 | BV85: 0.8322
B86: 434 | C86: 0.001022 | D86: 4.227371886e-05 | AT86: 434 | AU86: 0.015792 | AV86: 0.03154 | AW86: 0.0315272 | AX86: 0.24996 | AY86: 0.0398184 | AZ86: 0.0576692 | BB86: 0.31958 | BC86: 0.015792 | BD86: 1.575488 | BF86: 0.349111 | BG86: 0.0474168 | BH86: 1.749496 | BJ86: 0.31958 | BK86: 0.015792 | BL86: 1.575488 | BQ86: 0.3169047 | BR86: 0.03981843 | BS86: 1.710604 | BT86: 0.05978 | BU86: -0.02906 | BV86: 0.855
B87: 435 | C87: 0.001085 | D87: 4.487963303e-05 | AT87: 435 | AU87: 0.01684 | AV87: 0.0326 | AW87: 0.032584 | AX87: 0.2625 | AY87: 0.0415794 | AZ87: 0.0604743 | BB87: 0.3285 | BC87: 0.01684 | BD87: 1.62296 | BF87: 0.357719 | BG87: 0.049602 | BH87: 1.7985 | BJ87: 0.3285 | BK87: 0.01684 | BL87: 1.62296 | BQ87: 0.3227087 | BR87: 0.0415794 | BS87: 1.74828 | BT87: 0.0561 | BU87: -0.0276 | BV87: 0.8778
B88: 436 | C88: 0.001147 | D88: 4.744418349e-05 | AT88: 436 | AU88: 0.018072 | AV88: 0.03366 | AW88: 0.0336472 | AX88: 0.27562 | AY88: 0.043371 | AZ88: 0.063322 | BB88: 0.332456 | BC88: 0.018072 | BD88: 1.64778 | BF88: 0.362922 | BG88: 0.052097 | BH88: 1.832256 | BJ88: 0.332456 | BK88: 0.018072 | BL88: 1.64778 | BQ88: 0.3288194 | BR88: 0.04337098 | BS88: 1.787504 | BT88: 0.05134 | BU88: -0.02546 | BV88: 0.89734
B89: 437 | C89: 0.001026 | D89: 4.243917372e-05 | AT89: 437 | AU89: 0.019304 | AV89: 0.03472 | AW89: 0.0347104 | AX89: 0.28874 | AY89: 0.0451718 | AZ89: 0.0661927 | BB89: 0.336412 | BC89: 0.019304 | BD89: 1.6726 | BF89: 0.368125 | BG89: 0.054592 | BH89: 1.866012 | BJ89: 0.336412 | BK89: 0.019304 | BL89: 1.6726 | BQ89: 0.3349242 | BR89: 0.0451718 | BS89: 1.826609 | BT89: 0.04658 | BU89: -0.02332 | BV89: 0.91688
B90: 438 | C90: 0.000905 | D90: 3.743416396e-05 | AT90: 438 | AU90: 0.020536 | AV90: 0.03578 | AW90: 0.0357736 | AX90: 0.30186 | AY90: 0.0469542 | AZ90: 0.0690619 | BB90: 0.340368 | BC90: 0.020536 | BD90: 1.69742 | BF90: 0.373328 | BG90: 0.057087 | BH90: 1.899768 | BJ90: 0.340368 | BK90: 0.020536 | BL90: 1.69742 | BQ90: 0.3405452 | BR90: 0.0469542 | BS90: 1.863108 | BT90: 0.04182 | BU90: -0.02118 | BV90: 0.93642
B91: 439 | C91: 0.000963 | D91: 3.983325955e-05 | AT91: 439 | AU91: 0.021768 | AV91: 0.03684 | AW91: 0.0368368 | AX91: 0.31498 | AY91: 0.0486872 | AZ91: 0.0719019 | BB91: 0.344324 | BC91: 0.021768 | BD91: 1.72224 | BF91: 0.378531 | BG91: 0.059582 | BH91: 1.933524 | BJ91: 0.344324 | BK91: 0.021768 | BL91: 1.72224 | BQ91: 0.3451688 | BR91: 0.04868718 | BS91: 1.894332 | BT91: 0.03706 | BU91: -0.01904 | BV91: 0.95596
B92: 440 | C92: 0.00102 | D92: 4.219099142e-05 | AT92: 440 | AU92: 0.023 | AV92: 0.0379 | AW92: 0.0379 | AX92: 0.3281 | AY92: 0.0503366 | AZ92: 0.0746829 | BB92: 0.34828 | BC92: 0.023 | BD92: 1.74706 | BF92: 0.383734 | BG92: 0.062077 | BH92: 1.96728 | BJ92: 0.34828 | BK92: 0.023 | BL92: 1.74706 | BQ92: 0.3482554 | BR92: 0.05033657 | BS92: 1.917479 | BT92: 0.0323 | BU92: -0.0169 | BV92: 0.9755
B93: 441 | C93: 0.000727 | D93: 3.007142232e-05 | AT93: 441 | AU93: 0.02436 | AV93: 0.03879 | AW93: 0.0387982 | AX93: 0.3411 | AY93: 0.0518761 | AZ93: 0.0773845 | BB93: 0.348236 | BC93: 0.02436 | BD93: 1.754168 | BF93: 0.3843324 | BG93: 0.0646024 | BH93: 1.979284 | BJ93: 0.348236 | BK93: 0.02436 | BL93: 1.754168 | BQ93: 0.3494153 | BR93: 0.05187611 | BS93: 1.930529 | BT93: 0.02496 | BU93: -0.01304 | BV93: 0.98078
B94: 442 | C94: 0.000788 | D94: 3.259460906e-05 | AT94: 442 | AU94: 0.02572 | AV94: 0.03968 | AW94: 0.0396964 | AX94: 0.3541 | AY94: 0.0533222 | AZ94: 0.080036 | BB94: 0.348192 | BC94: 0.02572 | BD94: 1.761276 | BF94: 0.3849308 | BG94: 0.0671278 | BH94: 1.991288 | BJ94: 0.348192 | BK94: 0.02572 | BL94: 1.761276 | BQ94: 0.3489075 | BR94: 0.05332218 | BS94: 1.934819 | BT94: 0.01762 | BU94: -0.00918 | BV94: 0.98606
B95: 443 | C95: 0.000849 | D95: 3.51177958e-05 | AT95: 443 | AU95: 0.02708 | AV95: 0.04057 | AW95: 0.0405946 | AX95: 0.3671 | AY95: 0.054706 | AZ95: 0.0826852 | BB95: 0.348148 | BC95: 0.02708 | BD95: 1.768384 | BF95: 0.3855292 | BG95: 0.0696532 | BH95: 2.003292 | BJ95: 0.348148 | BK95: 0.02708 | BL95: 1.768384 | BQ95: 0.3471746 | BR95: 0.05470603 | BS95: 1.93265 | BT95: 0.01028 | BU95: -0.00532 | BV95: 0.99134
B96: 444 | C96: 0.000852 | D96: 3.524188695e-05 | AT96: 444 | AU96: 0.02844 | AV96: 0.04146 | AW96: 0.0414928 | AX96: 0.3801 | AY96: 0.0560634 | AZ96: 0.0853875 | BB96: 0.348104 | BC96: 0.02844 | BD96: 1.775492 | BF96: 0.3861276 | BG96: 0.0721786 | BH96: 2.015296 | BJ96: 0.348104 | BK96: 0.02844 | BL96: 1.775492 | BQ96: 0.3446705 | BR96: 0.05606335 | BS96: 1.926395 | BT96: 0.00294 | BU96: -0.00146 | BV96: 0.99662
B97: 445 | C97: 0.000855 | D97: 3.53659781e-05 | AT97: 445 | AU97: 0.0298 | AV97: 0.04235 | AW97: 0.042391 | AX97: 0.3931 | AY97: 0.0574339 | AZ97: 0.0882054 | BB97: 0.34806 | BC97: 0.0298 | BD97: 1.7826 | BF97: 0.386726 | BG97: 0.074704 | BH97: 2.0273 | BJ97: 0.34806 | BK97: 0.0298 | BL97: 1.7826 | BQ97: 0.3418483 | BR97: 0.05743393 | BS97: 1.918437 | BT97: -0.0044 | BU97: 0.0024 | BV97: 1.0019
B98: 446 | C98: 0.000909 | D98: 3.759961883e-05 | AT98: 446 | AU98: 0.03144 | AV98: 0.04324 | AW98: 0.0432728 | AX98: 0.40548 | AY98: 0.0588511 | AZ98: 0.0911893 | BB98: 0.345688 | BC98: 0.03144 | BD98: 1.780502 | BF98: 0.3835212 | BG98: 0.0776544 | BH98: 2.0208 | BJ98: 0.345688 | BK98: 0.03144 | BL98: 1.780502 | BQ98: 0.339024 | BR98: 0.05885107 | BS98: 1.91043 | BT98: -0.01308 | BU98: 0.00758 | BV98: 1.00144
B99: 447 | C99: 0.000963 | D99: 3.983325955e-05 | AT99: 447 | AU99: 0.03308 | AV99: 0.04413 | AW99: 0.0441546 | AX99: 0.41786 | AY99: 0.0603081 | AZ99: 0.0943104 | BB99: 0.343316 | BC99: 0.03308 | BD99: 1.778404 | BF99: 0.3803164 | BG99: 0.0806048 | BH99: 2.0143 | BJ99: 0.343316 | BK99: 0.03308 | BL99: 1.778404 | BQ99: 0.3359926 | BR99: 0.06030809 | BS99: 1.901224 | BT99: -0.02176 | BU99: 0.01276 | BV99: 1.00098
B100: 448 | C100: 0.000992 | D100: 4.103280734e-05 | AT100: 448 | AU100: 0.03472 | AV100: 0.04502 | AW100: 0.0450364 | AX100: 0.43024 | AY100: 0.0617864 | AZ100: 0.0975135 | BB100: 0.340944 | BC100: 0.03472 | BD100: 1.776306 | BF100: 0.3771116 | BG100: 0.0835552 | BH100: 2.0078 | BJ100: 0.340944 | BK100: 0.03472 | BL100: 1.776306 | BQ100: 0.3324276 | BR100: 0.06178644 | BS100: 1.889 | BT100: -0.03044 | BU100: 0.01794 | BV100: 1.00052
B101: 449 | C101: 0.001021 | D101: 4.223235514e-05 | AT101: 449 | AU101: 0.03636 | AV101: 0.04591 | AW101: 0.0459182 | AX101: 0.44262 | AY101: 0.0632657 | AZ101: 0.100735 | BB101: 0.338572 | BC101: 0.03636 | BD101: 1.774208 | BF101: 0.3739068 | BG101: 0.0865056 | BH101: 2.0013 | BJ101: 0.338572 | BK101: 0.03636 | BL101: 1.774208 | BQ101: 0.3280157 | BR101: 0.0632657 | BS101: 1.871996 | BT101: -0.03912 | BU101: 0.02312 | BV101: 1.00006
B102: 450 | C102: 0.000991 | D102: 4.099144363e-05 | AT102: 450 | AU102: 0.038 | AV102: 0.0468 | AW102: 0.0468 | AX102: 0.455 | AY102: 0.0647235 | AZ102: 0.103903 | BB102: 0.3362 | BC102: 0.038 | BD102: 1.77211 | BF102: 0.370702 | BG102: 0.089456 | BH102: 1.9948 | BJ102: 0.3362 | BK102: 0.038 | BL102: 1.77211 | BQ102: 0.3224637 | BR102: 0.06472352 | BS102: 1.848545 | BT102: -0.0478 | BU102: 0.0283 | BV102: 0.9996
B103: 451 | C103: 0.000961 | D103: 3.975053211e-05 | AT103: 451 | AU103: 0.04 | AV103: 0.04812 | AW103: 0.0478644 | AX103: 0.4666 | AY103: 0.0661475 | AZ103: 0.106964 | BB103: 0.3327 | BC103: 0.04 | BD103: 1.766508 | BF103: 0.365153 | BG103: 0.092816 | BH103: 1.97598 | BJ103: 0.3327 | BK103: 0.04 | BL103: 1.766508 | BQ103: 0.3156225 | BR103: 0.06614749 | BS103: 1.817792 | BT103: -0.05764 | BU103: 0.03536 | BV103: 0.98246
B104: 452 | C104: 0.00077 | D104: 3.185006215e-05 | AT104: 452 | AU104: 0.042 | AV104: 0.04944 | AW104: 0.0489288 | AX104: 0.4782 | AY104: 0.0675726 | AZ104: 0.109968 | BB104: 0.3292 | BC104: 0.042 | BD104: 1.760906 | BF104: 0.359604 | BG104: 0.096176 | BH104: 1.95716 | BJ104: 0.3292 | BK104: 0.042 | BL104: 1.760906 | BQ104: 0.3078201 | BR104: 0.06757256 | BS104: 1.781627 | BT104: -0.06748 | BU104: 0.04242 | BV104: 0.96532
B105: 453 | C105: 0.00058 | D105: 2.399095591e-05 | AT105: 453 | AU105: 0.044 | AV105: 0.05076 | AW105: 0.0499932 | AX105: 0.4898 | AY105: 0.0690493 | AZ105: 0.112999 | BB105: 0.3257 | BC105: 0.044 | BD105: 1.755304 | BF105: 0.354055 | BG105: 0.099536 | BH105: 1.93834 | BJ105: 0.3257 | BK105: 0.044 | BL105: 1.755304 | BQ105: 0.2994771 | BR105: 0.06904928 | BS105: 1.742514 | BT105: -0.07732 | BU105: 0.04948 | BV105: 0.94818
B106: 454 | C106: 0.000921 | D106: 3.809598343e-05 | AT106: 454 | AU106: 0.046 | AV106: 0.05208 | AW106: 0.0510576 | AX106: 0.5014 | AY106: 0.0706328 | AZ106: 0.116154 | BB106: 0.3222 | BC106: 0.046 | BD106: 1.749702 | BF106: 0.348506 | BG106: 0.102896 | BH106: 1.91952 | BJ106: 0.3222 | BK106: 0.046 | BL106: 1.749702 | BQ106: 0.2909776 | BR106: 0.0706328 | BS106: 1.702749 | BT106: -0.08716 | BU106: 0.05654 | BV106: 0.93104
B107: 455 | C107: 0.001193 | D107: 4.934691448e-05 | AT107: 455 | AU107: 0.048 | AV107: 0.0534 | AW107: 0.052122 | AX107: 0.513 | AY107: 0.0723834 | AZ107: 0.119539 | BB107: 0.3187 | BC107: 0.048 | BD107: 1.7441 | BF107: 0.342957 | BG107: 0.106256 | BH107: 1.9007 | BJ107: 0.3187 | BK107: 0.048 | BL107: 1.7441 | BQ107: 0.2826646 | BR107: 0.07238339 | BS107: 1.664439 | BT107: -0.097 | BU107: 0.0636 | BV107: 0.9139
B108: 456 | C108: 0.00065 | D108: 2.68864161e-05 | AT108: 456 | AU108: 0.0504 | AV108: 0.05472 | AW108: 0.0536976 | AX108: 0.5238 | AY108: 0.0743596 | AZ108: 0.12325 | BB108: 0.31312 | BC108: 0.0504 | BD108: 1.72912 | BF108: 0.3348202 | BG108: 0.110645 | BH108: 1.869634 | BJ108: 0.31312 | BK108: 0.0504 | BL108: 1.72912 | BQ108: 0.2747962 | BR108: 0.0743596 | BS108: 1.629207 | BT108: -0.10932 | BU108: 0.07252 | BV108: 0.89706
B109: 457 | C109: 0.00079 | D109: 3.267733649e-05 | AT109: 457 | AU109: 0.0528 | AV109: 0.05604 | AW109: 0.0552732 | AX109: 0.5346 | AY109: 0.0765938 | AZ109: 0.127305 | BB109: 0.30754 | BC109: 0.0528 | BD109: 1.71414 | BF109: 0.3266834 | BG109: 0.115034 | BH109: 1.838568 | BJ109: 0.30754 | BK109: 0.0528 | BL109: 1.71414 | BQ109: 0.2674312 | BR109: 0.07659383 | BS109: 1.59736 | BT109: -0.12164 | BU109: 0.08144 | BV109: 0.88022
B110: 458 | C110: 0.000931 | D110: 3.85096206e-05 | AT110: 458 | AU110: 0.0552 | AV110: 0.05736 | AW110: 0.0568488 | AX110: 0.5454 | AY110: 0.0791144 | AZ110: 0.131696 | BB110: 0.30196 | BC110: 0.0552 | BD110: 1.69916 | BF110: 0.3185466 | BG110: 0.119423 | BH110: 1.807502 | BJ110: 0.30196 | BK110: 0.0552 | BL110: 1.69916 | BQ110: 0.2605847 | BR110: 0.07911436 | BS110: 1.568896 | BT110: -0.13396 | BU110: 0.09036 | BV110: 0.86338
B111: 459 | C111: 0.000945 | D111: 3.908871264e-05 | AT111: 459 | AU111: 0.0576 | AV111: 0.05868 | AW111: 0.0584244 | AX111: 0.5562 | AY111: 0.0819535 | AZ111: 0.136418 | BB111: 0.29638 | BC111: 0.0576 | BD111: 1.68418 | BF111: 0.3104098 | BG111: 0.123812 | BH111: 1.776436 | BJ111: 0.29638 | BK111: 0.0576 | BL111: 1.68418 | BQ111: 0.2542749 | BR111: 0.08195345 | BS111: 1.543823 | BT111: -0.14628 | BU111: 0.09928 | BV111: 0.84654
B112: 460 | C112: 0.000959 | D112: 3.966780468e-05 | AT112: 460 | AU112: 0.06 | AV112: 0.06 | AW112: 0.06 | AX112: 0.567 | AY112: 0.0851482 | AZ112: 0.141459 | BB112: 0.2908 | BC112: 0.06 | BD112: 1.6692 | BF112: 0.302273 | BG112: 0.128201 | BH112: 1.74537 | BJ112: 0.2908 | BK112: 0.06 | BL112: 1.6692 | BQ112: 0.2485254 | BR112: 0.08514816 | BS112: 1.522157 | BT112: -0.1586 | BU112: 0.1082 | BV112: 0.8297
B113: 461 | C113: 0.000924 | D113: 3.822007458e-05 | AT113: 461 | AU113: 0.06278 | AV113: 0.0631 | AW113: 0.0625884 | AX113: 0.5776 | AY113: 0.0887266 | AZ113: 0.1468 | BB113: 0.28286 | BC113: 0.06278 | BD113: 1.64098 | BF113: 0.2926354 | BG113: 0.133113 | BH113: 1.707276 | BJ113: 0.28286 | BK113: 0.06278 | BL113: 1.64098 | BQ113: 0.2433039 | BR113: 0.08872657 | BS113: 1.503611 | BT113: -0.17158 | BU113: 0.1189 | BV113: 0.8121
B114: 462 | C114: 0.000888 | D114: 3.673098077e-05 | AT114: 462 | AU114: 0.06556 | AV114: 0.0662 | AW114: 0.0651768 | AX114: 0.5882 | AY114: 0.0926601 | AZ114: 0.1524 | BB114: 0.27492 | BC114: 0.06556 | BD114: 1.61276 | BF114: 0.2829978 | BG114: 0.138025 | BH114: 1.669182 | BJ114: 0.27492 | BK114: 0.06556 | BL114: 1.61276 | BQ114: 0.2383414 | BR114: 0.09266008 | BS114: 1.486673 | BT114: -0.18456 | BU114: 0.1296 | BV114: 0.7945
B115: 463 | C115: 0.000949 | D115: 3.925416751e-05 | AT115: 463 | AU115: 0.06834 | AV115: 0.0693 | AW115: 0.0677652 | AX115: 0.5988 | AY115: 0.0968972 | AZ115: 0.158202 | BB115: 0.26698 | BC115: 0.06834 | BD115: 1.58454 | BF115: 0.2733602 | BG115: 0.142937 | BH115: 1.631088 | BJ115: 0.26698 | BK115: 0.06834 | BL115: 1.58454 | BQ115: 0.2333253 | BR115: 0.09689723 | BS115: 1.469595 | BT115: -0.19754 | BU115: 0.1403 | BV115: 0.7769
B116: 464 | C116: 0.001009 | D116: 4.173599053e-05 | AT116: 464 | AU116: 0.07112 | AV116: 0.0724 | AW116: 0.0703536 | AX116: 0.6094 | AY116: 0.101375 | AZ116: 0.16414 | BB116: 0.25904 | BC116: 0.07112 | BD116: 1.55632 | BF116: 0.2637226 | BG116: 0.147849 | BH116: 1.592994 | BJ116: 0.25904 | BK116: 0.07112 | BL116: 1.55632 | BQ116: 0.2279619 | BR116: 0.1013746 | BS116: 1.450709 | BT116: -0.21052 | BU116: 0.151 | BV116: 0.7593
B117: 465 | C117: 0.000761 | D117: 3.14777887e-05 | AT117: 465 | AU117: 0.0739 | AV117: 0.0755 | AW117: 0.072942 | AX117: 0.62 | AY117: 0.106014 | AZ117: 0.170137 | BB117: 0.2511 | BC117: 0.0739 | BD117: 1.5281 | BF117: 0.254085 | BG117: 0.152761 | BH117: 1.5549 | BJ117: 0.2511 | BK117: 0.0739 | BL117: 1.5281 | BQ117: 0.2219781 | BR117: 0.1060145 | BS117: 1.42844 | BT117: -0.2235 | BU117: 0.1617 | BV117: 0.7417
B118: 466 | C118: 0.000813 | D118: 3.362870199e-05 | AT118: 466 | AU118: 0.077316 | AV118: 0.0786 | AW118: 0.0765496 | AX118: 0.6312 | AY118: 0.110738 | AZ118: 0.176123 | BB118: 0.239952 | BC118: 0.077316 | BD118: 1.480008 | BF118: 0.2423916 | BG118: 0.1592468 | BH118: 1.507432 | BJ118: 0.239952 | BK118: 0.077316 | BL118: 1.480008 | BQ118: 0.2151735 | BR118: 0.1107377 | BS118: 1.401587 | BT118: -0.23576 | BU118: 0.17338 | BV118: 0.71604
B119: 467 | C119: 0.000865 | D119: 3.577961527e-05 | AT119: 467 | AU119: 0.080732 | AV119: 0.0817 | AW119: 0.0801572 | AX119: 0.6424 | AY119: 0.115511 | AZ119: 0.18209 | BB119: 0.228804 | BC119: 0.080732 | BD119: 1.431916 | BF119: 0.2306982 | BG119: 0.1657326 | BH119: 1.459964 | BJ119: 0.228804 | BK119: 0.080732 | BL119: 1.431916 | BQ119: 0.2075619 | BR119: 0.1155111 | BS119: 1.370094 | BT119: -0.24802 | BU119: 0.18506 | BV119: 0.69038
B120: 468 | C120: 0.000813 | D120: 3.362870199e-05 | AT120: 468 | AU120: 0.084148 | AV120: 0.0848 | AW120: 0.0837648 | AX120: 0.6536 | AY120: 0.120312 | AZ120: 0.188046 | BB120: 0.217656 | BC120: 0.084148 | BD120: 1.383824 | BF120: 0.2190048 | BG120: 0.1722184 | BH120: 1.412496 | BJ120: 0.217656 | BK120: 0.084148 | BL120: 1.383824 | BQ120: 0.1992183 | BR120: 0.1203122 | BS120: 1.33422 | BT120: -0.26028 | BU120: 0.19674 | BV120: 0.66472
B121: 469 | C121: 0.000762 | D121: 3.151915241e-05 | AT121: 469 | AU121: 0.087564 | AV121: 0.0879 | AW121: 0.0873724 | AX121: 0.6648 | AY121: 0.125116 | AZ121: 0.194006 | BB121: 0.206508 | BC121: 0.087564 | BD121: 1.335732 | BF121: 0.2073114 | BG121: 0.1787042 | BH121: 1.365028 | BJ121: 0.206508 | BK121: 0.087564 | BL121: 1.335732 | BQ121: 0.190229 | BR121: 0.1251161 | BS121: 1.294275 | BT121: -0.27254 | BU121: 0.20842 | BV121: 0.63906
B122: 470 | C122: 0.000858 | D122: 3.549006925e-05 | AT122: 470 | AU122: 0.09098 | AV122: 0.091 | AW122: 0.09098 | AX122: 0.676 | AY122: 0.129896 | AZ122: 0.199986 | BB122: 0.19536 | BC122: 0.09098 | BD122: 1.28764 | BF122: 0.195618 | BG122: 0.18519 | BH122: 1.31756 | BJ122: 0.19536 | BK122: 0.09098 | BL122: 1.28764 | BQ122: 0.1806905 | BR122: 0.1298957 | BS122: 1.25061 | BT122: -0.2848 | BU122: 0.2201 | BV122: 0.6134
B123: 471 | C123: 0.000953 | D123: 3.941962238e-05 | AT123: 471 | AU123: 0.095304 | AV123: 0.0958 | AW123: 0.095352 | AX123: 0.6876 | AY123: 0.13463 | AZ123: 0.206005 | BB123: 0.184708 | BC123: 0.095304 | BD123: 1.238492 | BF123: 0.1829642 | BG123: 0.19214 | BH123: 1.260088 | BJ123: 0.184708 | BK123: 0.095304 | BL123: 1.238492 | BQ123: 0.1707154 | BR123: 0.1346299 | BS123: 1.203696 | BT123: -0.29476 | BU123: 0.232 | BV123: 0.58512
B124: 472 | C124: 0.00103 | D124: 4.260462859e-05 | AT124: 472 | AU124: 0.099628 | AV124: 0.1006 | AW124: 0.099724 | AX124: 0.6992 | AY124: 0.139331 | AZ124: 0.212098 | BB124: 0.174056 | BC124: 0.099628 | BD124: 1.189344 | BF124: 0.1703104 | BG124: 0.19909 | BH124: 1.202616 | BJ124: 0.174056 | BK124: 0.099628 | BL124: 1.189344 | BQ124: 0.1604471 | BR124: 0.1393309 | BS124: 1.154316 | BT124: -0.30472 | BU124: 0.2439 | BV124: 0.55684
B125: 473 | C125: 0.001106 | D125: 4.574827109e-05 | AT125: 473 | AU125: 0.103952 | AV125: 0.1054 | AW125: 0.104096 | AX125: 0.7108 | AY125: 0.144023 | AZ125: 0.218304 | BB125: 0.163404 | BC125: 0.103952 | BD125: 1.140196 | BF125: 0.1576566 | BG125: 0.20604 | BH125: 1.145144 | BJ125: 0.163404 | BK125: 0.103952 | BL125: 1.140196 | BQ125: 0.1500244 | BR125: 0.1440235 | BS125: 1.103284 | BT125: -0.31468 | BU125: 0.2558 | BV125: 0.52856
B126: 474 | C126: 0.000649 | D126: 2.684505238e-05 | AT126: 474 | AU126: 0.108276 | AV126: 0.1102 | AW126: 0.108468 | AX126: 0.7224 | AY126: 0.148737 | AZ126: 0.224669 | BB126: 0.152752 | BC126: 0.108276 | BD126: 1.091048 | BF126: 0.1450028 | BG126: 0.21299 | BH126: 1.087672 | BJ126: 0.152752 | BK126: 0.108276 | BL126: 1.091048 | BQ126: 0.1395705 | BR126: 0.1487372 | BS126: 1.051347 | BT126: -0.32464 | BU126: 0.2677 | BV126: 0.50028
B127: 475 | C127: 0.000544 | D127: 2.250186209e-05 | AT127: 475 | AU127: 0.1126 | AV127: 0.115 | AW127: 0.11284 | AX127: 0.734 | AY127: 0.153507 | AZ127: 0.231243 | BB127: 0.1421 | BC127: 0.1126 | BD127: 1.0419 | BF127: 0.132349 | BG127: 0.21994 | BH127: 1.0302 | BJ127: 0.1421 | BK127: 0.1126 | BL127: 1.0419 | BQ127: 0.129192 | BR127: 0.1535066 | BS127: 0.9991789 | BT127: -0.3346 | BU127: 0.2796 | BV127: 0.472
B128: 476 | C128: 0.00044 | D128: 1.820003551e-05 | AT128: 476 | AU128: 0.117884 | AV128: 0.1198 | AW128: 0.118076 | AX128: 0.7458 | AY128: 0.158364 | AZ128: 0.238074 | BB128: 0.132808 | BC128: 0.117884 | BD128: 0.99611 | BF128: 0.1219806 | BG128: 0.2266698 | BH128: 0.978585 | BJ128: 0.132808 | BK128: 0.117884 | BL128: 0.99611 | BQ128: 0.1189859 | BR128: 0.1583644 | BS128: 0.9473958 | BT128: -0.3432 | BU128: 0.29224 | BV128: 0.4475
B129: 477 | C129: 0.000661 | D129: 2.734141699e-05 | AT129: 477 | AU129: 0.123168 | AV129: 0.1246 | AW129: 0.123312 | AX129: 0.7576 | AY129: 0.16332 | AZ129: 0.24518 | BB129: 0.123516 | BC129: 0.123168 | BD129: 0.95032 | BF129: 0.1116122 | BG129: 0.2333996 | BH129: 0.92697 | BJ129: 0.123516 | BK129: 0.123168 | BL129: 0.95032 | BQ129: 0.1090615 | BR129: 0.1633199 | BS129: 0.8966222 | BT129: -0.3518 | BU129: 0.30488 | BV129: 0.423
B130: 478 | C130: 0.000881 | D130: 3.644143475e-05 | AT130: 478 | AU130: 0.128452 | AV130: 0.1294 | AW130: 0.128548 | AX130: 0.7694 | AY130: 0.168376 | AZ130: 0.252568 | BB130: 0.114224 | BC130: 0.128452 | BD130: 0.90453 | BF130: 0.1012438 | BG130: 0.2401294 | BH130: 0.875355 | BJ130: 0.114224 | BK130: 0.128452 | BL130: 0.90453 | BQ130: 0.09951424 | BR130: 0.1683761 | BS130: 0.8473981 | BT130: -0.3604 | BU130: 0.31752 | BV130: 0.3985
B131: 479 | C131: 0.000933 | D131: 3.859234803e-05 | AT131: 479 | AU131: 0.133736 | AV131: 0.1342 | AW131: 0.133784 | AX131: 0.7812 | AY131: 0.173537 | AZ131: 0.260248 | BB131: 0.104932 | BC131: 0.133736 | BD131: 0.85874 | BF131: 0.0908754 | BG131: 0.2468592 | BH131: 0.82374 | BJ131: 0.104932 | BK131: 0.133736 | BL131: 0.85874 | BQ131: 0.0904185 | BR131: 0.1735365 | BS131: 0.8001576 | BT131: -0.369 | BU131: 0.33016 | BV131: 0.374
B132: 480 | C132: 0.000984 | D132: 4.070189761e-05 | AT132: 480 | AU132: 0.13902 | AV132: 0.139 | AW132: 0.13902 | AX132: 0.793 | AY132: 0.178805 | AZ132: 0.268227 | BB132: 0.09564 | BC132: 0.13902 | BD132: 0.81295 | BF132: 0.080507 | BG132: 0.253589 | BH132: 0.772125 | BJ132: 0.09564 | BK132: 0.13902 | BL132: 0.81295 | BQ132: 0.08182895 | BR132: 0.1788048 | BS132: 0.7552379 | BT132: -0.3776 | BU132: 0.3428 | BV132: 0.3495
B133: 481 | C133: 0.000996 | D133: 4.119826221e-05 | AT133: 481 | AU133: 0.145076 | AV133: 0.1459 | AW133: 0.14519 | AX133: 0.8046 | AY133: 0.184182 | AZ133: 0.276501 | BB133: 0.088102 | BC133: 0.145076 | BD133: 0.7736 | BF133: 0.07262 | BG133: 0.2624042 | BH133: 0.73182 | BJ133: 0.088102 | BK133: 0.145076 | BL133: 0.7736 | BQ133: 0.07376817 | BR133: 0.1841819 | BS133: 0.7127879 | BT133: -0.3848 | BU133: 0.35596 | BV133: 0.33088
B134: 482 | C134: 0.001008 | D134: 4.169462682e-05 | AT134: 482 | AU134: 0.151132 | AV134: 0.1528 | AW134: 0.15136 | AX134: 0.8162 | AY134: 0.189656 | AZ134: 0.285004 | BB134: 0.080564 | BC134: 0.151132 | BD134: 0.73425 | BF134: 0.064733 | BG134: 0.2712194 | BH134: 0.691515 | BJ134: 0.080564 | BK134: 0.151132 | BL134: 0.73425 | BQ134: 0.06619477 | BR134: 0.1896559 | BS134: 0.6725198 | BT134: -0.392 | BU134: 0.36912 | BV134: 0.31226
B135: 483 | C135: 0.000849 | D135: 3.51177958e-05 | AT135: 483 | AU135: 0.157188 | AV135: 0.1597 | AW135: 0.15753 | AX135: 0.8278 | AY135: 0.19521 | AZ135: 0.293647 | BB135: 0.073026 | BC135: 0.157188 | BD135: 0.6949 | BF135: 0.056846 | BG135: 0.2800346 | BH135: 0.65121 | BJ135: 0.073026 | BK135: 0.157188 | BL135: 0.6949 | BQ135: 0.0590638 | BR135: 0.1952101 | BS135: 0.6340976 | BT135: -0.3992 | BU135: 0.38228 | BV135: 0.29364
B136: 484 | C136: 0.00069 | D136: 2.854096478e-05 | AT136: 484 | AU136: 0.163244 | AV136: 0.1666 | AW136: 0.1637 | AX136: 0.8394 | AY136: 0.200826 | AZ136: 0.302332 | BB136: 0.065488 | BC136: 0.163244 | BD136: 0.65555 | BF136: 0.048959 | BG136: 0.2888498 | BH136: 0.610905 | BJ136: 0.065488 | BK136: 0.163244 | BL136: 0.65555 | BQ136: 0.05234242 | BR136: 0.2008259 | BS136: 0.5972433 | BT136: -0.4064 | BU136: 0.39544 | BV136: 0.27502
B137: 485 | C137: 0.000653 | D137: 2.701050725e-05 | AT137: 485 | AU137: 0.1693 | AV137: 0.1735 | AW137: 0.16987 | AX137: 0.851 | AY137: 0.206483 | AZ137: 0.310944 | BB137: 0.05795 | BC137: 0.1693 | BD137: 0.6162 | BF137: 0.041072 | BG137: 0.297665 | BH137: 0.5706 | BJ137: 0.05795 | BK137: 0.1693 | BL137: 0.6162 | BQ137: 0.04600865 | BR137: 0.2064828 | BS137: 0.5617313 | BT137: -0.4136 | BU137: 0.4086 | BV137: 0.2564
B138: 486 | C138: 0.000567 | D138: 2.345322758e-05 | AT138: 486 | AU138: 0.177044 | AV138: 0.1804 | AW138: 0.1775 | AX138: 0.8616 | AY138: 0.212183 | AZ138: 0.31941 | BB138: 0.052762 | BC138: 0.177044 | BD138: 0.585996 | BF138: 0.036092 | BG138: 0.3059586 | BH138: 0.5395308 | BJ138: 0.052762 | BK138: 0.177044 | BL138: 0.585996 | BQ138: 0.04006154 | BR138: 0.2121826 | BS138: 0.5274921 | BT138: -0.41722 | BU138: 0.4212 | BV138: 0.2415
B139: 487 | C139: 0.000481 | D139: 1.989594792e-05 | AT139: 487 | AU139: 0.184788 | AV139: 0.1873 | AW139: 0.18513 | AX139: 0.8722 | AY139: 0.218028 | AZ139: 0.327868 | BB139: 0.047574 | BC139: 0.184788 | BD139: 0.555792 | BF139: 0.031112 | BG139: 0.3142522 | BH139: 0.5084616 | BJ139: 0.047574 | BK139: 0.184788 | BL139: 0.555792 | BQ139: 0.03454373 | BR139: 0.2180279 | BS139: 0.4948809 | BT139: -0.42084 | BU139: 0.4338 | BV139: 0.2266
B140: 488 | C140: 0.000555 | D140: 2.295686298e-05 | AT140: 488 | AU140: 0.192532 | AV140: 0.1942 | AW140: 0.19276 | AX140: 0.8828 | AY140: 0.224159 | AZ140: 0.336526 | BB140: 0.042386 | BC140: 0.192532 | BD140: 0.525588 | BF140: 0.026132 | BG140: 0.3225458 | BH140: 0.4773924 | BJ140: 0.042386 | BK140: 0.192532 | BL140: 0.525588 | BQ140: 0.02949091 | BR140: 0.2241586 | BS140: 0.4642586 | BT140: -0.42446 | BU140: 0.4464 | BV140: 0.2117
B141: 489 | C141: 0.000628 | D141: =C141/$C$11 -> 2.597641433e-05 | AT141: 489 | AU141: 0.200276 | AV141: 0.2011 | AW141: 0.20039 | AX141: 0.8934 | AY141: 0.23073 | AZ141: 0.345618 | BB141: 0.037198 | BC141: 0.200276 | BD141: 0.495384 | BF141: 0.021152 | BG141: 0.3308394 | BH141: 0.4463232 | BJ141: 0.037198 | BK141: 0.200276 | BL141: 0.495384 | BQ141: 0.0249214 | BR141: 0.2307302 | BS141: 0.4358841 | BT141: -0.42808 | BU141: 0.459 | BV141: 0.1968
B142: 490 | C142: 0.000581 | D142: 2.403231962e-05 | AT142: 490 | AU142: 0.20802 | AV142: 0.208 | AW142: 0.20802 | AX142: 0.904 | AY142: 0.237916 | AZ142: 0.355402 | BB142: 0.03201 | BC142: 0.20802 | BD142: 0.46518 | BF142: 0.016172 | BG142: 0.339133 | BH142: 0.415254 | BJ142: 0.03201 | BK142: 0.20802 | BL142: 0.46518 | BQ142: 0.02083981 | BR142: 0.237916 | BS142: 0.4099313 | BT142: -0.4317 | BU142: 0.4716 | BV142: 0.1819
B143: 491 | C143: 0.000533 | D143: 2.20468612e-05 | AT143: 491 | AU143: 0.218136 | AV143: 0.2195 | AW143: 0.218032 | AX143: 0.913 | AY143: 0.245871 | AZ143: 0.366089 | BB143: 0.028548 | BC143: 0.218136 | BD143: 0.442804 | BF143: 0.013964 | BG143: 0.3503822 | BH143: 0.3926744 | BJ143: 0.028548 | BK143: 0.218136 | BL143: 0.442804 | BQ143: 0.01723591 | BR143: 0.2458706 | BS143: 0.3864261 | BT143: -0.4344 | BU143: 0.4871 | BV143: 0.17166
B144: 492 | C144: 0.000676 | D144: 2.796187275e-05 | AT144: 492 | AU144: 0.228252 | AV144: 0.231 | AW144: 0.228044 | AX144: 0.922 | AY144: 0.254602 | AZ144: 0.377586 | BB144: 0.025086 | BC144: 0.228252 | BD144: 0.420428 | BF144: 0.011756 | BG144: 0.3616314 | BH144: 0.3700948 | BJ144: 0.025086 | BK144: 0.228252 | BL144: 0.420428 | BQ144: 0.01407924 | BR144: 0.2546023 | BS144: 0.3650566 | BT144: -0.4371 | BU144: 0.5026 | BV144: 0.16142
B145: 493 | C145: 0.000818 | D145: 3.383552057e-05 | AT145: 493 | AU145: 0.238368 | AV145: 0.2425 | AW145: 0.238056 | AX145: 0.931 | AY145: 0.264076 | AZ145: 0.389696 | BB145: 0.021624 | BC145: 0.238368 | BD145: 0.398052 | BF145: 0.009548 | BG145: 0.3728806 | BH145: 0.3475152 | BJ145: 0.021624 | BK145: 0.238368 | BL145: 0.398052 | BQ145: 0.01134516 | BR145: 0.264076 | BS145: 0.3454812 | BT145: -0.4398 | BU145: 0.5181 | BV145: 0.15118
B146: 494 | C146: 0.000943 | D146: 3.900598521e-05 | AT146: 494 | AU146: 0.248484 | AV146: 0.254 | AW146: 0.248068 | AX146: 0.94 | AY146: 0.274249 | AZ146: 0.402195 | BB146: 0.018162 | BC146: 0.248484 | BD146: 0.375676 | BF146: 0.00734 | BG146: 0.3841298 | BH146: 0.3249356 | BJ146: 0.018162 | BK146: 0.248484 | BL146: 0.375676 | BQ146: 0.009019658 | BR146: 0.274249 | BS146: 0.3274095 | BT146: -0.4425 | BU146: 0.5336 | BV146: 0.14094
B147: 495 | C147: 0.00085 | D147: 3.515915952e-05 | AT147: 495 | AU147: 0.2586 | AV147: 0.2655 | AW147: 0.25808 | AX147: 0.949 | AY147: 0.285068 | AZ147: 0.414823 | BB147: 0.0147 | BC147: 0.2586 | BD147: 0.3533 | BF147: 0.005132 | BG147: 0.395379 | BH147: 0.302356 | BJ147: 0.0147 | BK147: 0.2586 | BL147: 0.3533 | BQ147: 0.007097731 | BR147: 0.285068 | BS147: 0.3105939 | BT147: -0.4452 | BU147: 0.5491 | BV147: 0.1307
B148: 496 | C148: 0.000758 | D148: 3.135369755e-05 | AT148: 496 | AU148: 0.27148 | AV148: 0.277 | AW148: 0.271064 | AX148: 0.9556 | AY148: 0.296484 | AZ148: 0.427354 | BB148: 0.01274 | BC148: 0.27148 | BD148: 0.33704 | BF148: 0.0048688 | BG148: 0.4084586 | BH148: 0.2855852 | BJ148: 0.01274 | BK148: 0.27148 | BL148: 0.33704 | BQ148: 0.005571145 | BR148: 0.2964837 | BS148: 0.2948102 | BT148: -0.44316 | BU148: 0.56448 | BV148: 0.12276
B149: 497 | C149: 0.000732 | D149: 3.02782409e-05 | AT149: 497 | AU149: 0.28436 | AV149: 0.2885 | AW149: 0.284048 | AX149: 0.9622 | AY149: 0.308501 | AZ149: 0.439821 | BB149: 0.01078 | BC149: 0.28436 | BD149: 0.32078 | BF149: 0.0046056 | BG149: 0.4215382 | BH149: 0.2688144 | BJ149: 0.01078 | BK149: 0.28436 | BL149: 0.32078 | BQ149: 0.004394566 | BR149: 0.308501 | BS149: 0.2798194 | BT149: -0.44112 | BU149: 0.57986 | BV149: 0.11482
B150: 498 | C150: 0.000706 | D150: 2.920278426e-05 | AT150: 498 | AU150: 0.29724 | AV150: 0.3 | AW150: 0.297032 | AX150: 0.9688 | AY150: 0.321139 | AZ150: 0.452336 | BB150: 0.00882 | BC150: 0.29724 | BD150: 0.30452 | BF150: 0.0043424 | BG150: 0.4346178 | BH150: 0.2520436 | BJ150: 0.00882 | BK150: 0.29724 | BL150: 0.30452 | BQ150: 0.003516303 | BR150: 0.3211393 | BS150: 0.26541 | BT150: -0.43908 | BU150: 0.59524 | BV150: 0.10688
B151: 499 | C151: 0.000605 | D151: 2.502504883e-05 | AT151: 499 | AU151: 0.31012 | AV151: 0.3115 | AW151: 0.310016 | AX151: 0.9754 | AY151: 0.334418 | AZ151: 0.46503 | BB151: 0.00686 | BC151: 0.31012 | BD151: 0.28826 | BF151: 0.0040792 | BG151: 0.4476974 | BH151: 0.2352728 | BJ151: 0.00686 | BK151: 0.31012 | BL151: 0.28826 | BQ151: 0.002887638 | BR151: 0.3344175 | BS151: 0.2514084 | BT151: -0.43704 | BU151: 0.61062 | BV151: 0.09894
B152: 500 | C152: 0.000505 | D152: 2.088867713e-05 | AT152: 500 | AU152: 0.323 | AV152: 0.323 | AW152: 0.323 | AX152: 0.982 | AY152: 0.348354 | AZ152: 0.478048 | BB152: 0.0049 | BC152: 0.323 | BD152: 0.272 | BF152: 0.003816 | BG152: 0.460777 | BH152: 0.218502 | BJ152: 0.0049 | BK152: 0.323 | BL152: 0.272 | BQ152: 0.002461588 | BR152: 0.3483536 | BS152: 0.2376753 | BT152: -0.435 | BU152: 0.626 | BV152: 0.091
B153: 501 | C153: 0.000572 | D153: 2.366004617e-05 | AT153: 501 | AU153: 0.33986 | AV153: 0.341 | AW153: 0.33948 | AX153: 0.9852 | AY153: 0.36296 | AZ153: 0.491517 | BB153: 0.0044 | BC153: 0.33986 | BD153: 0.26006 | BF153: 0.0061416 | BG153: 0.4748936 | BH153: 0.2066514 | BJ153: 0.0044 | BK153: 0.33986 | BL153: 0.26006 | BQ153: 0.002206348 | BR153: 0.3629601 | BS153: 0.2241211 | BT153: -0.4308 | BU153: 0.64274 | BV153: 0.0844
B154: 502 | C154: 0.000639 | D154: 2.643141521e-05 | AT154: 502 | AU154: 0.35672 | AV154: 0.359 | AW154: 0.35596 | AX154: 0.9884 | AY154: 0.378228 | AZ154: 0.505422 | BB154: 0.0039 | BC154: 0.35672 | BD154: 0.24812 | BF154: 0.0084672 | BG154: 0.4890102 | BH154: 0.1948008 | BJ154: 0.0039 | BK154: 0.35672 | BL154: 0.24812 | BQ154: 0.002149559 | BR154: 0.3782275 | BS154: 0.2107484 | BT154: -0.4266 | BU154: 0.65948 | BV154: 0.0778
B155: 503 | C155: 0.000597 | D155: 2.46941391e-05 | AT155: 503 | AU155: 0.37358 | AV155: 0.377 | AW155: 0.37244 | AX155: 0.9916 | AY155: 0.394136 | AZ155: 0.519706 | BB155: 0.0034 | BC155: 0.37358 | BD155: 0.23618 | BF155: 0.0107928 | BG155: 0.5031268 | BH155: 0.1829502 | BJ155: 0.0034 | BK155: 0.37358 | BL155: 0.23618 | BQ155: 0.002337091 | BR155: 0.3941359 | BS155: 0.1975839 | BT155: -0.4224 | BU155: 0.67622 | BV155: 0.0712
B156: 504 | C156: 0.000555 | D156: 2.295686298e-05 | AT156: 504 | AU156: 0.39044 | AV156: 0.395 | AW156: 0.38892 | AX156: 0.9948 | AY156: 0.410658 | AZ156: 0.534301 | BB156: 0.0029 | BC156: 0.39044 | BD156: 0.22424 | BF156: 0.0131184 | BG156: 0.5172434 | BH156: 0.1710996 | BJ156: 0.0029 | BK156: 0.39044 | BL156: 0.22424 | BQ156: 0.002818931 | BR156: 0.4106582 | BS156: 0.1846574 | BT156: -0.4182 | BU156: 0.69296 | BV156: 0.0646
B157: 505 | C157: 0.001198 | D157: 4.955373306e-05 | AT157: 505 | AU157: 0.4073 | AV157: 0.413 | AW157: 0.4054 | AX157: 0.998 | AY157: 0.42776 | AZ157: 0.549134 | BB157: 0.0024 | BC157: 0.4073 | BD157: 0.2123 | BF157: 0.015444 | BG157: 0.53136 | BH157: 0.159249 | BJ157: 0.0024 | BK157: 0.4073 | BL157: 0.2123 | BQ157: 0.003649178 | BR157: 0.4277595 | BS157: 0.1720018 | BT157: -0.414 | BU157: 0.7097 | BV157: 0.058
B158: 506 | C158: 0.00174 | D158: 7.197286772e-05 | AT158: 506 | AU158: 0.42644 | AV158: 0.431 | AW158: 0.42492 | AX158: 0.9978 | AY158: 0.445399 | AZ158: 0.56413 | BB158: 0.00378 | BC158: 0.42644 | BD158: 0.20148 | BF158: 0.0198482 | BG158: 0.5464362 | BH158: 0.149808 | BJ158: 0.00378 | BK158: 0.42644 | BL158: 0.20148 | BQ158: 0.004891359 | BR158: 0.4453993 | BS158: 0.1596918 | BT158: -0.40466 | BU158: 0.72646 | BV158: 0.05354
B159: 507 | C159: 0.000656 | D159: 2.71345984e-05 | AT159: 507 | AU159: 0.44558 | AV159: 0.449 | AW159: 0.44444 | AX159: 0.9976 | AY159: 0.46354 | AZ159: 0.579242 | BB159: 0.00516 | BC159: 0.44558 | BD159: 0.19066 | BF159: 0.0242524 | BG159: 0.5615124 | BH159: 0.140367 | BJ159: 0.00516 | BK159: 0.44558 | BL159: 0.19066 | BQ159: 0.006629364 | BR159: 0.4635396 | BS159: 0.1479415 | BT159: -0.39532 | BU159: 0.74322 | BV159: 0.04908
B160: 508 | C160: 0.000741 | D160: 3.065051436e-05 | AT160: 508 | AU160: 0.46472 | AV160: 0.467 | AW160: 0.46396 | AX160: 0.9974 | AY160: 0.482138 | AZ160: 0.594426 | BB160: 0.00654 | BC160: 0.46472 | BD160: 0.17984 | BF160: 0.0286566 | BG160: 0.5765886 | BH160: 0.130926 | BJ160: 0.00654 | BK160: 0.46472 | BL160: 0.17984 | BQ160: 0.008942902 | BR160: 0.4821376 | BS160: 0.1369428 | BT160: -0.38598 | BU160: 0.75998 | BV160: 0.04462
B161: 509 | C161: 0.000827 | D161: 3.420779402e-05 | AT161: 509 | AU161: 0.48386 | AV161: 0.485 | AW161: 0.48348 | AX161: 0.9972 | AY161: 0.501143 | AZ161: 0.609639 | BB161: 0.00792 | BC161: 0.48386 | BD161: 0.16902 | BF161: 0.0330608 | BG161: 0.5916648 | BH161: 0.121485 | BJ161: 0.00792 | BK161: 0.48386 | BL161: 0.16902 | BQ161: 0.01190224 | BR161: 0.501143 | BS161: 0.1268279 | BT161: -0.37664 | BU161: 0.77674 | BV161: 0.04016
B162: 510 | C162: 0.000884 | D162: 3.65655259e-05 | AT162: 510 | AU162: 0.503 | AV162: 0.503 | AW162: 0.503 | AX162: 0.997 | AY162: 0.520497 | AZ162: 0.62483 | BB162: 0.0093 | BC162: 0.503 | BD162: 0.1582 | BF162: 0.037465 | BG162: 0.606741 | BH162: 0.112044 | BJ162: 0.0093 | BK162: 0.503 | BL162: 0.1582 | BQ162: 0.01556989 | BR162: 0.5204972 | BS162: 0.1176796 | BT162: -0.3673 | BU162: 0.7935 | BV162: 0.0357
B163: 511 | C163: 0.00077 | D163: 3.185006215e-05 | AT163: 511 | AU163: 0.52404 | AV163: 0.5237 | AW163: 0.524022 | AX163: 0.9926 | AY163: 0.540139 | AZ163: 0.639966 | BB163: 0.01326 | BC163: 0.52404 | BD163: 0.1489 | BF163: 0.0442436 | BG163: 0.6225248 | BH163: 0.1060848 | BJ163: 0.01326 | BK163: 0.52404 | BL163: 0.1489 | BQ163: 0.01997668 | BR163: 0.5401387 | BS163: 0.109497 | BT163: -0.35074 | BU163: 0.8091 | BV163: 0.03256
B164: 512 | C164: 0.00067 | D164: 2.771369044e-05 | AT164: 512 | AU164: 0.54508 | AV164: 0.5444 | AW164: 0.545044 | AX164: 0.9882 | AY164: 0.560021 | AZ164: 0.655094 | BB164: 0.01722 | BC164: 0.54508 | BD164: 0.1396 | BF164: 0.0510222 | BG164: 0.6383086 | BH164: 0.1001256 | BJ164: 0.01722 | BK164: 0.54508 | BL164: 0.1396 | BQ164: 0.02504698 | BR164: 0.5600208 | BS164: 0.1020943 | BT164: -0.33418 | BU164: 0.8247 | BV164: 0.02942
B165: 513 | C165: 0.00057 | D165: 2.357731874e-05 | AT165: 513 | AU165: 0.56612 | AV165: 0.5651 | AW165: 0.566066 | AX165: 0.9838 | AY165: 0.580097 | AZ165: 0.67029 | BB165: 0.02118 | BC165: 0.56612 | BD165: 0.1303 | BF165: 0.0578008 | BG165: 0.6540924 | BH165: 0.0941664 | BJ165: 0.02118 | BK165: 0.56612 | BL165: 0.1303 | BQ165: 0.0306753 | BR165: 0.5800972 | BS165: 0.09527993 | BT165: -0.31762 | BU165: 0.8403 | BV165: 0.02628
B166: 514 | C166: 0.000746 | D166: 3.085733294e-05 | AT166: 514 | AU166: 0.58716 | AV166: 0.5858 | AW166: 0.587088 | AX166: 0.9794 | AY166: 0.600317 | AZ166: 0.685638 | BB166: 0.02514 | BC166: 0.58716 | BD166: 0.121 | BF166: 0.0645794 | BG166: 0.6698762 | BH166: 0.0882072 | BJ166: 0.02514 | BK166: 0.58716 | BL166: 0.121 | BQ166: 0.03674999 | BR166: 0.6003172 | BS166: 0.08890075 | BT166: -0.30106 | BU166: 0.8559 | BV166: 0.02314
B167: 515 | C167: 0.000774 | D167: 3.201551702e-05 | AT167: 515 | AU167: 0.6082 | AV167: 0.6065 | AW167: 0.60811 | AX167: 0.975 | AY167: 0.620626 | AZ167: 0.701229 | BB167: 0.0291 | BC167: 0.6082 | BD167: 0.1117 | BF167: 0.071358 | BG167: 0.68566 | BH167: 0.082248 | BJ167: 0.0291 | BK167: 0.6082 | BL167: 0.1117 | BQ167: 0.04315171 | BR167: 0.6206256 | BS167: 0.08283548 | BT167: -0.2845 | BU167: 0.8715 | BV167: 0.02
B168: 516 | C168: 0.000719 | D168: 2.974051258e-05 | AT168: 516 | AU168: 0.62856 | AV168: 0.6272 | AW168: 0.628488 | AX168: 0.967 | AY168: 0.64094 | AZ168: 0.71711 | BB168: 0.035934 | BC168: 0.62856 | BD168: 0.10501 | BF168: 0.0806362 | BG168: 0.7008794 | BH168: 0.0779402 | BJ168: 0.035934 | BK168: 0.62856 | BL168: 0.10501 | BQ168: 0.04978584 | BR168: 0.6409398 | BS168: 0.07700982 | BT168: -0.2647 | BU168: 0.88674 | BV168: 0.0179
B169: 517 | C169: 0.000694 | D169: 2.870641965e-05 | AT169: 517 | AU169: 0.64892 | AV169: 0.6479 | AW169: 0.648866 | AX169: 0.959 | AY169: 0.661077 | AZ169: 0.733092 | BB169: 0.042768 | BC169: 0.64892 | BD169: 0.09832 | BF169: 0.0899144 | BG169: 0.7160988 | BH169: 0.0736324 | BJ169: 0.042768 | BK169: 0.64892 | BL169: 0.09832 | BQ169: 0.05668554 | BR169: 0.6610772 | BS169: 0.07144001 | BT169: -0.2449 | BU169: 0.90198 | BV169: 0.0158
B170: 518 | C170: 0.000668 | D170: 2.763096301e-05 | AT170: 518 | AU170: 0.66928 | AV170: 0.6686 | AW170: 0.669244 | AX170: 0.951 | AY170: 0.680813 | AZ170: 0.748904 | BB170: 0.049602 | BC170: 0.66928 | BD170: 0.09163 | BF170: 0.0991926 | BG170: 0.7313182 | BH170: 0.0693246 | BJ170: 0.049602 | BK170: 0.66928 | BL170: 0.09163 | BQ170: 0.06391651 | BR170: 0.6808134 | BS170: 0.06615436 | BT170: -0.2251 | BU170: 0.91722 | BV170: 0.0137
B171: 519 | C171: 0.000761 | D171: 3.14777887e-05 | AT171: 519 | AU171: 0.68964 | AV171: 0.6893 | AW171: 0.689622 | AX171: 0.943 | AY171: 0.699904 | AZ171: 0.764253 | BB171: 0.056436 | BC171: 0.68964 | BD171: 0.08494 | BF171: 0.1084708 | BG171: 0.7465376 | BH171: 0.0650168 | BJ171: 0.056436 | BK171: 0.68964 | BL171: 0.08494 | BQ171: 0.07154352 | BR171: 0.6999044 | BS171: 0.06117199 | BT171: -0.2053 | BU171: 0.93246 | BV171: 0.0116
B172: 520 | C172: 0.000853 | D172: 3.528325067e-05 | AT172: 520 | AU172: 0.71 | AV172: 0.71 | AW172: 0.71 | AX172: 0.935 | AY172: 0.718089 | AZ172: 0.77882 | BB172: 0.06327 | BC172: 0.71 | BD172: 0.07825 | BF172: 0.117749 | BG172: 0.761757 | BH172: 0.060709 | BJ172: 0.06327 | BK172: 0.71 | BL172: 0.07825 | BQ172: 0.07962917 | BR172: 0.718089 | BS172: 0.05650407 | BT172: -0.1855 | BU172: 0.9477 | BV172: 0.0095
B173: 521 | C173: 0.000774 | D173: 3.201551702e-05 | AT173: 521 | AU173: 0.72664 | AV173: 0.7252 | AW173: 0.72702 | AX173: 0.924 | AY173: 0.735159 | AZ173: 0.792341 | BB173: 0.072536 | BC173: 0.72664 | BD173: 0.07405 | BF173: 0.1287898 | BG173: 0.7740716 | BH173: 0.0571772 | BJ173: 0.072536 | BK173: 0.72664 | BL173: 0.07405 | BQ173: 0.08821473 | BR173: 0.7351593 | BS173: 0.05215121 | BT173: -0.1571 | BU173: 0.95706 | BV173: 0.00774
B174: 522 | C174: 0.000602 | D174: 2.490095768e-05 | AT174: 522 | AU174: 0.74328 | AV174: 0.7404 | AW174: 0.74404 | AX174: 0.913 | AY174: 0.751182 | AZ174: 0.804851 | BB174: 0.081802 | BC174: 0.74328 | BD174: 0.06985 | BF174: 0.1398306 | BG174: 0.7863862 | BH174: 0.0536454 | BJ174: 0.081802 | BK174: 0.74328 | BL174: 0.06985 | BQ174: 0.09726978 | BR174: 0.7511821 | BS174: 0.04809566 | BT174: -0.1287 | BU174: 0.96642 | BV174: 0.00598
B175: 523 | C175: 0.000429 | D175: 1.774503463e-05 | AT175: 523 | AU175: 0.75992 | AV175: 0.7556 | AW175: 0.76106 | AX175: 0.902 | AY175: 0.766314 | AZ175: 0.816475 | BB175: 0.091068 | BC175: 0.75992 | BD175: 0.06565 | BF175: 0.1508714 | BG175: 0.7987008 | BH175: 0.0501136 | BJ175: 0.091068 | BK175: 0.75992 | BL175: 0.06565 | BQ175: 0.1067504 | BR175: 0.7663143 | BS175: 0.0443172 | BT175: -0.1003 | BU175: 0.97578 | BV175: 0.00422
B176: 524 | C176: 0.000525 | D176: 2.171595147e-05 | AT176: 524 | AU176: 0.77656 | AV176: 0.7708 | AW176: 0.77808 | AX176: 0.891 | AY176: 0.780735 | AZ176: 0.827352 | BB176: 0.100334 | BC176: 0.77656 | BD176: 0.06145 | BF176: 0.1619122 | BG176: 0.8110154 | BH176: 0.0465818 | BJ176: 0.100334 | BK176: 0.77656 | BL176: 0.06145 | BQ176: 0.1166192 | BR176: 0.7807352 | BS176: 0.04079734 | BT176: -0.0719 | BU176: 0.98514 | BV176: 0.00246
B177: 525 | C177: 0.000621 | D177: 2.568686831e-05 | AT177: 525 | AU177: 0.7932 | AV177: 0.786 | AW177: 0.7951 | AX177: 0.88 | AY177: 0.794645 | AZ177: 0.837636 | BB177: 0.1096 | BC177: 0.7932 | BD177: 0.05725 | BF177: 0.172953 | BG177: 0.82333 | BH177: 0.04305 | BJ177: 0.1096 | BK177: 0.7932 | BL177: 0.05725 | BQ177: 0.1268468 | BR177: 0.7946448 | BS177: 0.03751912 | BT177: -0.0435 | BU177: 0.9945 | BV177: 0.0007
B178: 526 | C178: 0.000658 | D178: 2.721732584e-05 | AT178: 526 | AU178: 0.80696 | AV178: 0.8012 | AW178: 0.80848 | AX178: 0.8662 | AY178: 0.808207 | AZ178: 0.847465 | BB178: 0.12078 | BC178: 0.80696 | BD178: 0.054232 | BF178: 0.1856606 | BG178: 0.8337062 | BH178: 0.0405302 | BJ178: 0.12078 | BK178: 0.80696 | BL178: 0.054232 | BQ178: 0.137406 | BR178: 0.8082074 | BS178: 0.03446846 | BT178: -0.0094 | BU178: 0.99966 | BV178: -0.0003
B179: 527 | C179: 0.000695 | D179: 2.874778337e-05 | AT179: 527 | AU179: 0.82072 | AV179: 0.8164 | AW179: 0.82186 | AX179: 0.8524 | AY179: 0.821382 | AZ179: 0.856887 | BB179: 0.13196 | BC179: 0.82072 | BD179: 0.051214 | BF179: 0.1983682 | BG179: 0.8440824 | BH179: 0.0380104 | BJ179: 0.13196 | BK179: 0.82072 | BL179: 0.051214 | BQ179: 0.1482471 | BR179: 0.8213817 | BS179: 0.03163764 | BT179: 0.0247 | BU179: 1.00482 | BV179: -0.0013
B180: 528 | C180: 0.000903 | D180: 3.735143652e-05 | AT180: 528 | AU180: 0.83448 | AV180: 0.8316 | AW180: 0.83524 | AX180: 0.8386 | AY180: 0.83407 | AZ180: 0.865924 | BB180: 0.14314 | BC180: 0.83448 | BD180: 0.048196 | BF180: 0.2110758 | BG180: 0.8544586 | BH180: 0.0354906 | BJ180: 0.14314 | BK180: 0.83448 | BL180: 0.048196 | BQ180: 0.1593076 | BR180: 0.8340701 | BS180: 0.02901901 | BT180: 0.0588 | BU180: 1.00998 | BV180: -0.0023
B181: 529 | C181: 0.001111 | D181: 4.595508968e-05 | AT181: 529 | AU181: 0.84824 | AV181: 0.8468 | AW181: 0.84862 | AX181: 0.8248 | AY181: 0.846171 | AZ181: 0.874604 | BB181: 0.15432 | BC181: 0.84824 | BD181: 0.045178 | BF181: 0.2237834 | BG181: 0.8648348 | BH181: 0.0329708 | BJ181: 0.15432 | BK181: 0.84824 | BL181: 0.045178 | BQ181: 0.1705181 | BR181: 0.8461711 | BS181: 0.02660364 | BT181: 0.0929 | BU181: 1.01514 | BV181: -0.0033
B182: 530 | C182: 0.000797 | D182: 3.296688251e-05 | AT182: 530 | AU182: 0.862 | AV182: 0.862 | AW182: 0.862 | AX182: 0.811 | AY182: 0.85758 | AZ182: 0.882955 | BB182: 0.1655 | BC182: 0.862 | BD182: 0.04216 | BF182: 0.236491 | BG182: 0.875211 | BH182: 0.030451 | BJ182: 0.1655 | BK182: 0.862 | BL182: 0.04216 | BQ182: 0.1818026 | BR182: 0.8575799 | BS182: 0.02438164 | BT182: 0.127 | BU182: 1.0203 | BV182: -0.0043
B183: 531 | C183: 0.000878 | D183: 3.63173436e-05 | AT183: 531 | AU183: 0.87257 | AV183: 0.8712 | AW183: 0.87261 | AX183: 0.7954 | AY183: 0.868241 | AZ183: 0.891027 | BB183: 0.17755 | BC183: 0.87257 | BD183: 0.039696 | BF183: 0.2500354 | BG183: 0.8849308 | BH183: 0.0284776 | BJ183: 0.17755 | BK183: 0.87257 | BL183: 0.039696 | BQ183: 0.193109 | BR183: 0.8682408 | BS183: 0.02234097 | BT183: 0.16418 | BU183: 1.02374 | BV183: -0.00472
B184: 532 | C184: 0.000959 | D184: 3.966780468e-05 | AT184: 532 | AU184: 0.88314 | AV184: 0.8804 | AW184: 0.88322 | AX184: 0.7798 | AY184: 0.878306 | AZ184: 0.898949 | BB184: 0.1896 | BC184: 0.88314 | BD184: 0.037232 | BF184: 0.2635798 | BG184: 0.8946506 | BH184: 0.0265042 | BJ184: 0.1896 | BK184: 0.88314 | BL184: 0.037232 | BQ184: 0.2045085 | BR184: 0.8783061 | BS184: 0.02046415 | BT184: 0.20136 | BU184: 1.02718 | BV184: -0.00514
B185: 533 | C185: 0.000725 | D185: 2.998869488e-05 | AT185: 533 | AU185: 0.89371 | AV185: 0.8896 | AW185: 0.89383 | AX185: 0.7642 | AY185: 0.887991 | AZ185: 0.906875 | BB185: 0.20165 | BC185: 0.89371 | BD185: 0.034768 | BF185: 0.2771242 | BG185: 0.9043704 | BH185: 0.0245308 | BJ185: 0.20165 | BK185: 0.89371 | BL185: 0.034768 | BQ185: 0.2161166 | BR185: 0.8879907 | BS185: 0.01873456 | BT185: 0.23854 | BU185: 1.03062 | BV185: -0.00556
B186: 534 | C186: 0.000492 | D186: 2.03509488e-05 | AT186: 534 | AU186: 0.90428 | AV186: 0.8988 | AW186: 0.90444 | AX186: 0.7486 | AY186: 0.897521 | AZ186: 0.914965 | BB186: 0.2137 | BC186: 0.90428 | BD186: 0.032304 | BF186: 0.2906686 | BG186: 0.9140902 | BH186: 0.0225574 | BJ186: 0.2137 | BK186: 0.90428 | BL186: 0.032304 | BQ186: 0.228065 | BR186: 0.8975211 | BS186: 0.01713788 | BT186: 0.27572 | BU186: 1.03406 | BV186: -0.00598
B187: 535 | C187: 0.000466 | D187: 1.927549216e-05 | AT187: 535 | AU187: 0.91485 | AV187: 0.908 | AW187: 0.91505 | AX187: 0.733 | AY187: 0.907135 | AZ187: 0.923386 | BB187: 0.22575 | BC187: 0.91485 | BD187: 0.02984 | BF187: 0.304213 | BG187: 0.92381 | BH187: 0.020584 | BJ187: 0.22575 | BK187: 0.91485 | BL187: 0.02984 | BQ187: 0.2405015 | BR187: 0.9071347 | BS187: 0.01566174 | BT187: 0.3129 | BU187: 1.0375 | BV187: -0.0064
B188: 536 | C188: 0.00044 | D188: 1.820003551e-05 | AT188: 536 | AU188: 0.92268 | AV188: 0.9172 | AW188: 0.92284 | AX188: 0.7164 | AY188: 0.916995 | AZ188: 0.932232 | BB188: 0.23868 | BC188: 0.92268 | BD188: 0.027932 | BF188: 0.3187248 | BG188: 0.9314456 | BH188: 0.0192024 | BJ188: 0.23868 | BK188: 0.92268 | BL188: 0.027932 | BQ188: 0.2535441 | BR188: 0.9169947 | BS188: 0.01429644 | BT188: 0.35756 | BU188: 1.04034 | BV188: -0.00676
B189: 537 | C189: 0.000658 | D189: 2.721732584e-05 | AT189: 537 | AU189: 0.93051 | AV189: 0.9264 | AW189: 0.93063 | AX189: 0.6998 | AY189: 0.926929 | AZ189: 0.941286 | BB189: 0.25161 | BC189: 0.93051 | BD189: 0.026024 | BF189: 0.3332366 | BG189: 0.9390812 | BH189: 0.0178208 | BJ189: 0.25161 | BK189: 0.93051 | BL189: 0.026024 | BQ189: 0.26713 | BR189: 0.9269295 | BS189: 0.01303702 | BT189: 0.40222 | BU189: 1.04318 | BV189: -0.00712
B190: 538 | C190: 0.000876 | D190: 3.623461616e-05 | AT190: 538 | AU190: 0.93834 | AV190: 0.9356 | AW190: 0.93842 | AX190: 0.6832 | AY190: 0.936673 | AZ190: 0.950238 | BB190: 0.26454 | BC190: 0.93834 | BD190: 0.024116 | BF190: 0.3477484 | BG190: 0.9467168 | BH190: 0.0164392 | BJ190: 0.26454 | BK190: 0.93834 | BL190: 0.024116 | BQ190: 0.2811351 | BR190: 0.9366731 | BS190: 0.01187897 | BT190: 0.44688 | BU190: 1.04602 | BV190: -0.00748
B191: 539 | C191: 0.001083 | D191: 4.47969056e-05 | AT191: 539 | AU191: 0.94617 | AV191: 0.9448 | AW191: 0.94621 | AX191: 0.6666 | AY191: 0.945948 | AZ191: 0.958765 | BB191: 0.27747 | BC191: 0.94617 | BD191: 0.022208 | BF191: 0.3622602 | BG191: 0.9543524 | BH191: 0.0150576 | BJ191: 0.27747 | BK191: 0.94617 | BL191: 0.022208 | BQ191: 0.2954164 | BR191: 0.9459482 | BS191: 0.01081725 | BT191: 0.49154 | BU191: 1.04886 | BV191: -0.00784
B192: 540 | C192: 0.001126 | D192: 4.657554543e-05 | AT192: 540 | AU192: 0.954 | AV192: 0.954 | AW192: 0.954 | AX192: 0.65 | AY192: 0.954468 | AZ192: 0.966532 | BB192: 0.2904 | BC192: 0.954 | BD192: 0.0203 | BF192: 0.376772 | BG192: 0.961988 | BH192: 0.013676 | BJ192: 0.2904 | BK192: 0.954 | BL192: 0.0203 | BQ192: 0.3098117 | BR192: 0.9544675 | BS192: 0.00984647 | BT192: 0.5362 | BU192: 1.0517 | BV192: -0.0082
B193: 541 | C193: 0.00104 | D193: 4.301826576e-05 | AT193: 541 | AU193: 0.95926 | AV193: 0.9581 | AW193: 0.959208 | AX193: 0.6328 | AY193: 0.961983 | AZ193: 0.97325 | BB193: 0.30426 | BC193: 0.95926 | BD193: 0.01892 | BF193: 0.3917344 | BG193: 0.9660304 | BH193: 0.0125244 | BJ193: 0.30426 | BK193: 0.95926 | BL193: 0.01892 | BQ193: 0.3241678 | BR193: 0.9619834 | BS193: 0.008960687 | BT193: 0.5834 | BU193: 1.04916 | BV193: -0.00844
B194: 542 | C194: 0.001181 | D194: 4.885054987e-05 | AT194: 542 | AU194: 0.96452 | AV194: 0.9622 | AW194: 0.964416 | AX194: 0.6156 | AY194: 0.968439 | AZ194: 0.978842 | BB194: 0.31812 | BC194: 0.96452 | BD194: 0.01754 | BF194: 0.4066968 | BG194: 0.9700728 | BH194: 0.0113728 | BJ194: 0.31812 | BK194: 0.96452 | BL194: 0.01754 | BQ194: 0.3384319 | BR194: 0.968439 | BS194: 0.008152811 | BT194: 0.6306 | BU194: 1.04662 | BV194: -0.00868
B195: 543 | C195: 0.001321 | D195: 5.464147026e-05 | AT195: 543 | AU195: 0.96978 | AV195: 0.9663 | AW195: 0.969624 | AX195: 0.5984 | AY195: 0.973829 | AZ195: 0.983287 | BB195: 0.33198 | BC195: 0.96978 | BD195: 0.01616 | BF195: 0.4216592 | BG195: 0.9741152 | BH195: 0.0102212 | BJ195: 0.33198 | BK195: 0.96978 | BL195: 0.01616 | BQ195: 0.3525786 | BR195: 0.9738289 | BS195: 0.007416025 | BT195: 0.6778 | BU195: 1.04408 | BV195: -0.00892
B196: 544 | C196: 0.001197 | D196: 4.951236934e-05 | AT196: 544 | AU196: 0.97504 | AV196: 0.9704 | AW196: 0.974832 | AX196: 0.5812 | AY196: 0.978152 | AZ196: 0.986572 | BB196: 0.34584 | BC196: 0.97504 | BD196: 0.01478 | BF196: 0.4366216 | BG196: 0.9781576 | BH196: 0.0090696 | BJ196: 0.34584 | BK196: 0.97504 | BL196: 0.01478 | BQ196: 0.3665839 | BR196: 0.9781519 | BS196: 0.006744115 | BT196: 0.725 | BU196: 1.04154 | BV196: -0.00916
B197: 545 | C197: 0.001072 | D197: 4.434190471e-05 | AT197: 545 | AU197: 0.9803 | AV197: 0.9745 | AW197: 0.98004 | AX197: 0.564 | AY197: 0.981411 | AZ197: 0.988689 | BB197: 0.3597 | BC197: 0.9803 | BD197: 0.0134 | BF197: 0.451584 | BG197: 0.9822 | BH197: 0.007918 | BJ197: 0.3597 | BK197: 0.9803 | BL197: 0.0134 | BQ197: 0.3804244 | BR197: 0.9814106 | BS197: 0.006131421 | BT197: 0.7722 | BU197: 1.039 | BV197: -0.0094
B198: 546 | C198: 0.000891 | D198: 3.685507192e-05 | AT198: 546 | AU198: 0.98323 | AV198: 0.9786 | AW198: 0.983022 | AX198: 0.5474 | AY198: 0.983667 | AZ198: 0.989706 | BB198: 0.37445 | BC198: 0.98323 | BD198: 0.01247 | BF198: 0.4672324 | BG198: 0.9841122 | BH198: 0.007132 | BJ198: 0.37445 | BK198: 0.98323 | BL198: 0.01247 | BQ198: 0.3940988 | BR198: 0.9836669 | BS198: 0.005572778 | BT198: 0.81894 | BU198: 1.03178 | BV198: -0.00946
B199: 547 | C199: 0.000973 | D199: 4.024689672e-05 | AT199: 547 | AU199: 0.98616 | AV199: 0.9827 | AW199: 0.986004 | AX199: 0.5308 | AY199: 0.985208 | AZ199: 0.989985 | BB199: 0.3892 | BC199: 0.98616 | BD199: 0.01154 | BF199: 0.4828808 | BG199: 0.9860244 | BH199: 0.006346 | BJ199: 0.3892 | BK199: 0.98616 | BL199: 0.01154 | BQ199: 0.4076972 | BR199: 0.9852081 | BS199: 0.005063463 | BT199: 0.86568 | BU199: 1.02456 | BV199: -0.00952
B200: 548 | C200: 0.001055 | D200: 4.363872152e-05 | AT200: 548 | AU200: 0.98909 | AV200: 0.9868 | AW200: 0.988986 | AX200: 0.5142 | AY200: 0.986381 | AZ200: 0.989962 | BB200: 0.40395 | BC200: 0.98909 | BD200: 0.01061 | BF200: 0.4985292 | BG200: 0.9879366 | BH200: 0.00556 | BJ200: 0.40395 | BK200: 0.98909 | BL200: 0.01061 | BQ200: 0.4213484 | BR200: 0.9863813 | BS200: 0.004599169 | BT200: 0.91242 | BU200: 1.01734 | BV200: -0.00958
B201: 549 | C201: 0.001066 | D201: 4.409372241e-05 | AT201: 549 | AU201: 0.99202 | AV201: 0.9909 | AW201: 0.991968 | AX201: 0.4976 | AY201: 0.987536 | AZ201: 0.990073 | BB201: 0.4187 | BC201: 0.99202 | BD201: 0.00968 | BF201: 0.5141776 | BG201: 0.9898488 | BH201: 0.004774 | BJ201: 0.4187 | BK201: 0.99202 | BL201: 0.00968 | BQ201: 0.4352003 | BR201: 0.9875357 | BS201: 0.004175971 | BT201: 0.95916 | BU201: 1.01012 | BV201: -0.00964
... 251 more rows

Sheet CM
A1: 1 | B1: 2 | C1: 3 | D1: 4 | E1: 5 | F1: 6 | G1: 7 | H1: 8 | I1: 9 | J1: 10 | K1: 11 | L1: 12 | M1: 13 | N1: 14 | O1: 15 | P1: 16 | Q1: 17 | R1: 18 | S1: 19 | T1: 20 | U1: 21 | V1: 22 | W1: 23 | X1: 24 | Y1: 25 | Z1: 26 | AA1: 27 | AB1: 28 | AC1: 29 | AD1: 30 | AE1: 31 | AF1: 32 | AG1: 33 | AH1: 34 | AI1: 35 | AJ1: 36 | AK1: 37 | AL1: 38 | AM1: 39 | AN1: 40 | AO1: 41 | AP1: 42 | AQ1: 43 | AR1: 44 | AS1: 45 | AT1: 46 | AU1: 47 | AV1: 48 | AW1: 49 | AX1: 50 | AY1: 51 | AZ1: 52 | BA1: 53 | BB1: 54 | BC1: 55 | BD1: 56 | BE1: 57 | BF1: 58 | BG1: 59 | BH1: 60 | BI1: 61 | BJ1: 62 | BK1: 63 | BL1: 64 | BM1: 65 | BN1: 66 | BO1: 67 | BP1: 68 | BQ1: 69 | BR1: 70 | BS1: 71 | BT1: 72 | BU1: 73 | BV1: 74 | BW1: 75 | BX1: 76 | BY1: 77 | BZ1: 78 | CA1: 79 | CB1: 80 | CC1: 81 | CD1: 82 | CE1: 83 | CF1: 84 | CG1: 85 | CH1: 86 | CI1: 87 | CJ1: 88 | CK1: 89 | CL1: 90 | CM1: 91 | CN1: 92 | CO1: 93 | CP1: 94 | CQ1: 95 | CR1: 96 | CS1: 97 | CT1: 98 | CU1: 99 | CV1: 100 | CW1: 101 | CX1: 102 | CY1: 103 | CZ1: 104 | DA1: 105 | DB1: 106 | DC1: 107 | DD1: 108 | DE1: 109 | DF1: 110 | DG1: 111 | DH1: 112 | DI1: 113 | DJ1: 114 | DK1: 115 | DL1: 116 | DM1: 117 | DN1: 118 | DO1: 119 | DP1: 120 | DQ1: 121 | DR1: 122 | DS1: 123 | DT1: 124 | DU1: 125 | DV1: 126 | DW1: 159 | DX1: 160 | DY1: 161 | DZ1: 162 | EA1: 163 | EB1: 164 | EC1: 165 | ED1: 166 | EE1: 167 | EF1: 168 | EG1: 169 | EH1: 170 | EI1: 171 | EJ1: 172 | EK1: 173 | EL1: 174
G2: Color Mixing Tool | U2: Optimizer v1.2
P4: Luminous Efficacy | R4: Lum/W | U4: CRILimit | V4: 80
Q5: =AX12 -> CIE1924 | R5: =SUMPRODUCT($D$33:$D$413,$AX$33:$AX$413)*683.002 -> 318.9546273 | U5: Wei_v | V5: 4 | W5: 1
Q6: =AY12 -> CIE 1951, Judd | R6: =SUMPRODUCT($D$33:$D$413,$AY$33:$AY$413)*683.002 -> 319.9853717 | U6: Iteration | V6: 5 | W6: 3 | CH6: 0.1 | CI6: 0.001016218773 | CJ6: -0.00225298193
Q7: =AZ12 -> CIE Judd & Vos | R7: =SUMPRODUCT($D$33:$D$413,$AZ$33:$AZ$413)*683.002 -> 320.2542982 | X7: 1 | Y7: 2 | Z7: 3 | AA7: 4 | AB7: 5 | AC7: 6 | AD7: Note | CH7: 0.001 | CI7: 0.001028442463 | CJ7: -0.002280082151
Q8: =BA12 -> CIE1951(Scotopic) | R8: =SUMPRODUCT($D$33:$D$413,$BA$33:$BA$413)*683.002 -> 226.4464768 | V8: Original | W8: Suggested | X8: R[ 1] | Y8: R[ 5] | Z8: R[ 3] | AA8: R[ 1] | AB8: R[ 3] | AC8: R[ 4] | BE8: CIE (1931) 2-deg color matching functions | CH8: 0.0001 | CI8: 0.001028554939 | CJ8: -0.002280331508
Q9: =BB12 -> 2 degree | R9: =SUMPRODUCT($D$33:$D$413,$BB$33:$BB$413)*683.002 -> 335.104792 | U9: CCT | V9: 4000 | X9: 4000.220161 | Y9: 4934.800871 | Z9: 3860.040143 | AA9: 4000.220161 | AB9: 3860.040143 | AC9: 5120.442813 | AX9: Luminosity function
Q10: =BC12 -> 10 degree | R10: =SUMPRODUCT($D$33:$D$413,$BC$33:$BC$413)*683.002 -> 342.451313 | U10: u | V10: =AF36 -> 0.2251091791 | X10: 0.2249950977 | Y10: 0.2180139031 | Z10: 0.2172761933 | AA10: 0.2249950977 | AB10: 0.2172761933 | AC10: 0.1992340767 | AX10: (http://www.cvrl.org/lumindex.htm) | BB10: Photopic (V(lamda)) | BE10: CIE1931 | BI10: CIE1964 | BM10: CIE bar | BT10: CIE2006 | BW10: RGB | CD10: Mixing study
B11: wd | C11: Target SPD | D11: nomalized SPD | U11: v | V11: =AG36 -> 0.3343863388 | X11: 0.3345303897 | Y11: 0.3176467075 | Z11: 0.3523371461 | AA11: 0.3345303897 | AB11: 0.3523371461 | AC11: 0.3327317426 | BB11: 2005 | BC11: 2005 | BE11: =SUM(BE13:BE506) -> 106.8633658 | BF11: =SUM(BF13:BF506) -> 106.8551972 | BG11: =SUM(BG13:BG506) -> 106.8680333 | BI11: =SUM(BI13:BI506) -> 116.6455417 | BJ11: =SUM(BJ13:BJ506) -> 116.6596481 | BK11: =SUM(BK13:BK506) -> 116.6743464 | BT11: 2-deg XYZ CMFs transformed from the CIE (2006) 2-deg LMS cone fundamentals | BW11: Stiles & Burch (1955) 2-deg, RGB CMFs
C12: =SUM(C13:C413) -> 49.27917223 | G12: Name | H12: x | I12: y | J12: Rj | K12: Prog. | L12: Notes | P12: CIE1931(2-deg) | U12: duv | V12: ori | W12: =(OFFSET(X9,0,$W$6-1)-$V$9) / (OFFSET(X9,0,W6-1) - OFFSET(X9,0,W5-1)) -> 0.9984294411 | X12: 0.000183753158 | Y12: 0.01818125951 | Z12: 0.01958538097 | AA12: 0.000183753158 | AB12: 0.01958538097 | AC12: 0.02592795043 | AW12: WD | AX12: CIE1924 | AY12: CIE 1951, Judd | AZ12: CIE Judd & Vos | BA12: CIE1951(Scotopic) | BB12: 2 degree | BC12: 10 degree | BE12: x-bar(2-deg) | BF12: y-bar(2-deg) | BG12: z-bar(2-deg) | BI12: x-bar(10-deg) | BJ12: y-bar(10-deg) | BK12: z-bar(10-deg) | BM12: x | BN12: y | BO12: z | BT12: x | BU12: y | BV12: z | BW12: R | BX12: G | BY12: B | CD12: TAR | CE12: Option | CF12: u | CG12: v | CH12: Ratio | CI12: du | CJ12: dv
B13: 360 | C13: =SUMPRODUCT($P$37:$AD$37,P42:AD42) -> 0.003045273963 | D13: =C13/$C$12 -> 6.179637006e-05 | F13: 1 | G13: =P38 -> Fake LED | H13: =P39 -> 0.3019034299 | I13: =P40 -> 0.3007037801 | J13: 0 | K13: 0 | Q13: x= | R13: =T15/(SUM(T15:T17)) -> 0.3805423738 | U13: 1 | V13: 0 | W13: =OFFSET(X13,0,$W$6-1)-$W$12*(OFFSET(X13,0,$W$6-1)-OFFSET(X13,0,$W$5-1)) -> 0 | X13: 0 | Y13: 0 | Z13: 0 | AA13: 0 | AB13: 0 | AC13: 0 | AD13: 0 | AW13: 360 | AX13: 0 | AY13: 0 | AZ13: 0 | BA13: 0 | BB13: 0 | BC13: 0 | BE13: 0.00013 | BF13: 3.92e-06 | BG13: 0.0006061 | BI13: 0 | BJ13: 0 | BK13: 0 | BM13: 0 | BN13: 0 | BO13: 0 | CD13: 1 | CE13: 1 | CF13: 0.2011134839 | CG13: 0.3004714799 | CH13: 1 | CI13: 0.001526413496 | CJ13: -0.003037409767
B14: 361 | C14: =SUMPRODUCT($P$37:$AD$37,P43:AD43) -> 0.003569148069 | D14: =C14/$C$12 -> 7.242711083e-05 | F14: 2 | G14: =Q38 -> LCB CRBP(blue) | H14: =Q39 -> 0.1594125071 | I14: =Q40 -> 0.1163834923 | J14: 0.03777370159 | K14: 0.2 | Q14: y= | R14: =T16/(SUM(T15:T17)) -> 0.3772027174 | U14: 2 | V14: 0.03777370159 | W14: =OFFSET(X14,0,$W$6-1)-$W$12*(OFFSET(X14,0,$W$6-1)-OFFSET(X14,0,$W$5-1)) -> 0.03771824929 | X14: 0.03777370159 | Y14: 0.2287693382 | Z14: 0.002466334034 | AA14: 0.03777370159 | AB14: 0.002466334034 | AC14: 0.09114913858 | AD14: 0.03777370159 | AW14: 361 | AX14: 0 | AY14: 0 | AZ14: 0 | BA14: 0 | BB14: 0 | BC14: 0 | BE14: 0.00015034 | BF14: 4.53e-06 | BG14: 0.00070208 | BI14: 2.81614e-07 | BJ14: 3.08484e-08 | BK14: 1.2336816e-06 | BM14: 0.00015034 | BN14: 4.53e-06 | BO14: 0.00070208 | BT14: 0 | BU14: 0 | BV14: 0 | BW14: 0 | BX14: 0 | BY14: 0 | CD14: 2 | CE14: 1 | CF14: 0.1563721348 | CG14: 0.1712453701 | CH14: 1 | CI14: -0.0012176871 | CJ14: -0.008567473727
B15: 362 | C15: 0.003004029954 | D15: 6.095942399e-05 | F15: 3 | G15: =R38 -> LV CQBP(verde) | H15: =R39 -> 0.07647856413 | I15: =R40 -> 0.513211175 | J15: 0.01785296702 | K15: 0.4 | S15: X | T15: =SUMPRODUCT($D$33:$D$413,$BE$33:$BE$413)*100/SUMPRODUCT($D$33:$D$413,$BF$33:$BF$413) -> 100.8853744 | U15: 3 | V15: 0.01785296702 | W15: 0.01782605584 | X15: 0.01785296702 | Y15: 0.0006894764409 | Z15: 0.000718184459 | AA15: 0.01785296702 | AB15: 0.000718184459 | AC15: 0.0008148674777 | AD15: 0.01785296702 | AW15: 362 | AX15: 0 | AY15: 0 | AZ15: 0 | BA15: 0 | BB15: 0 | BC15: 0 | BE15: 0.00017078 | BF15: 5.14e-06 | BG15: 0.00079806 | BI15: 4.41028e-07 | BJ15: 4.82988e-08 | BK15: 1.9323362e-06 | BM15: 0.00017078 | BN15: 5.14e-06 | BO15: 0.00079806 | BT15: 0 | BU15: 0 | BV15: 0 | BW15: 0 | BX15: 0 | BY15: 0 | CD15: 3 | CE15: 1 | CF15: 0.03396970737 | CG15: 0.3419285791 | CH15: 1 | CI15: -0.008613093526 | CJ15: -0.00203829718
B16: 363 | C16: 0.002645689843 | D16: 5.368778985e-05 | F16: 4 | G16: =S38 -> LUW CRBP(white) | H16: =S39 -> 0.3361494425 | I16: =S40 -> 0.3399783031 | J16: 0.2722754543 | K16: 0.8 | P16: CCT Calculation | S16: Y | T16: =SUMPRODUCT($D$33:$D$413,$BF$33:$BF$413)*(100/+SUMPRODUCT($D$33:$D$413,$BF$33:$BF$413)) -> 100 | U16: 4 | V16: 0.2722754543 | W16: 0.2720670629 | X16: 0.2722754543 | Y16: 0.1397759268 | Z16: 0.1395893209 | AA16: 0.2722754543 | AB16: 0.1395893209 | AC16: 0.2768891585 | AD16: 0.2722754543 | AW16: 363 | AX16: 0 | AY16: 0 | AZ16: 0 | BA16: 0 | BB16: 0 | BC16: 0 | BE16: 0.00019122 | BF16: 5.75e-06 | BG16: 0.00089404 | BI16: 6.00442e-07 | BJ16: 6.57492e-08 | BK16: 2.6309908e-06 | BM16: 0.00019122 | BN16: 5.75e-06 | BO16: 0.00089404 | BT16: 0 | BU16: 0 | BV16: 0 | BW16: 0 | BX16: 0 | BY16: 0 | CD16: 4 | CE16: 1 | CF16: 0.2098495245 | CG16: 0.3183592846 | CH16: 1 | CI16: -0.0001126246144 | CJ16: -0.000803962989
B17: 364 | C17: 0.002757092403 | D17: 5.594843174e-05 | F17: 5 | G17: =T38 -> LT CQBP(green) | H17: =T39 -> 0.1792453149 | I17: =T40 -> 0.7208509264 | J17: 0.1797216753 | K17: 0.8 | P17: CCT test | Q17: =-449*T20^3+3525*T20^2-6823.3*T20+5520.33 -> 4009.250448 | S17: Z | T17: =SUMPRODUCT($D$33:$D$413,$BG$33:$BG$413)*(100/+SUMPRODUCT($D$33:$D$413,$BF$33:$BF$413)) -> 64.22406245 | U17: 5 | V17: 0.1797216753 | W17: 0.1798998513 | X17: 0.1797216753 | Y17: 0.1787836928 | Z17: 0.2931692116 | AA17: 0.1797216753 | AB17: 0.2931692116 | AC17: 0.2671509333 | AD17: 0.1797216753 | AW17: 364 | AX17: 0 | AY17: 0 | AZ17: 0 | BA17: 0 | BB17: 0 | BC17: 0 | BE17: 0.00021166 | BF17: 6.36e-06 | BG17: 0.00099002 | BI17: 7.59856e-07 | BJ17: 8.31996e-08 | BK17: 3.3296454e-06 | BM17: 0.00021166 | BN17: 6.36e-06 | BO17: 0.00099002 | BT17: 0 | BU17: 0 | BV17: 0 | BW17: 0 | BX17: 0 | BY17: 0 | CD17: 5 | CE17: 1 | CF17: 0.06349638151 | CG17: 0.3830330977 | CH17: 1 | CI17: -0.01199637172 | CJ17: 0.005693238659
B18: 365 | C18: 0.002829359174 | D18: 5.741490869e-05 | F18: 6 | G18: =U38 -> LJ CKBP(red) | H18: =U39 -> 0.6843800852 | I18: =U40 -> 0.3115712011 | J18: 0.4199129826 | K18: 1.5 | P18: CCT | Q18: =IF(ISERROR(R18),IF(ERROR.TYPE(R18)<=3,Q17,0),R18) -> 4000.217162 | R18: =CCT_CM!J23 -> 4000.217162 | U18: 6 | V18: 0.4199129826 | W18: 0.4199550618 | X18: 0.4199129826 | Y18: 0.3301036892 | Z18: 0.4467054994 | AA18: 0.4199129826 | AB18: 0.4467054994 | AC18: 0.3309113103 | AD18: 0.4199129826 | AW18: 365 | AX18: 0 | AY18: 0 | AZ18: 0 | BA18: 0 | BB18: 0 | BC18: 0 | BE18: 0.0002321 | BF18: 6.97e-06 | BG18: 0.001086 | BI18: 9.1927e-07 | BJ18: 1.0065e-07 | BK18: 4.0283e-06 | BM18: 0.0002321 | BN18: 6.97e-06 | BO18: 0.001086 | BT18: 0 | BU18: 0 | BV18: 0 | BW18: 0 | BX18: 0 | BY18: 0 | CD18: 6 | CE18: 1 | CF18: 0.5097711473 | CG18: 0.3481177265 | CH18: 1 | CI18: 0.004066484851 | CJ18: 0.00295745405
B19: 366 | C19: 0.002765276542 | D19: 5.611450877e-05 | F19: 7 | G19: =V38 -> SZB(blue) | H19: =V39 -> 0.1465918945 | I19: =V40 -> 0.03575623594 | J19: 0 | K19: 0 | P19: duv | Q19: =IF(ISERROR(R19),IF(ERROR.TYPE(R19)<=3,"error",0),R19) -> 0.0001873364315 | R19: =CCT_CM!J15 -> 0.0001873364315 | U19: 7 | V19: 0 | W19: 0 | X19: 0 | Y19: 0 | Z19: 0 | AA19: 0 | AB19: 0 | AC19: 0 | AD19: 0 | AW19: 366 | AX19: 0 | AY19: 0 | AZ19: 0 | BA19: 0 | BB19: 0 | BC19: 0 | BE19: 0.00026866 | BF19: 8.054e-06 | BG19: 0.001258 | BI19: 1.927136e-06 | BJ19: 2.1074e-07 | BK19: 8.45138e-06 | BM19: 0.00026866 | BN19: 8.054e-06 | BO19: 0.001258 | BT19: 0 | BU19: 0 | BV19: 0 | BW19: 0 | BX19: 0 | BY19: 0 | CD19: 7 | CE19: 0 | CF19: 0 | CG19: 0 | CH19: 0
B20: 367 | C20: 0.002701318005 | D20: 5.481662705e-05 | F20: 8 | G20: =W38 -> SZG(green) | H20: =W39 -> 0.1650281765 | I20: =W40 -> 0.7010313683 | J20: 0 | K20: 0 | S20: n= | T20: =(R13-0.332)/(R14-0.1858) -> 0.253613817 | U20: 8 | V20: 0 | W20: 0 | X20: 0 | Y20: 0 | Z20: 0 | AA20: 0 | AB20: 0 | AC20: 0 | AD20: 0 | AW20: 367 | AX20: 0 | AY20: 0 | AZ20: 0 | BA20: 0 | BB20: 0 | BC20: 0 | BE20: 0.00030522 | BF20: 9.138e-06 | BG20: 0.00143 | BI20: 2.935002e-06 | BJ20: 3.2083e-07 | BK20: 1.287446e-05 | BM20: 0.00030522 | BN20: 9.138e-06 | BO20: 0.00143 | BT20: 0 | BU20: 0 | BV20: 0 | BW20: 0 | BX20: 0 | BY20: 0 | CD20: 8 | CE20: 0 | CF20: 0 | CG20: 0 | CH20: 0
B21: 368 | C21: 0.002855386764 | D21: 5.794307484e-05 | F21: 9 | G21: =X38 -> SZ5M2 | H21: =X39 -> 0.3539002168 | I21: =X40 -> 0.362341994 | J21: 0 | K21: 0 | P21: CRI= | Q21: =AVERAGE(Q22:Q28,S22:S28) -> 84.4499363 | R21: R8= | S21: =AVERAGE(Q22:Q28,S22) -> 85.50934797 | U21: 9 | V21: 0 | W21: 0 | X21: 0 | Y21: 0 | Z21: 0 | AA21: 0 | AB21: 0 | AC21: 0 | AD21: 0 | AW21: 368 | AX21: 0 | AY21: 0 | AZ21: 0 | BA21: 0 | BB21: 0 | BC21: 0 | BE21: 0.00034178 | BF21: 1.0222e-05 | BG21: 0.001602 | BI21: 3.942868e-06 | BJ21: 4.3092e-07 | BK21: 1.729754e-05 | BM21: 0.00034178 | BN21: 1.0222e-05 | BO21: 0.001602 | BT21: 0 | BU21: 0 | BV21: 0 | BW21: 0 | BX21: 0 | BY21: 0 | CD21: 9 | CE21: 0 | CF21: 0 | CG21: 0 | CH21: 0
B22: 369 | C22: 0.003009145474 | D22: 6.106323093e-05 | F22: 10 | G22: =Y38 -> SZA(amber) | H22: =Y39 -> 0.5880054512 | I22: =Y40 -> 0.4074029048 | J22: 0.0724632192 | K22: 0.9 | P22: R1 | Q22: =CRI_CM!BD35 -> 88.10397847 | R22: R8 | S22: =CRI_CM!BK35 -> 84.45054923 | U22: 10 | V22: 0.0724632192 | W22: 0.07253371881 | X22: 0.0724632192 | Y22: 0.1218778766 | Z22: 0.1173514496 | AA22: 0.0724632192 | AB22: 0.1173514496 | AC22: 0.03308459187 | AD22: 0.0724632192 | AW22: 369 | AX22: 0 | AY22: 0 | AZ22: 0 | BA22: 0 | BB22: 0 | BC22: 0 | BE22: 0.00037834 | BF22: 1.1306e-05 | BG22: 0.001774 | BI22: 4.950734e-06 | BJ22: 5.4101e-07 | BK22: 2.172062e-05 | BM22: 0.00037834 | BN22: 1.1306e-05 | BO22: 0.001774 | BT22: 0 | BU22: 0 | BV22: 0 | BW22: 0 | BX22: 0 | BY22: 0 | CD22: 10 | CE22: 1 | CF22: 0.350377378 | CG22: 0.3641410901 | CH22: 1 | CI22: 0.0101563873 | CJ22: 0.003601358655
B23: 370 | C23: 0.003070218899 | D23: 6.230256638e-05 | F23: 11 | G23: =Z38 -> SZR(red) | H23: =Z39 -> 0.6916371643 | I23: =Z40 -> 0.3039877551 | P23: R2 | Q23: =CRI_CM!BE35 -> 94.67745308 | R23: R9 | S23: =CRI_CM!BL35 -> 90.29790647 | U23: 11 | W23: 0 | X23: 0 | Y23: 0 | Z23: 0 | AA23: 0 | AB23: 0 | AC23: 0 | AW23: 370 | AX23: 0 | AY23: 0 | AZ23: 0 | BA23: 0 | BB23: 0 | BC23: 0 | BE23: 0.0004149 | BF23: 1.239e-05 | BG23: 0.001946 | BI23: 5.9586e-06 | BJ23: 6.511e-07 | BK23: 2.61437e-05 | BM23: 0.0004149 | BN23: 1.239e-05 | BO23: 0.001946 | BT23: 0 | BU23: 0 | BV23: 0 | BW23: 0 | BX23: 0 | BY23: 0 | CD23: 11 | CE23: 0 | CF23: 0 | CG23: 0 | CH23: 0
B24: 371 | C24: 0.00313125455 | D24: 6.354113531e-05 | F24: 12 | G24: =AA38 -> 0 | H24: =AA39 -> 0 | I24: =AA40 -> 0 | J24: 0 | K24: 0 | P24: R3 | Q24: =CRI_CM!BF35 -> 78.47418761 | R24: R10 | S24: =CRI_CM!BM35 -> 85.78475123 | U24: 12 | V24: 0 | W24: 0 | X24: 0 | Y24: 0 | Z24: 0 | AA24: 0 | AB24: 0 | AC24: 0 | AW24: 371 | AX24: 0 | AY24: 0.00013 | AZ24: 0 | BA24: 0 | BB24: 0 | BC24: 0 | BE24: 0.00048024 | BF24: 1.4316e-05 | BG24: 0.002254 | BI24: 1.142008e-05 | BJ24: 1.24588e-06 | BK24: 5.015896e-05 | BM24: 0.00048024 | BN24: 1.4316e-05 | BO24: 0.002254 | BT24: 0 | BU24: 0 | BV24: 0 | BW24: 0 | BX24: 0 | BY24: 0 | CD24: 12 | CE24: 0 | CF24: 0 | CG24: 0 | CH24: 0
B25: 372 | C25: 0.0029415048 | D25: 5.969062927e-05 | F25: 13 | G25: =AB38 -> 0 | H25: =AB39 -> 0 | I25: =AB40 -> 0 | J25: 0 | K25: 0 | P25: R4 | Q25: =CRI_CM!BG35 -> 69.62866949 | R25: R11 | S25: =CRI_CM!BN35 -> 63.43472695 | U25: 13 | V25: 0 | W25: 0 | X25: 0 | Y25: 0 | Z25: 0 | AA25: 0 | AB25: 0 | AC25: 0 | AW25: 372 | AX25: 0 | AY25: 0.00016 | AZ25: 0 | BA25: 0 | BB25: 0 | BC25: 0 | BE25: 0.00054558 | BF25: 1.6242e-05 | BG25: 0.002562 | BI25: 1.688156e-05 | BJ25: 1.84066e-06 | BK25: 7.417422e-05 | BM25: 0.00054558 | BN25: 1.6242e-05 | BO25: 0.002562 | BT25: 0 | BU25: 0 | BV25: 0 | BW25: 0 | BX25: 0 | BY25: 0 | CD25: 13 | CE25: 0 | CF25: 0 | CG25: 0 | CH25: 0
B26: 373 | C26: 0.002721561808 | D26: 5.522742541e-05 | F26: 14 | G26: =AC38 -> 0 | H26: =AC39 -> 0 | I26: =AC40 -> 0 | J26: 0 | K26: 0 | P26: R5 | Q26: =CRI_CM!BH35 -> 87.37597771 | R26: R12 | S26: =CRI_CM!BO35 -> 80.22890265 | U26: 14 | V26: 0 | W26: 0 | X26: 0 | Y26: 0 | Z26: 0 | AA26: 0 | AB26: 0 | AC26: 0 | AW26: 373 | AX26: 0 | AY26: 0.00019 | AZ26: 0 | BA26: 0 | BB26: 0 | BC26: 0 | BE26: 0.00061092 | BF26: 1.8168e-05 | BG26: 0.00287 | BI26: 2.234304e-05 | BJ26: 2.43544e-06 | BK26: 9.818948e-05 | BM26: 0.00061092 | BN26: 1.8168e-05 | BO26: 0.00287 | BT26: 0 | BU26: 0 | BV26: 0 | BW26: 0 | BX26: 0 | BY26: 0 | CD26: 14 | CE26: 0 | CF26: 0 | CG26: 0 | CH26: 0
B27: 374 | C27: 0.00281443433 | D27: 5.711204557e-05 | F27: 15 | G27: =AD38 -> 0 | H27: =AD39 -> 0 | I27: =AD40 -> 0 | J27: 0 | K27: 0 | P27: R6 | Q27: =CRI_CM!BI35 -> 98.19200198 | R27: R13 | S27: =CRI_CM!BP35 -> 92.71609834 | U27: 15 | V27: 0 | W27: 0 | X27: 0 | Y27: 0 | Z27: 0 | AA27: 0 | AB27: 0 | AC27: 0 | AW27: 374 | AX27: 0 | AY27: 0.00022 | AZ27: 0 | BA27: 0 | BB27: 0 | BC27: 0 | BE27: 0.00067626 | BF27: 2.0094e-05 | BG27: 0.003178 | BI27: 2.780452e-05 | BJ27: 3.03022e-06 | BK27: 0.00012220474 | BM27: 0.00067626 | BN27: 2.0094e-05 | BO27: 0.003178 | BT27: 0 | BU27: 0 | BV27: 0 | BW27: 0 | BX27: 0 | BY27: 0 | CD27: 15 | CE27: 0 | CF27: 0 | CG27: 0 | CH27: 0
B28: 375 | C28: 0.002907831312 | D28: 5.900730838e-05 | P28: R7 | Q28: =CRI_CM!BJ35 -> 83.17196622 | R28: R14 | S28: =CRI_CM!BQ35 -> 85.76193877 | U28: CRI | X28: 84.44988785 | Y28: 79.59330014 | Z28: 80.18479764 | AA28: 84.44988785 | AB28: 80.18479764 | AC28: 81.76982954 | AW28: 375 | AX28: 0 | AY28: 0.00025 | AZ28: 0 | BA28: 0 | BB28: 0 | BC28: 0 | BE28: 0.0007416 | BF28: 2.202e-05 | BG28: 0.003486 | BI28: 3.3266e-05 | BJ28: 3.625e-06 | BK28: 0.00014622 | BM28: 0.0007416 | BN28: 2.202e-05 | BO28: 0.003486 | BT28: 0 | BU28: 0 | BV28: 0 | BW28: 0 | BX28: 0 | BY28: 0 | CG28: RES1
B29: 376 | C29: 0.002931543657 | D29: 5.94884923e-05 | K29: 87 | AW29: 376 | AX29: 0 | AY29: 0.00028 | AZ29: 0 | BA29: 0 | BB29: 0 | BC29: 0 | BE29: 0.00086688 | BF29: 2.5616e-05 | BG29: 0.0029178 | BI29: 5.86032e-05 | BJ29: 6.3728e-06 | BK29: 0.0002579312 | BM29: 0.00086688 | BN29: 2.5616e-05 | BO29: 0.0029178 | BT29: 0 | BU29: 0 | BV29: 0 | BW29: 0 | BX29: 0 | BY29: 0 | CD29: RES | CG29: u | CH29: 0.1920330019
B30: 377 | C30: 0.002933891819 | D30: 5.953614248e-05 | AW30: 377 | AX30: 0 | AY30: 0.00031 | AZ30: 0 | BA30: 0 | BB30: 0 | BC30: 0 | BE30: 0.00099216 | BF30: 2.9212e-05 | BG30: 0.0023496 | BI30: 8.39404e-05 | BJ30: 9.1206e-06 | BK30: 0.0003696424 | BM30: 0.00099216 | BN30: 2.9212e-05 | BO30: 0.0023496 | BT30: 0 | BU30: 0 | BV30: 0 | BW30: 0 | BX30: 0 | BY30: 0 | CG30: v | CH30: 0.3185407282
B31: 378 | C31: 0.002727837701 | D31: 5.535477926e-05 | AW31: 378 | AX31: 0 | AY31: 0.00034 | AZ31: 0 | BA31: 0 | BB31: 0 | BC31: 0 | BE31: 0.00111744 | BF31: 3.2808e-05 | BG31: 0.0017814 | BI31: 0.0001092776 | BJ31: 1.18684e-05 | BK31: 0.0004813536 | BM31: 0.00111744 | BN31: 3.2808e-05 | BO31: 0.0017814 | BT31: 0 | BU31: 0 | BV31: 0 | BW31: 0 | BX31: 0 | BY31: 0 | CG31: CCT | CH31: 6331.635517
B32: 379 | C32: 0.002918715891 | D32: 5.922818422e-05 | AW32: 379 | AX32: 0 | AY32: 0.00037 | AZ32: 0 | BA32: 0 | BB32: 0 | BC32: 0 | BE32: 0.00124272 | BF32: 3.6404e-05 | BG32: 0.0012132 | BI32: 0.0001346148 | BJ32: 1.46162e-05 | BK32: 0.0005930648 | BM32: 0.00124272 | BN32: 3.6404e-05 | BO32: 0.0012132 | BT32: 0 | BU32: 0 | BV32: 0 | BW32: 0 | BX32: 0 | BY32: 0 | CG32: duv | CH32: 0.01162726181
B33: 380 | C33: 0.003110249342 | D33: 6.31148861e-05 | AW33: 380 | AX33: 0 | AY33: 0.0004 | AZ33: 0 | BA33: 0 | BB33: 0 | BC33: 0 | BE33: 0.001368 | BF33: 4e-05 | BG33: 0.000645 | BI33: 0.000159952 | BJ33: 1.7364e-05 | BK33: 0.000704776 | BM33: 0.001368 | BN33: 4e-05 | BO33: 0.000645 | BT33: 0 | BU33: 0 | BV33: 0 | BW33: 0 | BX33: 0 | BY33: 0
B34: 381 | C34: 0.003102828502 | D34: 6.296429834e-05 | AW34: 381 | AX34: 4.4e-05 | AY34: 0.00051 | AZ34: 0.000239112 | BA34: 0.0006928 | BB34: 0 | BC34: 0 | BE34: 0.0015416 | BF34: 4.4e-05 | BG34: 0.002626 | BI34: 0.0002604496 | BJ34: 2.82032e-05 | BK34: 0.0011493808 | BM34: 0.0015416 | BN34: 4.4e-05 | BO34: 0.002626 | BT34: 0 | BU34: 0 | BV34: 0 | BW34: 0 | BX34: 0 | BY34: 0 | CG34: TargetCCT | CH34: 4000
B35: 382 | C35: 0.002848332045 | D35: 5.77999166e-05 | AF35: His Data | AW35: 382 | AX35: 4.9e-05 | AY35: 0.00062 | AZ35: 0.000278224 | BA35: 0.0007966 | BB35: 0 | BC35: 0 | BE35: 0.0017152 | BF35: 4.8e-05 | BG35: 0.004607 | BI35: 0.0003609472 | BJ35: 3.90424e-05 | BK35: 0.0015939856 | BM35: 0.0017152 | BN35: 4.8e-05 | BO35: 0.004607 | BT35: 0 | BU35: 0 | BV35: 0 | BW35: 0 | BX35: 0 | BY35: 0 | CG35: u | CH35: 0.2251091791
B36: 383 | C36: 0.00284574516 | D36: 5.774742211e-05 | G36: OPTIMIZER SETTINGS(Optimizer v1.2) | O36: DATABASE | AE36: Target= | AF36: 0.2251091791 | AG36: 0.3343863388 | AW36: 383 | AX36: 5.4e-05 | AY36: 0.00073 | AZ36: 0.000317336 | BA36: 0.0009004 | BB36: 0 | BC36: 0 | BE36: 0.0018888 | BF36: 5.2e-05 | BG36: 0.006588 | BI36: 0.0004614448 | BJ36: 4.98816e-05 | BK36: 0.0020385904 | BM36: 0.0018888 | BN36: 5.2e-05 | BO36: 0.006588 | BT36: 0 | BU36: 0 | BV36: 0 | BW36: 0 | BX36: 0 | BY36: 0 | CG36: v | CH36: 0.3343863388
B37: 384 | C37: 0.002843180801 | D37: 5.769538473e-05 | G37: Name | H37: Sheet | I37: LocX | J37: LocY | P37: =J13 -> 0 | Q37: =J14 -> 0.03777370159 | R37: =J15 -> 0.01785296702 | S37: =J16 -> 0.2722754543 | T37: =J17 -> 0.1797216753 | U37: =J18 -> 0.4199129826 | V37: =J19 -> 0 | W37: =J20 -> 0 | X37: =J21 -> 0 | Y37: =J22 -> 0.0724632192 | Z37: =J23 -> 0 | AA37: =J24 -> 0 | AB37: =J25 -> 0 | AC37: =J26 -> 0 | AD37: =J27 -> 0 | AF37: u | AG37: v | AH37: CCT | AI37: duv | AJ37: CRI | AW37: 384 | AX37: 5.9e-05 | AY37: 0.00084 | AZ37: 0.000356448 | BA37: 0.0010042 | BB37: 0 | BC37: 0 | BE37: 0.0020624 | BF37: 5.6e-05 | BG37: 0.008569 | BI37: 0.0005619424 | BJ37: 6.07208e-05 | BK37: 0.0024831952 | BM37: 0.0020624 | BN37: 5.6e-05 | BO37: 0.008569 | BT37: 0 | BU37: 0 | BV37: 0 | BW37: 0 | BX37: 0 | BY37: 0
B38: 385 | C38: 0.002837595912 | D38: 5.758205311e-05 | G38: Working Sheet | H38: CM | O38: Name | P38: Fake LED | Q38: LCB CRBP(blue) | R38: LV CQBP(verde) | S38: LUW CRBP(white) | T38: LT CQBP(green) | U38: LJ CKBP(red) | V38: SZB(blue) | W38: SZG(green) | X38: SZ5M2 | Y38: SZA(amber) | Z38: SZR(red) | AE38: 0 | AF38: 0.2249950977 | AG38: 0.3345303897 | AH38: 4000.220161 | AI38: 0.000183753158 | AJ38: 84.44988785 | AW38: 385 | AX38: 6.4e-05 | AY38: 0.00095 | AZ38: 0.00039556 | BA38: 0.001108 | BB38: 0 | BC38: 0 | BE38: 0.002236 | BF38: 6e-05 | BG38: 0.01055 | BI38: 0.00066244 | BJ38: 7.156e-05 | BK38: 0.0029278 | BM38: 0.002236 | BN38: 6e-05 | BO38: 0.01055 | BT38: 0 | BU38: 0 | BV38: 0 | BW38: 0 | BX38: 0 | BY38: 0
B39: 386 | C39: 0.002799621111 | D39: 5.681144761e-05 | G39: [INPUT LOCATION] | O39: x | P39: 0.3019034299 | Q39: 0.1594125071 | R39: 0.07647856413 | S39: 0.3361494425 | T39: 0.1792453149 | U39: 0.6843800852 | V39: 0.1465918945 | W39: 0.1650281765 | X39: 0.3539002168 | Y39: 0.5880054512 | Z39: 0.6916371643 | AE39: 1 | AF39: 0.2014405748 | AG39: 0.368634595 | AH39: 4001.859725 | AI39: 0.04163106872 | AJ39: 54.14768039 | AW39: 386 | AX39: 7.52e-05 | AY39: 0.00106 | AZ39: 0.000476448 | BA39: 0.0013282 | BB39: 0 | BC39: 0 | BE39: 0.0026374 | BF39: 7.2e-05 | BG39: 0.01245 | BI39: 0.001002272 | BJ39: 0.000107928 | BK39: 0.00443868 | BM39: 0.0026374 | BN39: 7.2e-05 | BO39: 0.01245 | BT39: 0 | BU39: 0 | BV39: 0 | BW39: 0 | BX39: 0 | BY39: 0
B40: 387 | C40: 0.002678490073 | D40: 5.435339013e-05 | G40: CIE1931 color matching function | H40: CM | I40: 13 | J40: 57 | O40: y | P40: 0.3007037801 | Q40: 0.1163834923 | R40: 0.513211175 | S40: 0.3399783031 | T40: 0.7208509264 | U40: 0.3115712011 | V40: 0.03575623594 | W40: 0.7010313683 | X40: 0.362341994 | Y40: 0.4074029048 | Z40: 0.3039877551 | AE40: 2 | AF40: 0.2172761933 | AG40: 0.3523371461 | AH40: 3860.040143 | AI40: 0.01958538097 | AJ40: 80.18479764 | AW40: 387 | AX40: 8.64e-05 | AY40: 0.00117 | AZ40: 0.000557336 | BA40: 0.0015484 | BB40: 0 | BC40: 0 | BE40: 0.0030388 | BF40: 8.4e-05 | BG40: 0.01435 | BI40: 0.001342104 | BJ40: 0.000144296 | BK40: 0.00594956 | BM40: 0.0030388 | BN40: 8.4e-05 | BO40: 0.01435 | BT40: 0 | BU40: 0 | BV40: 0 | BW40: 0 | BX40: 0 | BY40: 0
B41: 388 | C41: 0.002557524525 | D41: 5.189869086e-05 | G41: Black body curve(CCT v.s. (u,v)) | H41: CCT_CM | I41: 5 | J41: 1 | O41: wd | AE41: 3 | AF41: 0.1992340767 | AG41: 0.3327317426 | AH41: 5120.442813 | AI41: 0.02592795043 | AJ41: 81.76982954 | AW41: 388 | AX41: 9.76e-05 | AY41: 0.00128 | AZ41: 0.000638224 | BA41: 0.0017686 | BB41: 0 | BC41: 0 | BE41: 0.0034402 | BF41: 9.6e-05 | BG41: 0.01625 | BI41: 0.001681936 | BJ41: 0.000180664 | BK41: 0.00746044 | BM41: 0.0034402 | BN41: 9.6e-05 | BO41: 0.01625 | BT41: 0 | BU41: 0 | BV41: 0 | BW41: 0 | BX41: 0 | BY41: 0
B42: 389 | C42: 0.002563160211 | D42: 5.201305328e-05 | G42: CIE Daylight | H42: CRI_CM | I42: 6 | J42: 16 | O42: 360 | P42: 0 | Q42: 0.001545 | R42: 0.002165 | S42: 0.006836 | T42: 0.002358 | U42: 0.001188 | V42: 0.001569 | W42: 0.002437 | X42: 0.007766 | Y42: 0.002268 | Z42: 0.00126 | AA42: 0 | AB42: 0 | AC42: 0 | AD42: 0 | AE42: 4 | AF42: 0.2180139031 | AG42: 0.3176467075 | AH42: 4934.800871 | AI42: 0.01818125951 | AJ42: 79.59330014 | AW42: 389 | AX42: 0.0001088 | AY42: 0.00139 | AZ42: 0.000719112 | BA42: 0.0019888 | BB42: 0 | BC42: 0 | BE42: 0.0038416 | BF42: 0.000108 | BG42: 0.01815 | BI42: 0.002021768 | BJ42: 0.000217032 | BK42: 0.00897132 | BM42: 0.0038416 | BN42: 0.000108 | BO42: 0.01815 | BT42: 0 | BU42: 0 | BV42: 0 | BW42: 0 | BX42: 0 | BY42: 0
B43: 390 | C43: 0.002568575795 | D43: 5.212294929e-05 | G43: Color Rendering Sample | H43: CRI_CM | I43: 6 | J43: 21 | O43: 361 | P43: 0 | Q43: 0.001571 | R43: 0.002263 | S43: 0.008002 | T43: 0.002567 | U43: 0.001479 | V43: 0.001701 | W43: 0.002507 | X43: 0.007834 | Y43: 0.002874 | Z43: 0.001568 | AE43: 5 | AF43: 0.2289023174 | AG43: 0.3031421696 | AH43: 5147.919304 | AI43: 0.03147357631 | AJ43: 77.09529651 | AW43: 390 | AX43: 0.00012 | AY43: 0.0015 | AZ43: 0.0008 | BA43: 0.002209 | BB43: 0.000414616 | BC43: 0.000407678 | BE43: 0.004243 | BF43: 0.00012 | BG43: 0.02005 | BI43: 0.0023616 | BJ43: 0.0002534 | BK43: 0.0104822 | BM43: 0.004243 | BN43: 0.00012 | BO43: 0.02005 | BT43: 0.003769647 | BU43: 0.0004146161 | BV43: 0.0184726 | BW43: 0.0015 | BX43: -0.0004 | BY43: 0.0062
B44: 391 | C44: 0.002734286968 | D44: 5.548565134e-05 | O44: 362 | P44: 0 | Q44: 0.001596 | R44: 0.002067 | S44: 0.005671 | T44: 0.002777 | U44: 0.00177 | V44: 0.001436 | W44: 0.002367 | X44: 0.007699 | Y44: 0.001662 | Z44: 0.001877 | AW44: 391 | AX44: 0.0001394 | AY44: 0.0018 | AZ44: 0.00094914 | BA44: 0.0026732 | BB44: 0.000502833 | BC44: 0.000497777 | BE44: 0.0049244 | BF44: 0.0001394 | BG44: 0.023282 | BI44: 0.00333774 | BJ44: 0.00035642 | BK44: 0.01485456 | BM44: 0.0049244 | BN44: 0.0001394 | BO44: 0.023282 | BT44: 0.004532416 | BU44: 0.0005028333 | BV44: 0.02221101 | BW44: 0.00196 | BX44: -0.00052 | BY44: 0.00818
B45: 392 | C45: 0.002577340593 | D45: 5.230080938e-05 | G45: Inumber of iterations | H45: CM | I45: 6 | J45: 22 | O45: 363 | P45: 0 | Q45: 0.001191 | R45: 0.001735 | S45: 0.005792 | T45: 0.003 | U45: 0.000751 | V45: 0.001486 | W45: 0.002476 | X45: 0.007957 | Y45: 0.001907 | Z45: 0.000948 | AW45: 392 | AX45: 0.0001588 | AY45: 0.0021 | AZ45: 0.00109828 | BA45: 0.0031374 | BB45: 0.000608499 | BC45: 0.000606475 | BE45: 0.0056058 | BF45: 0.0001588 | BG45: 0.026514 | BI45: 0.00431388 | BJ45: 0.00045944 | BK45: 0.01922692 | BM45: 0.0056058 | BN45: 0.0001588 | BO45: 0.026514 | BT45: 0.005446553 | BU45: 0.0006084991 | BV45: 0.02669819 | BW45: 0.00242 | BX45: -0.00064 | BY45: 0.01016
B46: 393 | C46: 0.002377801346 | D46: 4.825164951e-05 | G46: Database location | H46: =H40 -> CM | I46: 42 | J46: 16 | O46: 364 | P46: 0 | Q46: 0.001584 | R46: 0.001967 | S46: 0.005966 | T46: 0.003071 | U46: 0.000817 | V46: 0.001234 | W46: 0.002715 | X46: 0.008147 | Y46: 0.00197 | Z46: 0.001241 | AW46: 393 | AX46: 0.0001782 | AY46: 0.0024 | AZ46: 0.00124742 | BA46: 0.0036016 | BB46: 0.000734444 | BC46: 0.000737004 | BE46: 0.0062872 | BF46: 0.0001782 | BG46: 0.029746 | BI46: 0.00529002 | BJ46: 0.00056246 | BK46: 0.02359928 | BM46: 0.0062872 | BN46: 0.0001782 | BO46: 0.029746 | BT46: 0.006538868 | BU46: 0.0007344436 | BV46: 0.03206937 | BW46: 0.00288 | BX46: -0.00076 | BY46: 0.01214
B47: 394 | C47: 0.002487207098 | D47: 5.047177104e-05 | G47: Initial Rj | H47: CM | I47: 13 | J47: 22 | O47: 365 | P47: 0 | Q47: 0.001976 | R47: 0.002198 | S47: 0.006139 | T47: 0.002928 | U47: 0.000882 | V47: 0.000981 | W47: 0.002954 | X47: 0.007768 | Y47: 0.002034 | Z47: 0.001535 | AW47: 394 | AX47: 0.0001976 | AY47: 0.0027 | AZ47: 0.00139656 | BA47: 0.0040658 | BB47: 0.000883739 | BC47: 0.000892939 | BE47: 0.0069686 | BF47: 0.0001976 | BG47: 0.032978 | BI47: 0.00626616 | BJ47: 0.00066548 | BK47: 0.02797164 | BM47: 0.0069686 | BN47: 0.0001976 | BO47: 0.032978 | BT47: 0.007839699 | BU47: 0.0008837389 | BV47: 0.03847832 | BW47: 0.00334 | BX47: -0.00088 | BY47: 0.01412
B48: 395 | C48: 0.002596140931 | D48: 5.268231616e-05 | O48: 366 | P48: 0 | Q48: 0.001988 | R48: 0.001814 | S48: 0.005948 | T48: 0.002718 | U48: 0.000938 | V48: 0.000743 | W48: 0.002538 | X48: 0.007589 | Y48: 0.002152 | Z48: 0.001731 | AW48: 395 | AX48: 0.000217 | AY48: 0.003 | AZ48: 0.0015457 | BA48: 0.00453 | BB48: 0.00105965 | BC48: 0.00107817 | BE48: 0.00765 | BF48: 0.000217 | BG48: 0.03621 | BI48: 0.0072423 | BJ48: 0.0007685 | BK48: 0.032344 | BM48: 0.00765 | BN48: 0.000217 | BO48: 0.03621 | BT48: 0.009382967 | BU48: 0.001059646 | BV48: 0.04609784 | BW48: 0.0038 | BX48: -0.001 | BY48: 0.0161
B49: 396 | C49: 0.002641583708 | D49: 5.360446592e-05 | G49: cct_Wish | H49: CM | I49: 9 | J49: 22 | O49: 367 | P49: 0 | Q49: 0.001999 | R49: 0.001429 | S49: 0.005757 | T49: 0.002509 | U49: 0.000994 | V49: 0.000505 | W49: 0.002121 | X49: 0.00741 | Y49: 0.00227 | Z49: 0.00134 | AW49: 396 | AX49: 0.0002528 | AY49: 0.0033 | AZ49: 0.00179656 | BA49: 0.005482 | BB49: 0.00126553 | BC49: 0.00129682 | BE49: 0.008982 | BF49: 0.0002536 | BG49: 0.042538 | BI49: 0.00961578 | BJ49: 0.00101568 | BK49: 0.04307738 | BM49: 0.008982 | BN49: 0.0002536 | BO49: 0.042538 | BT49: 0.01120608 | BU49: 0.001265532 | BV49: 0.05511953 | BW49: 0.00482 | BX49: 0.00482 | BY49: 0.00482
B50: 397 | C50: 0.002659641825 | D50: 5.397091113e-05 | G50: CRILimit | H50: CM | I50: 4 | J50: 22 | O50: 368 | P50: 9.033423668e-06 | Q50: 0.001979 | R50: 0.001744 | S50: 0.00576 | T50: 0.002252 | U50: 0.001398 | V50: 0.000813 | W50: 0.002082 | X50: 0.007462 | Y50: 0.002614 | Z50: 0.001356 | AW50: 397 | AX50: 0.0002886 | AY50: 0.0036 | AZ50: 0.00204742 | BA50: 0.006434 | BB50: 0.00150475 | BC50: 0.00155316 | BE50: 0.010314 | BF50: 0.0002902 | BG50: 0.048866 | BI50: 0.01198926 | BJ50: 0.00126286 | BK50: 0.05381076 | BM50: 0.010314 | BN50: 0.0002902 | BO50: 0.048866 | BT50: 0.01334965 | BU50: 0.001504753 | BV50: 0.06575257 | BW50: 0.00584 | BX50: -0.0016 | BY50: 0.02566
B51: 398 | C51: 0.002681650875 | D51: 5.441753085e-05 | G51: Weighting for v | H51: CM | I51: 5 | J51: 22 | O51: 369 | P51: 6.442587574e-05 | Q51: 0.001958 | R51: 0.002059 | S51: 0.005762 | T51: 0.001995 | U51: 0.001802 | V51: 0.001122 | W51: 0.002043 | X51: 0.007513 | Y51: 0.002958 | Z51: 0.001372 | AW51: 398 | AX51: 0.0003244 | AY51: 0.0039 | AZ51: 0.00229828 | BA51: 0.007386 | BB51: 0.00178049 | BC51: 0.00185146 | BE51: 0.011646 | BF51: 0.0003268 | BG51: 0.055194 | BI51: 0.01436274 | BJ51: 0.00151004 | BK51: 0.06454414 | BM51: 0.011646 | BN51: 0.0003268 | BO51: 0.055194 | BT51: 0.0158569 | BU51: 0.001780493 | BV51: 0.07822113 | BW51: 0.00686 | BX51: -0.0019 | BY51: 0.03044
B52: 399 | C52: 0.002696094444 | D52: 5.471062768e-05 | G52: Clear | H52: x8:ac27 | I52: ae38:ak500 | J52: ae38:ak500 | O52: 370 | P52: 0.0001198183278 | Q52: 0.001757 | R52: 0.002168 | S52: 0.005763 | T52: 0.002176 | U52: 0.001943 | V52: 0.000947 | W52: 0.00209 | X52: 0.007201 | Y52: 0.002609 | Z52: 0.00141 | AW52: 399 | AX52: 0.0003602 | AY52: 0.0042 | AZ52: 0.00254914 | BA52: 0.008338 | BB52: 0.00209557 | BC52: 0.00219579 | BE52: 0.012978 | BF52: 0.0003634 | BG52: 0.061522 | BI52: 0.01673622 | BJ52: 0.00175722 | BK52: 0.07527752 | BM52: 0.012978 | BN52: 0.0003634 | BO52: 0.061522 | BT52: 0.01877286 | BU52: 0.002095572 | BV52: 0.09276013 | BW52: 0.00788 | BX52: -0.0022 | BY52: 0.03522
B53: 400 | C53: 0.002899464945 | D53: 5.883753347e-05 | O53: 371 | P53: 0.0001752107799 | Q53: 0.001555 | R53: 0.002277 | S53: 0.005764 | T53: 0.002357 | U53: 0.002084 | V53: 0.000773 | W53: 0.002138 | X53: 0.006888 | Y53: 0.00226 | Z53: 0.001448 | AW53: 400 | AX53: 0.000396 | AY53: 0.0045 | AZ53: 0.0028 | BA53: 0.00929 | BB53: 0.00245219 | BC53: 0.00258977 | BE53: 0.01431 | BF53: 0.0004 | BG53: 0.06785 | BI53: 0.0191097 | BJ53: 0.0020044 | BK53: 0.0860109 | BM53: 0.01431 | BN53: 0.0004 | BO53: 0.06785 | BT53: 0.02214302 | BU53: 0.002452194 | BV53: 0.109609 | BW53: 0.0089 | BX53: -0.0025 | BY53: 0.04
B54: 401 | C54: 0.003103527635 | D54: 6.297848552e-05 | G54: [OUTPUT LOCATION] | O54: 372 | P54: 0.000230603232 | Q54: 0.001465 | R54: 0.002488 | S54: 0.005627 | T54: 0.002413 | U54: 0.001688 | V54: 0.001095 | W54: 0.002048 | X54: 0.006972 | Y54: 0.002307 | Z54: 0.001421 | AW54: 401 | AX54: 0.0004448 | AY54: 0.00498 | AZ54: 0.00317124 | BA54: 0.011136 | BB54: 0.00285222 | BC54: 0.0030368 | BE54: 0.016086 | BF54: 0.000448 | BG54: 0.07632 | BI54: 0.02396776 | BJ54: 0.00250532 | BK54: 0.10823272 | BM54: 0.016086 | BN54: 0.000448 | BO54: 0.07632 | BT54: 0.02601285 | BU54: 0.002852216 | BV54: 0.1290077 | BW54: 0.01088 | BX54: -0.00318 | BY54: 0.05012
B55: 402 | C55: 0.003137545534 | D55: 6.366879541e-05 | G55: Historical data from the optimization | I55: 39 | J55: 31 | O55: 373 | P55: 0.000285995684 | Q55: 0.001375 | R55: 0.002699 | S55: 0.00549 | T55: 0.002301 | U55: 0.001292 | V55: 0.001418 | W55: 0.001957 | X55: 0.007056 | Y55: 0.002354 | Z55: 0.001393 | AW55: 402 | AX55: 0.0004936 | AY55: 0.00546 | AZ55: 0.00354248 | BA55: 0.012982 | BB55: 0.00329912 | BC55: 0.00354193 | BE55: 0.017862 | BF55: 0.000496 | BG55: 0.08479 | BI55: 0.02882582 | BJ55: 0.00300624 | BK55: 0.13045454 | BM55: 0.017862 | BN55: 0.000496 | BO55: 0.08479 | BT55: 0.03043036 | BU55: 0.003299115 | BV55: 0.1512047 | BW55: 0.01286 | BX55: -0.00386 | BY55: 0.06024
B56: 403 | C56: 0.003171474028 | D56: 6.435729102e-05 | G56: Best Rj and Best CRI Rj | I56: 8 | J56: 24 | O56: 374 | P56: 0.0003413881361 | Q56: 0.001546 | R56: 0.00244 | S56: 0.00557 | T56: 0.002662 | U56: 0.001334 | V56: 0.001188 | W56: 0.002153 | X56: 0.007156 | Y56: 0.002171 | Z56: 0.001457 | AW56: 403 | AX56: 0.0005424 | AY56: 0.00594 | AZ56: 0.00391372 | BA56: 0.014828 | BB56: 0.00379747 | BC56: 0.00411142 | BE56: 0.019638 | BF56: 0.000544 | BG56: 0.09326 | BI56: 0.03368388 | BJ56: 0.00350716 | BK56: 0.15267636 | BM56: 0.019638 | BN56: 0.000544 | BO56: 0.09326 | BT56: 0.03544325 | BU56: 0.003797466 | BV56: 0.1764441 | BW56: 0.01484 | BX56: -0.00454 | BY56: 0.07036
B57: 404 | C57: 0.00397796308 | D57: 8.072300934e-05 | O57: 375 | P57: 0.0003967805882 | Q57: 0.001717 | R57: 0.002181 | S57: 0.005651 | T57: 0.003024 | U57: 0.001376 | V57: 0.000958 | W57: 0.00235 | X57: 0.007257 | Y57: 0.001989 | Z57: 0.001521 | AW57: 404 | AX57: 0.0005912 | AY57: 0.00642 | AZ57: 0.00428496 | BA57: 0.016674 | BB57: 0.00435277 | BC57: 0.00475262 | BE57: 0.021414 | BF57: 0.000592 | BG57: 0.10173 | BI57: 0.03854194 | BJ57: 0.00400808 | BK57: 0.17489818 | BM57: 0.021414 | BN57: 0.000592 | BO57: 0.10173 | BT57: 0.0410964 | BU57: 0.004352768 | BV57: 0.2049517 | BW57: 0.01682 | BX57: -0.00522 | BY57: 0.08048
B58: 405 | C58: 0.004624146539 | D58: 9.383571862e-05 | O58: 376 | P58: 0.0004521730402 | Q58: 0.001907 | R58: 0.001853 | S58: 0.005871 | T58: 0.003064 | U58: 0.001229 | V58: 0.001181 | W58: 0.002708 | X58: 0.007742 | Y58: 0.002224 | Z58: 0.001561 | AW58: 405 | AX58: 0.00064 | AY58: 0.0069 | AZ58: 0.0046562 | BA58: 0.01852 | BB58: 0.00497172 | BC58: 0.00547421 | BE58: 0.02319 | BF58: 0.00064 | BG58: 0.1102 | BI58: 0.0434 | BJ58: 0.004509 | BK58: 0.19712 | BM58: 0.02319 | BN58: 0.00064 | BO58: 0.1102 | BT58: 0.04742986 | BU58: 0.004971717 | BV58: 0.2369246 | BW58: 0.0188 | BX58: -0.0059 | BY58: 0.0906
B59: 406 | C59: 0.004189270794 | D59: 8.501098141e-05 | O59: 377 | P59: 0.0005075654923 | Q59: 0.002096 | R59: 0.001525 | S59: 0.006091 | T59: 0.002983 | U59: 0.001083 | V59: 0.001404 | W59: 0.003067 | X59: 0.008227 | Y59: 0.002459 | Z59: 0.001601 | AW59: 406 | AX59: 0.000754 | AY59: 0.00738 | AZ59: 0.00520496 | BA59: 0.021784 | BB59: 0.00566101 | BC59: 0.00628503 | BE59: 0.027254 | BF59: 0.000754 | BG59: 0.12964 | BI59: 0.0516672 | BJ59: 0.0053584 | BK59: 0.2355692 | BM59: 0.027254 | BN59: 0.000754 | BO59: 0.12964 | BT59: 0.05447394 | BU59: 0.005661014 | BV59: 0.2725123 | BW59: 0.02204 | BX59: -0.0071 | BY59: 0.10852
B60: 407 | C60: 0.004894737039 | D60: 9.932668952e-05 | O60: 378 | P60: 0.0005629579444 | Q60: 0.001935 | R60: 0.001754 | S60: 0.005654 | T60: 0.002736 | U60: 0.001056 | V60: 0.001316 | W60: 0.002258 | X60: 0.007605 | Y60: 0.002054 | Z60: 0.001819 | AW60: 407 | AX60: 0.000868 | AY60: 0.00786 | AZ60: 0.00575372 | BA60: 0.025048 | BB60: 0.00642161 | BC60: 0.00718807 | BE60: 0.031318 | BF60: 0.000868 | BG60: 0.14908 | BI60: 0.0599344 | BJ60: 0.0062078 | BK60: 0.2740184 | BM60: 0.031318 | BN60: 0.000868 | BO60: 0.14908 | BT60: 0.06223612 | BU60: 0.006421615 | BV60: 0.311782 | BW60: 0.02528 | BX60: -0.0083 | BY60: 0.12644
B61: 408 | C61: 0.005600238821 | D61: 0.0001136431187 | O61: 379 | P61: 0.0006183503965 | Q61: 0.002157 | R61: 0.002002 | S61: 0.005786 | T61: 0.002709 | U61: 0.001386 | V61: 0.001332 | W61: 0.002372 | X61: 0.007556 | Y61: 0.00217 | Z61: 0.001574 | AW61: 408 | AX61: 0.000982 | AY61: 0.00834 | AZ61: 0.00630248 | BA61: 0.028312 | BB61: 0.00725031 | BC61: 0.00818179 | BE61: 0.035382 | BF61: 0.000982 | BG61: 0.16852 | BI61: 0.0682016 | BJ61: 0.0070572 | BK61: 0.3124676 | BM61: 0.035382 | BN61: 0.000982 | BO61: 0.16852 | BT61: 0.07070048 | BU61: 0.007250312 | BV61: 0.3547064 | BW61: 0.02852 | BX61: -0.0095 | BY61: 0.14436
B62: 409 | C62: 0.006508685054 | D62: 0.0001320778081 | O62: 380 | P62: 0.0006737428485 | Q62: 0.00238 | R62: 0.002251 | S62: 0.005918 | T62: 0.002683 | U62: 0.001717 | V62: 0.001348 | W62: 0.002487 | X62: 0.007507 | Y62: 0.002286 | Z62: 0.001329 | AW62: 409 | AX62: 0.001096 | AY62: 0.00882 | AZ62: 0.00685124 | BA62: 0.031576 | BB62: 0.00814017 | BC62: 0.00926042 | BE62: 0.039446 | BF62: 0.001096 | BG62: 0.18796 | BI62: 0.0764688 | BJ62: 0.0079066 | BK62: 0.3509168 | BM62: 0.039446 | BN62: 0.001096 | BO62: 0.18796 | BT62: 0.07982513 | BU62: 0.008140173 | BV62: 0.4011473 | BW62: 0.03176 | BX62: -0.0107 | BY62: 0.16228
B63: 410 | C63: 0.007406087444 | D63: 0.0001502883898 | O63: 381 | P63: 0.0007291353006 | Q63: 0.002236 | R63: 0.002284 | S63: 0.005758 | T63: 0.002452 | U63: 0.001904 | V63: 0.001051 | W63: 0.002388 | X63: 0.007711 | Y63: 0.002341 | Z63: 0.001449 | AW63: 410 | AX63: 0.00121 | AY63: 0.0093 | AZ63: 0.0074 | BA63: 0.03484 | BB63: 0.00907986 | BC63: 0.010413 | BE63: 0.04351 | BF63: 0.00121 | BG63: 0.2074 | BI63: 0.084736 | BJ63: 0.008756 | BK63: 0.389366 | BM63: 0.04351 | BN63: 0.00121 | BO63: 0.2074 | BT63: 0.08953803 | BU63: 0.00907986 | BV63: 0.4508369 | BW63: 0.035 | BX63: -0.0119 | BY63: 0.1802
B64: 411 | C64: 0.008912096727 | D64: 0.0001808491564 | O64: 382 | P64: 0.0007845277527 | Q64: 0.002092 | R64: 0.002317 | S64: 0.005599 | T64: 0.002222 | U64: 0.00153 | V64: 0.000754 | W64: 0.002288 | X64: 0.007914 | Y64: 0.002231 | Z64: 0.001568 | AW64: 411 | AX64: 0.001404 | AY64: 0.01012 | AZ64: 0.0082758 | BA64: 0.039952 | BB64: 0.0100561 | BC64: 0.0116264 | BE64: 0.050334 | BF64: 0.001404 | BG64: 0.24018 | BI64: 0.0959164 | BJ64: 0.009896 | BK64: 0.4428448 | BM64: 0.050334 | BN64: 0.001404 | BO64: 0.24018 | BT64: 0.09974848 | BU64: 0.01005608 | BV64: 0.5034164 | BW64: 0.03862 | BX64: -0.01354 | BY64: 0.20592
B65: 412 | C65: 0.0104181407 | D65: 0.000211410627 | O65: 383 | P65: 0.0008399202048 | Q65: 0.001684 | R65: 0.00222 | S65: 0.005482 | T65: 0.002491 | U65: 0.001543 | V65: 0.001041 | W65: 0.00223 | X65: 0.007306 | Y65: 0.002129 | Z65: 0.001469 | AW65: 412 | AX65: 0.001598 | AY65: 0.01094 | AZ65: 0.0091516 | BA65: 0.045064 | BB65: 0.0110646 | BC65: 0.0128988 | BE65: 0.057158 | BF65: 0.001598 | BG65: 0.27296 | BI65: 0.1070968 | BJ65: 0.011036 | BK65: 0.4963236 | BM65: 0.057158 | BN65: 0.001598 | BO65: 0.27296 | BT65: 0.1104019 | BU65: 0.01106456 | BV65: 0.5586361 | BW65: 0.04224 | BX65: -0.01518 | BY65: 0.23164
B66: 413 | C66: 0.01251917657 | D66: 0.0002540459997 | O66: 384 | P66: 0.0008953126568 | Q66: 0.001276 | R66: 0.002122 | S66: 0.005364 | T66: 0.002759 | U66: 0.001557 | V66: 0.001329 | W66: 0.002171 | X66: 0.006697 | Y66: 0.002028 | Z66: 0.00137 | AW66: 413 | AX66: 0.001792 | AY66: 0.01176 | AZ66: 0.0100274 | BA66: 0.050176 | BB66: 0.0121052 | BC66: 0.0142344 | BE66: 0.063982 | BF66: 0.001792 | BG66: 0.30574 | BI66: 0.1182772 | BJ66: 0.012176 | BK66: 0.5498024 | BM66: 0.063982 | BN66: 0.001792 | BO66: 0.30574 | BT66: 0.1214566 | BU66: 0.01210522 | BV66: 0.6162734 | BW66: 0.04586 | BX66: -0.01682 | BY66: 0.25736
B67: 414 | C67: 0.01462028491 | D67: 0.0002966828428 | O67: 385 | P67: 0.0009507051089 | Q67: 0.001389 | R67: 0.001933 | S67: 0.005396 | T67: 0.002819 | U67: 0.00153 | V67: 0.001563 | W67: 0.002101 | X67: 0.006946 | Y67: 0.001826 | Z67: 0.0014 | AW67: 414 | AX67: 0.001986 | AY67: 0.01258 | AZ67: 0.0109032 | BA67: 0.055288 | BB67: 0.0131801 | BC67: 0.0156408 | BE67: 0.070806 | BF67: 0.001986 | BG67: 0.33852 | BI67: 0.1294576 | BJ67: 0.013316 | BK67: 0.6032812 | BM67: 0.070806 | BN67: 0.001986 | BO67: 0.33852 | BT67: 0.1328741 | BU67: 0.01318014 | BV67: 0.6760982 | BW67: 0.04948 | BX67: -0.01846 | BY67: 0.28308
B68: 415 | C68: 0.0180071097 | D68: 0.0003654101496 | O68: 386 | P68: 0.001006097561 | Q68: 0.001501 | R68: 0.001745 | S68: 0.005427 | T68: 0.0027 | U68: 0.001503 | V68: 0.001094 | W68: 0.00203 | X68: 0.007194 | Y68: 0.001625 | Z68: 0.00143 | AW68: 415 | AX68: 0.00218 | AY68: 0.0134 | AZ68: 0.011779 | BA68: 0.0604 | BB68: 0.0142938 | BC68: 0.0171297 | BE68: 0.07763 | BF68: 0.00218 | BG68: 0.3713 | BI68: 0.140638 | BJ68: 0.014456 | BK68: 0.65676 | BM68: 0.07763 | BN68: 0.00218 | BO68: 0.3713 | BT68: 0.1446214 | BU68: 0.01429377 | BV68: 0.7378822 | BW68: 0.0531 | BX68: -0.0201 | BY68: 0.3088
B69: 416 | C69: 0.02139420676 | D69: 0.0004341429816 | O69: 387 | P69: 0.001061490013 | Q69: 0.001547 | R69: 0.001803 | S69: 0.005268 | T69: 0.002704 | U69: 0.001305 | V69: 0.001168 | W69: 0.00219 | X69: 0.007069 | Y69: 0.00165 | Z69: 0.001453 | AW69: 416 | AX69: 0.002544 | AY69: 0.01422 | AZ69: 0.0129232 | BA69: 0.06764 | BB69: 0.01545 | BC69: 0.0187127 | BE69: 0.08898 | BF69: 0.002544 | BG69: 0.42616 | BI69: 0.1534088 | BJ69: 0.015843 | BK69: 0.7199164 | BM69: 0.08898 | BN69: 0.002544 | BO69: 0.42616 | BT69: 0.1566468 | BU69: 0.01545004 | BV69: 0.8013019 | BW69: 0.05652 | BX69: -0.02186 | BY69: 0.34044
B70: 417 | C70: 0.02909407031 | D70: 0.0005903928373 | O70: 388 | P70: 0.001116882465 | Q70: 0.001593 | R70: 0.001862 | S70: 0.005108 | T70: 0.002708 | U70: 0.001108 | V70: 0.001241 | W70: 0.00235 | X70: 0.006944 | Y70: 0.001675 | Z70: 0.001406 | AW70: 417 | AX70: 0.002908 | AY70: 0.01504 | AZ70: 0.0140674 | BA70: 0.07488 | BB70: 0.0166409 | BC70: 0.0203839 | BE70: 0.10033 | BF70: 0.002908 | BG70: 0.48102 | BI70: 0.1661796 | BJ70: 0.01723 | BK70: 0.7830728 | BM70: 0.10033 | BN70: 0.002908 | BO70: 0.48102 | BT70: 0.1687901 | BU70: 0.01664093 | BV70: 0.8655573 | BW70: 0.05994 | BX70: -0.02362 | BY70: 0.37208
B71: 418 | C71: 0.03457352319 | D71: 0.0007015849015 | O71: 389 | P71: 0.001172274917 | Q71: 0.001666 | R71: 0.001453 | S71: 0.005217 | T71: 0.002539 | U71: 0.001132 | V71: 0.001346 | W71: 0.002475 | X71: 0.007263 | Y71: 0.001686 | Z71: 0.001561 | AW71: 418 | AX71: 0.003272 | AY71: 0.01586 | AZ71: 0.0152116 | BA71: 0.08212 | BB71: 0.017853 | BC71: 0.0221294 | BE71: 0.11168 | BF71: 0.003272 | BG71: 0.53588 | BI71: 0.1789504 | BJ71: 0.018617 | BK71: 0.8462292 | BM71: 0.11168 | BN71: 0.003272 | BO71: 0.53588 | BT71: 0.1808328 | BU71: 0.01785302 | BV71: 0.9295791 | BW71: 0.06336 | BX71: -0.02538 | BY71: 0.40372
B72: 419 | C72: 0.04005272165 | D72: 0.0008127718028 | O72: 390 | P72: 0.001227667369 | Q72: 0.001739 | R72: 0.001044 | S72: 0.005327 | T72: 0.00237 | U72: 0.001155 | V72: 0.001451 | W72: 0.002225 | X72: 0.007581 | Y72: 0.001696 | Z72: 0.001716 | AW72: 419 | AX72: 0.003636 | AY72: 0.01668 | AZ72: 0.0163558 | BA72: 0.08936 | BB72: 0.0190702 | BC72: 0.0239299 | BE72: 0.12303 | BF72: 0.003636 | BG72: 0.59074 | BI72: 0.1917212 | BJ72: 0.020004 | BK72: 0.9093856 | BM72: 0.12303 | BN72: 0.003636 | BO72: 0.59074 | BT72: 0.1925216 | BU72: 0.01907018 | BV72: 0.9921293 | BW72: 0.06678 | BX72: -0.02714 | BY72: 0.43536
B73: 420 | C73: 0.04622323876 | D73: 0.0009379873215 | O73: 391 | P73: 0.001283059821 | Q73: 0.001906 | R73: 0.001725 | S73: 0.005772 | T73: 0.002316 | U73: 0.00118 | V73: 0.001148 | W73: 0.002135 | X73: 0.00697 | Y73: 0.002045 | Z73: 0.001355 | AW73: 420 | AX73: 0.004 | AY73: 0.0175 | AZ73: 0.0175 | BA73: 0.0966 | BB73: 0.0202737 | BC73: 0.0257613 | BE73: 0.13438 | BF73: 0.004 | BG73: 0.6456 | BI73: 0.204492 | BJ73: 0.021391 | BK73: 0.972542 | BM73: 0.13438 | BN73: 0.004 | BO73: 0.6456 | BT73: 0.2035729 | BU73: 0.02027369 | BV73: 1.051821 | BW73: 0.0702 | BX73: -0.0289 | BY73: 0.467
B74: 421 | C74: 0.05239353839 | D74: 0.001063198427 | O74: 392 | P74: 0.001338452273 | Q74: 0.00173 | R74: 0.001734 | S74: 0.005549 | T74: 0.00205 | U74: 0.001047 | V74: 0.001098 | W74: 0.001968 | X74: 0.006968 | Y74: 0.002237 | Z74: 0.001283 | AW74: 421 | AX74: 0.00466 | AY74: 0.01848 | AZ74: 0.0185356 | BA74: 0.106 | BB74: 0.0214481 | BC74: 0.0276016 | BE74: 0.150458 | BF74: 0.00466 | BG74: 0.72429 | BI74: 0.216541 | BJ74: 0.0230122 | BK74: 1.0345336 | BM74: 0.150458 | BN74: 0.00466 | BO74: 0.72429 | BT74: 0.2137531 | BU74: 0.02144805 | BV74: 1.107509 | BW74: 0.07142 | BX74: -0.02988 | BY74: 0.49664
B75: 422 | C75: 0.0616790123 | D75: 0.001251624358 | O75: 393 | P75: 0.001393844725 | Q75: 0.001554 | R75: 0.001744 | S75: 0.005325 | T75: 0.001783 | U75: 0.000913 | V75: 0.001048 | W75: 0.0018 | X75: 0.006966 | Y75: 0.001853 | Z75: 0.001211 | AW75: 422 | AX75: 0.00532 | AY75: 0.01946 | AZ75: 0.0195712 | BA75: 0.1154 | BB75: 0.0226004 | BC75: 0.0294551 | BE75: 0.166536 | BF75: 0.00532 | BG75: 0.80298 | BI75: 0.22859 | BJ75: 0.0246334 | BK75: 1.0965252 | BM75: 0.166536 | BN75: 0.00532 | BO75: 0.80298 | BT75: 0.2231348 | BU75: 0.02260041 | BV75: 1.159527 | BW75: 0.07264 | BX75: -0.03086 | BY75: 0.52628
B76: 423 | C76: 0.07087615085 | D76: 0.00143825774 | O76: 394 | P76: 0.001449237178 | Q76: 0.00178 | R76: 0.001803 | S76: 0.005231 | T76: 0.001896 | U76: 0.001145 | V76: 0.001156 | W76: 0.001996 | X76: 0.006634 | Y76: 0.001959 | Z76: 0.001323 | AW76: 423 | AX76: 0.00598 | AY76: 0.02044 | AZ76: 0.0206068 | BA76: 0.1248 | BB76: 0.0237479 | BC76: 0.0313388 | BE76: 0.182614 | BF76: 0.00598 | BG76: 0.88167 | BI76: 0.240639 | BJ76: 0.0262546 | BK76: 1.1585168 | BM76: 0.182614 | BN76: 0.00598 | BO76: 0.88167 | BT76: 0.2319245 | BU76: 0.02374789 | BV76: 1.208869 | BW76: 0.07386 | BX76: -0.03184 | BY76: 0.55592
B77: 424 | C77: 0.07988519271 | D77: 0.00162107416 | O77: 395 | P77: 0.00150462963 | Q77: 0.002005 | R77: 0.001863 | S77: 0.005136 | T77: 0.002008 | U77: 0.001377 | V77: 0.001264 | W77: 0.002193 | X77: 0.006302 | Y77: 0.002065 | Z77: 0.001435 | AW77: 424 | AX77: 0.00664 | AY77: 0.02142 | AZ77: 0.0216424 | BA77: 0.1342 | BB77: 0.0249125 | BC77: 0.0332758 | BE77: 0.198692 | BF77: 0.00664 | BG77: 0.96036 | BI77: 0.252688 | BJ77: 0.0278758 | BK77: 1.2205084 | BM77: 0.198692 | BN77: 0.00664 | BO77: 0.96036 | BT77: 0.2403892 | BU77: 0.02491247 | BV77: 1.256834 | BW77: 0.07508 | BX77: -0.03282 | BY77: 0.58556
B78: 425 | C78: =SUMPRODUCT($P$37:$AD$37,P107:AD107) -> 0.0888940353 | D78: =C78/$C$12 -> 0.001803886536 | O78: 396 | P78: 0.001560022082 | Q78: 0.001685 | R78: 0.001777 | S78: 0.005291 | T78: 0.002148 | U78: 0.001399 | V78: 0.00132 | W78: 0.001845 | X78: 0.006251 | Y78: 0.001823 | Z78: 0.001169 | AW78: 425 | AX78: 0.0073 | AY78: 0.0224 | AZ78: 0.022678 | BA78: 0.1436 | BB78: 0.0261211 | BC78: 0.0352955 | BE78: 0.21477 | BF78: 0.0073 | BG78: 1.03905 | BI78: 0.264737 | BJ78: 0.029497 | BK78: 1.2825 | BM78: 0.21477 | BN78: 0.0073 | BO78: 1.03905 | BT78: 0.2488523 | BU78: 0.02612106 | BV78: 1.305008 | BW78: 0.0763 | BX78: -0.0338 | BY78: 0.6152
B79: 426 | C79: 0.1016092777 | D79: 0.002061911211 | O79: 397 | P79: 0.001615414534 | Q79: 0.001365 | R79: 0.00169 | S79: 0.005446 | T79: 0.002288 | U79: 0.001356 | V79: 0.001376 | W79: 0.001497 | X79: 0.006199 | Y79: 0.00158 | Z79: 0.000903 | AW79: 426 | AX79: 0.00816 | AY79: 0.02338 | AZ79: 0.0236024 | BA79: 0.15484 | BB79: 0.0273992 | BC79: 0.0374271 | BE79: 0.228596 | BF79: 0.00816 | BG79: 1.10836 | BI79: 0.2747254 | BJ79: 0.0313328 | BK79: 1.336696 | BM79: 0.228596 | BN79: 0.00816 | BO79: 1.10836 | BT79: 0.2575896 | BU79: 0.02739923 | BV79: 1.354758 | BW79: 0.07594 | BX79: -0.03402 | BY79: 0.64492
B80: 427 | C80: 0.1143241381 | D80: 0.002319928134 | O80: 398 | P80: 0.001670806986 | Q80: 0.001459 | R80: 0.001733 | S80: 0.005456 | T80: 0.002461 | U80: 0.001339 | V80: 0.001334 | W80: 0.001917 | X80: 0.006445 | Y80: 0.001456 | Z80: 0.001083 | AW80: 427 | AX80: 0.00902 | AY80: 0.02436 | AZ80: 0.0245268 | BA80: 0.16608 | BB80: 0.0287499 | BC80: 0.0396714 | BE80: 0.242422 | BF80: 0.00902 | BG80: 1.17767 | BI80: 0.2847138 | BJ80: 0.0331686 | BK80: 1.390892 | BM80: 0.242422 | BN80: 0.00902 | BO80: 1.17767 | BT80: 0.2664991 | BU80: 0.02874993 | BV80: 1.405594 | BW80: 0.07558 | BX80: -0.03424 | BY80: 0.67464
B81: 428 | C81: 0.1270762486 | D81: 0.002578700957 | O81: 399 | P81: 0.001726199438 | Q81: 0.001553 | R81: 0.001777 | S81: 0.005437 | T81: 0.002633 | U81: 0.001323 | V81: 0.001292 | W81: 0.002337 | X81: 0.006692 | Y81: 0.001333 | Z81: 0.001263 | AW81: 428 | AX81: 0.00988 | AY81: 0.02534 | AZ81: 0.0254512 | BA81: 0.17732 | BB81: 0.0301691 | BC81: 0.04202 | BE81: 0.256248 | BF81: 0.00988 | BG81: 1.24698 | BI81: 0.2947022 | BJ81: 0.0350044 | BK81: 1.445088 | BM81: 0.256248 | BN81: 0.00988 | BO81: 1.24698 | BT81: 0.2753532 | BU81: 0.03016909 | BV81: 1.456414 | BW81: 0.07522 | BX81: -0.03446 | BY81: 0.70436
B82: 429 | C82: 0.1397767686 | D82: 0.002836426877 | O82: 400 | P82: 0.00178159189 | Q82: 0.001709 | R82: 0.001408 | S82: 0.006257 | T82: 0.002526 | U82: 0.001243 | V82: 0.001271 | W82: 0.002665 | X82: 0.007568 | Y82: 0.001797 | Z82: 0.00136 | AW82: 429 | AX82: 0.01074 | AY82: 0.02632 | AZ82: 0.0263756 | BA82: 0.18856 | BB82: 0.0316514 | BC82: 0.0444617 | BE82: 0.270074 | BF82: 0.01074 | BG82: 1.31629 | BI82: 0.3046906 | BJ82: 0.0368402 | BK82: 1.499284 | BM82: 0.270074 | BN82: 0.01074 | BO82: 1.31629 | BT82: 0.2838921 | BU82: 0.03165145 | BV82: 1.50596 | BW82: 0.07486 | BX82: -0.03468 | BY82: 0.73408
B83: 430 | C83: 0.1665448474 | D83: 0.00337961942 | O83: 401 | P83: 0.001836984342 | Q83: 0.001865 | R83: 0.001039 | S83: 0.007078 | T83: 0.002419 | U83: 0.001164 | V83: 0.00125 | W83: 0.00201 | X83: 0.008445 | Y83: 0.002261 | Z83: 0.001456 | AW83: 430 | AX83: 0.0116 | AY83: 0.0273 | AZ83: 0.0273 | BA83: 0.1998 | BB83: 0.0331904 | BC83: 0.0469823 | BE83: 0.2839 | BF83: 0.0116 | BG83: 1.3856 | BI83: 0.314679 | BJ83: 0.038676 | BK83: 1.55348 | BM83: 0.2839 | BN83: 0.0116 | BO83: 1.3856 | BT83: 0.2918246 | BU83: 0.03319038 | BV83: 1.552826 | BW83: 0.0745 | BX83: -0.0349 | BY83: 0.7638
B84: 431 | C84: 0.1800130413 | D84: 0.003652923398 | O84: 402 | P84: 0.001892376794 | Q84: 0.002125 | R84: 0.001239 | S84: 0.007587 | T84: 0.00236 | U84: 0.000962 | V84: 0.001117 | W84: 0.002141 | X84: 0.008804 | Y84: 0.00195 | Z84: 0.001485 | AW84: 431 | AX84: 0.012648 | AY84: 0.02836 | AZ84: 0.0283568 | BA84: 0.21234 | BB84: 0.0347791 | BC84: 0.0495674 | BE84: 0.29282 | BF84: 0.012648 | BG84: 1.433072 | BI84: 0.323287 | BJ84: 0.0408612 | BK84: 1.602484 | BM84: 0.29282 | BN84: 0.012648 | BO84: 1.433072 | BT84: 0.29892 | BU84: 0.03477912 | BV84: 1.595902 | BW84: 0.07082 | BX84: -0.03344 | BY84: 0.7866
B85: 432 | C85: 0.1934679571 | D85: 0.003925957932 | O85: 403 | P85: 0.001947769246 | Q85: 0.002385 | R85: 0.00144 | S85: 0.008096 | T85: 0.0023 | U85: 0.00076 | V85: 0.000985 | W85: 0.002271 | X85: 0.008087 | Y85: 0.00164 | Z85: 0.001514 | AW85: 432 | AX85: 0.013696 | AY85: 0.02942 | AZ85: 0.0294136 | BA85: 0.22488 | BB85: 0.0364149 | BC85: 0.0522122 | BE85: 0.30174 | BF85: 0.013696 | BG85: 1.480544 | BI85: 0.331895 | BJ85: 0.0430464 | BK85: 1.651488 | BM85: 0.30174 | BN85: 0.013696 | BO85: 1.480544 | BT85: 0.3052993 | BU85: 0.03641495 | BV85: 1.635768 | BW85: 0.06714 | BX85: -0.03198 | BY85: 0.8094
B86: 433 | C86: 0.2101075956 | D86: 0.004263618607 | O86: 404 | P86: 0.002003161698 | Q86: 0.002428 | R86: 0.002108 | S86: 0.009639 | T86: 0.001647 | U86: 0.001791 | V86: 0.00114 | W86: 0.002444 | X86: 0.007824 | Y86: 0.00243 | Z86: 0.000993 | AW86: 433 | AX86: 0.014744 | AY86: 0.03048 | AZ86: 0.0304704 | BA86: 0.23742 | BB86: 0.0380957 | BC86: 0.0549139 | BE86: 0.31066 | BF86: 0.014744 | BG86: 1.528016 | BI86: 0.340503 | BJ86: 0.0452316 | BK86: 1.700492 | BM86: 0.31066 | BN86: 0.014744 | BO86: 1.528016 | BT86: 0.3112031 | BU86: 0.03809569 | BV86: 1.673573 | BW86: 0.06346 | BX86: -0.03052 | BY86: 0.8322
B87: 434 | C87: 0.2267474744 | D87: 0.004601284156 | O87: 405 | P87: 0.003438346883 | Q87: 0.002322 | R87: 0.002179 | S87: 0.010746 | T87: 0.001743 | U87: 0.002646 | V87: 0.001318 | W87: 0.002213 | X87: 0.007539 | Y87: 0.002033 | Z87: 0.001146 | AW87: 434 | AX87: 0.015792 | AY87: 0.03154 | AZ87: 0.0315272 | BA87: 0.24996 | BB87: 0.0398184 | BC87: 0.0576692 | BE87: 0.31958 | BF87: 0.015792 | BG87: 1.575488 | BI87: 0.349111 | BJ87: 0.0474168 | BK87: 1.749496 | BM87: 0.31958 | BN87: 0.015792 | BO87: 1.575488 | BT87: 0.3169047 | BU87: 0.03981843 | BV87: 1.710604 | BW87: 0.05978 | BX87: -0.02906 | BY87: 0.855
B88: 435 | C88: 0.2405640124 | D88: 0.004881656926 | O88: 406 | P88: 0.006429539295 | Q88: 0.002216 | R88: 0.002037 | S88: 0.011853 | T88: 0.001838 | U88: 0.000936 | V88: 0.001497 | W88: 0.001982 | X88: 0.007254 | Y88: 0.001636 | Z88: 0.0013 | AW88: 435 | AX88: 0.01684 | AY88: 0.0326 | AZ88: 0.032584 | BA88: 0.2625 | BB88: 0.0415794 | BC88: 0.0604743 | BE88: 0.3285 | BF88: 0.01684 | BG88: 1.62296 | BI88: 0.357719 | BJ88: 0.049602 | BK88: 1.7985 | BM88: 0.3285 | BN88: 0.01684 | BO88: 1.62296 | BT88: 0.3227087 | BU88: 0.0415794 | BV88: 1.74828 | BW88: 0.0561 | BX88: -0.0276 | BY88: 0.8778
B89: 436 | C89: 0.2543812426 | D89: 0.005162043742 | O89: 407 | P89: 0.009420731707 | Q89: 0.002586 | R89: 0.001961 | S89: 0.014097 | T89: 0.002051 | U89: 0.001012 | V89: 0.001753 | W89: 0.001976 | X89: 0.007981 | Y89: 0.001797 | Z89: 0.001202 | AW89: 436 | AX89: 0.018072 | AY89: 0.03366 | AZ89: 0.0336472 | BA89: 0.27562 | BB89: 0.043371 | BC89: 0.063322 | BE89: 0.332456 | BF89: 0.018072 | BG89: 1.64778 | BI89: 0.362922 | BJ89: 0.052097 | BK89: 1.832256 | BM89: 0.332456 | BN89: 0.018072 | BO89: 1.64778 | BT89: 0.3288194 | BU89: 0.04337098 | BV89: 1.787504 | BW89: 0.05134 | BX89: -0.02546 | BY89: 0.89734
B90: 437 | C90: 0.2671692045 | D90: 0.005421544082 | O90: 408 | P90: 0.01241192412 | Q90: 0.002957 | R90: 0.001886 | S90: 0.01634 | T90: 0.002265 | U90: 0.001088 | V90: 0.00201 | W90: 0.001971 | X90: 0.008707 | Y90: 0.001959 | Z90: 0.001104 | AW90: 437 | AX90: 0.019304 | AY90: 0.03472 | AZ90: 0.0347104 | BA90: 0.28874 | BB90: 0.0451718 | BC90: 0.0661927 | BE90: 0.336412 | BF90: 0.019304 | BG90: 1.6726 | BI90: 0.368125 | BJ90: 0.054592 | BK90: 1.866012 | BM90: 0.336412 | BN90: 0.019304 | BO90: 1.6726 | BT90: 0.3349242 | BU90: 0.0451718 | BV90: 1.826609 | BW90: 0.04658 | BX90: -0.02332 | BY90: 0.91688
B91: 438 | C91: 0.2799095582 | D91: 0.005680078327 | O91: 409 | P91: 0.01540311653 | Q91: 0.003053 | R91: 0.001663 | S91: 0.019517 | T91: 0.002405 | U91: 0.001171 | V91: 0.001876 | W91: 0.001975 | X91: 0.009102 | Y91: 0.001735 | Z91: 0.001236 | AW91: 438 | AX91: 0.020536 | AY91: 0.03578 | AZ91: 0.0357736 | BA91: 0.30186 | BB91: 0.0469542 | BC91: 0.0690619 | BE91: 0.340368 | BF91: 0.020536 | BG91: 1.69742 | BI91: 0.373328 | BJ91: 0.057087 | BK91: 1.899768 | BM91: 0.340368 | BN91: 0.020536 | BO91: 1.69742 | BT91: 0.3405452 | BU91: 0.0469542 | BV91: 1.863108 | BW91: 0.04182 | BX91: -0.02118 | BY91: 0.93642
B92: 439 | C92: 0.2887413337 | D92: 0.005859297562 | O92: 410 | P92: 0.01839430894 | Q92: 0.002861 | R92: 0.00144 | S92: 0.022693 | T92: 0.002546 | U92: 0.001254 | V92: 0.001743 | W92: 0.00198 | X92: 0.009497 | Y92: 0.00151 | Z92: 0.001367 | AW92: 439 | AX92: 0.021768 | AY92: 0.03684 | AZ92: 0.0368368 | BA92: 0.31498 | BB92: 0.0486872 | BC92: 0.0719019 | BE92: 0.344324 | BF92: 0.021768 | BG92: 1.72224 | BI92: 0.378531 | BJ92: 0.059582 | BK92: 1.933524 | BM92: 0.344324 | BN92: 0.021768 | BO92: 1.72224 | BT92: 0.3451688 | BU92: 0.04868718 | BV92: 1.894332 | BW92: 0.03706 | BX92: -0.01904 | BY92: 0.95596
B93: 440 | C93: 0.297573309 | D93: 0.00603852085 | O93: 411 | P93: 0.02138550136 | Q93: 0.003783 | R93: 0.001648 | S93: 0.028488 | T93: 0.002574 | U93: 0.001008 | V93: 0.001969 | W93: 0.002082 | X93: 0.01121 | Y93: 0.001343 | Z93: 0.001485 | AW93: 440 | AX93: 0.023 | AY93: 0.0379 | AZ93: 0.0379 | BA93: 0.3281 | BB93: 0.0503366 | BC93: 0.0746829 | BE93: 0.34828 | BF93: 0.023 | BG93: 1.74706 | BI93: 0.383734 | BJ93: 0.062077 | BK93: 1.96728 | BM93: 0.34828 | BN93: 0.023 | BO93: 1.74706 | BT93: 0.3482554 | BU93: 0.05033657 | BV93: 1.917479 | BW93: 0.0323 | BX93: -0.0169 | BY93: 0.9755
B94: 441 | C94: 0.2999377019 | D94: 0.006086500408 | O94: 412 | P94: 0.02437669377 | Q94: 0.004704 | R94: 0.001856 | S94: 0.034283 | T94: 0.002602 | U94: 0.000762 | V94: 0.002196 | W94: 0.002185 | X94: 0.012922 | Y94: 0.001177 | Z94: 0.00125 | AW94: 441 | AX94: 0.02436 | AY94: 0.03879 | AZ94: 0.0387982 | BA94: 0.3411 | BB94: 0.0518761 | BC94: 0.0773845 | BE94: 0.348236 | BF94: 0.02436 | BG94: 1.754168 | BI94: 0.3843324 | BJ94: 0.0646024 | BK94: 1.979284 | BM94: 0.348236 | BN94: 0.02436 | BO94: 1.754168 | BT94: 0.3494153 | BU94: 0.05187611 | BV94: 1.930529 | BW94: 0.02496 | BX94: -0.01304 | BY94: 0.98078
B95: 442 | C95: 0.2948231702 | D95: 0.005982713525 | O95: 413 | P95: 0.02736788618 | Q95: 0.005834 | R95: 0.001303 | S95: 0.041876 | T95: 0.002179 | U95: 0.000905 | V95: 0.002568 | W95: 0.001823 | X95: 0.014564 | Y95: 0.001409 | Z95: 0.001172 | AW95: 442 | AX95: 0.02572 | AY95: 0.03968 | AZ95: 0.0396964 | BA95: 0.3541 | BB95: 0.0533222 | BC95: 0.080036 | BE95: 0.348192 | BF95: 0.02572 | BG95: 1.761276 | BI95: 0.3849308 | BJ95: 0.0671278 | BK95: 1.991288 | BM95: 0.348192 | BN95: 0.02572 | BO95: 1.761276 | BT95: 0.3489075 | BU95: 0.05332218 | BV95: 1.934819 | BW95: 0.01762 | BX95: -0.00918 | BY95: 0.98606
B96: 443 | C96: 0.2888403546 | D96: 0.005861306949 | O96: 414 | P96: 0.03035907859 | Q96: 0.006964 | R96: 0.00075 | S96: 0.049469 | T96: 0.001756 | U96: 0.001048 | V96: 0.00294 | W96: 0.001462 | X96: 0.016205 | Y96: 0.001642 | Z96: 0.001095 | AW96: 443 | AX96: 0.02708 | AY96: 0.04057 | AZ96: 0.0405946 | BA96: 0.3671 | BB96: 0.054706 | BC96: 0.0826852 | BE96: 0.348148 | BF96: 0.02708 | BG96: 1.768384 | BI96: 0.3855292 | BJ96: 0.0696532 | BK96: 2.003292 | BM96: 0.348148 | BN96: 0.02708 | BO96: 1.768384 | BT96: 0.3471746 | BU96: 0.05470603 | BV96: 1.93265 | BW96: 0.01028 | BX96: -0.00532 | BY96: 0.99134
B97: 444 | C97: 0.2832335366 | D97: 0.005747530322 | O97: 415 | P97: 0.033350271 | Q97: 0.00853 | R97: 0.001244 | S97: 0.06132 | T97: 0.001873 | U97: 0.001199 | V97: 0.003585 | W97: 0.001743 | X97: 0.019107 | Y97: 0.001748 | Z97: 0.001243 | AW97: 444 | AX97: 0.02844 | AY97: 0.04146 | AZ97: 0.0414928 | BA97: 0.3801 | BB97: 0.0560634 | BC97: 0.0853875 | BE97: 0.348104 | BF97: 0.02844 | BG97: 1.775492 | BI97: 0.3861276 | BJ97: 0.0721786 | BK97: 2.015296 | BM97: 0.348104 | BN97: 0.02844 | BO97: 1.775492 | BT97: 0.3446705 | BU97: 0.05606335 | BV97: 1.926395 | BW97: 0.00294 | BX97: -0.00146 | BY97: 0.99662
B98: 445 | C98: 0.2776262641 | D98: 0.005633744471 | O98: 416 | P98: 0.03634146341 | Q98: 0.010096 | R98: 0.001738 | S98: 0.073172 | T98: 0.00199 | U98: 0.00135 | V98: 0.00423 | W98: 0.002025 | X98: 0.022009 | Y98: 0.001854 | Z98: 0.001391 | AW98: 445 | AX98: 0.0298 | AY98: 0.04235 | AZ98: 0.042391 | BA98: 0.3931 | BB98: 0.0574339 | BC98: 0.0882054 | BE98: 0.34806 | BF98: 0.0298 | BG98: 1.7826 | BI98: 0.386726 | BJ98: 0.074704 | BK98: 2.0273 | BM98: 0.34806 | BN98: 0.0298 | BO98: 1.7826 | BT98: 0.3418483 | BU98: 0.05743393 | BV98: 1.918437 | BW98: -0.0044 | BX98: 0.0024 | BY98: 1.0019
B99: 446 | C99: 0.263991297 | D99: 0.005357056238 | O99: 417 | P99: 0.03933265583 | Q99: 0.014582 | R99: 0.001764 | S99: 0.100122 | T99: 0.001748 | U99: 0.001947 | V99: 0.005476 | W99: 0.001745 | X99: 0.027675 | Y99: 0.001646 | Z99: 0.000987 | AW99: 446 | AX99: 0.03144 | AY99: 0.04324 | AZ99: 0.0432728 | BA99: 0.40548 | BB99: 0.0588511 | BC99: 0.0911893 | BE99: 0.345688 | BF99: 0.03144 | BG99: 1.780502 | BI99: 0.3835212 | BJ99: 0.0776544 | BK99: 2.0208 | BM99: 0.345688 | BN99: 0.03144 | BO99: 1.780502 | BT99: 0.339024 | BU99: 0.05885107 | BV99: 1.91043 | BW99: -0.01308 | BX99: 0.00758 | BY99: 1.00144
B100: 447 | C100: 0.2503459627 | D100: 0.005080157629 | O100: 418 | P100: 0.04232384824 | Q100: 0.017974 | R100: 0.001862 | S100: 0.120316 | T100: 0.001738 | U100: 0.001606 | V100: 0.006525 | W100: 0.00171 | X100: 0.032476 | Y100: 0.001594 | Z100: 0.000861 | AW100: 447 | AX100: 0.03308 | AY100: 0.04413 | AZ100: 0.0441546 | BA100: 0.41786 | BB100: 0.0603081 | BC100: 0.0943104 | BE100: 0.343316 | BF100: 0.03308 | BG100: 1.778404 | BI100: 0.3803164 | BJ100: 0.0806048 | BK100: 2.0143 | BM100: 0.343316 | BN100: 0.03308 | BO100: 1.778404 | BT100: 0.3359926 | BU100: 0.06030809 | BV100: 1.901224 | BW100: -0.02176 | BX100: 0.01276 | BY100: 1.00098
B101: 448 | C101: 0.2355284329 | D101: 0.004779472185 | O101: 419 | P101: 0.04531504065 | Q101: 0.021366 | R101: 0.001961 | S101: 0.140509 | T101: 0.001728 | U101: 0.001265 | V101: 0.007574 | W101: 0.001674 | X101: 0.037277 | Y101: 0.001542 | Z101: 0.000735 | AW101: 448 | AX101: 0.03472 | AY101: 0.04502 | AZ101: 0.0450364 | BA101: 0.43024 | BB101: 0.0617864 | BC101: 0.0975135 | BE101: 0.340944 | BF101: 0.03472 | BG101: 1.776306 | BI101: 0.3771116 | BJ101: 0.0835552 | BK101: 2.0078 | BM101: 0.340944 | BN101: 0.03472 | BO101: 1.776306 | BT101: 0.3324276 | BU101: 0.06178644 | BV101: 1.889 | BW101: -0.03044 | BX101: 0.01794 | BY101: 1.00052
B102: 449 | C102: 0.2207107009 | D102: 0.004478782637 | O102: 420 | P102: 0.04830623306 | Q102: 0.026001 | R102: 0.001753 | S102: 0.16265 | T102: 0.001956 | U102: 0.001157 | V102: 0.009324 | W102: 0.001662 | X102: 0.043227 | Y102: 0.001198 | Z102: 0.000872 | AW102: 449 | AX102: 0.03636 | AY102: 0.04591 | AZ102: 0.0459182 | BA102: 0.44262 | BB102: 0.0632657 | BC102: 0.100735 | BE102: 0.338572 | BF102: 0.03636 | BG102: 1.774208 | BI102: 0.3739068 | BJ102: 0.0865056 | BK102: 2.0013 | BM102: 0.338572 | BN102: 0.03636 | BO102: 1.774208 | BT102: 0.3280157 | BU102: 0.0632657 | BV102: 1.871996 | BW102: -0.03912 | BX102: 0.02312 | BY102: 1.00006
B103: 450 | C103: 0.2053788576 | D103: 0.00416766046 | O103: 421 | P103: 0.05129742547 | Q103: 0.030635 | R103: 0.001545 | S103: 0.184791 | T103: 0.002183 | U103: 0.001049 | V103: 0.011073 | W103: 0.00165 | X103: 0.049176 | Y103: 0.000854 | Z103: 0.001009 | AW103: 450 | AX103: 0.038 | AY103: 0.0468 | AZ103: 0.0468 | BA103: 0.455 | BB103: 0.0647235 | BC103: 0.103903 | BE103: 0.3362 | BF103: 0.038 | BG103: 1.77211 | BI103: 0.370702 | BJ103: 0.089456 | BK103: 1.9948 | BM103: 0.3362 | BN103: 0.038 | BO103: 1.77211 | BT103: 0.3224637 | BU103: 0.06472352 | BV103: 1.848545 | BW103: -0.0478 | BX103: 0.0283 | BY103: 0.9996
B104: 451 | C104: 0.1900465945 | D104: 0.003856529765 | O104: 422 | P104: 0.05428861789 | Q104: 0.03814 | R104: 0.001525 | S104: 0.217751 | T104: 0.002347 | U104: 0.001012 | V104: 0.013753 | W104: 0.001861 | X104: 0.057884 | Y104: 0.00105 | Z104: 0.001026 | AW104: 451 | AX104: 0.04 | AY104: 0.04812 | AZ104: 0.0478644 | BA104: 0.4666 | BB104: 0.0661475 | BC104: 0.106964 | BE104: 0.3327 | BF104: 0.04 | BG104: 1.766508 | BI104: 0.365153 | BJ104: 0.092816 | BK104: 1.97598 | BM104: 0.3327 | BN104: 0.04 | BO104: 1.766508 | BT104: 0.3156225 | BU104: 0.06614749 | BV104: 1.817792 | BW104: -0.05764 | BX104: 0.03536 | BY104: 0.98246
B105: 452 | C105: 0.1738261991 | D105: 0.003527376602 | O105: 423 | P105: 0.06648656278 | Q105: 0.045646 | R105: 0.001506 | S105: 0.250712 | T105: 0.00202 | U105: 0.000974 | V105: 0.016433 | W105: 0.002073 | X105: 0.066591 | Y105: 0.001246 | Z105: 0.001044 | AW105: 452 | AX105: 0.042 | AY105: 0.04944 | AZ105: 0.0489288 | BA105: 0.4782 | BB105: 0.0675726 | BC105: 0.109968 | BE105: 0.3292 | BF105: 0.042 | BG105: 1.760906 | BI105: 0.359604 | BJ105: 0.096176 | BK105: 1.95716 | BM105: 0.3292 | BN105: 0.042 | BO105: 1.760906 | BT105: 0.3078201 | BU105: 0.06757256 | BV105: 1.781627 | BW105: -0.06748 | BX105: 0.04242 | BY105: 0.96532
B106: 453 | C106: 0.1576059655 | D106: 0.003198226724 | O106: 424 | P106: 0.08094399277 | Q106: 0.055208 | R106: 0.001449 | S106: 0.282919 | T106: 0.001828 | U106: 0.000794 | V106: 0.019392 | W106: 0.001918 | X106: 0.075242 | Y106: 0.001105 | Z106: 0.001059 | AW106: 453 | AX106: 0.044 | AY106: 0.05076 | AZ106: 0.0499932 | BA106: 0.4898 | BB106: 0.0690493 | BC106: 0.112999 | BE106: 0.3257 | BF106: 0.044 | BG106: 1.755304 | BI106: 0.354055 | BJ106: 0.099536 | BK106: 1.93834 | BM106: 0.3257 | BN106: 0.044 | BO106: 1.755304 | BT106: 0.2994771 | BU106: 0.06904928 | BV106: 1.742514 | BW106: -0.07732 | BX106: 0.04948 | BY106: 0.94818
B107: 454 | C107: 0.1318947079 | D107: 0.002676479777 | O107: 425 | P107: 0.09540142276 | Q107: 0.064771 | R107: 0.001393 | S107: 0.315127 | T107: 0.001635 | U107: 0.000613 | V107: 0.022351 | W107: 0.001762 | X107: 0.083893 | Y107: 0.000965 | Z107: 0.001075 | AW107: 454 | AX107: 0.046 | AY107: 0.05208 | AZ107: 0.0510576 | BA107: 0.5014 | BB107: 0.0706328 | BC107: 0.116154 | BE107: 0.3222 | BF107: 0.046 | BG107: 1.749702 | BI107: 0.348506 | BJ107: 0.102896 | BK107: 1.91952 | BM107: 0.3222 | BN107: 0.046 | BO107: 1.749702 | BT107: 0.2909776 | BU107: 0.0706328 | BV107: 1.702749 | BW107: -0.08716 | BX107: 0.05654 | BY107: 0.93104
B108: 455 | C108: 0.1218645835 | D108: 0.00247294299 | O108: 426 | P108: 0.1098588528 | Q108: 0.079555 | R108: 0.001459 | S108: 0.359609 | T108: 0.001648 | U108: 0.000659 | V108: 0.027282 | W108: 0.001731 | X108: 0.096932 | Y108: 0.001277 | Z108: 0.000947 | AW108: 455 | AX108: 0.048 | AY108: 0.0534 | AZ108: 0.052122 | BA108: 0.513 | BB108: 0.0723834 | BC108: 0.119539 | BE108: 0.3187 | BF108: 0.048 | BG108: 1.7441 | BI108: 0.342957 | BJ108: 0.106256 | BK108: 1.9007 | BM108: 0.3187 | BN108: 0.048 | BO108: 1.7441 | BT108: 0.2826646 | BU108: 0.07238339 | BV108: 1.664439 | BW108: -0.097 | BX108: 0.0636 | BY108: 0.9139
B109: 456 | C109: 0.1118349716 | D109: 0.002269416603 | O109: 427 | P109: 0.1246781843 | Q109: 0.094339 | R109: 0.001526 | S109: 0.404092 | T109: 0.00166 | U109: 0.000704 | V109: 0.032214 | W109: 0.001699 | X109: 0.109971 | Y109: 0.001588 | Z109: 0.000819 | AW109: 456 | AX109: 0.0504 | AY109: 0.05472 | AZ109: 0.0536976 | BA109: 0.5238 | BB109: 0.0743596 | BC109: 0.12325 | BE109: 0.31312 | BF109: 0.0504 | BG109: 1.72912 | BI109: 0.3348202 | BJ109: 0.110645 | BK109: 1.869634 | BM109: 0.31312 | BN109: 0.0504 | BO109: 1.72912 | BT109: 0.2747962 | BU109: 0.0743596 | BV109: 1.629207 | BW109: -0.10932 | BX109: 0.07252 | BY109: 0.89706
B110: 457 | C110: 0.1035575002 | D110: 0.002101445611 | O110: 428 | P110: 0.1396341463 | Q110: 0.112386 | R110: 0.001817 | S110: 0.447668 | T110: 0.001785 | U110: 0.001087 | V110: 0.038523 | W110: 0.001812 | X110: 0.124201 | Y110: 0.001826 | Z110: 0.000985 | AW110: 457 | AX110: 0.0528 | AY110: 0.05604 | AZ110: 0.0552732 | BA110: 0.5346 | BB110: 0.0765938 | BC110: 0.127305 | BE110: 0.30754 | BF110: 0.0528 | BG110: 1.71414 | BI110: 0.3266834 | BJ110: 0.115034 | BK110: 1.838568 | BM110: 0.30754 | BN110: 0.0528 | BO110: 1.71414 | BT110: 0.2674312 | BU110: 0.07659383 | BV110: 1.59736 | BW110: -0.12164 | BX110: 0.08144 | BY110: 0.88022
B111: 458 | C111: 0.09524451335 | D111: 0.001932753921 | O111: 429 | P111: 0.1545901084 | Q111: 0.130434 | R111: 0.002109 | S111: 0.491245 | T111: 0.001909 | U111: 0.00147 | V111: 0.044833 | W111: 0.001925 | X111: 0.138431 | Y111: 0.00135 | Z111: 0.001151 | AW111: 458 | AX111: 0.0552 | AY111: 0.05736 | AZ111: 0.0568488 | BA111: 0.5454 | BB111: 0.0791144 | BC111: 0.131696 | BE111: 0.30196 | BF111: 0.0552 | BG111: 1.69916 | BI111: 0.3185466 | BJ111: 0.119423 | BK111: 1.807502 | BM111: 0.30196 | BN111: 0.0552 | BO111: 1.69916 | BT111: 0.2605847 | BU111: 0.07911436 | BV111: 1.568896 | BW111: -0.13396 | BX111: 0.09036 | BY111: 0.86338
B112: 459 | C112: 0.08829601231 | D112: 0.001791751126 | O112: 430 | P112: 0.1695460705 | Q112: 0.176769 | R112: 0.00195 | S112: 0.583679 | T112: 0.002057 | U112: 0.001009 | V112: 0.061081 | W112: 0.001949 | X112: 0.169442 | Y112: 0.001628 | Z112: 0.000816 | AW112: 459 | AX112: 0.0576 | AY112: 0.05868 | AZ112: 0.0584244 | BA112: 0.5562 | BB112: 0.0819535 | BC112: 0.136418 | BE112: 0.29638 | BF112: 0.0576 | BG112: 1.68418 | BI112: 0.3104098 | BJ112: 0.123812 | BK112: 1.776436 | BM112: 0.29638 | BN112: 0.0576 | BO112: 1.68418 | BT112: 0.2542749 | BU112: 0.08195345 | BV112: 1.543823 | BW112: -0.14628 | BX112: 0.09928 | BY112: 0.84654
B113: 460 | C113: 0.08134699898 | D113: 0.001650737935 | O113: 431 | P113: 0.1864430894 | Q113: 0.205508 | R113: 0.001976 | S113: 0.628673 | T113: 0.002304 | U113: 0.001206 | V113: 0.07171 | W113: 0.002001 | X113: 0.186562 | Y113: 0.001687 | Z113: 0.000714 | AW113: 460 | AX113: 0.06 | AY113: 0.06 | AZ113: 0.06 | BA113: 0.567 | BB113: 0.0851482 | BC113: 0.141459 | BE113: 0.2908 | BF113: 0.06 | BG113: 1.6692 | BI113: 0.302273 | BJ113: 0.128201 | BK113: 1.74537 | BM113: 0.2908 | BN113: 0.06 | BO113: 1.6692 | BT113: 0.2485254 | BU113: 0.08514816 | BV113: 1.522157 | BW113: -0.1586 | BX113: 0.1082 | BY113: 0.8297
B114: 461 | C114: 0.07580711336 | D114: 0.001538319536 | O114: 432 | P114: 0.2043902439 | Q114: 0.234247 | R114: 0.002002 | S114: 0.673666 | T114: 0.00255 | U114: 0.001403 | V114: 0.08234 | W114: 0.002052 | X114: 0.203682 | Y114: 0.001569 | Z114: 0.000612 | AW114: 461 | AX114: 0.06278 | AY114: 0.0631 | AZ114: 0.0625884 | BA114: 0.5776 | BB114: 0.0887266 | BC114: 0.1468 | BE114: 0.28286 | BF114: 0.06278 | BG114: 1.64098 | BI114: 0.2926354 | BJ114: 0.133113 | BK114: 1.707276 | BM114: 0.28286 | BN114: 0.06278 | BO114: 1.64098 | BT114: 0.2433039 | BU114: 0.08872657 | BV114: 1.503611 | BW114: -0.17158 | BX114: 0.1189 | BY114: 0.8121
B115: 462 | C115: 0.07023207802 | D115: 0.00142518786 | O115: 433 | P115: 0.2223373984 | Q115: 0.274932 | R115: 0.001861 | S115: 0.729797 | T115: 0.002407 | U115: 0.001064 | V115: 0.097632 | W115: 0.002085 | X115: 0.225121 | Y115: 0.001435 | Z115: 0.000817 | AW115: 462 | AX115: 0.06556 | AY115: 0.0662 | AZ115: 0.0651768 | BA115: 0.5882 | BB115: 0.0926601 | BC115: 0.1524 | BE115: 0.27492 | BF115: 0.06556 | BG115: 1.61276 | BI115: 0.2829978 | BJ115: 0.138025 | BK115: 1.669182 | BM115: 0.27492 | BN115: 0.06556 | BO115: 1.61276 | BT115: 0.2383414 | BU115: 0.09266008 | BV115: 1.486673 | BW115: -0.18456 | BX115: 0.1296 | BY115: 0.7945
B116: 463 | C116: 0.06507871627 | D116: 0.001320613016 | O116: 434 | P116: 0.2393563686 | Q116: 0.315617 | R116: 0.00172 | S116: 0.785928 | T116: 0.002263 | U116: 0.000726 | V116: 0.112925 | W116: 0.002019 | X116: 0.246559 | Y116: 0.001301 | Z116: 0.001022 | AW116: 463 | AX116: 0.06834 | AY116: 0.0693 | AZ116: 0.0677652 | BA116: 0.5988 | BB116: 0.0968972 | BC116: 0.158202 | BE116: 0.26698 | BF116: 0.06834 | BG116: 1.58454 | BI116: 0.2733602 | BJ116: 0.142937 | BK116: 1.631088 | BM116: 0.26698 | BN116: 0.06834 | BO116: 1.58454 | BT116: 0.2333253 | BU116: 0.09689723 | BV116: 1.469595 | BW116: -0.19754 | BX116: 0.1403 | BY116: 0.7769
B117: 464 | C117: 0.05992588381 | D117: 0.001216048913 | O117: 435 | P117: 0.2563064589 | Q117: 0.361387 | R117: 0.001707 | S117: 0.830131 | T117: 0.00237 | U117: 0.000766 | V117: 0.130384 | W117: 0.002184 | X117: 0.266237 | Y117: 0.001528 | Z117: 0.001085 | AW117: 464 | AX117: 0.07112 | AY117: 0.0724 | AZ117: 0.0703536 | BA117: 0.6094 | BB117: 0.101375 | BC117: 0.16414 | BE117: 0.25904 | BF117: 0.07112 | BG117: 1.55632 | BI117: 0.2637226 | BJ117: 0.147849 | BK117: 1.592994 | BM117: 0.25904 | BN117: 0.07112 | BO117: 1.55632 | BT117: 0.2279619 | BU117: 0.1013746 | BV117: 1.450709 | BW117: -0.21052 | BX117: 0.151 | BY117: 0.7593
B118: 465 | C118: 0.05167692565 | D118: 0.001048656528 | O118: 436 | P118: 0.2732565492 | Q118: 0.407157 | R118: 0.001694 | S118: 0.874335 | T118: 0.002477 | U118: 0.000807 | V118: 0.147844 | W118: 0.002348 | X118: 0.285916 | Y118: 0.001755 | Z118: 0.001147 | AW118: 465 | AX118: 0.0739 | AY118: 0.0755 | AZ118: 0.072942 | BA118: 0.62 | BB118: 0.106014 | BC118: 0.170137 | BE118: 0.2511 | BF118: 0.0739 | BG118: 1.5281 | BI118: 0.254085 | BJ118: 0.152761 | BK118: 1.5549 | BM118: 0.2511 | BN118: 0.0739 | BO118: 1.5281 | BT118: 0.2219781 | BU118: 0.1060145 | BV118: 1.42844 | BW118: -0.2235 | BX118: 0.1617 | BY118: 0.7417
B119: 466 | C119: 0.04836069759 | D119: 0.0009813618087 | O119: 437 | P119: 0.2902066396 | Q119: 0.463596 | R119: 0.001728 | S119: 0.91355 | T119: 0.00237 | U119: 0.000763 | V119: 0.170698 | W119: 0.002114 | X119: 0.308333 | Y119: 0.001974 | Z119: 0.001026 | AW119: 466 | AX119: 0.077316 | AY119: 0.0786 | AZ119: 0.0765496 | BA119: 0.6312 | BB119: 0.110738 | BC119: 0.176123 | BE119: 0.239952 | BF119: 0.077316 | BG119: 1.480008 | BI119: 0.2423916 | BJ119: 0.1592468 | BK119: 1.507432 | BM119: 0.239952 | BN119: 0.077316 | BO119: 1.480008 | BT119: 0.2151735 | BU119: 0.1107377 | BV119: 1.401587 | BW119: -0.23576 | BX119: 0.17338 | BY119: 0.71604
B120: 467 | C120: 0.04504450421 | D120: 0.0009140677932 | O120: 438 | P120: 0.3150321816 | Q120: 0.520035 | R120: 0.001762 | S120: 0.952765 | T120: 0.002263 | U120: 0.000719 | V120: 0.193553 | W120: 0.00188 | X120: 0.330751 | Y120: 0.001536 | Z120: 0.000905 | AW120: 467 | AX120: 0.080732 | AY120: 0.0817 | AZ120: 0.0801572 | BA120: 0.6424 | BB120: 0.115511 | BC120: 0.18209 | BE120: 0.228804 | BF120: 0.080732 | BG120: 1.431916 | BI120: 0.2306982 | BJ120: 0.1657326 | BK120: 1.459964 | BM120: 0.228804 | BN120: 0.080732 | BO120: 1.431916 | BT120: 0.2075619 | BU120: 0.1155111 | BV120: 1.370094 | BW120: -0.24802 | BX120: 0.18506 | BY120: 0.69038
B121: 468 | C121: 0.04261785616 | D121: 0.0008648249195 | O121: 439 | P121: 0.3412051152 | Q121: 0.582412 | R121: 0.001919 | S121: 0.976382 | T121: 0.00211 | U121: 0.000865 | V121: 0.221247 | W121: 0.002253 | X121: 0.355203 | Y121: 0.001655 | Z121: 0.000963 | AW121: 468 | AX121: 0.084148 | AY121: 0.0848 | AZ121: 0.0837648 | BA121: 0.6536 | BB121: 0.120312 | BC121: 0.188046 | BE121: 0.217656 | BF121: 0.084148 | BG121: 1.383824 | BI121: 0.2190048 | BJ121: 0.1722184 | BK121: 1.412496 | BM121: 0.217656 | BN121: 0.084148 | BO121: 1.383824 | BT121: 0.1992183 | BU121: 0.1203122 | BV121: 1.33422 | BW121: -0.26028 | BX121: 0.19674 | BY121: 0.66472
B122: 469 | C122: 0.04019139368 | D122: 0.0008155858118 | O122: 440 | P122: 0.3678861789 | Q122: 0.644789 | R122: 0.002076 | S122: 1 | T122: 0.001957 | U122: 0.001011 | V122: 0.248941 | W122: 0.002626 | X122: 0.379655 | Y122: 0.001773 | Z122: 0.00102 | AW122: 469 | AX122: 0.087564 | AY122: 0.0879 | AZ122: 0.0873724 | BA122: 0.6648 | BB122: 0.125116 | BC122: 0.194006 | BE122: 0.206508 | BF122: 0.087564 | BG122: 1.335732 | BI122: 0.2073114 | BJ122: 0.1787042 | BK122: 1.365028 | BM122: 0.206508 | BN122: 0.087564 | BO122: 1.335732 | BT122: 0.190229 | BU122: 0.1251161 | BV122: 1.294275 | BW122: -0.27254 | BX122: 0.20842 | BY122: 0.63906
B123: 470 | C123: 0.03821274078 | D123: 0.0007754339015 | O123: 441 | P123: 0.397798103 | Q123: 0.759427 | R123: 0.002373 | S123: 0.991463 | T123: 0.002375 | U123: 0.001681 | V123: 0.31044 | W123: 0.002279 | X123: 0.429717 | Y123: 0.001728 | Z123: 0.000727 | AW123: 470 | AX123: 0.09098 | AY123: 0.091 | AZ123: 0.09098 | BA123: 0.676 | BB123: 0.129896 | BC123: 0.199986 | BE123: 0.19536 | BF123: 0.09098 | BG123: 1.28764 | BI123: 0.195618 | BJ123: 0.18519 | BK123: 1.31756 | BM123: 0.19536 | BN123: 0.09098 | BO123: 1.28764 | BT123: 0.1806905 | BU123: 0.1298957 | BV123: 1.25061 | BW123: -0.2848 | BX123: 0.2201 | BY123: 0.6134
B124: 471 | C124: 0.03623418043 | D124: 0.0007352838693 | O124: 442 | P124: 0.4277100271 | Q124: 0.808478 | R124: 0.002427 | S124: 0.964877 | T124: 0.002429 | U124: 0.002347 | V124: 0.346243 | W124: 0.002328 | X124: 0.459402 | Y124: 0.001466 | Z124: 0.000788 | AW124: 471 | AX124: 0.095304 | AY124: 0.0958 | AZ124: 0.095352 | BA124: 0.6876 | BB124: 0.13463 | BC124: 0.206005 | BE124: 0.184708 | BF124: 0.095304 | BG124: 1.238492 | BI124: 0.1829642 | BJ124: 0.19214 | BK124: 1.260088 | BM124: 0.184708 | BN124: 0.095304 | BO124: 1.238492 | BT124: 0.1707154 | BU124: 0.1346299 | BV124: 1.203696 | BW124: -0.29476 | BX124: 0.232 | BY124: 0.58512
B125: 472 | C125: 0.03553790151 | D125: 0.0007211545954 | O125: 443 | P125: 0.4591844512 | Q125: 0.857529 | R125: 0.00248 | S125: 0.93829 | T125: 0.002322 | U125: 0.001015 | V125: 0.382046 | W125: 0.002377 | X125: 0.489086 | Y125: 0.001203 | Z125: 0.000849 | AW125: 472 | AX125: 0.099628 | AY125: 0.1006 | AZ125: 0.099724 | BA125: 0.6992 | BB125: 0.139331 | BC125: 0.212098 | BE125: 0.174056 | BF125: 0.099628 | BG125: 1.189344 | BI125: 0.1703104 | BJ125: 0.19909 | BK125: 1.202616 | BM125: 0.174056 | BN125: 0.099628 | BO125: 1.189344 | BT125: 0.1604471 | BU125: 0.1393309 | BV125: 1.154316 | BW125: -0.30472 | BX125: 0.2439 | BY125: 0.55684
B126: 473 | C126: 0.03468017673 | D126: 0.0007037491736 | O126: 444 | P126: 0.4928353659 | Q126: 0.908027 | R126: 0.002826 | S126: 0.910719 | T126: 0.0025 | U126: 0.000888 | V126: 0.431578 | W126: 0.002521 | X126: 0.535237 | Y126: 0.00131 | Z126: 0.000852 | AW126: 473 | AX126: 0.103952 | AY126: 0.1054 | AZ126: 0.104096 | BA126: 0.7108 | BB126: 0.144023 | BC126: 0.218304 | BE126: 0.163404 | BF126: 0.103952 | BG126: 1.140196 | BI126: 0.1576566 | BJ126: 0.20604 | BK126: 1.145144 | BM126: 0.163404 | BN126: 0.103952 | BO126: 1.140196 | BT126: 0.1500244 | BU126: 0.1440235 | BV126: 1.103284 | BW126: -0.31468 | BX126: 0.2558 | BY126: 0.52856
B127: 474 | C127: 0.03324516709 | D127: 0.0006746291707 | O127: 445 | P127: 0.5264862805 | Q127: 0.958526 | R127: 0.003172 | S127: 0.883148 | T127: 0.002678 | U127: 0.00076 | V127: 0.481109 | W127: 0.002666 | X127: 0.581387 | Y127: 0.001416 | Z127: 0.000855 | AW127: 474 | AX127: 0.108276 | AY127: 0.1102 | AZ127: 0.108468 | BA127: 0.7224 | BB127: 0.148737 | BC127: 0.224669 | BE127: 0.152752 | BF127: 0.108276 | BG127: 1.091048 | BI127: 0.1450028 | BJ127: 0.21299 | BK127: 1.087672 | BM127: 0.152752 | BN127: 0.108276 | BO127: 1.091048 | BT127: 0.1395705 | BU127: 0.1487372 | BV127: 1.051347 | BW127: -0.32464 | BX127: 0.2677 | BY127: 0.50028
B128: 475 | C128: 0.03318740111 | D128: 0.0006734569517 | O128: 446 | P128: 0.6509218931 | Q128: 0.977926 | R128: 0.003289 | S128: 0.830339 | T128: 0.002495 | U128: 0.000851 | V128: 0.531646 | W128: 0.002926 | X128: 0.628199 | Y128: 0.001463 | Z128: 0.000909 | AW128: 475 | AX128: 0.1126 | AY128: 0.115 | AZ128: 0.11284 | BA128: 0.734 | BB128: 0.153507 | BC128: 0.231243 | BE128: 0.1421 | BF128: 0.1126 | BG128: 1.0419 | BI128: 0.132349 | BJ128: 0.21994 | BK128: 1.0302 | BM128: 0.1421 | BN128: 0.1126 | BO128: 1.0419 | BT128: 0.129192 | BU128: 0.1535066 | BV128: 0.9991789 | BW128: -0.3346 | BX128: 0.2796 | BY128: 0.472
B129: 476 | C129: 0.03306651786 | D129: 0.0006710039224 | O129: 447 | P129: 0.6690827042 | Q129: 0.997326 | R129: 0.003407 | S129: 0.77753 | T129: 0.002313 | U129: 0.000941 | V129: 0.582182 | W129: 0.003187 | X129: 0.675011 | Y129: 0.00137 | Z129: 0.000963 | AW129: 476 | AX129: 0.117884 | AY129: 0.1198 | AZ129: 0.118076 | BA129: 0.7458 | BB129: 0.158364 | BC129: 0.238074 | BE129: 0.132808 | BF129: 0.117884 | BG129: 0.99611 | BI129: 0.1219806 | BJ129: 0.2266698 | BK129: 0.978585 | BM129: 0.132808 | BN129: 0.117884 | BO129: 0.99611 | BT129: 0.1189859 | BU129: 0.1583644 | BV129: 0.9473958 | BW129: -0.3432 | BX129: 0.29224 | BY129: 0.4475
B130: 477 | C130: 0.03334799413 | D130: 0.0006767157934 | O130: 448 | P130: 0.6872435153 | Q130: 0.998663 | R130: 0.003863 | S130: 0.723234 | T130: 0.002295 | U130: 0.000691 | V130: 0.638865 | W130: 0.003315 | X130: 0.728658 | Y130: 0.001584 | Z130: 0.000992 | AW130: 477 | AX130: 0.123168 | AY130: 0.1246 | AZ130: 0.123312 | BA130: 0.7576 | BB130: 0.16332 | BC130: 0.24518 | BE130: 0.123516 | BF130: 0.123168 | BG130: 0.95032 | BI130: 0.1116122 | BJ130: 0.2333996 | BK130: 0.92697 | BM130: 0.123516 | BN130: 0.123168 | BO130: 0.95032 | BT130: 0.1090615 | BU130: 0.1633199 | BV130: 0.8966222 | BW130: -0.3518 | BX130: 0.30488 | BY130: 0.423
B131: 478 | C131: 0.03362899849 | D131: 0.0006824180879 | O131: 449 | P131: 0.7054043264 | Q131: 1 | R131: 0.00432 | S131: 0.668939 | T131: 0.002277 | U131: 0.00044 | V131: 0.695548 | W131: 0.003443 | X131: 0.782305 | Y131: 0.001797 | Z131: 0.001021 | AW131: 478 | AX131: 0.128452 | AY131: 0.1294 | AZ131: 0.128548 | BA131: 0.7694 | BB131: 0.168376 | BC131: 0.252568 | BE131: 0.114224 | BF131: 0.128452 | BG131: 0.90453 | BI131: 0.1012438 | BJ131: 0.2401294 | BK131: 0.875355 | BM131: 0.114224 | BN131: 0.128452 | BO131: 0.90453 | BT131: 0.09951424 | BU131: 0.1683761 | BV131: 0.8473981 | BW131: -0.3604 | BX131: 0.31752 | BY131: 0.3985
B132: 479 | C132: 0.03458207657 | D132: 0.0007017584712 | O132: 450 | P132: 0.7235651374 | Q132: 0.979826 | R132: 0.004988 | S132: 0.615092 | T132: 0.002148 | U132: 0.000679 | V132: 0.752419 | W132: 0.003742 | X132: 0.83477 | Y132: 0.001829 | Z132: 0.000991 | AW132: 479 | AX132: 0.133736 | AY132: 0.1342 | AZ132: 0.133784 | BA132: 0.7812 | BB132: 0.173537 | BC132: 0.260248 | BE132: 0.104932 | BF132: 0.133736 | BG132: 0.85874 | BI132: 0.0908754 | BJ132: 0.2468592 | BK132: 0.82374 | BM132: 0.104932 | BN132: 0.133736 | BO132: 0.85874 | BT132: 0.0904185 | BU132: 0.1735365 | BV132: 0.8001576 | BW132: -0.369 | BX132: 0.33016 | BY132: 0.374
B133: 480 | C133: 0.03553449715 | D133: 0.0007210855122 | O133: 451 | P133: 0.7786782972 | Q133: 0.959651 | R133: 0.005657 | S133: 0.561246 | T133: 0.002018 | U133: 0.000917 | V133: 0.80929 | W133: 0.004042 | X133: 0.887236 | Y133: 0.00186 | Z133: 0.000961 | AW133: 480 | AX133: 0.13902 | AY133: 0.139 | AZ133: 0.13902 | BA133: 0.793 | BB133: 0.178805 | BC133: 0.268227 | BE133: 0.09564 | BF133: 0.13902 | BG133: 0.81295 | BI133: 0.080507 | BJ133: 0.253589 | BK133: 0.772125 | BM133: 0.09564 | BN133: 0.13902 | BO133: 0.81295 | BT133: 0.08182895 | BU133: 0.1788048 | BV133: 0.7552379 | BW133: -0.3776 | BX133: 0.3428 | BY133: 0.3495
B134: 481 | C134: 0.03667926456 | D134: 0.0007443157606 | O134: 452 | P134: 0.8360094851 | Q134: 0.91274 | R134: 0.006221 | S134: 0.508325 | T134: 0.002124 | U134: 0.000772 | V134: 0.850903 | W134: 0.004245 | X134: 0.920121 | Y134: 0.001756 | Z134: 0.00077 | AW134: 481 | AX134: 0.145076 | AY134: 0.1459 | AZ134: 0.14519 | BA134: 0.8046 | BB134: 0.184182 | BC134: 0.276501 | BE134: 0.088102 | BF134: 0.145076 | BG134: 0.7736 | BI134: 0.07262 | BJ134: 0.2624042 | BK134: 0.73182 | BM134: 0.088102 | BN134: 0.145076 | BO134: 0.7736 | BT134: 0.07376817 | BU134: 0.1841819 | BV134: 0.7127879 | BW134: -0.3848 | BX134: 0.35596 | BY134: 0.33088
B135: 482 | C135: 0.0378235396 | D135: 0.0007675360175 | O135: 453 | P135: 0.9377936992 | Q135: 0.865829 | R135: 0.006784 | S135: 0.455404 | T135: 0.002231 | U135: 0.000627 | V135: 0.892516 | W135: 0.003838 | X135: 0.953006 | Y135: 0.001652 | Z135: 0.00058 | AW135: 482 | AX135: 0.151132 | AY135: 0.1528 | AZ135: 0.15136 | BA135: 0.8162 | BB135: 0.189656 | BC135: 0.285004 | BE135: 0.080564 | BF135: 0.151132 | BG135: 0.73425 | BI135: 0.064733 | BJ135: 0.2712194 | BK135: 0.691515 | BM135: 0.080564 | BN135: 0.151132 | BO135: 0.73425 | BT135: 0.06619477 | BU135: 0.1896559 | BV135: 0.6725198 | BW135: -0.392 | BX135: 0.36912 | BY135: 0.31226
B136: 483 | C136: 0.03976611979 | D136: 0.0008069559207 | O136: 454 | P136: 0.9476646341 | Q136: 0.763696 | R136: 0.009617 | S136: 0.374234 | T136: 0.002693 | U136: 0.000994 | V136: 0.954252 | W136: 0.005029 | X136: 0.992989 | Y136: 0.001094 | Z136: 0.000921 | AW136: 483 | AX136: 0.157188 | AY136: 0.1597 | AZ136: 0.15753 | BA136: 0.8278 | BB136: 0.19521 | BC136: 0.293647 | BE136: 0.073026 | BF136: 0.157188 | BG136: 0.6949 | BI136: 0.056846 | BJ136: 0.2800346 | BK136: 0.65121 | BM136: 0.073026 | BN136: 0.157188 | BO136: 0.6949 | BT136: 0.0590638 | BU136: 0.1952101 | BV136: 0.6340976 | BW136: -0.3992 | BX136: 0.38228 | BY136: 0.29364
B137: 484 | C137: 0.04170893704 | D137: 0.0008463806341 | O137: 455 | P137: 0.9575355691 | Q137: 0.713061 | R137: 0.010859 | S137: 0.344143 | T137: 0.002972 | U137: 0.001003 | V137: 0.969795 | W137: 0.005124 | X137: 0.996494 | Y137: 0.001087 | Z137: 0.001193 | AW137: 484 | AX137: 0.163244 | AY137: 0.1666 | AZ137: 0.1637 | BA137: 0.8394 | BB137: 0.200826 | BC137: 0.302332 | BE137: 0.065488 | BF137: 0.163244 | BG137: 0.65555 | BI137: 0.048959 | BJ137: 0.2888498 | BK137: 0.610905 | BM137: 0.065488 | BN137: 0.163244 | BO137: 0.65555 | BT137: 0.05234242 | BU137: 0.2008259 | BV137: 0.5972433 | BW137: -0.4064 | BX137: 0.39544 | BY137: 0.27502
B138: 485 | C138: 0.04550548661 | D138: 0.0009234223011 | O138: 456 | P138: 0.9674065041 | Q138: 0.662426 | R138: 0.012101 | S138: 0.314053 | T138: 0.00325 | U138: 0.001013 | V138: 0.985338 | W138: 0.005218 | X138: 1 | Y138: 0.00108 | Z138: 0.00065 | AW138: 485 | AX138: 0.1693 | AY138: 0.1735 | AZ138: 0.16987 | BA138: 0.851 | BB138: 0.206483 | BC138: 0.310944 | BE138: 0.05795 | BF138: 0.1693 | BG138: 0.6162 | BI138: 0.041072 | BJ138: 0.297665 | BK138: 0.5706 | BM138: 0.05795 | BN138: 0.1693 | BO138: 0.6162 | BT138: 0.04600865 | BU138: 0.2064828 | BV138: 0.5617313 | BW138: -0.4136 | BX138: 0.4086 | BY138: 0.2564
B139: 486 | C139: 0.04873470833 | D139: 0.0009889514398 | O139: 457 | P139: 0.977277439 | Q139: 0.6144 | R139: 0.013781 | S139: 0.290541 | T139: 0.003316 | U139: 0.000749 | V139: 1 | W139: 0.005665 | X139: 0.981339 | Y139: 0.001182 | Z139: 0.00079 | AW139: 486 | AX139: 0.177044 | AY139: 0.1804 | AZ139: 0.1775 | BA139: 0.8616 | BB139: 0.212183 | BC139: 0.31941 | BE139: 0.052762 | BF139: 0.177044 | BG139: 0.585996 | BI139: 0.036092 | BJ139: 0.3059586 | BK139: 0.5395308 | BM139: 0.052762 | BN139: 0.177044 | BO139: 0.585996 | BT139: 0.04006154 | BU139: 0.2121826 | BV139: 0.5274921 | BW139: -0.41722 | BX139: 0.4212 | BY139: 0.2415
B140: 487 | C140: 0.05194553952 | D140: 0.001054107388 | O140: 458 | P140: 0.987148374 | Q140: 0.566373 | R140: 0.015461 | S140: 0.267029 | T140: 0.003185 | U140: 0.000485 | V140: 0.970676 | W140: 0.006113 | X140: 0.962679 | Y140: 0.001283 | Z140: 0.000931 | AW140: 487 | AX140: 0.184788 | AY140: 0.1873 | AZ140: 0.18513 | BA140: 0.8722 | BB140: 0.218028 | BC140: 0.327868 | BE140: 0.047574 | BF140: 0.184788 | BG140: 0.555792 | BI140: 0.031112 | BJ140: 0.3142522 | BK140: 0.5084616 | BM140: 0.047574 | BN140: 0.184788 | BO140: 0.555792 | BT140: 0.03454373 | BU140: 0.2180279 | BV140: 0.4948809 | BW140: -0.42084 | BX140: 0.4338 | BY140: 0.2266
B141: 488 | C141: 0.05519471452 | D141: 0.00112004143 | O141: 459 | P141: 0.9944891599 | Q141: 0.523488 | R141: 0.017653 | S141: 0.24694 | T141: 0.003371 | U141: 0.000613 | V141: 0.939376 | W141: 0.006788 | X141: 0.923349 | Y141: 0.001488 | Z141: 0.000945 | AW141: 488 | AX141: 0.192532 | AY141: 0.1942 | AZ141: 0.19276 | BA141: 0.8828 | BB141: 0.224159 | BC141: 0.336526 | BE141: 0.042386 | BF141: 0.192532 | BG141: 0.525588 | BI141: 0.026132 | BJ141: 0.3225458 | BK141: 0.4773924 | BM141: 0.042386 | BN141: 0.192532 | BO141: 0.525588 | BT141: 0.02949091 | BU141: 0.2241586 | BV141: 0.4642586 | BW141: -0.42446 | BX141: 0.4464 | BY141: 0.2117
B142: 489 | C142: =SUMPRODUCT($P$37:$AD$37,P171:AD171) -> 0.05844325211 | D142: =C142/$C$12 -> 0.001185962537 | O142: 460 | P142: 0.9813279133 | Q142: 0.480602 | R142: 0.019846 | S142: 0.226851 | T142: 0.003557 | U142: 0.00074 | V142: 0.908075 | W142: 0.007463 | X142: 0.884018 | Y142: 0.001692 | Z142: 0.000959 | AW142: 489 | AX142: 0.200276 | AY142: 0.2011 | AZ142: 0.20039 | BA142: 0.8934 | BB142: 0.23073 | BC142: 0.345618 | BE142: 0.037198 | BF142: 0.200276 | BG142: 0.495384 | BI142: 0.021152 | BJ142: 0.3308394 | BK142: 0.4463232 | BM142: 0.037198 | BN142: 0.200276 | BO142: 0.495384 | BT142: 0.0249214 | BU142: 0.2307302 | BV142: 0.4358841 | BW142: -0.42808 | BX142: 0.459 | BY142: 0.1968
B143: 490 | C143: 0.06257093569 | D143: 0.001269723757 | O143: 461 | P143: 0.9681666667 | Q143: 0.447237 | R143: 0.023234 | S143: 0.210458 | T143: 0.00377 | U143: 0.000915 | V143: 0.864864 | W143: 0.00813 | X143: 0.838309 | Y143: 0.001852 | Z143: 0.000924 | AW143: 490 | AX143: 0.20802 | AY143: 0.208 | AZ143: 0.20802 | BA143: 0.904 | BB143: 0.237916 | BC143: 0.355402 | BE143: 0.03201 | BF143: 0.20802 | BG143: 0.46518 | BI143: 0.016172 | BJ143: 0.339133 | BK143: 0.415254 | BM143: 0.03201 | BN143: 0.20802 | BO143: 0.46518 | BT143: 0.02083981 | BU143: 0.237916 | BV143: 0.4099313 | BW143: -0.4317 | BX143: 0.4716 | BY143: 0.1819
B144: 491 | C144: 0.06669892933 | D144: 0.001353491268 | O144: 462 | P144: 0.9550054201 | Q144: 0.413871 | R144: 0.026623 | S144: 0.194065 | T144: 0.003983 | U144: 0.001089 | V144: 0.821653 | W144: 0.008798 | X144: 0.792599 | Y144: 0.001533 | Z144: 0.000888 | AW144: 491 | AX144: 0.218136 | AY144: 0.2195 | AZ144: 0.218032 | BA144: 0.913 | BB144: 0.245871 | BC144: 0.366089 | BE144: 0.028548 | BF144: 0.218136 | BG144: 0.442804 | BI144: 0.013964 | BJ144: 0.3503822 | BK144: 0.3926744 | BM144: 0.028548 | BN144: 0.218136 | BO144: 0.442804 | BT144: 0.01723591 | BU144: 0.2458706 | BV144: 0.3864261 | BW144: -0.4344 | BX144: 0.4871 | BY144: 0.17166
B145: 492 | C145: 0.0715319807 | D145: 0.001451566199 | O145: 463 | P145: 0.9418441734 | Q145: 0.382307 | R145: 0.030229 | S145: 0.178846 | T145: 0.004269 | U145: 0.001214 | V145: 0.76295 | W145: 0.009481 | X145: 0.738385 | Y145: 0.001732 | Z145: 0.000949 | AW145: 492 | AX145: 0.228252 | AY145: 0.231 | AZ145: 0.228044 | BA145: 0.922 | BB145: 0.254602 | BC145: 0.377586 | BE145: 0.025086 | BF145: 0.228252 | BG145: 0.420428 | BI145: 0.011756 | BJ145: 0.3616314 | BK145: 0.3700948 | BM145: 0.025086 | BN145: 0.228252 | BO145: 0.420428 | BT145: 0.01407924 | BU145: 0.2546023 | BV145: 0.3650566 | BW145: -0.4371 | BX145: 0.5026 | BY145: 0.16142
B146: 493 | C146: 0.07636508994 | D146: 0.001549642303 | O146: 464 | P146: 0.9286829268 | Q146: 0.350742 | R146: 0.033834 | S146: 0.163628 | T146: 0.004554 | U146: 0.00134 | V146: 0.704246 | W146: 0.010163 | X146: 0.684171 | Y146: 0.001932 | Z146: 0.001009 | AW146: 493 | AX146: 0.238368 | AY146: 0.2425 | AZ146: 0.238056 | BA146: 0.931 | BB146: 0.264076 | BC146: 0.389696 | BE146: 0.021624 | BF146: 0.238368 | BG146: 0.398052 | BI146: 0.009548 | BJ146: 0.3728806 | BK146: 0.3475152 | BM146: 0.021624 | BN146: 0.238368 | BO146: 0.398052 | BT146: 0.01134516 | BU146: 0.264076 | BV146: 0.3454812 | BW146: -0.4398 | BX146: 0.5181 | BY146: 0.15118
B147: 494 | C147: 0.08599918931 | D147: 0.001745142733 | O147: 465 | P147: 0.9155216802 | Q147: 0.303836 | R147: 0.044123 | S147: 0.139896 | T147: 0.005273 | U147: 0.00059 | V147: 0.600696 | W147: 0.012355 | X147: 0.599838 | Y147: 0.001746 | Z147: 0.000761 | AW147: 494 | AX147: 0.248484 | AY147: 0.254 | AZ147: 0.248068 | BA147: 0.94 | BB147: 0.274249 | BC147: 0.402195 | BE147: 0.018162 | BF147: 0.248484 | BG147: 0.375676 | BI147: 0.00734 | BJ147: 0.3841298 | BK147: 0.3249356 | BM147: 0.018162 | BN147: 0.248484 | BO147: 0.375676 | BT147: 0.009019658 | BU147: 0.274249 | BV147: 0.3274095 | BW147: -0.4425 | BX147: 0.5336 | BY147: 0.14094
B148: 495 | C148: 0.09169933424 | D148: 0.001860813202 | O148: 466 | P148: 0.8930058717 | Q148: 0.281989 | R148: 0.050563 | S148: 0.129731 | T148: 0.006134 | U148: 0.000642 | V148: 0.551147 | W148: 0.013658 | X148: 0.562765 | Y148: 0.001541 | Z148: 0.000813 | AW148: 495 | AX148: 0.2586 | AY148: 0.2655 | AZ148: 0.25808 | BA148: 0.949 | BB148: 0.285068 | BC148: 0.414823 | BE148: 0.0147 | BF148: 0.2586 | BG148: 0.3533 | BI148: 0.005132 | BJ148: 0.395379 | BK148: 0.302356 | BM148: 0.0147 | BN148: 0.2586 | BO148: 0.3533 | BT148: 0.007097731 | BU148: 0.285068 | BV148: 0.3105939 | BW148: -0.4452 | BX148: 0.5491 | BY148: 0.1307
B149: 496 | C149: 0.09740011574 | D149: 0.001976496588 | O149: 467 | P149: 0.8501321138 | Q149: 0.260141 | R149: 0.057003 | S149: 0.119566 | T149: 0.006995 | U149: 0.000694 | V149: 0.501597 | W149: 0.014961 | X149: 0.525691 | Y149: 0.001337 | Z149: 0.000865 | AW149: 496 | AX149: 0.27148 | AY149: 0.277 | AZ149: 0.271064 | BA149: 0.9556 | BB149: 0.296484 | BC149: 0.427354 | BE149: 0.01274 | BF149: 0.27148 | BG149: 0.33704 | BI149: 0.0048688 | BJ149: 0.4084586 | BK149: 0.2855852 | BM149: 0.01274 | BN149: 0.27148 | BO149: 0.33704 | BT149: 0.005571145 | BU149: 0.2964837 | BV149: 0.2948102 | BW149: -0.44316 | BX149: 0.56448 | BY149: 0.12276
B150: 497 | C150: 0.1039038733 | D150: 0.002108474404 | O150: 468 | P150: 0.8084637534 | Q150: 0.242248 | R150: 0.065098 | S150: 0.11227 | T150: 0.007779 | U150: 0.000569 | V150: 0.461326 | W150: 0.016748 | X150: 0.498224 | Y150: 0.001376 | Z150: 0.000813 | AW150: 497 | AX150: 0.28436 | AY150: 0.2885 | AZ150: 0.284048 | BA150: 0.9622 | BB150: 0.308501 | BC150: 0.439821 | BE150: 0.01078 | BF150: 0.28436 | BG150: 0.32078 | BI150: 0.0046056 | BJ150: 0.4215382 | BK150: 0.2688144 | BM150: 0.01078 | BN150: 0.28436 | BO150: 0.32078 | BT150: 0.004394566 | BU150: 0.308501 | BV150: 0.2798194 | BW150: -0.44112 | BX150: 0.57986 | BY150: 0.11482
B151: 498 | C151: 0.1104075235 | D151: 0.002240450043 | O151: 469 | P151: 0.7699521511 | Q151: 0.224355 | R151: 0.073194 | S151: 0.104974 | T151: 0.008562 | U151: 0.000445 | V151: 0.421056 | W151: 0.018534 | X151: 0.470756 | Y151: 0.001414 | Z151: 0.000762 | AW151: 498 | AX151: 0.29724 | AY151: 0.3 | AZ151: 0.297032 | BA151: 0.9688 | BB151: 0.321139 | BC151: 0.452336 | BE151: 0.00882 | BF151: 0.29724 | BG151: 0.30452 | BI151: 0.0043424 | BJ151: 0.4346178 | BK151: 0.2520436 | BM151: 0.00882 | BN151: 0.29724 | BO151: 0.30452 | BT151: 0.003516303 | BU151: 0.3211393 | BV151: 0.26541 | BW151: -0.43908 | BX151: 0.59524 | BY151: 0.10688
B152: 499 | C152: 0.1175556162 | D152: 0.002385503061 | O152: 470 | P152: 0.7314405488 | Q152: 0.208549 | R152: 0.08309 | S152: 0.098532 | T152: 0.0093 | U152: 0.000593 | V152: 0.385069 | W152: 0.020549 | X152: 0.445091 | Y152: 0.001427 | Z152: 0.000858 | AW152: 499 | AX152: 0.31012 | AY152: 0.3115 | AZ152: 0.310016 | BA152: 0.9754 | BB152: 0.334418 | BC152: 0.46503 | BE152: 0.00686 | BF152: 0.31012 | BG152: 0.28826 | BI152: 0.0040792 | BJ152: 0.4476974 | BK152: 0.2352728 | BM152: 0.00686 | BN152: 0.31012 | BO152: 0.28826 | BT152: 0.002887638 | BU152: 0.3344175 | BV152: 0.2514084 | BW152: -0.43704 | BX152: 0.61062 | BY152: 0.09894
B153: 500 | C153: 0.1247042738 | D153: 0.002530567543 | O153: 471 | P153: 0.6945990007 | Q153: 0.192743 | R153: 0.092986 | S153: 0.092091 | T153: 0.010037 | U153: 0.000741 | V153: 0.349082 | W153: 0.022565 | X153: 0.419427 | Y153: 0.00144 | Z153: 0.000953 | AW153: 500 | AX153: 0.323 | AY153: 0.323 | AZ153: 0.323 | BA153: 0.982 | BB153: 0.348354 | BC153: 0.478048 | BE153: 0.0049 | BF153: 0.323 | BG153: 0.272 | BI153: 0.003816 | BJ153: 0.460777 | BK153: 0.218502 | BM153: 0.0049 | BN153: 0.323 | BO153: 0.272 | BT153: 0.002461588 | BU153: 0.3483536 | BV153: 0.2376753 | BW153: -0.435 | BX153: 0.626 | BY153: 0.091
B154: 501 | C154: 0.1325287086 | D154: 0.002689345268 | O154: 472 | P154: 0.6590785908 | Q154: 0.18227 | R154: 0.106889 | S154: 0.089046 | T154: 0.011199 | U154: 0.000869 | V154: 0.323818 | W154: 0.025199 | X154: 0.402849 | Y154: 0.001683 | Z154: 0.00103 | AW154: 501 | AX154: 0.33986 | AY154: 0.341 | AZ154: 0.33948 | BA154: 0.9852 | BB154: 0.36296 | BC154: 0.491517 | BE154: 0.0044 | BF154: 0.33986 | BG154: 0.26006 | BI154: 0.0061416 | BJ154: 0.4748936 | BK154: 0.2066514 | BM154: 0.0044 | BN154: 0.33986 | BO154: 0.26006 | BT154: 0.002206348 | BU154: 0.3629601 | BV154: 0.2241211 | BW154: -0.4308 | BX154: 0.64274 | BY154: 0.0844
B155: 502 | C155: 0.1399146557 | D155: 0.002839224958 | O155: 473 | P155: 0.6235581809 | Q155: 0.171798 | R155: 0.120793 | S155: 0.086002 | T155: 0.01236 | U155: 0.000612 | V155: 0.298554 | W155: 0.027834 | X155: 0.386271 | Y155: 0.001927 | Z155: 0.001106 | AW155: 502 | AX155: 0.35672 | AY155: 0.359 | AZ155: 0.35596 | BA155: 0.9884 | BB155: 0.378228 | BC155: 0.505422 | BE155: 0.0039 | BF155: 0.35672 | BG155: 0.24812 | BI155: 0.0084672 | BJ155: 0.4890102 | BK155: 0.1948008 | BM155: 0.0039 | BN155: 0.35672 | BO155: 0.24812 | BT155: 0.002149559 | BU155: 0.3782275 | BV155: 0.2107484 | BW155: -0.4266 | BX155: 0.65948 | BY155: 0.0778
B156: 503 | C156: 0.1483726226 | D156: 0.003010858662 | O156: 474 | P156: 0.597463584 | Q156: 0.153124 | R156: 0.152874 | S156: 0.078786 | T156: 0.015292 | U156: 0.000968 | V156: 0.247854 | W156: 0.033647 | X156: 0.345 | Y156: 0.001733 | Z156: 0.000649 | AW156: 503 | AX156: 0.37358 | AY156: 0.377 | AZ156: 0.37244 | BA156: 0.9916 | BB156: 0.394136 | BC156: 0.519706 | BE156: 0.0034 | BF156: 0.37358 | BG156: 0.23618 | BI156: 0.0107928 | BJ156: 0.5031268 | BK156: 0.1829502 | BM156: 0.0034 | BN156: 0.37358 | BO156: 0.23618 | BT156: 0.002337091 | BU156: 0.3941359 | BV156: 0.1975839 | BW156: -0.4224 | BX156: 0.67622 | BY156: 0.0712
B157: 504 | C157: 0.156831044 | D157: 0.003182501591 | O157: 475 | P157: 0.5731601457 | Q157: 0.147729 | R157: 0.173607 | S157: 0.076837 | T157: 0.016953 | U157: 0.001018 | V157: 0.227937 | W157: 0.037535 | X157: 0.328898 | Y157: 0.001554 | Z157: 0.000544 | AW157: 504 | AX157: 0.39044 | AY157: 0.395 | AZ157: 0.38892 | BA157: 0.9948 | BB157: 0.410658 | BC157: 0.534301 | BE157: 0.0029 | BF157: 0.39044 | BG157: 0.22424 | BI157: 0.0131184 | BJ157: 0.5172434 | BK157: 0.1710996 | BM157: 0.0029 | BN157: 0.39044 | BO157: 0.22424 | BT157: 0.002818931 | BU157: 0.4106582 | BV157: 0.1846574 | BW157: -0.4182 | BX157: 0.69296 | BY157: 0.0646
B158: 505 | C158: 0.1727253849 | D158: 0.003505038277 | O158: 476 | P158: 0.5475 | Q158: 0.142333 | R158: 0.19434 | S158: 0.074887 | T158: 0.018615 | U158: 0.000918 | V158: 0.208021 | W158: 0.041424 | X158: 0.312796 | Y158: 0.001375 | Z158: 0.00044 | AW158: 505 | AX158: 0.4073 | AY158: 0.413 | AZ158: 0.4054 | BA158: 0.998 | BB158: 0.42776 | BC158: 0.549134 | BE158: 0.0024 | BF158: 0.4073 | BG158: 0.2123 | BI158: 0.015444 | BJ158: 0.53136 | BK158: 0.159249 | BM158: 0.0024 | BN158: 0.4073 | BO158: 0.2123 | BT158: 0.003649178 | BU158: 0.4277595 | BV158: 0.1720018 | BW158: -0.414 | BX158: 0.7097 | BY158: 0.058
B159: 506 | C159: 0.1821162012 | D159: 0.003695601874 | O159: 477 | P159: 0.5121042231 | Q159: 0.137796 | R159: 0.217236 | S159: 0.073318 | T159: 0.021107 | U159: 0.000975 | V159: 0.189167 | W159: 0.045726 | X159: 0.296156 | Y159: 0.001368 | Z159: 0.000661 | AW159: 506 | AX159: 0.42644 | AY159: 0.431 | AZ159: 0.42492 | BA159: 0.9978 | BB159: 0.445399 | BC159: 0.56413 | BE159: 0.00378 | BF159: 0.42644 | BG159: 0.20148 | BI159: 0.0198482 | BJ159: 0.5464362 | BK159: 0.149808 | BM159: 0.00378 | BN159: 0.42644 | BO159: 0.20148 | BT159: 0.004891359 | BU159: 0.4453993 | BV159: 0.1596918 | BW159: -0.40466 | BX159: 0.72646 | BY159: 0.05354
B160: 507 | C160: 0.1913361272 | D160: 0.00388269767 | O160: 478 | P160: 0.4776693767 | Q160: 0.133258 | R160: 0.240133 | S160: 0.071748 | T160: 0.023598 | U160: 0.001032 | V160: 0.170314 | W160: 0.050027 | X160: 0.279516 | Y160: 0.001361 | Z160: 0.000881 | AW160: 507 | AX160: 0.44558 | AY160: 0.449 | AZ160: 0.44444 | BA160: 0.9976 | BB160: 0.46354 | BC160: 0.579242 | BE160: 0.00516 | BF160: 0.44558 | BG160: 0.19066 | BI160: 0.0242524 | BJ160: 0.5615124 | BK160: 0.140367 | BM160: 0.00516 | BN160: 0.44558 | BO160: 0.19066 | BT160: 0.006629364 | BU160: 0.4635396 | BV160: 0.1479415 | BW160: -0.39532 | BX160: 0.74322 | BY160: 0.04908
B161: 508 | C161: 0.2003516724 | D161: 0.00406564606 | O161: 479 | P161: 0.4537398374 | Q161: 0.132081 | R161: 0.270275 | S161: 0.071698 | T161: 0.026641 | U161: 0.000868 | V161: 0.156259 | W161: 0.055879 | X161: 0.269388 | Y161: 0.001292 | Z161: 0.000933 | AW161: 508 | AX161: 0.46472 | AY161: 0.467 | AZ161: 0.46396 | BA161: 0.9974 | BB161: 0.482138 | BC161: 0.594426 | BE161: 0.00654 | BF161: 0.46472 | BG161: 0.17984 | BI161: 0.0286566 | BJ161: 0.5765886 | BK161: 0.130926 | BM161: 0.00654 | BN161: 0.46472 | BO161: 0.17984 | BT161: 0.008942902 | BU161: 0.4821376 | BV161: 0.1369428 | BW161: -0.38598 | BX161: 0.75998 | BY161: 0.04462
B162: 509 | C162: 0.2093675472 | D162: 0.004248601138 | O162: 480 | P162: 0.4298102981 | Q162: 0.130903 | R162: 0.300417 | S162: 0.071647 | T162: 0.029684 | U162: 0.000703 | V162: 0.142205 | W162: 0.06173 | X162: 0.25926 | Y162: 0.001224 | Z162: 0.000984 | AW162: 509 | AX162: 0.48386 | AY162: 0.485 | AZ162: 0.48348 | BA162: 0.9972 | BB162: 0.501143 | BC162: 0.609639 | BE162: 0.00792 | BF162: 0.48386 | BG162: 0.16902 | BI162: 0.0330608 | BJ162: 0.5916648 | BK162: 0.121485 | BM162: 0.00792 | BN162: 0.48386 | BO162: 0.16902 | BT162: 0.01190224 | BU162: 0.501143 | BV162: 0.1268279 | BW162: -0.37664 | BX162: 0.77674 | BY162: 0.04016
B163: 510 | C163: 0.21914521 | D163: 0.004447014836 | O163: 481 | P163: 0.4086161924 | Q163: 0.129586 | R163: 0.332538 | S163: 0.071878 | T163: 0.033217 | U163: 0.000536 | V163: 0.128964 | W163: 0.068289 | X163: 0.249677 | Y163: 0.001132 | Z163: 0.000996 | AW163: 510 | AX163: 0.503 | AY163: 0.503 | AZ163: 0.503 | BA163: 0.997 | BB163: 0.520497 | BC163: 0.62483 | BE163: 0.0093 | BF163: 0.503 | BG163: 0.1582 | BI163: 0.037465 | BJ163: 0.606741 | BK163: 0.112044 | BM163: 0.0093 | BN163: 0.503 | BO163: 0.1582 | BT163: 0.01556989 | BU163: 0.5204972 | BV163: 0.1176796 | BW163: -0.3673 | BX163: 0.7935 | BY163: 0.0357
B164: 511 | C164: 0.2289232927 | D164: 0.004645437055 | O164: 482 | P164: 0.3921646341 | Q164: 0.128269 | R164: 0.364659 | S164: 0.072109 | T164: 0.03675 | U164: 0.000368 | V164: 0.115724 | W164: 0.074849 | X164: 0.240093 | Y164: 0.001039 | Z164: 0.001008 | AW164: 511 | AX164: 0.52404 | AY164: 0.5237 | AZ164: 0.524022 | BA164: 0.9926 | BB164: 0.540139 | BC164: 0.639966 | BE164: 0.01326 | BF164: 0.52404 | BG164: 0.1489 | BI164: 0.0442436 | BJ164: 0.6225248 | BK164: 0.1060848 | BM164: 0.01326 | BN164: 0.52404 | BO164: 0.1489 | BT164: 0.01997668 | BU164: 0.5401387 | BV164: 0.109497 | BW164: -0.35074 | BX164: 0.8091 | BY164: 0.03256
B165: 512 | C165: 0.2366132201 | D165: 0.004801485281 | O165: 483 | P165: 0.3757130759 | Q165: 0.128426 | R165: 0.401186 | S165: 0.073638 | T165: 0.041172 | U165: 0.000513 | V165: 0.105351 | W165: 0.082759 | X165: 0.233884 | Y165: 0.001213 | Z165: 0.000849 | AW165: 512 | AX165: 0.54508 | AY165: 0.5444 | AZ165: 0.545044 | BA165: 0.9882 | BB165: 0.560021 | BC165: 0.655094 | BE165: 0.01722 | BF165: 0.54508 | BG165: 0.1396 | BI165: 0.0510222 | BJ165: 0.6383086 | BK165: 0.1001256 | BM165: 0.01722 | BN165: 0.54508 | BO165: 0.1396 | BT165: 0.02504698 | BU165: 0.5600208 | BV165: 0.1020943 | BW165: -0.33418 | BX165: 0.8247 | BY165: 0.02942
B166: 513 | C166: 0.2443027679 | D166: 0.004957525805 | O166: 484 | P166: 0.3592615176 | Q166: 0.128583 | R166: 0.437712 | S166: 0.075166 | T166: 0.045595 | U166: 0.000659 | V166: 0.094978 | W166: 0.09067 | X166: 0.227675 | Y166: 0.001386 | Z166: 0.00069 | AW166: 513 | AX166: 0.56612 | AY166: 0.5651 | AZ166: 0.566066 | BA166: 0.9838 | BB166: 0.580097 | BC166: 0.67029 | BE166: 0.02118 | BF166: 0.56612 | BG166: 0.1303 | BI166: 0.0578008 | BJ166: 0.6540924 | BK166: 0.0941664 | BM166: 0.02118 | BN166: 0.56612 | BO166: 0.1303 | BT166: 0.0306753 | BU166: 0.5800972 | BV166: 0.09527993 | BW166: -0.31762 | BX166: 0.8403 | BY166: 0.02628
B167: 514 | C167: 0.2614379204 | D167: 0.00530524172 | O167: 485 | P167: 0.3430978997 | Q167: 0.127185 | R167: 0.506777 | S167: 0.078523 | T167: 0.055106 | U167: 0.000595 | V167: 0.077038 | W167: 0.106829 | X167: 0.215926 | Y167: 0.00166 | Z167: 0.000653 | AW167: 514 | AX167: 0.58716 | AY167: 0.5858 | AZ167: 0.587088 | BA167: 0.9794 | BB167: 0.600317 | BC167: 0.685638 | BE167: 0.02514 | BF167: 0.58716 | BG167: 0.121 | BI167: 0.0645794 | BJ167: 0.6698762 | BK167: 0.0882072 | BM167: 0.02514 | BN167: 0.58716 | BO167: 0.121 | BT167: 0.03674999 | BU167: 0.6003172 | BV167: 0.08890075 | BW167: -0.30106 | BX167: 0.8559 | BY167: 0.02314
B168: 515 | C168: 0.2676476452 | D168: 0.005431252862 | O168: 486 | P168: 0.3276434056 | Q168: 0.129105 | R168: 0.550085 | S168: 0.08237 | T168: 0.062303 | U168: 0.000682 | V168: 0.070899 | W168: 0.118419 | X168: 0.215693 | Y168: 0.001744 | Z168: 0.000567 | AW168: 515 | AX168: 0.6082 | AY168: 0.6065 | AZ168: 0.60811 | BA168: 0.975 | BB168: 0.620626 | BC168: 0.701229 | BE168: 0.0291 | BF168: 0.6082 | BG168: 0.1117 | BI168: 0.071358 | BJ168: 0.68566 | BK168: 0.082248 | BM168: 0.0291 | BN168: 0.6082 | BO168: 0.1117 | BT168: 0.04315171 | BU168: 0.6206256 | BV168: 0.08283548 | BW168: -0.2845 | BX168: 0.8715 | BY168: 0.02
B169: 516 | C169: 0.2738566599 | D169: 0.005557249595 | O169: 487 | P169: 0.3121889115 | Q169: 0.131025 | R169: 0.593394 | S169: 0.086218 | T169: 0.0695 | U169: 0.000768 | V169: 0.064761 | W169: 0.130009 | X169: 0.21546 | Y169: 0.001576 | Z169: 0.000481 | AW169: 516 | AX169: 0.62856 | AY169: 0.6272 | AZ169: 0.628488 | BA169: 0.967 | BB169: 0.64094 | BC169: 0.71711 | BE169: 0.035934 | BF169: 0.62856 | BG169: 0.10501 | BI169: 0.0806362 | BJ169: 0.7008794 | BK169: 0.0779402 | BM169: 0.035934 | BN169: 0.62856 | BO169: 0.10501 | BT169: 0.04978584 | BU169: 0.6409398 | BV169: 0.07700982 | BW169: -0.2647 | BX169: 0.88674 | BY169: 0.0179
B170: 517 | C170: 0.2812350422 | D170: 0.005706975777 | O170: 488 | P170: 0.2967344173 | Q170: 0.13186 | R170: 0.632768 | S170: 0.090325 | T170: 0.077336 | U170: 0.000775 | V170: 0.059393 | W170: 0.142646 | X170: 0.215533 | Y170: 0.001372 | Z170: 0.000555 | AW170: 517 | AX170: 0.64892 | AY170: 0.6479 | AZ170: 0.648866 | BA170: 0.959 | BB170: 0.661077 | BC170: 0.733092 | BE170: 0.042768 | BF170: 0.64892 | BG170: 0.09832 | BI170: 0.0899144 | BJ170: 0.7160988 | BK170: 0.0736324 | BM170: 0.042768 | BN170: 0.64892 | BO170: 0.09832 | BT170: 0.05668554 | BU170: 0.6610772 | BV170: 0.07144001 | BW170: -0.2449 | BX170: 0.90198 | BY170: 0.0158
B171: 518 | C171: 0.2886128942 | D171: 0.005856691198 | O171: 489 | P171: 0.2836026423 | Q171: 0.132694 | R171: 0.672142 | S171: 0.094432 | T171: 0.085171 | U171: 0.000781 | V171: 0.054025 | W171: 0.155282 | X171: 0.215606 | Y171: 0.001168 | Z171: 0.000628 | AW171: 518 | AX171: 0.66928 | AY171: 0.6686 | AZ171: 0.669244 | BA171: 0.951 | BB171: 0.680813 | BC171: 0.748904 | BE171: 0.049602 | BF171: 0.66928 | BG171: 0.09163 | BI171: 0.0991926 | BJ171: 0.7313182 | BK171: 0.0693246 | BM171: 0.049602 | BN171: 0.66928 | BO171: 0.09163 | BT171: 0.06391651 | BU171: 0.6808134 | BV171: 0.06615436 | BW171: -0.2251 | BX171: 0.91722 | BY171: 0.0137
B172: 519 | C172: 0.2924188203 | D172: 0.005933923137 | O172: 490 | P172: 0.2791158537 | Q172: 0.13481 | R172: 0.712838 | S172: 0.099954 | T172: 0.095373 | U172: 0.000753 | V172: 0.049896 | W172: 0.171163 | X172: 0.217788 | Y172: 0.001112 | Z172: 0.000581 | AW172: 519 | AX172: 0.68964 | AY172: 0.6893 | AZ172: 0.689622 | BA172: 0.943 | BB172: 0.699904 | BC172: 0.764253 | BE172: 0.056436 | BF172: 0.68964 | BG172: 0.08494 | BI172: 0.1084708 | BJ172: 0.7465376 | BK172: 0.0650168 | BM172: 0.056436 | BN172: 0.68964 | BO172: 0.08494 | BT172: 0.07154352 | BU172: 0.6999044 | BV172: 0.06117199 | BW172: -0.2053 | BX172: 0.93246 | BY172: 0.0116
B173: 520 | C173: 0.2962239122 | D173: 0.00601113815 | O173: 491 | P173: 0.274629065 | Q173: 0.136927 | R173: 0.753534 | S173: 0.105477 | T173: 0.105575 | U173: 0.000725 | V173: 0.045766 | W173: 0.187043 | X173: 0.21997 | Y173: 0.001056 | Z173: 0.000533 | AW173: 520 | AX173: 0.71 | AY173: 0.71 | AZ173: 0.71 | BA173: 0.935 | BB173: 0.718089 | BC173: 0.77882 | BE173: 0.06327 | BF173: 0.71 | BG173: 0.07825 | BI173: 0.117749 | BJ173: 0.761757 | BK173: 0.060709 | BM173: 0.06327 | BN173: 0.71 | BO173: 0.07825 | BT173: 0.07962917 | BU173: 0.718089 | BV173: 0.05650407 | BW173: -0.1855 | BX173: 0.9477 | BY173: 0.0095
B174: 521 | C174: 0.3038436413 | D174: 0.006165761874 | O174: 492 | P174: 0.2701422764 | Q174: 0.139243 | R174: 0.792351 | S174: 0.112286 | T174: 0.117932 | U174: 0.000652 | V174: 0.042022 | W174: 0.205868 | X174: 0.223822 | Y174: 0.001173 | Z174: 0.000676 | AW174: 521 | AX174: 0.72664 | AY174: 0.7252 | AZ174: 0.72702 | BA174: 0.924 | BB174: 0.735159 | BC174: 0.792341 | BE174: 0.072536 | BF174: 0.72664 | BG174: 0.07405 | BI174: 0.1287898 | BJ174: 0.7740716 | BK174: 0.0571772 | BM174: 0.072536 | BN174: 0.72664 | BO174: 0.07405 | BT174: 0.08821473 | BU174: 0.7351593 | BV174: 0.05215121 | BW174: -0.1571 | BX174: 0.95706 | BY174: 0.00774
B175: 522 | C175: 0.3062468167 | D175: 0.006214528428 | O175: 493 | P175: 0.2656554878 | Q175: 0.14156 | R175: 0.831168 | S175: 0.119096 | T175: 0.130288 | U175: 0.000579 | V175: 0.038278 | W175: 0.224693 | X175: 0.227674 | Y175: 0.001289 | Z175: 0.000818 | AW175: 522 | AX175: 0.74328 | AY175: 0.7404 | AZ175: 0.74404 | BA175: 0.913 | BB175: 0.751182 | BC175: 0.804851 | BE175: 0.081802 | BF175: 0.74328 | BG175: 0.06985 | BI175: 0.1398306 | BJ175: 0.7863862 | BK175: 0.0536454 | BM175: 0.081802 | BN175: 0.74328 | BO175: 0.06985 | BT175: 0.09726978 | BU175: 0.7511821 | BV175: 0.04809566 | BW175: -0.1287 | BX175: 0.96642 | BY175: 0.00598
B176: 523 | C176: 0.3045294457 | D176: 0.006179678592 | O176: 494 | P176: 0.2611686992 | Q176: 0.144129 | R176: 0.887209 | S176: 0.132749 | T176: 0.157633 | U176: 0.000351 | V176: 0.031755 | W176: 0.265157 | X176: 0.235138 | Y176: 0.001295 | Z176: 0.000943 | AW176: 523 | AX176: 0.75992 | AY176: 0.7556 | AZ176: 0.76106 | BA176: 0.902 | BB176: 0.766314 | BC176: 0.816475 | BE176: 0.091068 | BF176: 0.75992 | BG176: 0.06565 | BI176: 0.1508714 | BJ176: 0.7987008 | BK176: 0.0501136 | BM176: 0.091068 | BN176: 0.75992 | BO176: 0.06565 | BT176: 0.1067504 | BU176: 0.7663143 | BV176: 0.0443172 | BW176: -0.1003 | BX176: 0.97578 | BY176: 0.00422
B177: 524 | C177: 0.305387805 | D177: 0.00619709689 | O177: 495 | P177: 0.2566819106 | Q177: 0.145743 | R177: 0.911569 | S177: 0.140684 | T177: 0.174249 | U177: 0.000474 | V177: 0.02898 | W177: 0.288982 | X177: 0.240699 | Y177: 0.001376 | Z177: 0.00085 | AW177: 524 | AX177: 0.77656 | AY177: 0.7708 | AZ177: 0.77808 | BA177: 0.891 | BB177: 0.780735 | BC177: 0.827352 | BE177: 0.100334 | BF177: 0.77656 | BG177: 0.06145 | BI177: 0.1619122 | BJ177: 0.8110154 | BK177: 0.0465818 | BM177: 0.100334 | BN177: 0.77656 | BO177: 0.06145 | BT177: 0.1166192 | BU177: 0.7807352 | BV177: 0.04079734 | BW177: -0.0719 | BX177: 0.98514 | BY177: 0.00246
B178: 525 | C178: 0.3062464018 | D178: 0.006214520009 | O178: 496 | P178: 0.252195122 | Q178: 0.147356 | R178: 0.935928 | S178: 0.14862 | T178: 0.190865 | U178: 0.000598 | V178: 0.026205 | W178: 0.312806 | X178: 0.246259 | Y178: 0.001457 | Z178: 0.000758 | AW178: 525 | AX178: 0.7932 | AY178: 0.786 | AZ178: 0.7951 | BA178: 0.88 | BB178: 0.794645 | BC178: 0.837636 | BE178: 0.1096 | BF178: 0.7932 | BG178: 0.05725 | BI178: 0.172953 | BJ178: 0.82333 | BK178: 0.04305 | BM178: 0.1096 | BN178: 0.7932 | BO178: 0.05725 | BT178: 0.1268468 | BU178: 0.7946448 | BV178: 0.03751912 | BW178: -0.0435 | BX178: 0.9945 | BY178: 0.0007
B179: 526 | C179: 0.3044629498 | D179: 0.006178329222 | O179: 497 | P179: 0.2477083333 | Q179: 0.149009 | R179: 0.954543 | S179: 0.157578 | T179: 0.211211 | U179: 0.000623 | V179: 0.023931 | W179: 0.341153 | X179: 0.254131 | Y179: 0.001496 | Z179: 0.000732 | AW179: 526 | AX179: 0.80696 | AY179: 0.8012 | AZ179: 0.80848 | BA179: 0.8662 | BB179: 0.808207 | BC179: 0.847465 | BE179: 0.12078 | BF179: 0.80696 | BG179: 0.054232 | BI179: 0.1856606 | BJ179: 0.8337062 | BK179: 0.0405302 | BM179: 0.12078 | BN179: 0.80696 | BO179: 0.054232 | BT179: 0.137406 | BU179: 0.8082074 | BV179: 0.03446846 | BW179: -0.0094 | BX179: 0.99966 | BY179: -0.0003
B180: 527 | C180: 0.3026791682 | D180: 0.006142131747 | O180: 498 | P180: 0.2432215447 | Q180: 0.150662 | R180: 0.973158 | S180: 0.166536 | T180: 0.231556 | U180: 0.000648 | V180: 0.021656 | W180: 0.3695 | X180: 0.262003 | Y180: 0.001536 | Z180: 0.000706 | AW180: 527 | AX180: 0.82072 | AY180: 0.8164 | AZ180: 0.82186 | BA180: 0.8524 | BB180: 0.821382 | BC180: 0.856887 | BE180: 0.13196 | BF180: 0.82072 | BG180: 0.051214 | BI180: 0.1983682 | BJ180: 0.8440824 | BK180: 0.0380104 | BM180: 0.13196 | BN180: 0.82072 | BO180: 0.051214 | BT180: 0.1482471 | BU180: 0.8213817 | BV180: 0.03163764 | BW180: 0.0247 | BX180: 1.00482 | BY180: -0.0013
B181: 528 | C181: 0.3004658011 | D181: 0.006097216888 | O181: 499 | P181: 0.2387347561 | Q181: 0.152059 | R181: 0.982486 | S181: 0.176176 | T181: 0.255573 | U181: 0.000614 | V181: 0.01998 | W181: 0.401768 | X181: 0.271467 | Y181: 0.001563 | Z181: 0.000605 | AW181: 528 | AX181: 0.83448 | AY181: 0.8316 | AZ181: 0.83524 | BA181: 0.8386 | BB181: 0.83407 | BC181: 0.865924 | BE181: 0.14314 | BF181: 0.83448 | BG181: 0.048196 | BI181: 0.2110758 | BJ181: 0.8544586 | BK181: 0.0354906 | BM181: 0.14314 | BN181: 0.83448 | BO181: 0.048196 | BT181: 0.1593076 | BU181: 0.8340701 | BV181: 0.02901901 | BW181: 0.0588 | BX181: 1.00998 | BY181: -0.0023
B182: 529 | C182: 0.2982526863 | D182: 0.006052307148 | O182: 500 | P182: 0.2371273713 | Q182: 0.153457 | R182: 0.991814 | S182: 0.185816 | T182: 0.279591 | U182: 0.000581 | V182: 0.018303 | W182: 0.434036 | X182: 0.280932 | Y182: 0.001589 | Z182: 0.000505 | AW182: 529 | AX182: 0.84824 | AY182: 0.8468 | AZ182: 0.84862 | BA182: 0.8248 | BB182: 0.846171 | BC182: 0.874604 | BE182: 0.15432 | BF182: 0.84824 | BG182: 0.045178 | BI182: 0.2237834 | BJ182: 0.8648348 | BK182: 0.0329708 | BM182: 0.15432 | BN182: 0.84824 | BO182: 0.045178 | BT182: 0.1705181 | BU182: 0.8461711 | BV182: 0.02660364 | BW182: 0.0929 | BX182: 1.01514 | BY182: -0.0033
B183: 530 | C183: 0.2877562349 | D183: 0.005839307398 | O183: 501 | P183: 0.2411156278 | Q183: 0.154507 | R183: 1 | S183: 0.195817 | T183: 0.306681 | U183: 0.000699 | V183: 0.016759 | W183: 0.468802 | X183: 0.291004 | Y183: 0.001553 | Z183: 0.000572 | AW183: 530 | AX183: 0.862 | AY183: 0.862 | AZ183: 0.862 | BA183: 0.811 | BB183: 0.85758 | BC183: 0.882955 | BE183: 0.1655 | BF183: 0.862 | BG183: 0.04216 | BI183: 0.236491 | BJ183: 0.875211 | BK183: 0.030451 | BM183: 0.1655 | BN183: 0.862 | BO183: 0.04216 | BT183: 0.1818026 | BU183: 0.8575799 | BV183: 0.02438164 | BW183: 0.127 | BX183: 1.0203 | BY183: -0.0043
B184: 531 | C184: 0.2848280754 | D184: 0.005779887579 | O184: 502 | P184: 0.2451038844 | Q184: 0.155557 | R184: 0.983629 | S184: 0.205818 | T184: 0.333771 | U184: 0.000817 | V184: 0.015214 | W184: 0.503568 | X184: 0.301075 | Y184: 0.001516 | Z184: 0.000639 | AW184: 531 | AX184: 0.87257 | AY184: 0.8712 | AZ184: 0.87261 | BA184: 0.7954 | BB184: 0.868241 | BC184: 0.891027 | BE184: 0.17755 | BF184: 0.87257 | BG184: 0.039696 | BI184: 0.2500354 | BJ184: 0.8849308 | BK184: 0.0284776 | BM184: 0.17755 | BN184: 0.87257 | BO184: 0.039696 | BT184: 0.193109 | BU184: 0.8682408 | BV184: 0.02234097 | BW184: 0.16418 | BX184: 1.02374 | BY184: -0.00472
B185: 532 | C185: 0.2817160486 | D185: 0.005716736623 | O185: 503 | P185: 0.2490921409 | Q185: 0.156559 | R185: 0.972568 | S185: 0.217325 | T185: 0.365008 | U185: 0.000551 | V185: 0.014067 | W185: 0.542249 | X185: 0.313233 | Y185: 0.001271 | Z185: 0.000597 | AW185: 532 | AX185: 0.88314 | AY185: 0.8804 | AZ185: 0.88322 | BA185: 0.7798 | BB185: 0.878306 | BC185: 0.898949 | BE185: 0.1896 | BF185: 0.88314 | BG185: 0.037232 | BI185: 0.2635798 | BJ185: 0.8946506 | BK185: 0.0265042 | BM185: 0.1896 | BN185: 0.88314 | BO185: 0.037232 | BT185: 0.2045085 | BU185: 0.8783061 | BV185: 0.02046415 | BW185: 0.20136 | BX185: 1.02718 | BY185: -0.00514
B186: 533 | C186: 0.2768530391 | D186: 0.005618053766 | O186: 504 | P186: 0.2530803975 | Q186: 0.15756 | R186: 0.961507 | S186: 0.228832 | T186: 0.396245 | U186: 0.000286 | V186: 0.01292 | W186: 0.580929 | X186: 0.32539 | Y186: 0.001027 | Z186: 0.000555 | AW186: 533 | AX186: 0.89371 | AY186: 0.8896 | AZ186: 0.89383 | BA186: 0.7642 | BB186: 0.887991 | BC186: 0.906875 | BE186: 0.20165 | BF186: 0.89371 | BG186: 0.034768 | BI186: 0.2771242 | BJ186: 0.9043704 | BK186: 0.0245308 | BM186: 0.20165 | BN186: 0.89371 | BO186: 0.034768 | BT186: 0.2161166 | BU186: 0.8879907 | BV186: 0.01873456 | BW186: 0.23854 | BX186: 1.03062 | BY186: -0.00556
B187: 534 | C187: 0.2719324766 | D187: 0.005518203011 | O187: 505 | P187: 0.257068654 | Q187: 0.157143 | R187: 0.90573 | S187: 0.248249 | T187: 0.460238 | U187: 0.00055 | V187: 0.010878 | W187: 0.653411 | X187: 0.345249 | Y187: 0.001128 | Z187: 0.001198 | AW187: 534 | AX187: 0.90428 | AY187: 0.8988 | AZ187: 0.90444 | BA187: 0.7486 | BB187: 0.897521 | BC187: 0.914965 | BE187: 0.2137 | BF187: 0.90428 | BG187: 0.032304 | BI187: 0.2906686 | BJ187: 0.9140902 | BK187: 0.0225574 | BM187: 0.2137 | BN187: 0.90428 | BO187: 0.032304 | BT187: 0.228065 | BU187: 0.8975211 | BV187: 0.01713788 | BW187: 0.27572 | BX187: 1.03406 | BY187: -0.00598
B188: 535 | C188: 0.2676476485 | D188: 0.00543125293 | O188: 506 | P188: 0.2610569106 | Q188: 0.157437 | R188: 0.876889 | S188: 0.259739 | T188: 0.497461 | U188: 0.000686 | V188: 0.010219 | W188: 0.69351 | X188: 0.358096 | Y188: 0.001394 | Z188: 0.00174 | AW188: 535 | AX188: 0.91485 | AY188: 0.908 | AZ188: 0.91505 | BA188: 0.733 | BB188: 0.907135 | BC188: 0.923386 | BE188: 0.22575 | BF188: 0.91485 | BG188: 0.02984 | BI188: 0.304213 | BJ188: 0.92381 | BK188: 0.020584 | BM188: 0.22575 | BN188: 0.91485 | BO188: 0.02984 | BT188: 0.2405015 | BU188: 0.9071347 | BV188: 0.01566174 | BW188: 0.3129 | BX188: 1.0375 | BY188: -0.0064
B189: 536 | C189: 0.2633625482 | D189: 0.005344297324 | O189: 507 | P189: 0.2650451671 | Q189: 0.157731 | R189: 0.848047 | S189: 0.27123 | T189: 0.534685 | U189: 0.000414 | V189: 0.00956 | W189: 0.733608 | X189: 0.370943 | Y189: 0.00166 | Z189: 0.000656 | AW189: 536 | AX189: 0.92268 | AY189: 0.9172 | AZ189: 0.92284 | BA189: 0.7164 | BB189: 0.916995 | BC189: 0.932232 | BE189: 0.23868 | BF189: 0.92268 | BG189: 0.027932 | BI189: 0.3187248 | BJ189: 0.9314456 | BK189: 0.0192024 | BM189: 0.23868 | BN189: 0.92268 | BO189: 0.027932 | BT189: 0.2535441 | BU189: 0.9169947 | BV189: 0.01429644 | BW189: 0.35756 | BX189: 1.04034 | BY189: -0.00676
B190: 537 | C190: 0.2592926201 | D190: 0.005261708108 | O190: 508 | P190: 0.2690334237 | Q190: 0.157539 | R190: 0.811337 | S190: 0.28178 | T190: 0.57215 | U190: 0.000579 | V190: 0.008862 | W190: 0.76995 | X190: 0.382579 | Y190: 0.001703 | Z190: 0.000741 | AW190: 537 | AX190: 0.93051 | AY190: 0.9264 | AZ190: 0.93063 | BA190: 0.6998 | BB190: 0.926929 | BC190: 0.941286 | BE190: 0.25161 | BF190: 0.93051 | BG190: 0.026024 | BI190: 0.3332366 | BJ190: 0.9390812 | BK190: 0.0178208 | BM190: 0.25161 | BN190: 0.93051 | BO190: 0.026024 | BT190: 0.26713 | BU190: 0.9269295 | BV190: 0.01303702 | BW190: 0.40222 | BX190: 1.04318 | BY190: -0.00712
B191: 538 | C191: 0.255222674 | D191: 0.00517911853 | O191: 509 | P191: 0.2730216802 | Q191: 0.157347 | R191: 0.774626 | S191: 0.29233 | T191: 0.609615 | U191: 0.000745 | V191: 0.008163 | W191: 0.806293 | X191: 0.394215 | Y191: 0.001745 | Z191: 0.000827 | AW191: 538 | AX191: 0.93834 | AY191: 0.9356 | AZ191: 0.93842 | BA191: 0.6832 | BB191: 0.936673 | BC191: 0.950238 | BE191: 0.26454 | BF191: 0.93834 | BG191: 0.024116 | BI191: 0.3477484 | BJ191: 0.9467168 | BK191: 0.0164392 | BM191: 0.26454 | BN191: 0.93834 | BO191: 0.024116 | BT191: 0.2811351 | BU191: 0.9366731 | BV191: 0.01187897 | BW191: 0.44688 | BX191: 1.04602 | BY191: -0.00748
B192: 539 | C192: 0.2451304022 | D192: 0.004974320612 | O192: 510 | P192: 0.2770099368 | Q192: 0.156826 | R192: 0.73817 | S192: 0.30364 | T192: 0.650165 | U192: 0.000943 | V192: 0.007722 | W192: 0.841114 | X192: 0.406779 | Y192: 0.001716 | Z192: 0.000884 | AW192: 539 | AX192: 0.94617 | AY192: 0.9448 | AZ192: 0.94621 | BA192: 0.6666 | BB192: 0.945948 | BC192: 0.958765 | BE192: 0.27747 | BF192: 0.94617 | BG192: 0.022208 | BI192: 0.3622602 | BJ192: 0.9543524 | BK192: 0.0150576 | BM192: 0.27747 | BN192: 0.94617 | BO192: 0.022208 | BT192: 0.2954164 | BU192: 0.9459482 | BV192: 0.01081725 | BW192: 0.49154 | BX192: 1.04886 | BY192: -0.00784
B193: 540 | C193: 0.2409406363 | D193: 0.004889299586 | O193: 511 | P193: 0.2809981933 | Q193: 0.156305 | R193: 0.701714 | S193: 0.31495 | T193: 0.690715 | U193: 0.001142 | V193: 0.00728 | W193: 0.875935 | X193: 0.419343 | Y193: 0.001687 | Z193: 0.00077 | AW193: 540 | AX193: 0.954 | AY193: 0.954 | AZ193: 0.954 | BA193: 0.65 | BB193: 0.954468 | BC193: 0.966532 | BE193: 0.2904 | BF193: 0.954 | BG193: 0.0203 | BI193: 0.376772 | BJ193: 0.961988 | BK193: 0.013676 | BM193: 0.2904 | BN193: 0.954 | BO193: 0.0203 | BT193: 0.3098117 | BU193: 0.9544675 | BV193: 0.00984647 | BW193: 0.5362 | BX193: 1.0517 | BY193: -0.0082
B194: 541 | C194: 0.2367507979 | D194: 0.004804277085 | O194: 512 | P194: 0.2849864499 | Q194: 0.154522 | R194: 0.66113 | S194: 0.323688 | T194: 0.725125 | U194: 0.000968 | V194: 0.006733 | W194: 0.89896 | X194: 0.428358 | Y194: 0.00157 | Z194: 0.00067 | AW194: 541 | AX194: 0.95926 | AY194: 0.9581 | AZ194: 0.959208 | BA194: 0.6328 | BB194: 0.961983 | BC194: 0.97325 | BE194: 0.30426 | BF194: 0.95926 | BG194: 0.01892 | BI194: 0.3917344 | BJ194: 0.9660304 | BK194: 0.0125244 | BM194: 0.30426 | BN194: 0.95926 | BO194: 0.01892 | BT194: 0.3241678 | BU194: 0.9619834 | BV194: 0.008960687 | BW194: 0.5834 | BX194: 1.04916 | BY194: -0.00844
B195: 542 | C195: 0.2335138923 | D195: 0.004738592021 | O195: 513 | P195: 0.2889747064 | Q195: 0.152739 | R195: 0.620546 | S195: 0.332425 | T195: 0.759534 | U195: 0.000794 | V195: 0.006186 | W195: 0.921985 | X195: 0.437373 | Y195: 0.001454 | Z195: 0.00057 | AW195: 542 | AX195: 0.96452 | AY195: 0.9622 | AZ195: 0.964416 | BA195: 0.6156 | BB195: 0.968439 | BC195: 0.978842 | BE195: 0.31812 | BF195: 0.96452 | BG195: 0.01754 | BI195: 0.4066968 | BJ195: 0.9700728 | BK195: 0.0113728 | BM195: 0.31812 | BN195: 0.96452 | BO195: 0.01754 | BT195: 0.3384319 | BU195: 0.968439 | BV195: 0.008152811 | BW195: 0.6306 | BX195: 1.04662 | BY195: -0.00868
B196: 543 | C196: 0.2302771091 | D196: 0.004672909441 | O196: 514 | P196: 0.292962963 | Q196: 0.150393 | R196: 0.551697 | S196: 0.352525 | T196: 0.832518 | U196: 0.000503 | V196: 0.005378 | W196: 0.965976 | X196: 0.460552 | Y196: 0.001255 | Z196: 0.000746 | AW196: 543 | AX196: 0.96978 | AY196: 0.9663 | AZ196: 0.969624 | BA196: 0.5984 | BB196: 0.973829 | BC196: 0.983287 | BE196: 0.33198 | BF196: 0.96978 | BG196: 0.01616 | BI196: 0.4216592 | BJ196: 0.9741152 | BK196: 0.0102212 | BM196: 0.33198 | BN196: 0.96978 | BO196: 0.01616 | BT196: 0.3525786 | BU196: 0.9738289 | BV196: 0.007416025 | BW196: 0.6778 | BX196: 1.04408 | BY196: -0.00892
B197: 544 | C197: 0.2269439761 | D197: 0.004605271678 | O197: 515 | P197: 0.2969512195 | Q197: 0.148182 | R197: 0.517394 | S197: 0.360065 | T197: 0.859249 | U197: 0.000605 | V197: 0.005148 | W197: 0.97457 | X197: 0.468634 | Y197: 0.001334 | Z197: 0.000774 | AW197: 544 | AX197: 0.97504 | AY197: 0.9704 | AZ197: 0.974832 | BA197: 0.5812 | BB197: 0.978152 | BC197: 0.986572 | BE197: 0.34584 | BF197: 0.97504 | BG197: 0.01478 | BI197: 0.4366216 | BJ197: 0.9781576 | BK197: 0.0090696 | BM197: 0.34584 | BN197: 0.97504 | BO197: 0.01478 | BT197: 0.3665839 | BU197: 0.9781519 | BV197: 0.006744115 | BW197: 0.725 | BX197: 1.04154 | BY197: -0.00916
B198: 545 | C198: 0.2236107737 | D198: 0.004537632504 | O198: 516 | P198: 0.3010442073 | Q198: 0.145971 | R198: 0.48309 | S198: 0.367604 | T198: 0.88598 | U198: 0.000706 | V198: 0.004918 | W198: 0.983163 | X198: 0.476717 | Y198: 0.001413 | Z198: 0.000719 | AW198: 545 | AX198: 0.9803 | AY198: 0.9745 | AZ198: 0.98004 | BA198: 0.564 | BB198: 0.981411 | BC198: 0.988689 | BE198: 0.3597 | BF198: 0.9803 | BG198: 0.0134 | BI198: 0.451584 | BJ198: 0.9822 | BK198: 0.007918 | BM198: 0.3597 | BN198: 0.9803 | BO198: 0.0134 | BT198: 0.3804244 | BU198: 0.9814106 | BV198: 0.006131421 | BW198: 0.7722 | BX198: 1.039 | BY198: -0.0094
B199: 546 | C199: 0.2152429021 | D199: 0.004367827064 | O199: 517 | P199: 0.3083352388 | Q199: 0.144921 | R199: 0.456823 | S199: 0.378043 | T199: 0.914385 | U199: 0.00055 | V199: 0.004617 | W199: 0.991582 | X199: 0.487906 | Y199: 0.001485 | Z199: 0.000694 | AW199: 546 | AX199: 0.98323 | AY199: 0.9786 | AZ199: 0.983022 | BA199: 0.5474 | BB199: 0.983667 | BC199: 0.989706 | BE199: 0.37445 | BF199: 0.98323 | BG199: 0.01247 | BI199: 0.4672324 | BJ199: 0.9841122 | BK199: 0.007132 | BM199: 0.37445 | BN199: 0.98323 | BO199: 0.01247 | BT199: 0.3940988 | BU199: 0.9836669 | BV199: 0.005572778 | BW199: 0.81894 | BX199: 1.03178 | BY199: -0.00946
B200: 547 | C200: 0.2125373178 | D200: 0.004312923863 | O200: 518 | P200: 0.3156262703 | Q200: 0.143871 | R200: 0.430555 | S200: 0.388481 | T200: 0.942791 | U200: 0.000393 | V200: 0.004317 | W200: 1 | X200: 0.499095 | Y200: 0.001557 | Z200: 0.000668 | AW200: 547 | AX200: 0.98616 | AY200: 0.9827 | AZ200: 0.986004 | BA200: 0.5308 | BB200: 0.985208 | BC200: 0.989985 | BE200: 0.3892 | BF200: 0.98616 | BG200: 0.01154 | BI200: 0.4828808 | BJ200: 0.9860244 | BK200: 0.006346 | BM200: 0.3892 | BN200: 0.98616 | BO200: 0.01154 | BT200: 0.4076972 | BU200: 0.9852081 | BV200: 0.005063463 | BW200: 0.86568 | BX200: 1.02456 | BY200: -0.00952
B201: 548 | C201: 0.2098316468 | D201: 0.004258018902 | O201: 519 | P201: 0.3229173018 | Q201: 0.141123 | R201: 0.404357 | S201: 0.395084 | T201: 0.956519 | U201: 0.000637 | V201: 0.003998 | W201: 0.993148 | X201: 0.506042 | Y201: 0.001694 | Z201: 0.000761 | AW201: 548 | AX201: 0.98909 | AY201: 0.9868 | AZ201: 0.988986 | BA201: 0.5142 | BB201: 0.986381 | BC201: 0.989962 | BE201: 0.40395 | BF201: 0.98909 | BG201: 0.01061 | BI201: 0.4985292 | BJ201: 0.9879366 | BK201: 0.00556 | BM201: 0.40395 | BN201: 0.98909 | BO201: 0.01061 | BT201: 0.4213484 | BU201: 0.9863813 | BV201: 0.004599169 | BW201: 0.91242 | BX201: 1.01734 | BY201: -0.00958
... 293 more rows

Sheet Database
A1: Spectrum collect
B2: 1 | C2: 2 | D2: 3 | E2: 4 | F2: 5 | G2: 6 | H2: 7 | I2: 8 | J2: 9 | K2: 10 | L2: 11 | M2: 12 | N2: 13 | O2: 14 | P2: 15
A3: Name | B3: In development | C3: LCB CRBP(blue) | D3: LV CQBP(verde) | E3: LUW CRBP(white) | F3: LT CQBP(green) | G3: LJ CKBP(red) | H3: SZB(blue) | I3: SZG(green) | J3: SZ5M2 | K3: SZA(amber) | L3: SZR(red)
A4: x | B4: 0.3019034299 | C4: 0.1594125071 | D4: 0.07647856413 | E4: 0.3361494425 | F4: 0.1792453149 | G4: 0.6843800852 | H4: 0.1465918945 | I4: 0.1650281765 | J4: 0.3539002168 | K4: 0.5880054512 | L4: 0.6916371643
A5: y | B5: 0.3007037801 | C5: 0.1163834923 | D5: 0.513211175 | E5: 0.3399783031 | F5: 0.7208509264 | G5: 0.3115712011 | H5: 0.03575623594 | I5: 0.7010313683 | J5: 0.362341994 | K5: 0.4074029048 | L5: 0.3039877551
A6: CCT | B6: 7575.301758 | C6: 19458.82989 | D6: 14081.01643 | E6: 5336.237299 | F6: 7684.843207 | G6: 4198.776283 | H6: 20066.44393 | I6: 8029.581179 | J6: 4724.801494 | K6: 1557.775359 | L6: 4746.050136
A8: wd
A9: 360 | B9: 0 | C9: 0.001545 | D9: 0.002165 | E9: 0.006836 | F9: 0.002358 | G9: 0.001188 | H9: 0.001569 | I9: 0.002437 | J9: 0.007766 | K9: 0.002268 | L9: 0.00126
A10: 361 | B10: 0 | C10: 0.001571 | D10: 0.002263 | E10: 0.008002 | F10: 0.002567 | G10: 0.001479 | H10: 0.001701 | I10: 0.002507 | J10: 0.007834 | K10: 0.002874 | L10: 0.001568
A11: 362 | B11: 0 | C11: 0.001596 | D11: 0.002067 | E11: 0.005671 | F11: 0.002777 | G11: 0.00177 | H11: 0.001436 | I11: 0.002367 | J11: 0.007699 | K11: 0.001662 | L11: 0.001877
A12: 363 | B12: 0 | C12: 0.001191 | D12: 0.001735 | E12: 0.005792 | F12: 0.003 | G12: 0.000751 | H12: 0.001486 | I12: 0.002476 | J12: 0.007957 | K12: 0.001907 | L12: 0.000948
A13: 364 | B13: 0 | C13: 0.001584 | D13: 0.001967 | E13: 0.005966 | F13: 0.003071 | G13: 0.000817 | H13: 0.001234 | I13: 0.002715 | J13: 0.008147 | K13: 0.00197 | L13: 0.001241
A14: 365 | B14: 0 | C14: 0.001976 | D14: 0.002198 | E14: 0.006139 | F14: 0.002928 | G14: 0.000882 | H14: 0.000981 | I14: 0.002954 | J14: 0.007768 | K14: 0.002034 | L14: 0.001535
A15: 366 | B15: 0 | C15: 0.001988 | D15: 0.001814 | E15: 0.005948 | F15: 0.002718 | G15: 0.000938 | H15: 0.000743 | I15: 0.002538 | J15: 0.007589 | K15: 0.002152 | L15: 0.001731
A16: 367 | B16: 0 | C16: 0.001999 | D16: 0.001429 | E16: 0.005757 | F16: 0.002509 | G16: 0.000994 | H16: 0.000505 | I16: 0.002121 | J16: 0.00741 | K16: 0.00227 | L16: 0.00134
A17: 368 | B17: 9.033423668e-06 | C17: 0.001979 | D17: 0.001744 | E17: 0.00576 | F17: 0.002252 | G17: 0.001398 | H17: 0.000813 | I17: 0.002082 | J17: 0.007462 | K17: 0.002614 | L17: 0.001356
A18: 369 | B18: 6.442587574e-05 | C18: 0.001958 | D18: 0.002059 | E18: 0.005762 | F18: 0.001995 | G18: 0.001802 | H18: 0.001122 | I18: 0.002043 | J18: 0.007513 | K18: 0.002958 | L18: 0.001372
A19: 370 | B19: 0.0001198183278 | C19: 0.001757 | D19: 0.002168 | E19: 0.005763 | F19: 0.002176 | G19: 0.001943 | H19: 0.000947 | I19: 0.00209 | J19: 0.007201 | K19: 0.002609 | L19: 0.00141
A20: 371 | B20: 0.0001752107799 | C20: 0.001555 | D20: 0.002277 | E20: 0.005764 | F20: 0.002357 | G20: 0.002084 | H20: 0.000773 | I20: 0.002138 | J20: 0.006888 | K20: 0.00226 | L20: 0.001448
A21: 372 | B21: 0.000230603232 | C21: 0.001465 | D21: 0.002488 | E21: 0.005627 | F21: 0.002413 | G21: 0.001688 | H21: 0.001095 | I21: 0.002048 | J21: 0.006972 | K21: 0.002307 | L21: 0.001421
A22: 373 | B22: 0.000285995684 | C22: 0.001375 | D22: 0.002699 | E22: 0.00549 | F22: 0.002301 | G22: 0.001292 | H22: 0.001418 | I22: 0.001957 | J22: 0.007056 | K22: 0.002354 | L22: 0.001393
A23: 374 | B23: 0.0003413881361 | C23: 0.001546 | D23: 0.00244 | E23: 0.00557 | F23: 0.002662 | G23: 0.001334 | H23: 0.001188 | I23: 0.002153 | J23: 0.007156 | K23: 0.002171 | L23: 0.001457
A24: 375 | B24: 0.0003967805882 | C24: 0.001717 | D24: 0.002181 | E24: 0.005651 | F24: 0.003024 | G24: 0.001376 | H24: 0.000958 | I24: 0.00235 | J24: 0.007257 | K24: 0.001989 | L24: 0.001521
A25: 376 | B25: 0.0004521730402 | C25: 0.001907 | D25: 0.001853 | E25: 0.005871 | F25: 0.003064 | G25: 0.001229 | H25: 0.001181 | I25: 0.002708 | J25: 0.007742 | K25: 0.002224 | L25: 0.001561
A26: 377 | B26: 0.0005075654923 | C26: 0.002096 | D26: 0.001525 | E26: 0.006091 | F26: 0.002983 | G26: 0.001083 | H26: 0.001404 | I26: 0.003067 | J26: 0.008227 | K26: 0.002459 | L26: 0.001601
A27: 378 | B27: 0.0005629579444 | C27: 0.001935 | D27: 0.001754 | E27: 0.005654 | F27: 0.002736 | G27: 0.001056 | H27: 0.001316 | I27: 0.002258 | J27: 0.007605 | K27: 0.002054 | L27: 0.001819
A28: 379 | B28: 0.0006183503965 | C28: 0.002157 | D28: 0.002002 | E28: 0.005786 | F28: 0.002709 | G28: 0.001386 | H28: 0.001332 | I28: 0.002372 | J28: 0.007556 | K28: 0.00217 | L28: 0.001574
A29: 380 | B29: 0.0006737428485 | C29: 0.00238 | D29: 0.002251 | E29: 0.005918 | F29: 0.002683 | G29: 0.001717 | H29: 0.001348 | I29: 0.002487 | J29: 0.007507 | K29: 0.002286 | L29: 0.001329
A30: 381 | B30: 0.0007291353006 | C30: 0.002236 | D30: 0.002284 | E30: 0.005758 | F30: 0.002452 | G30: 0.001904 | H30: 0.001051 | I30: 0.002388 | J30: 0.007711 | K30: 0.002341 | L30: 0.001449
A31: 382 | B31: 0.0007845277527 | C31: 0.002092 | D31: 0.002317 | E31: 0.005599 | F31: 0.002222 | G31: 0.00153 | H31: 0.000754 | I31: 0.002288 | J31: 0.007914 | K31: 0.002231 | L31: 0.001568
A32: 383 | B32: 0.0008399202048 | C32: 0.001684 | D32: 0.00222 | E32: 0.005482 | F32: 0.002491 | G32: 0.001543 | H32: 0.001041 | I32: 0.00223 | J32: 0.007306 | K32: 0.002129 | L32: 0.001469
A33: 384 | B33: 0.0008953126568 | C33: 0.001276 | D33: 0.002122 | E33: 0.005364 | F33: 0.002759 | G33: 0.001557 | H33: 0.001329 | I33: 0.002171 | J33: 0.006697 | K33: 0.002028 | L33: 0.00137
A34: 385 | B34: 0.0009507051089 | C34: 0.001389 | D34: 0.001933 | E34: 0.005396 | F34: 0.002819 | G34: 0.00153 | H34: 0.001563 | I34: 0.002101 | J34: 0.006946 | K34: 0.001826 | L34: 0.0014
A35: 386 | B35: 0.001006097561 | C35: 0.001501 | D35: 0.001745 | E35: 0.005427 | F35: 0.0027 | G35: 0.001503 | H35: 0.001094 | I35: 0.00203 | J35: 0.007194 | K35: 0.001625 | L35: 0.00143
A36: 387 | B36: 0.001061490013 | C36: 0.001547 | D36: 0.001803 | E36: 0.005268 | F36: 0.002704 | G36: 0.001305 | H36: 0.001168 | I36: 0.00219 | J36: 0.007069 | K36: 0.00165 | L36: 0.001453
A37: 388 | B37: 0.001116882465 | C37: 0.001593 | D37: 0.001862 | E37: 0.005108 | F37: 0.002708 | G37: 0.001108 | H37: 0.001241 | I37: 0.00235 | J37: 0.006944 | K37: 0.001675 | L37: 0.001406
A38: 389 | B38: 0.001172274917 | C38: 0.001666 | D38: 0.001453 | E38: 0.005217 | F38: 0.002539 | G38: 0.001132 | H38: 0.001346 | I38: 0.002475 | J38: 0.007263 | K38: 0.001686 | L38: 0.001561
A39: 390 | B39: 0.001227667369 | C39: 0.001739 | D39: 0.001044 | E39: 0.005327 | F39: 0.00237 | G39: 0.001155 | H39: 0.001451 | I39: 0.002225 | J39: 0.007581 | K39: 0.001696 | L39: 0.001716
A40: 391 | B40: 0.001283059821 | C40: 0.001906 | D40: 0.001725 | E40: 0.005772 | F40: 0.002316 | G40: 0.00118 | H40: 0.001148 | I40: 0.002135 | J40: 0.00697 | K40: 0.002045 | L40: 0.001355
A41: 392 | B41: 0.001338452273 | C41: 0.00173 | D41: 0.001734 | E41: 0.005549 | F41: 0.00205 | G41: 0.001047 | H41: 0.001098 | I41: 0.001968 | J41: 0.006968 | K41: 0.002237 | L41: 0.001283
A42: 393 | B42: 0.001393844725 | C42: 0.001554 | D42: 0.001744 | E42: 0.005325 | F42: 0.001783 | G42: 0.000913 | H42: 0.001048 | I42: 0.0018 | J42: 0.006966 | K42: 0.001853 | L42: 0.001211
A43: 394 | B43: 0.001449237178 | C43: 0.00178 | D43: 0.001803 | E43: 0.005231 | F43: 0.001896 | G43: 0.001145 | H43: 0.001156 | I43: 0.001996 | J43: 0.006634 | K43: 0.001959 | L43: 0.001323
A44: 395 | B44: 0.00150462963 | C44: 0.002005 | D44: 0.001863 | E44: 0.005136 | F44: 0.002008 | G44: 0.001377 | H44: 0.001264 | I44: 0.002193 | J44: 0.006302 | K44: 0.002065 | L44: 0.001435
A45: 396 | B45: 0.001560022082 | C45: 0.001685 | D45: 0.001777 | E45: 0.005291 | F45: 0.002148 | G45: 0.001399 | H45: 0.00132 | I45: 0.001845 | J45: 0.006251 | K45: 0.001823 | L45: 0.001169
A46: 397 | B46: 0.001615414534 | C46: 0.001365 | D46: 0.00169 | E46: 0.005446 | F46: 0.002288 | G46: 0.001356 | H46: 0.001376 | I46: 0.001497 | J46: 0.006199 | K46: 0.00158 | L46: 0.000903
A47: 398 | B47: 0.001670806986 | C47: 0.001459 | D47: 0.001733 | E47: 0.005456 | F47: 0.002461 | G47: 0.001339 | H47: 0.001334 | I47: 0.001917 | J47: 0.006445 | K47: 0.001456 | L47: 0.001083
A48: 399 | B48: 0.001726199438 | C48: 0.001553 | D48: 0.001777 | E48: 0.005437 | F48: 0.002633 | G48: 0.001323 | H48: 0.001292 | I48: 0.002337 | J48: 0.006692 | K48: 0.001333 | L48: 0.001263
A49: 400 | B49: 0.00178159189 | C49: 0.001709 | D49: 0.001408 | E49: 0.006257 | F49: 0.002526 | G49: 0.001243 | H49: 0.001271 | I49: 0.002665 | J49: 0.007568 | K49: 0.001797 | L49: 0.00136
A50: 401 | B50: 0.001836984342 | C50: 0.001865 | D50: 0.001039 | E50: 0.007078 | F50: 0.002419 | G50: 0.001164 | H50: 0.00125 | I50: 0.00201 | J50: 0.008445 | K50: 0.002261 | L50: 0.001456
A51: 402 | B51: 0.001892376794 | C51: 0.002125 | D51: 0.001239 | E51: 0.007587 | F51: 0.00236 | G51: 0.000962 | H51: 0.001117 | I51: 0.002141 | J51: 0.008804 | K51: 0.00195 | L51: 0.001485
A52: 403 | B52: 0.001947769246 | C52: 0.002385 | D52: 0.00144 | E52: 0.008096 | F52: 0.0023 | G52: 0.00076 | H52: 0.000985 | I52: 0.002271 | J52: 0.008087 | K52: 0.00164 | L52: 0.001514
A53: 404 | B53: 0.002003161698 | C53: 0.002428 | D53: 0.002108 | E53: 0.009639 | F53: 0.001647 | G53: 0.001791 | H53: 0.00114 | I53: 0.002444 | J53: 0.007824 | K53: 0.00243 | L53: 0.000993
A54: 405 | B54: 0.003438346883 | C54: 0.002322 | D54: 0.002179 | E54: 0.010746 | F54: 0.001743 | G54: 0.002646 | H54: 0.001318 | I54: 0.002213 | J54: 0.007539 | K54: 0.002033 | L54: 0.001146
A55: 406 | B55: 0.006429539295 | C55: 0.002216 | D55: 0.002037 | E55: 0.011853 | F55: 0.001838 | G55: 0.000936 | H55: 0.001497 | I55: 0.001982 | J55: 0.007254 | K55: 0.001636 | L55: 0.0013
A56: 407 | B56: 0.009420731707 | C56: 0.002586 | D56: 0.001961 | E56: 0.014097 | F56: 0.002051 | G56: 0.001012 | H56: 0.001753 | I56: 0.001976 | J56: 0.007981 | K56: 0.001797 | L56: 0.001202
A57: 408 | B57: 0.01241192412 | C57: 0.002957 | D57: 0.001886 | E57: 0.01634 | F57: 0.002265 | G57: 0.001088 | H57: 0.00201 | I57: 0.001971 | J57: 0.008707 | K57: 0.001959 | L57: 0.001104
A58: 409 | B58: 0.01540311653 | C58: 0.003053 | D58: 0.001663 | E58: 0.019517 | F58: 0.002405 | G58: 0.001171 | H58: 0.001876 | I58: 0.001975 | J58: 0.009102 | K58: 0.001735 | L58: 0.001236
A59: 410 | B59: 0.01839430894 | C59: 0.002861 | D59: 0.00144 | E59: 0.022693 | F59: 0.002546 | G59: 0.001254 | H59: 0.001743 | I59: 0.00198 | J59: 0.009497 | K59: 0.00151 | L59: 0.001367
A60: 411 | B60: 0.02138550136 | C60: 0.003783 | D60: 0.001648 | E60: 0.028488 | F60: 0.002574 | G60: 0.001008 | H60: 0.001969 | I60: 0.002082 | J60: 0.01121 | K60: 0.001343 | L60: 0.001485
A61: 412 | B61: 0.02437669377 | C61: 0.004704 | D61: 0.001856 | E61: 0.034283 | F61: 0.002602 | G61: 0.000762 | H61: 0.002196 | I61: 0.002185 | J61: 0.012922 | K61: 0.001177 | L61: 0.00125
A62: 413 | B62: 0.02736788618 | C62: 0.005834 | D62: 0.001303 | E62: 0.041876 | F62: 0.002179 | G62: 0.000905 | H62: 0.002568 | I62: 0.001823 | J62: 0.014564 | K62: 0.001409 | L62: 0.001172
A63: 414 | B63: 0.03035907859 | C63: 0.006964 | D63: 0.00075 | E63: 0.049469 | F63: 0.001756 | G63: 0.001048 | H63: 0.00294 | I63: 0.001462 | J63: 0.016205 | K63: 0.001642 | L63: 0.001095
A64: 415 | B64: 0.033350271 | C64: 0.00853 | D64: 0.001244 | E64: 0.06132 | F64: 0.001873 | G64: 0.001199 | H64: 0.003585 | I64: 0.001743 | J64: 0.019107 | K64: 0.001748 | L64: 0.001243
A65: 416 | B65: 0.03634146341 | C65: 0.010096 | D65: 0.001738 | E65: 0.073172 | F65: 0.00199 | G65: 0.00135 | H65: 0.00423 | I65: 0.002025 | J65: 0.022009 | K65: 0.001854 | L65: 0.001391
A66: 417 | B66: 0.03933265583 | C66: 0.014582 | D66: 0.001764 | E66: 0.100122 | F66: 0.001748 | G66: 0.001947 | H66: 0.005476 | I66: 0.001745 | J66: 0.027675 | K66: 0.001646 | L66: 0.000987
A67: 418 | B67: 0.04232384824 | C67: 0.017974 | D67: 0.001862 | E67: 0.120316 | F67: 0.001738 | G67: 0.001606 | H67: 0.006525 | I67: 0.00171 | J67: 0.032476 | K67: 0.001594 | L67: 0.000861
A68: 419 | B68: 0.04531504065 | C68: 0.021366 | D68: 0.001961 | E68: 0.140509 | F68: 0.001728 | G68: 0.001265 | H68: 0.007574 | I68: 0.001674 | J68: 0.037277 | K68: 0.001542 | L68: 0.000735
A69: 420 | B69: 0.04830623306 | C69: 0.026001 | D69: 0.001753 | E69: 0.16265 | F69: 0.001956 | G69: 0.001157 | H69: 0.009324 | I69: 0.001662 | J69: 0.043227 | K69: 0.001198 | L69: 0.000872
A70: 421 | B70: 0.05129742547 | C70: 0.030635 | D70: 0.001545 | E70: 0.184791 | F70: 0.002183 | G70: 0.001049 | H70: 0.011073 | I70: 0.00165 | J70: 0.049176 | K70: 0.000854 | L70: 0.001009
A71: 422 | B71: 0.05428861789 | C71: 0.03814 | D71: 0.001525 | E71: 0.217751 | F71: 0.002347 | G71: 0.001012 | H71: 0.013753 | I71: 0.001861 | J71: 0.057884 | K71: 0.00105 | L71: 0.001026
A72: 423 | B72: 0.06648656278 | C72: 0.045646 | D72: 0.001506 | E72: 0.250712 | F72: 0.00202 | G72: 0.000974 | H72: 0.016433 | I72: 0.002073 | J72: 0.066591 | K72: 0.001246 | L72: 0.001044
A73: 424 | B73: 0.08094399277 | C73: 0.055208 | D73: 0.001449 | E73: 0.282919 | F73: 0.001828 | G73: 0.000794 | H73: 0.019392 | I73: 0.001918 | J73: 0.075242 | K73: 0.001105 | L73: 0.001059
A74: 425 | B74: 0.09540142276 | C74: 0.064771 | D74: 0.001393 | E74: 0.315127 | F74: 0.001635 | G74: 0.000613 | H74: 0.022351 | I74: 0.001762 | J74: 0.083893 | K74: 0.000965 | L74: 0.001075
A75: 426 | B75: 0.1098588528 | C75: 0.079555 | D75: 0.001459 | E75: 0.359609 | F75: 0.001648 | G75: 0.000659 | H75: 0.027282 | I75: 0.001731 | J75: 0.096932 | K75: 0.001277 | L75: 0.000947
A76: 427 | B76: 0.1246781843 | C76: 0.094339 | D76: 0.001526 | E76: 0.404092 | F76: 0.00166 | G76: 0.000704 | H76: 0.032214 | I76: 0.001699 | J76: 0.109971 | K76: 0.001588 | L76: 0.000819
A77: 428 | B77: 0.1396341463 | C77: 0.112386 | D77: 0.001817 | E77: 0.447668 | F77: 0.001785 | G77: 0.001087 | H77: 0.038523 | I77: 0.001812 | J77: 0.124201 | K77: 0.001826 | L77: 0.000985
A78: 429 | B78: 0.1545901084 | C78: 0.130434 | D78: 0.002109 | E78: 0.491245 | F78: 0.001909 | G78: 0.00147 | H78: 0.044833 | I78: 0.001925 | J78: 0.138431 | K78: 0.00135 | L78: 0.001151
A79: 430 | B79: 0.1695460705 | C79: 0.176769 | D79: 0.00195 | E79: 0.583679 | F79: 0.002057 | G79: 0.001009 | H79: 0.061081 | I79: 0.001949 | J79: 0.169442 | K79: 0.001628 | L79: 0.000816
A80: 431 | B80: 0.1864430894 | C80: 0.205508 | D80: 0.001976 | E80: 0.628673 | F80: 0.002304 | G80: 0.001206 | H80: 0.07171 | I80: 0.002001 | J80: 0.186562 | K80: 0.001687 | L80: 0.000714
A81: 432 | B81: 0.2043902439 | C81: 0.234247 | D81: 0.002002 | E81: 0.673666 | F81: 0.00255 | G81: 0.001403 | H81: 0.08234 | I81: 0.002052 | J81: 0.203682 | K81: 0.001569 | L81: 0.000612
A82: 433 | B82: 0.2223373984 | C82: 0.274932 | D82: 0.001861 | E82: 0.729797 | F82: 0.002407 | G82: 0.001064 | H82: 0.097632 | I82: 0.002085 | J82: 0.225121 | K82: 0.001435 | L82: 0.000817
A83: 434 | B83: 0.2393563686 | C83: 0.315617 | D83: 0.00172 | E83: 0.785928 | F83: 0.002263 | G83: 0.000726 | H83: 0.112925 | I83: 0.002019 | J83: 0.246559 | K83: 0.001301 | L83: 0.001022
A84: 435 | B84: 0.2563064589 | C84: 0.361387 | D84: 0.001707 | E84: 0.830131 | F84: 0.00237 | G84: 0.000766 | H84: 0.130384 | I84: 0.002184 | J84: 0.266237 | K84: 0.001528 | L84: 0.001085
A85: 436 | B85: 0.2732565492 | C85: 0.407157 | D85: 0.001694 | E85: 0.874335 | F85: 0.002477 | G85: 0.000807 | H85: 0.147844 | I85: 0.002348 | J85: 0.285916 | K85: 0.001755 | L85: 0.001147
A86: 437 | B86: 0.2902066396 | C86: 0.463596 | D86: 0.001728 | E86: 0.91355 | F86: 0.00237 | G86: 0.000763 | H86: 0.170698 | I86: 0.002114 | J86: 0.308333 | K86: 0.001974 | L86: 0.001026
A87: 438 | B87: 0.3150321816 | C87: 0.520035 | D87: 0.001762 | E87: 0.952765 | F87: 0.002263 | G87: 0.000719 | H87: 0.193553 | I87: 0.00188 | J87: 0.330751 | K87: 0.001536 | L87: 0.000905
A88: 439 | B88: 0.3412051152 | C88: 0.582412 | D88: 0.001919 | E88: 0.976382 | F88: 0.00211 | G88: 0.000865 | H88: 0.221247 | I88: 0.002253 | J88: 0.355203 | K88: 0.001655 | L88: 0.000963
A89: 440 | B89: 0.3678861789 | C89: 0.644789 | D89: 0.002076 | E89: 1 | F89: 0.001957 | G89: 0.001011 | H89: 0.248941 | I89: 0.002626 | J89: 0.379655 | K89: 0.001773 | L89: 0.00102
A90: 441 | B90: 0.397798103 | C90: 0.759427 | D90: 0.002373 | E90: 0.991463 | F90: 0.002375 | G90: 0.001681 | H90: 0.31044 | I90: 0.002279 | J90: 0.429717 | K90: 0.001728 | L90: 0.000727
A91: 442 | B91: 0.4277100271 | C91: 0.808478 | D91: 0.002427 | E91: 0.964877 | F91: 0.002429 | G91: 0.002347 | H91: 0.346243 | I91: 0.002328 | J91: 0.459402 | K91: 0.001466 | L91: 0.000788
A92: 443 | B92: 0.4591844512 | C92: 0.857529 | D92: 0.00248 | E92: 0.93829 | F92: 0.002322 | G92: 0.001015 | H92: 0.382046 | I92: 0.002377 | J92: 0.489086 | K92: 0.001203 | L92: 0.000849
A93: 444 | B93: 0.4928353659 | C93: 0.908027 | D93: 0.002826 | E93: 0.910719 | F93: 0.0025 | G93: 0.000888 | H93: 0.431578 | I93: 0.002521 | J93: 0.535237 | K93: 0.00131 | L93: 0.000852
A94: 445 | B94: 0.5264862805 | C94: 0.958526 | D94: 0.003172 | E94: 0.883148 | F94: 0.002678 | G94: 0.00076 | H94: 0.481109 | I94: 0.002666 | J94: 0.581387 | K94: 0.001416 | L94: 0.000855
A95: 446 | B95: 0.6509218931 | C95: 0.977926 | D95: 0.003289 | E95: 0.830339 | F95: 0.002495 | G95: 0.000851 | H95: 0.531646 | I95: 0.002926 | J95: 0.628199 | K95: 0.001463 | L95: 0.000909
A96: 447 | B96: 0.6690827042 | C96: 0.997326 | D96: 0.003407 | E96: 0.77753 | F96: 0.002313 | G96: 0.000941 | H96: 0.582182 | I96: 0.003187 | J96: 0.675011 | K96: 0.00137 | L96: 0.000963
A97: 448 | B97: 0.6872435153 | C97: 0.998663 | D97: 0.003863 | E97: 0.723234 | F97: 0.002295 | G97: 0.000691 | H97: 0.638865 | I97: 0.003315 | J97: 0.728658 | K97: 0.001584 | L97: 0.000992
A98: 449 | B98: 0.7054043264 | C98: 1 | D98: 0.00432 | E98: 0.668939 | F98: 0.002277 | G98: 0.00044 | H98: 0.695548 | I98: 0.003443 | J98: 0.782305 | K98: 0.001797 | L98: 0.001021
A99: 450 | B99: 0.7235651374 | C99: 0.979826 | D99: 0.004988 | E99: 0.615092 | F99: 0.002148 | G99: 0.000679 | H99: 0.752419 | I99: 0.003742 | J99: 0.83477 | K99: 0.001829 | L99: 0.000991
A100: 451 | B100: 0.7786782972 | C100: 0.959651 | D100: 0.005657 | E100: 0.561246 | F100: 0.002018 | G100: 0.000917 | H100: 0.80929 | I100: 0.004042 | J100: 0.887236 | K100: 0.00186 | L100: 0.000961
A101: 452 | B101: 0.8360094851 | C101: 0.91274 | D101: 0.006221 | E101: 0.508325 | F101: 0.002124 | G101: 0.000772 | H101: 0.850903 | I101: 0.004245 | J101: 0.920121 | K101: 0.001756 | L101: 0.00077
A102: 453 | B102: 0.9377936992 | C102: 0.865829 | D102: 0.006784 | E102: 0.455404 | F102: 0.002231 | G102: 0.000627 | H102: 0.892516 | I102: 0.003838 | J102: 0.953006 | K102: 0.001652 | L102: 0.00058
A103: 454 | B103: 0.9476646341 | C103: 0.763696 | D103: 0.009617 | E103: 0.374234 | F103: 0.002693 | G103: 0.000994 | H103: 0.954252 | I103: 0.005029 | J103: 0.992989 | K103: 0.001094 | L103: 0.000921
A104: 455 | B104: 0.9575355691 | C104: 0.713061 | D104: 0.010859 | E104: 0.344143 | F104: 0.002972 | G104: 0.001003 | H104: 0.969795 | I104: 0.005124 | J104: 0.996494 | K104: 0.001087 | L104: 0.001193
A105: 456 | B105: 0.9674065041 | C105: 0.662426 | D105: 0.012101 | E105: 0.314053 | F105: 0.00325 | G105: 0.001013 | H105: 0.985338 | I105: 0.005218 | J105: 1 | K105: 0.00108 | L105: 0.00065
A106: 457 | B106: 0.977277439 | C106: 0.6144 | D106: 0.013781 | E106: 0.290541 | F106: 0.003316 | G106: 0.000749 | H106: 1 | I106: 0.005665 | J106: 0.981339 | K106: 0.001182 | L106: 0.00079
A107: 458 | B107: 0.987148374 | C107: 0.566373 | D107: 0.015461 | E107: 0.267029 | F107: 0.003185 | G107: 0.000485 | H107: 0.970676 | I107: 0.006113 | J107: 0.962679 | K107: 0.001283 | L107: 0.000931
A108: 459 | B108: 0.9944891599 | C108: 0.523488 | D108: 0.017653 | E108: 0.24694 | F108: 0.003371 | G108: 0.000613 | H108: 0.939376 | I108: 0.006788 | J108: 0.923349 | K108: 0.001488 | L108: 0.000945
A109: 460 | B109: 0.9813279133 | C109: 0.480602 | D109: 0.019846 | E109: 0.226851 | F109: 0.003557 | G109: 0.00074 | H109: 0.908075 | I109: 0.007463 | J109: 0.884018 | K109: 0.001692 | L109: 0.000959
A110: 461 | B110: 0.9681666667 | C110: 0.447237 | D110: 0.023234 | E110: 0.210458 | F110: 0.00377 | G110: 0.000915 | H110: 0.864864 | I110: 0.00813 | J110: 0.838309 | K110: 0.001852 | L110: 0.000924
A111: 462 | B111: 0.9550054201 | C111: 0.413871 | D111: 0.026623 | E111: 0.194065 | F111: 0.003983 | G111: 0.001089 | H111: 0.821653 | I111: 0.008798 | J111: 0.792599 | K111: 0.001533 | L111: 0.000888
A112: 463 | B112: 0.9418441734 | C112: 0.382307 | D112: 0.030229 | E112: 0.178846 | F112: 0.004269 | G112: 0.001214 | H112: 0.76295 | I112: 0.009481 | J112: 0.738385 | K112: 0.001732 | L112: 0.000949
A113: 464 | B113: 0.9286829268 | C113: 0.350742 | D113: 0.033834 | E113: 0.163628 | F113: 0.004554 | G113: 0.00134 | H113: 0.704246 | I113: 0.010163 | J113: 0.684171 | K113: 0.001932 | L113: 0.001009
A114: 465 | B114: 0.9155216802 | C114: 0.303836 | D114: 0.044123 | E114: 0.139896 | F114: 0.005273 | G114: 0.00059 | H114: 0.600696 | I114: 0.012355 | J114: 0.599838 | K114: 0.001746 | L114: 0.000761
A115: 466 | B115: 0.8930058717 | C115: 0.281989 | D115: 0.050563 | E115: 0.129731 | F115: 0.006134 | G115: 0.000642 | H115: 0.551147 | I115: 0.013658 | J115: 0.562765 | K115: 0.001541 | L115: 0.000813
A116: 467 | B116: 0.8501321138 | C116: 0.260141 | D116: 0.057003 | E116: 0.119566 | F116: 0.006995 | G116: 0.000694 | H116: 0.501597 | I116: 0.014961 | J116: 0.525691 | K116: 0.001337 | L116: 0.000865
A117: 468 | B117: 0.8084637534 | C117: 0.242248 | D117: 0.065098 | E117: 0.11227 | F117: 0.007779 | G117: 0.000569 | H117: 0.461326 | I117: 0.016748 | J117: 0.498224 | K117: 0.001376 | L117: 0.000813
A118: 469 | B118: 0.7699521511 | C118: 0.224355 | D118: 0.073194 | E118: 0.104974 | F118: 0.008562 | G118: 0.000445 | H118: 0.421056 | I118: 0.018534 | J118: 0.470756 | K118: 0.001414 | L118: 0.000762
A119: 470 | B119: 0.7314405488 | C119: 0.208549 | D119: 0.08309 | E119: 0.098532 | F119: 0.0093 | G119: 0.000593 | H119: 0.385069 | I119: 0.020549 | J119: 0.445091 | K119: 0.001427 | L119: 0.000858
A120: 471 | B120: 0.6945990007 | C120: 0.192743 | D120: 0.092986 | E120: 0.092091 | F120: 0.010037 | G120: 0.000741 | H120: 0.349082 | I120: 0.022565 | J120: 0.419427 | K120: 0.00144 | L120: 0.000953
A121: 472 | B121: 0.6590785908 | C121: 0.18227 | D121: 0.106889 | E121: 0.089046 | F121: 0.011199 | G121: 0.000869 | H121: 0.323818 | I121: 0.025199 | J121: 0.402849 | K121: 0.001683 | L121: 0.00103
A122: 473 | B122: 0.6235581809 | C122: 0.171798 | D122: 0.120793 | E122: 0.086002 | F122: 0.01236 | G122: 0.000612 | H122: 0.298554 | I122: 0.027834 | J122: 0.386271 | K122: 0.001927 | L122: 0.001106
A123: 474 | B123: 0.597463584 | C123: 0.153124 | D123: 0.152874 | E123: 0.078786 | F123: 0.015292 | G123: 0.000968 | H123: 0.247854 | I123: 0.033647 | J123: 0.345 | K123: 0.001733 | L123: 0.000649
A124: 475 | B124: 0.5731601457 | C124: 0.147729 | D124: 0.173607 | E124: 0.076837 | F124: 0.016953 | G124: 0.001018 | H124: 0.227937 | I124: 0.037535 | J124: 0.328898 | K124: 0.001554 | L124: 0.000544
A125: 476 | B125: 0.5475 | C125: 0.142333 | D125: 0.19434 | E125: 0.074887 | F125: 0.018615 | G125: 0.000918 | H125: 0.208021 | I125: 0.041424 | J125: 0.312796 | K125: 0.001375 | L125: 0.00044
A126: 477 | B126: 0.5121042231 | C126: 0.137796 | D126: 0.217236 | E126: 0.073318 | F126: 0.021107 | G126: 0.000975 | H126: 0.189167 | I126: 0.045726 | J126: 0.296156 | K126: 0.001368 | L126: 0.000661
A127: 478 | B127: 0.4776693767 | C127: 0.133258 | D127: 0.240133 | E127: 0.071748 | F127: 0.023598 | G127: 0.001032 | H127: 0.170314 | I127: 0.050027 | J127: 0.279516 | K127: 0.001361 | L127: 0.000881
A128: 479 | B128: 0.4537398374 | C128: 0.132081 | D128: 0.270275 | E128: 0.071698 | F128: 0.026641 | G128: 0.000868 | H128: 0.156259 | I128: 0.055879 | J128: 0.269388 | K128: 0.001292 | L128: 0.000933
A129: 480 | B129: 0.4298102981 | C129: 0.130903 | D129: 0.300417 | E129: 0.071647 | F129: 0.029684 | G129: 0.000703 | H129: 0.142205 | I129: 0.06173 | J129: 0.25926 | K129: 0.001224 | L129: 0.000984
A130: 481 | B130: 0.4086161924 | C130: 0.129586 | D130: 0.332538 | E130: 0.071878 | F130: 0.033217 | G130: 0.000536 | H130: 0.128964 | I130: 0.068289 | J130: 0.249677 | K130: 0.001132 | L130: 0.000996
A131: 482 | B131: 0.3921646341 | C131: 0.128269 | D131: 0.364659 | E131: 0.072109 | F131: 0.03675 | G131: 0.000368 | H131: 0.115724 | I131: 0.074849 | J131: 0.240093 | K131: 0.001039 | L131: 0.001008
A132: 483 | B132: 0.3757130759 | C132: 0.128426 | D132: 0.401186 | E132: 0.073638 | F132: 0.041172 | G132: 0.000513 | H132: 0.105351 | I132: 0.082759 | J132: 0.233884 | K132: 0.001213 | L132: 0.000849
A133: 484 | B133: 0.3592615176 | C133: 0.128583 | D133: 0.437712 | E133: 0.075166 | F133: 0.045595 | G133: 0.000659 | H133: 0.094978 | I133: 0.09067 | J133: 0.227675 | K133: 0.001386 | L133: 0.00069
A134: 485 | B134: 0.3430978997 | C134: 0.127185 | D134: 0.506777 | E134: 0.078523 | F134: 0.055106 | G134: 0.000595 | H134: 0.077038 | I134: 0.106829 | J134: 0.215926 | K134: 0.00166 | L134: 0.000653
A135: 486 | B135: 0.3276434056 | C135: 0.129105 | D135: 0.550085 | E135: 0.08237 | F135: 0.062303 | G135: 0.000682 | H135: 0.070899 | I135: 0.118419 | J135: 0.215693 | K135: 0.001744 | L135: 0.000567
A136: 487 | B136: 0.3121889115 | C136: 0.131025 | D136: 0.593394 | E136: 0.086218 | F136: 0.0695 | G136: 0.000768 | H136: 0.064761 | I136: 0.130009 | J136: 0.21546 | K136: 0.001576 | L136: 0.000481
A137: 488 | B137: 0.2967344173 | C137: 0.13186 | D137: 0.632768 | E137: 0.090325 | F137: 0.077336 | G137: 0.000775 | H137: 0.059393 | I137: 0.142646 | J137: 0.215533 | K137: 0.001372 | L137: 0.000555
A138: 489 | B138: 0.2836026423 | C138: 0.132694 | D138: 0.672142 | E138: 0.094432 | F138: 0.085171 | G138: 0.000781 | H138: 0.054025 | I138: 0.155282 | J138: 0.215606 | K138: 0.001168 | L138: 0.000628
A139: 490 | B139: 0.2791158537 | C139: 0.13481 | D139: 0.712838 | E139: 0.099954 | F139: 0.095373 | G139: 0.000753 | H139: 0.049896 | I139: 0.171163 | J139: 0.217788 | K139: 0.001112 | L139: 0.000581
A140: 491 | B140: 0.274629065 | C140: 0.136927 | D140: 0.753534 | E140: 0.105477 | F140: 0.105575 | G140: 0.000725 | H140: 0.045766 | I140: 0.187043 | J140: 0.21997 | K140: 0.001056 | L140: 0.000533
A141: 492 | B141: 0.2701422764 | C141: 0.139243 | D141: 0.792351 | E141: 0.112286 | F141: 0.117932 | G141: 0.000652 | H141: 0.042022 | I141: 0.205868 | J141: 0.223822 | K141: 0.001173 | L141: 0.000676
A142: 493 | B142: 0.2656554878 | C142: 0.14156 | D142: 0.831168 | E142: 0.119096 | F142: 0.130288 | G142: 0.000579 | H142: 0.038278 | I142: 0.224693 | J142: 0.227674 | K142: 0.001289 | L142: 0.000818
A143: 494 | B143: 0.2611686992 | C143: 0.144129 | D143: 0.887209 | E143: 0.132749 | F143: 0.157633 | G143: 0.000351 | H143: 0.031755 | I143: 0.265157 | J143: 0.235138 | K143: 0.001295 | L143: 0.000943
A144: 495 | B144: 0.2566819106 | C144: 0.145743 | D144: 0.911569 | E144: 0.140684 | F144: 0.174249 | G144: 0.000474 | H144: 0.02898 | I144: 0.288982 | J144: 0.240699 | K144: 0.001376 | L144: 0.00085
A145: 496 | B145: 0.252195122 | C145: 0.147356 | D145: 0.935928 | E145: 0.14862 | F145: 0.190865 | G145: 0.000598 | H145: 0.026205 | I145: 0.312806 | J145: 0.246259 | K145: 0.001457 | L145: 0.000758
A146: 497 | B146: 0.2477083333 | C146: 0.149009 | D146: 0.954543 | E146: 0.157578 | F146: 0.211211 | G146: 0.000623 | H146: 0.023931 | I146: 0.341153 | J146: 0.254131 | K146: 0.001496 | L146: 0.000732
A147: 498 | B147: 0.2432215447 | C147: 0.150662 | D147: 0.973158 | E147: 0.166536 | F147: 0.231556 | G147: 0.000648 | H147: 0.021656 | I147: 0.3695 | J147: 0.262003 | K147: 0.001536 | L147: 0.000706
A148: 499 | B148: 0.2387347561 | C148: 0.152059 | D148: 0.982486 | E148: 0.176176 | F148: 0.255573 | G148: 0.000614 | H148: 0.01998 | I148: 0.401768 | J148: 0.271467 | K148: 0.001563 | L148: 0.000605
A149: 500 | B149: 0.2371273713 | C149: 0.153457 | D149: 0.991814 | E149: 0.185816 | F149: 0.279591 | G149: 0.000581 | H149: 0.018303 | I149: 0.434036 | J149: 0.280932 | K149: 0.001589 | L149: 0.000505
A150: 501 | B150: 0.2411156278 | C150: 0.154507 | D150: 1 | E150: 0.195817 | F150: 0.306681 | G150: 0.000699 | H150: 0.016759 | I150: 0.468802 | J150: 0.291004 | K150: 0.001553 | L150: 0.000572
A151: 502 | B151: 0.2451038844 | C151: 0.155557 | D151: 0.983629 | E151: 0.205818 | F151: 0.333771 | G151: 0.000817 | H151: 0.015214 | I151: 0.503568 | J151: 0.301075 | K151: 0.001516 | L151: 0.000639
A152: 503 | B152: 0.2490921409 | C152: 0.156559 | D152: 0.972568 | E152: 0.217325 | F152: 0.365008 | G152: 0.000551 | H152: 0.014067 | I152: 0.542249 | J152: 0.313233 | K152: 0.001271 | L152: 0.000597
A153: 504 | B153: 0.2530803975 | C153: 0.15756 | D153: 0.961507 | E153: 0.228832 | F153: 0.396245 | G153: 0.000286 | H153: 0.01292 | I153: 0.580929 | J153: 0.32539 | K153: 0.001027 | L153: 0.000555
A154: 505 | B154: 0.257068654 | C154: 0.157143 | D154: 0.90573 | E154: 0.248249 | F154: 0.460238 | G154: 0.00055 | H154: 0.010878 | I154: 0.653411 | J154: 0.345249 | K154: 0.001128 | L154: 0.001198
A155: 506 | B155: 0.2610569106 | C155: 0.157437 | D155: 0.876889 | E155: 0.259739 | F155: 0.497461 | G155: 0.000686 | H155: 0.010219 | I155: 0.69351 | J155: 0.358096 | K155: 0.001394 | L155: 0.00174
A156: 507 | B156: 0.2650451671 | C156: 0.157731 | D156: 0.848047 | E156: 0.27123 | F156: 0.534685 | G156: 0.000414 | H156: 0.00956 | I156: 0.733608 | J156: 0.370943 | K156: 0.00166 | L156: 0.000656
A157: 508 | B157: 0.2690334237 | C157: 0.157539 | D157: 0.811337 | E157: 0.28178 | F157: 0.57215 | G157: 0.000579 | H157: 0.008862 | I157: 0.76995 | J157: 0.382579 | K157: 0.001703 | L157: 0.000741
A158: 509 | B158: 0.2730216802 | C158: 0.157347 | D158: 0.774626 | E158: 0.29233 | F158: 0.609615 | G158: 0.000745 | H158: 0.008163 | I158: 0.806293 | J158: 0.394215 | K158: 0.001745 | L158: 0.000827
A159: 510 | B159: 0.2770099368 | C159: 0.156826 | D159: 0.73817 | E159: 0.30364 | F159: 0.650165 | G159: 0.000943 | H159: 0.007722 | I159: 0.841114 | J159: 0.406779 | K159: 0.001716 | L159: 0.000884
A160: 511 | B160: 0.2809981933 | C160: 0.156305 | D160: 0.701714 | E160: 0.31495 | F160: 0.690715 | G160: 0.001142 | H160: 0.00728 | I160: 0.875935 | J160: 0.419343 | K160: 0.001687 | L160: 0.00077
A161: 512 | B161: 0.2849864499 | C161: 0.154522 | D161: 0.66113 | E161: 0.323688 | F161: 0.725125 | G161: 0.000968 | H161: 0.006733 | I161: 0.89896 | J161: 0.428358 | K161: 0.00157 | L161: 0.00067
A162: 513 | B162: 0.2889747064 | C162: 0.152739 | D162: 0.620546 | E162: 0.332425 | F162: 0.759534 | G162: 0.000794 | H162: 0.006186 | I162: 0.921985 | J162: 0.437373 | K162: 0.001454 | L162: 0.00057
A163: 514 | B163: 0.292962963 | C163: 0.150393 | D163: 0.551697 | E163: 0.352525 | F163: 0.832518 | G163: 0.000503 | H163: 0.005378 | I163: 0.965976 | J163: 0.460552 | K163: 0.001255 | L163: 0.000746
A164: 515 | B164: 0.2969512195 | C164: 0.148182 | D164: 0.517394 | E164: 0.360065 | F164: 0.859249 | G164: 0.000605 | H164: 0.005148 | I164: 0.97457 | J164: 0.468634 | K164: 0.001334 | L164: 0.000774
A165: 516 | B165: 0.3010442073 | C165: 0.145971 | D165: 0.48309 | E165: 0.367604 | F165: 0.88598 | G165: 0.000706 | H165: 0.004918 | I165: 0.983163 | J165: 0.476717 | K165: 0.001413 | L165: 0.000719
A166: 517 | B166: 0.3083352388 | C166: 0.144921 | D166: 0.456823 | E166: 0.378043 | F166: 0.914385 | G166: 0.00055 | H166: 0.004617 | I166: 0.991582 | J166: 0.487906 | K166: 0.001485 | L166: 0.000694
A167: 518 | B167: 0.3156262703 | C167: 0.143871 | D167: 0.430555 | E167: 0.388481 | F167: 0.942791 | G167: 0.000393 | H167: 0.004317 | I167: 1 | J167: 0.499095 | K167: 0.001557 | L167: 0.000668
A168: 519 | B168: 0.3229173018 | C168: 0.141123 | D168: 0.404357 | E168: 0.395084 | F168: 0.956519 | G168: 0.000637 | H168: 0.003998 | I168: 0.993148 | J168: 0.506042 | K168: 0.001694 | L168: 0.000761
A169: 520 | B169: 0.3302083333 | C169: 0.138376 | D169: 0.378159 | E169: 0.401686 | F169: 0.970246 | G169: 0.00088 | H169: 0.003679 | I169: 0.986296 | J169: 0.512989 | K169: 0.001831 | L169: 0.000853
A170: 521 | B170: 0.3374993648 | C170: 0.134796 | D170: 0.335676 | E170: 0.418245 | F170: 0.992357 | G170: 0.000956 | H170: 0.003204 | I170: 0.969657 | J170: 0.530873 | K170: 0.001818 | L170: 0.000774
A171: 522 | B171: 0.3447903963 | C171: 0.131955 | D171: 0.314767 | E171: 0.423759 | F171: 1 | G171: 0.001 | H171: 0.003191 | I171: 0.950093 | J171: 0.536343 | K171: 0.001685 | L171: 0.000602
A172: 523 | B172: 0.3520814278 | C172: 0.129113 | D172: 0.293857 | E172: 0.429273 | F172: 0.984714 | G172: 0.001045 | H172: 0.003179 | I172: 0.93053 | J172: 0.541814 | K172: 0.001551 | L172: 0.000429
A173: 524 | B173: 0.3593724593 | C173: 0.127178 | D173: 0.276996 | E173: 0.437119 | F173: 0.980234 | G173: 0.000808 | H173: 0.003172 | I173: 0.913496 | J173: 0.55059 | K173: 0.001563 | L173: 0.000525
A174: 525 | B174: 0.3666634909 | C174: 0.125244 | D174: 0.260135 | E174: 0.444966 | F174: 0.975754 | G174: 0.000571 | H174: 0.003166 | I174: 0.896463 | J174: 0.559366 | K174: 0.001574 | L174: 0.000621
A175: 526 | B175: 0.3739545224 | C175: 0.122828 | D175: 0.243889 | E175: 0.450864 | F175: 0.958956 | G175: 0.000596 | H175: 0.003003 | I175: 0.872357 | J175: 0.565577 | K175: 0.00158 | L175: 0.000658
A176: 527 | B176: 0.3807181572 | C176: 0.120412 | D176: 0.227644 | E176: 0.456762 | F176: 0.942158 | G176: 0.00062 | H176: 0.002839 | I176: 0.848252 | J176: 0.571788 | K176: 0.001587 | L176: 0.000695
A177: 528 | B177: 0.3847064137 | C177: 0.118402 | D177: 0.213614 | E177: 0.463122 | F177: 0.921862 | G177: 0.000673 | H177: 0.002674 | I177: 0.824539 | J177: 0.578941 | K177: 0.00168 | L177: 0.000903
A178: 529 | B178: 0.3886946703 | C178: 0.116392 | D178: 0.199584 | E178: 0.469482 | F178: 0.901567 | G178: 0.000726 | H178: 0.002508 | I178: 0.800826 | J178: 0.586093 | K178: 0.001774 | L178: 0.001111
A179: 530 | B179: 0.3926829268 | C179: 0.110378 | D179: 0.171963 | E179: 0.474912 | F179: 0.838474 | G179: 0.000931 | H179: 0.002413 | I179: 0.738411 | J179: 0.59027 | K179: 0.001753 | L179: 0.000797
A180: 531 | B180: 0.3966711834 | C180: 0.108538 | D180: 0.161734 | E180: 0.481715 | F180: 0.812818 | G180: 0.001077 | H180: 0.002275 | I180: 0.714849 | J180: 0.598131 | K180: 0.002047 | L180: 0.000878
A181: 532 | B181: 0.4006594399 | C181: 0.106698 | D181: 0.151504 | E181: 0.488518 | F181: 0.787162 | G181: 0.000785 | H181: 0.002137 | I181: 0.691287 | J181: 0.605991 | K181: 0.002342 | L181: 0.000959
A182: 533 | B182: 0.4046476965 | C182: 0.10397 | D182: 0.141168 | E182: 0.492271 | F182: 0.755932 | G182: 0.000776 | H182: 0.002083 | I182: 0.664213 | J182: 0.610005 | K182: 0.002607 | L182: 0.000725
A183: 534 | B183: 0.408635953 | C183: 0.101241 | D183: 0.130833 | E183: 0.496023 | F183: 0.724702 | G183: 0.000768 | H183: 0.002029 | I183: 0.637139 | J183: 0.614019 | K183: 0.002076 | L183: 0.000492
A184: 535 | B184: 0.4126242096 | C184: 0.098999 | D184: 0.122457 | E184: 0.500671 | F184: 0.695155 | G184: 0.000741 | H184: 0.00196 | I184: 0.612323 | J184: 0.619447 | K184: 0.002151 | L184: 0.000466
A185: 536 | B185: 0.4166124661 | C185: 0.096757 | D185: 0.114081 | E185: 0.505318 | F185: 0.665608 | G185: 0.000714 | H185: 0.001891 | I185: 0.587507 | J185: 0.624875 | K185: 0.002226 | L185: 0.00044
A186: 537 | B186: 0.4206007227 | C186: 0.094678 | D186: 0.107015 | E186: 0.51001 | F186: 0.637115 | G186: 0.000631 | H186: 0.001714 | I186: 0.563862 | J186: 0.630162 | K186: 0.002404 | L186: 0.000658
A187: 538 | B187: 0.4245889792 | C187: 0.092599 | D187: 0.099948 | E187: 0.514702 | F187: 0.608622 | G187: 0.000548 | H187: 0.001538 | I187: 0.540217 | J187: 0.63545 | K187: 0.002582 | L187: 0.000876
A188: 539 | B188: 0.4285772358 | C188: 0.087544 | D188: 0.086529 | E188: 0.51756 | F188: 0.550058 | G188: 0.000674 | H188: 0.001835 | I188: 0.490269 | J188: 0.639896 | K188: 0.003029 | L188: 0.001083
A189: 540 | B189: 0.4325654923 | C189: 0.085125 | D189: 0.080701 | E189: 0.520122 | F189: 0.523687 | G189: 0.000738 | H189: 0.001923 | I189: 0.467284 | J189: 0.64265 | K189: 0.003314 | L189: 0.001126
A190: 541 | B190: 0.4365537489 | C190: 0.082707 | D190: 0.074872 | E190: 0.522683 | F190: 0.497317 | G190: 0.000802 | H190: 0.001747 | I190: 0.444299 | J190: 0.645405 | K190: 0.003599 | L190: 0.00104
A191: 542 | B191: 0.4405420054 | C191: 0.080567 | D191: 0.070599 | E191: 0.526012 | F191: 0.474256 | G191: 0.001082 | H191: 0.001791 | I191: 0.42426 | J191: 0.649854 | K191: 0.004162 | L191: 0.001181
A192: 543 | B192: 0.444530262 | C192: 0.078427 | D192: 0.066327 | E192: 0.529342 | F192: 0.451196 | G192: 0.001361 | H192: 0.001835 | I192: 0.40422 | J192: 0.654303 | K192: 0.004726 | L192: 0.001321
A193: 544 | B193: 0.4453342367 | C193: 0.076413 | D193: 0.062282 | E193: 0.531618 | F193: 0.429813 | G193: 0.001402 | H193: 0.001738 | I193: 0.385078 | J193: 0.657777 | K193: 0.005019 | L193: 0.001197
A194: 545 | B194: 0.4455835027 | C194: 0.0744 | D194: 0.058237 | E194: 0.533894 | F194: 0.408429 | G194: 0.001443 | H194: 0.001641 | I194: 0.365935 | J194: 0.661252 | K194: 0.005313 | L194: 0.001072
A195: 546 | B195: 0.4458327687 | C195: 0.069668 | D195: 0.050808 | E195: 0.533288 | F195: 0.36579 | G195: 0.000859 | H195: 0.001259 | I195: 0.327742 | J195: 0.662735 | K195: 0.005546 | L195: 0.000891
A196: 547 | B196: 0.4460820348 | C196: 0.067547 | D196: 0.04771 | E196: 0.535155 | F196: 0.348098 | G196: 0.000987 | H196: 0.0013 | I196: 0.311578 | J196: 0.666617 | K196: 0.0062 | L196: 0.000973
A197: 548 | B197: 0.4463313008 | C197: 0.065426 | D197: 0.044613 | E197: 0.537021 | F197: 0.330405 | G197: 0.001116 | H197: 0.00134 | I197: 0.295415 | J197: 0.6705 | K197: 0.006853 | L197: 0.001055
A198: 549 | B198: 0.4465805668 | C198: 0.06333 | D198: 0.041571 | E198: 0.536078 | F198: 0.312087 | G198: 0.001035 | H198: 0.00135 | I198: 0.279481 | J198: 0.671085 | K198: 0.007401 | L198: 0.001066
A199: 550 | B199: 0.4468298329 | C199: 0.061233 | D199: 0.038529 | E199: 0.535135 | F199: 0.29377 | G199: 0.000955 | H199: 0.001331 | I199: 0.263547 | J199: 0.669914 | K199: 0.007948 | L199: 0.001078
A200: 551 | B200: 0.4470790989 | C200: 0.059314 | D200: 0.036014 | E200: 0.537339 | F200: 0.278719 | G200: 0.001053 | H200: 0.001372 | I200: 0.250178 | J200: 0.674143 | K200: 0.008978 | L200: 0.000993
A201: 552 | B201: 0.447328365 | C201: 0.057394 | D201: 0.033499 | E201: 0.539544 | F201: 0.263667 | G201: 0.001151 | H201: 0.001412 | I201: 0.236809 | J201: 0.678373 | K201: 0.010008 | L201: 0.000908
... 208 more rows

Sheet EXP_Tool
A1: Spectrum mapping | D1: EXP
D2: 350 | E2: 0
A3: count | B3: =COUNT(B7:B452) -> 95 | D3: 351 | E3: 0
D4: 352 | E4: 0
A5: RAW | D5: 353 | E5: 0
A6: wd | B6: sp | D6: 354 | E6: 0
A7: 360 | B7: 0.0006061 | D7: 355 | E7: 0
A8: 365 | B8: 0.001086 | D8: 356 | E8: 0
A9: 370 | B9: 0.001946 | D9: 357 | E9: 0
A10: 375 | B10: 0.003486 | D10: 358 | E10: 0
A11: 380 | B11: 0.000645 | D11: 359 | E11: 0
A12: 385 | B12: 0.01055 | D12: 360 | E12: 0
A13: 390 | B13: 0.02005 | D13: 361 | E13: 0.00070208
A14: 395 | B14: 0.03621 | D14: 362 | E14: 0.00079806
A15: 400 | B15: 0.06785 | D15: 363 | E15: 0.00089404
A16: 405 | B16: 0.1102 | D16: 364 | E16: 0.00099002
A17: 410 | B17: 0.2074 | D17: 365 | E17: 0.001086
A18: 415 | B18: 0.3713 | D18: 366 | E18: 0.001258
A19: 420 | B19: 0.6456 | D19: 367 | E19: 0.00143
A20: 425 | B20: 1.03905 | D20: 368 | E20: 0.001602
A21: 430 | B21: 1.3856 | D21: 369 | E21: 0.001774
A22: 435 | B22: 1.62296 | D22: 370 | E22: 0.001946
A23: 440 | B23: 1.74706 | D23: 371 | E23: 0.002254
A24: 445 | B24: 1.7826 | D24: 372 | E24: 0.002562
A25: 450 | B25: 1.77211 | D25: 373 | E25: 0.00287
A26: 455 | B26: 1.7441 | D26: 374 | E26: 0.003178
A27: 460 | B27: 1.6692 | D27: 375 | E27: 0.003486
A28: 465 | B28: 1.5281 | D28: 376 | E28: 0.0029178
A29: 470 | B29: 1.28764 | D29: 377 | E29: 0.0023496
A30: 475 | B30: 1.0419 | D30: 378 | E30: 0.0017814
A31: 480 | B31: 0.81295 | D31: 379 | E31: 0.0012132
A32: 485 | B32: 0.6162 | D32: 380 | E32: 0.000645
A33: 490 | B33: 0.46518 | D33: 381 | E33: 0.002626
A34: 495 | B34: 0.3533 | D34: 382 | E34: 0.004607
A35: 500 | B35: 0.272 | D35: 383 | E35: 0.006588
A36: 505 | B36: 0.2123 | D36: 384 | E36: 0.008569
A37: 510 | B37: 0.1582 | D37: 385 | E37: 0.01055
A38: 515 | B38: 0.1117 | D38: 386 | E38: 0.01245
A39: 520 | B39: 0.07825 | D39: 387 | E39: 0.01435
A40: 525 | B40: 0.05725 | D40: 388 | E40: 0.01625
A41: 530 | B41: 0.04216 | D41: 389 | E41: 0.01815
A42: 535 | B42: 0.02984 | D42: 390 | E42: 0.02005
A43: 540 | B43: 0.0203 | D43: 391 | E43: 0.023282
A44: 545 | B44: 0.0134 | D44: 392 | E44: 0.026514
A45: 550 | B45: 0.00875 | D45: 393 | E45: 0.029746
A46: 555 | B46: 0.00575 | D46: 394 | E46: 0.032978
A47: 560 | B47: 0.0039 | D47: 395 | E47: 0.03621
A48: 565 | B48: 0.00275 | D48: 396 | E48: 0.042538
A49: 570 | B49: 0.0021 | D49: 397 | E49: 0.048866
A50: 575 | B50: 0.0018 | D50: 398 | E50: 0.055194
A51: 580 | B51: 0.00165 | D51: 399 | E51: 0.061522
A52: 585 | B52: 0.0014 | D52: 400 | E52: 0.06785
A53: 590 | B53: 0.0011 | D53: 401 | E53: 0.07632
A54: 595 | B54: 0.001 | D54: 402 | E54: 0.08479
A55: 600 | B55: 0.0008 | D55: 403 | E55: 0.09326
A56: 605 | B56: 0.0006 | D56: 404 | E56: 0.10173
A57: 610 | B57: 0.00034 | D57: 405 | E57: 0.1102
A58: 615 | B58: 0.00024 | D58: 406 | E58: 0.12964
A59: 620 | B59: 0.00019 | D59: 407 | E59: 0.14908
A60: 625 | B60: 0.0001 | D60: 408 | E60: 0.16852
A61: 630 | B61: 0.0005 | D61: 409 | E61: 0.18796
A62: 635 | B62: 0.0003 | D62: 410 | E62: 0.2074
A63: 640 | B63: 0.0002 | D63: 411 | E63: 0.24018
A64: 645 | B64: 0.0001 | D64: 412 | E64: 0.27296
A65: 650 | B65: 0 | D65: 413 | E65: 0.30574
A66: 655 | B66: 0 | D66: 414 | E66: 0.33852
A67: 660 | B67: 0 | D67: 415 | E67: 0.3713
A68: 665 | B68: 0 | D68: 416 | E68: 0.42616
A69: 670 | B69: 0 | D69: 417 | E69: 0.48102
A70: 675 | B70: 0 | D70: 418 | E70: 0.53588
A71: 680 | B71: 0 | D71: 419 | E71: 0.59074
A72: 685 | B72: 0 | D72: 420 | E72: 0.6456
A73: 690 | B73: 0 | D73: 421 | E73: 0.72429
A74: 695 | B74: 0 | D74: 422 | E74: 0.80298
A75: 700 | B75: 0 | D75: 423 | E75: 0.88167
A76: 705 | B76: 0 | D76: 424 | E76: 0.96036
A77: 710 | B77: 0 | D77: 425 | E77: 1.03905
A78: 715 | B78: 0 | D78: 426 | E78: 1.10836
A79: 720 | B79: 0 | D79: 427 | E79: 1.17767
A80: 725 | B80: 0 | D80: 428 | E80: 1.24698
A81: 730 | B81: 0 | D81: 429 | E81: 1.31629
A82: 735 | B82: 0 | D82: 430 | E82: 1.3856
A83: 740 | B83: 0 | D83: 431 | E83: 1.433072
A84: 745 | B84: 0 | D84: 432 | E84: 1.480544
A85: 750 | B85: 0 | D85: 433 | E85: 1.528016
A86: 755 | B86: 0 | D86: 434 | E86: 1.575488
A87: 760 | B87: 0 | D87: 435 | E87: 1.62296
A88: 765 | B88: 0 | D88: 436 | E88: 1.64778
A89: 770 | B89: 0 | D89: 437 | E89: 1.6726
A90: 775 | B90: 0 | D90: 438 | E90: 1.69742
A91: 780 | B91: 0 | D91: 439 | E91: 1.72224
A92: 785 | B92: 0 | D92: 440 | E92: 1.74706
A93: 790 | B93: 0 | D93: 441 | E93: 1.754168
A94: 795 | B94: 0 | D94: 442 | E94: 1.761276
A95: 800 | B95: 0 | D95: 443 | E95: 1.768384
A96: 805 | B96: 0 | D96: 444 | E96: 1.775492
A97: 810 | B97: 0 | D97: 445 | E97: 1.7826
A98: 815 | B98: 0 | D98: 446 | E98: 1.780502
A99: 820 | B99: 0 | D99: 447 | E99: 1.778404
A100: 825 | B100: 0 | D100: 448 | E100: 1.776306
A101: 830 | B101: 0 | D101: 449 | E101: 1.774208
D102: 450 | E102: 1.77211
D103: 451 | E103: 1.766508
D104: 452 | E104: 1.760906
D105: 453 | E105: 1.755304
D106: 454 | E106: 1.749702
D107: 455 | E107: 1.7441
D108: 456 | E108: 1.72912
D109: 457 | E109: 1.71414
D110: 458 | E110: 1.69916
D111: 459 | E111: 1.68418
D112: 460 | E112: 1.6692
D113: 461 | E113: 1.64098
D114: 462 | E114: 1.61276
D115: 463 | E115: 1.58454
D116: 464 | E116: 1.55632
D117: 465 | E117: 1.5281
D118: 466 | E118: 1.480008
D119: 467 | E119: 1.431916
D120: 468 | E120: 1.383824
D121: 469 | E121: 1.335732
D122: 470 | E122: 1.28764
D123: 471 | E123: 1.238492
D124: 472 | E124: 1.189344
D125: 473 | E125: 1.140196
D126: 474 | E126: 1.091048
D127: 475 | E127: 1.0419
D128: 476 | E128: 0.99611
D129: 477 | E129: 0.95032
D130: 478 | E130: 0.90453
D131: 479 | E131: 0.85874
D132: 480 | E132: 0.81295
D133: 481 | E133: 0.7736
D134: 482 | E134: 0.73425
D135: 483 | E135: 0.6949
D136: 484 | E136: 0.65555
D137: 485 | E137: 0.6162
D138: 486 | E138: 0.585996
D139: 487 | E139: 0.555792
D140: 488 | E140: 0.525588
D141: 489 | E141: 0.495384
D142: 490 | E142: 0.46518
D143: 491 | E143: 0.442804
D144: 492 | E144: 0.420428
D145: 493 | E145: 0.398052
D146: 494 | E146: 0.375676
D147: 495 | E147: 0.3533
D148: 496 | E148: 0.33704
D149: 497 | E149: 0.32078
D150: 498 | E150: 0.30452
D151: 499 | E151: 0.28826
D152: 500 | E152: 0.272
D153: 501 | E153: 0.26006
D154: 502 | E154: 0.24812
D155: 503 | E155: 0.23618
D156: 504 | E156: 0.22424
D157: 505 | E157: 0.2123
D158: 506 | E158: 0.20148
D159: 507 | E159: 0.19066
D160: 508 | E160: 0.17984
D161: 509 | E161: 0.16902
D162: 510 | E162: 0.1582
D163: 511 | E163: 0.1489
D164: 512 | E164: 0.1396
D165: 513 | E165: 0.1303
D166: 514 | E166: 0.121
D167: 515 | E167: 0.1117
D168: 516 | E168: 0.10501
D169: 517 | E169: 0.09832
D170: 518 | E170: 0.09163
D171: 519 | E171: 0.08494
D172: 520 | E172: 0.07825
D173: 521 | E173: 0.07405
D174: 522 | E174: 0.06985
D175: 523 | E175: 0.06565
D176: 524 | E176: 0.06145
D177: 525 | E177: 0.05725
D178: 526 | E178: 0.054232
D179: 527 | E179: 0.051214
D180: 528 | E180: 0.048196
D181: 529 | E181: 0.045178
D182: 530 | E182: 0.04216
D183: 531 | E183: 0.039696
D184: 532 | E184: 0.037232
D185: 533 | E185: 0.034768
D186: 534 | E186: 0.032304
D187: 535 | E187: 0.02984
D188: 536 | E188: 0.027932
D189: 537 | E189: 0.026024
D190: 538 | E190: 0.024116
D191: 539 | E191: 0.022208
D192: 540 | E192: 0.0203
D193: 541 | E193: 0.01892
D194: 542 | E194: 0.01754
D195: 543 | E195: 0.01616
D196: 544 | E196: 0.01478
D197: 545 | E197: 0.0134
D198: 546 | E198: 0.01247
D199: 547 | E199: 0.01154
D200: 548 | E200: 0.01061
... 252 more rows

Sheet Work
B5: 1. documentation
C6: a. theory of the CCT optimization
C7: b. theory of Gaussian function fitting
C8: c. write the help file
B9: 2. | C9: Cleaning of the tool sheet
C10: a. hide sheets
C11: b. how to integrate the exp sheet and Gaussian fitting sheet?

Sheet Plot1 (hidden)
A1: CIE1931 CIE1960 Plot
A4: DataCount | B4: =COUNT(B6:B29) -> 3
A5: Name | B5: x | C5: y | D5: u | E5: v
A6: Sample1 | B6: 0.3019034299 | C6: 0.3007037801 | D6: =4*B6/(-2*B6+12*C6+3) -> 0.2011134757 | E6: =6*C6/(-2*B6+12*C6+3) -> 0.3004714905
A7: Sample2 | B7: 0.3361494425 | C7: 0.3399783031 | D7: =4*B7/(-2*B7+12*C7+3) -> 0.209849427 | E7: =6*C7/(-2*B7+12*C7+3) -> 0.3183595288
A8: Sample3 | B8: 0.3539002168 | C8: 0.362341994 | D8: =4*B8/(-2*B8+12*C8+3) -> 0.2131831578 | E8: =6*C8/(-2*B8+12*C8+3) -> 0.3274024999
A9: Sample4 | D9: 0.2251091791 | E9: 0.3343863388
A10: Sample5
A11: Sample6
A12: Sample7
A13: Sample8
A14: Sample9
A15: Sample10
A16: Sample11
A17: Sample12
A18: Sample13
A19: Sample14
A20: Sample15

Sheet CCT (hidden)
A1: CCT calculation | D1: X | E1: =Photonic!L14 -> 227.5213895 | F1: u | G1: =4*E1/(E1+15*E2+3*E3) -> 0.5255023807 | H1: Set initial dm | I1: 1e+101 | K1: Index | L1: =MAX(F5:F1221) -> 1
D2: Y | E2: =Photonic!L15 -> 100 | F2: v | G2: =6*E2/(E1+15*E2+3*E3) -> 0.3464525128 | K2: Col | L2: =IF(L1<>1,L1+4,L1+5) -> 6
D3: Z | E3: =Photonic!L16 -> 1.439229213
A4: CCT | B4: u | C4: v | D4: dc(i) | E4: modify dm | I4: Tm= | J4: =INDIRECT("a"&$L$2) -> 1000
A5: 997.5062344 | B5: 0.4485906604 | C5: 0.3545746703 | D5: =SQRT(($G$1-B5)^2+($G$2-C5)^2) -> 0.07733939585 | E5: =IF((D5-$I$1)<0,D5,0) -> 0.07733939585 | F5: =IF(E5<>0,1,0) -> 1 | I5: dm= | J5: =INDIRECT("d"&$L$2) -> 0.07792630384
A6: 1000 | B6: 0.4480058488 | C6: 0.3546254183 | D6: =SQRT(($G$1-B6)^2+($G$2-C6)^2) -> 0.07792630384 | E6: =IF((D6-E5)<0,D6,0) -> 0 | F6: =IF(E6<>0,F5+1,0) -> 0 | I6: T1= | J6: =INDIRECT("a"&($L$2+1)) -> 1002.5 | K6: d1= | L6: =INDIRECT("d"&($L$2+1)) -> 0.07851311475 | M6: u1= | N6: =INDIRECT("b"&($L$2+1)) -> 0.4474211254 | O6: v1= | P6: =INDIRECT("c"&($L$2+1)) -> 0.3546760626
A7: 1002.5 | B7: 0.4474211254 | C7: 0.3546760626 | D7: 0.07851311475 | E7: =IF((D7-E6)<0,D7,0) -> 0 | F7: =IF(E7<>0,F6+1,0) -> 0 | I7: T0= | J7: =INDIRECT("a"&($L$2-1)) -> 997.5062344 | K7: d0= | L7: =INDIRECT("d"&($L$2-1)) -> 0.07733939585 | M7: u0= | N7: =INDIRECT("b"&($L$2-1)) -> 0.4485906604 | O7: v0= | P7: =INDIRECT("c"&($L$2-1)) -> 0.3545746703
A8: 1005.00625 | B8: 0.4468364964 | C8: 0.3547266018 | D8: 0.0790998223 | E8: 0 | F8: 0
A9: 1007.518766 | B9: 0.446251968 | C9: 0.3547770342 | D9: 0.07968642021 | E9: 0 | F9: 0 | I9: a= | J9: =L7/(J7-J4)/(J7-J6) -> 0.006210363142 | K9: b= | L9: =J5/(J4-J7)/(J4-J6) -> -0.01249937914 | M9: c= | N9: =L6/(J6-J7)/(J6-J4) -> 0.00628889069
A10: 1010.037563 | B10: 0.4456675462 | C10: 0.3548273583 | D10: 0.08027290225 | E10: 0 | F10: 0
A11: 1012.562656 | B11: 0.4450832371 | C11: 0.3548775725 | D11: 0.08085926217 | E11: 0 | F11: 0 | I11: AA= | J11: =J9+L9+N9 -> -1.25303525e-07 | K11: BB= | L11: =-(J9*(J6+J4)+L9*(J7+J6)+N9*(J4+J7)) -> 0.0004856446746 | M11: CC= | N11: =J9*J4*J6+L9*J7*J6+N9*J7*J4 -> -0.2824148457
A12: 1015.094063 | B12: 0.4444990469 | C12: 0.3549276753 | D12: 0.08144549379 | E12: 0 | F12: 0
A13: 1017.631798 | B13: 0.4439149816 | C13: 0.3549776651 | D13: 0.08203159091 | E13: 0 | F13: 0 | I13: Tp= | J13: =-L11/(2*J11) -> 1937.873155
A14: 1020.175878 | B14: 0.4433310472 | C14: 0.3550275404 | D14: 0.0826175474 | E14: 0 | F14: 0
A15: 1022.726317 | B15: 0.4427472498 | C15: 0.3550772995 | D15: 0.08320335711 | E15: 0 | F15: 0 | I15: duv= | J15: =J11*J13^2+L11*J13+N11 -> 0.188144043
A16: 1025.283133 | B16: 0.4421635952 | C16: 0.3551269409 | D16: 0.08378901395 | E16: 0 | F16: 0 | I16: p= | J16: =SQRT((N6-N7)^2+(P6-P7)^2) -> 0.001173921845
A17: 1027.846341 | B17: 0.4415800896 | C17: 0.355176463 | D17: 0.08437451181 | E17: 0 | F17: 0 | I17: p1= | J17: =(L7^2+J16^2-L6^2)/(2*J16) -> -0.07732582265
A18: 1030.415957 | B18: 0.4409967388 | C18: 0.3552258643 | D18: 0.08495984466 | E18: 0 | F18: 0 | I18: Pt | J18: =J7+J17*(J6-J7)/J16 -> 668.5686363
A19: 1032.991997 | B19: 0.4404135487 | C19: 0.3552751431 | D19: 0.08554500644 | E19: 0 | F19: 0 | I19: p3= | J19: =SQRT(L7^2-J17^2) -> 0.001448896773
A20: 1035.574477 | B20: 0.4398305253 | C20: 0.3553242979 | D20: 0.08612999115 | E20: 0 | F20: 0 | I20: LS= | J20: =J18+(J13-J18)*J19*100 -> 852.4777584
A21: 1038.163413 | B21: 0.4392476743 | C21: 0.355373327 | D21: 0.08671479279 | E21: 0 | F21: 0
A22: 1040.758822 | B22: 0.4386650017 | C22: 0.3554222289 | D22: 0.08729940541 | E22: 0 | F22: 0
A23: 1043.360719 | B23: 0.4380825133 | C23: 0.355471002 | D23: 0.08788382306 | E23: 0 | F23: 0 | I23: CCT= | J23: =IF(J18<0,J20,J13) -> 1937.873155
A24: 1045.96912 | B24: 0.4375002148 | C24: 0.3555196447 | D24: 0.08846803984 | E24: 0 | F24: 0
A25: 1048.584043 | B25: 0.4369181121 | C25: 0.3555681553 | D25: 0.08905204984 | E25: 0 | F25: 0 | J25: =IF(ISERROR(J23),IF(ERROR.TYPE(J23)<=3,1,0),2) -> 2
A26: 1051.205503 | B26: 0.4363362108 | C26: 0.3556165324 | D26: 0.0896358472 | E26: 0 | F26: 0
A27: 1053.833517 | B27: 0.4357545167 | C27: 0.3556647742 | D27: 0.09021942608 | E27: 0 | F27: 0
A28: 1056.468101 | B28: 0.4351730355 | C28: 0.3557128791 | D28: 0.09080278067 | E28: 0 | F28: 0
A29: 1059.109271 | B29: 0.4345917729 | C29: 0.3557608457 | D29: 0.09138590516 | E29: 0 | F29: 0
A30: 1061.757044 | B30: 0.4340107345 | C30: 0.3558086721 | D30: 0.0919687938 | E30: 0 | F30: 0
A31: 1064.411437 | B31: 0.4334299259 | C31: 0.3558563569 | D31: 0.09255144083 | E31: 0 | F31: 0
A32: 1067.072465 | B32: 0.4328493528 | C32: 0.3559038983 | D32: 0.09313384055 | E32: 0 | F32: 0
A33: 1069.740147 | B33: 0.4322690207 | C33: 0.3559512949 | D33: 0.09371598726 | E33: 0 | F33: 0
A34: 1072.414497 | B34: 0.4316889352 | C34: 0.3559985448 | D34: 0.09429787529 | E34: 0 | F34: 0
A35: 1075.095533 | B35: 0.4311091017 | C35: 0.3560456466 | D35: 0.094879499 | E35: 0 | F35: 0
A36: 0.0004825420012 | B36: 0.4305295258 | C36: 0.3560925986 | D36: 0.09546085277 | E36: 0 | F36: 0
A37: 1080.47773 | B37: 0.429950213 | C37: 0.3561393992 | D37: 0.09604193101 | E37: 0 | F37: 0
A38: 1083.178925 | B38: 0.4293711687 | C38: 0.3561860467 | D38: 0.09662272817 | E38: 0 | F38: 0
A39: 1085.886872 | B39: 0.4287923983 | C39: 0.3562325394 | D39: 0.09720323868 | E39: 0 | F39: 0
A40: 1088.601589 | B40: 0.4282139072 | C40: 0.3562788759 | D40: 0.09778345704 | E40: 0 | F40: 0
A41: 1091.323093 | B41: 0.4276357009 | C41: 0.3563250543 | D41: 0.09836337777 | E41: 0 | F41: 0
A42: 1094.051401 | B42: 0.4270577846 | C42: 0.3563710731 | D42: 0.09894299539 | E42: 0 | F42: 0
A43: 1096.786529 | B43: 0.4264801636 | C43: 0.3564169307 | D43: 0.09952230447 | E43: 0 | F43: 0
A44: 1099.528496 | B44: 0.4259028434 | C44: 0.3564626253 | D44: 0.1001012996 | E44: 0 | F44: 0
A45: 1102.277317 | B45: 0.425325829 | C45: 0.3565081554 | D45: 0.1006799754 | E45: 0 | F45: 0
A46: 1105.03301 | B46: 0.4247491259 | C46: 0.3565535192 | D46: 0.1012583265 | E46: 0 | F46: 0
A47: 1107.795593 | B47: 0.4241727391 | C47: 0.3565987152 | D47: 0.1018363475 | E47: 0 | F47: 0
A48: 1110.565082 | B48: 0.423596674 | C48: 0.3566437416 | D48: 0.1024140332 | E48: 0 | F48: 0
A49: 1113.341494 | B49: 0.4230209356 | C49: 0.3566885969 | D49: 0.1029913783 | E49: 0 | F49: 0
A50: 1116.124848 | B50: 0.4224455291 | C50: 0.3567332793 | D50: 0.1035683775 | E50: 0 | F50: 0
A51: 1118.91516 | B51: 0.4218704597 | C51: 0.3567777872 | D51: 0.1041450255 | E51: 0 | F51: 0
A52: 1121.712448 | B52: 0.4212957323 | C52: 0.356822119 | D52: 0.1047213173 | E52: 0 | F52: 0
A53: 1124.516729 | B53: 0.4207213522 | C53: 0.356866273 | D53: 0.1052972475 | E53: 0 | F53: 0
A54: 1127.328021 | B54: 0.4201473242 | C54: 0.3569102474 | D54: 0.1058728111 | E54: 0 | F54: 0
A55: 1130.146341 | B55: 0.4195736535 | C55: 0.3569540408 | D55: 0.1064480029 | E55: 0 | F55: 0
A56: 1132.971707 | B56: 0.419000345 | C56: 0.3569976513 | D56: 0.1070228178 | E56: 0 | F56: 0
A57: 1135.804136 | B57: 0.4184274037 | C57: 0.3570410774 | D57: 0.1075972508 | E57: 0 | F57: 0
A58: 1138.643647 | B58: 0.4178548345 | C58: 0.3570843173 | D58: 0.1081712968 | E58: 0 | F58: 0
A59: 1141.490256 | B59: 0.4172826424 | C59: 0.3571273693 | D59: 0.1087449508 | E59: 0 | F59: 0
A60: 1144.343981 | B60: 0.4167108321 | C60: 0.3571702319 | D60: 0.1093182077 | E60: 0 | F60: 0
A61: 1147.204841 | B61: 0.4161394087 | C61: 0.3572129034 | D61: 0.1098910626 | E61: 0 | F61: 0
A62: 1150.072853 | B62: 0.4155683768 | C62: 0.357255382 | D62: 0.1104635107 | E62: 0 | F62: 0
A63: 1152.948035 | B63: 0.4149977413 | C63: 0.3572976661 | D63: 0.1110355469 | E63: 0 | F63: 0
A64: 1155.830406 | B64: 0.414427507 | C64: 0.357339754 | D64: 0.1116071663 | E64: 0 | F64: 0
A65: 1158.719982 | B65: 0.4138576787 | C65: 0.357381644 | D65: 0.1121783642 | E65: 0 | F65: 0
A66: 1161.616782 | B66: 0.413288261 | C66: 0.3574233345 | D66: 0.1127491356 | E66: 0 | F66: 0
A67: 1164.520824 | B67: 0.4127192587 | C67: 0.3574648239 | D67: 0.1133194758 | E67: 0 | F67: 0
A68: 1167.432126 | B68: 0.4121506765 | C68: 0.3575061103 | D68: 0.1138893799 | E68: 0 | F68: 0
A69: 1170.350706 | B69: 0.4115825189 | C69: 0.3575471921 | D69: 0.1144588433 | E69: 0 | F69: 0
A70: 1173.276583 | B70: 0.4110147907 | C70: 0.3575880677 | D70: =SQRT(($G$1-B70)^2+($G$2-C70)^2) -> 0.1150278612 | E70: 0 | F70: 0
A71: 1176.209774 | B71: 0.4104474964 | C71: 0.3576287354 | D71: 0.1155964288 | E71: =IF((D71-E70)<0,D71,0) -> 0 | F71: =IF(E71<>0,F70+1,0) -> 0
A72: 1179.150299 | B72: 0.4098806405 | C72: 0.3576691934 | D72: 0.1161645416 | E72: 0 | F72: 0
A73: 1182.098174 | B73: 0.4093142277 | C73: 0.3577094402 | D73: 0.1167321948 | E73: 0 | F73: 0
A74: 1185.05342 | B74: 0.4087482625 | C74: 0.357749474 | D74: 0.1172993838 | E74: 0 | F74: 0
A75: 1188.016053 | B75: 0.4081827493 | C75: 0.3577892932 | D75: 0.1178661041 | E75: 0 | F75: 0
A76: 1190.986093 | B76: 0.4076176926 | C76: 0.357828896 | D76: 0.118432351 | E76: 0 | F76: 0
A77: 1193.963559 | B77: 0.4070530969 | C77: 0.3578682808 | D77: 0.11899812 | E77: 0 | F77: 0
A78: 1196.948468 | B78: 0.4064889666 | C78: 0.3579074459 | D78: 0.1195634067 | E78: 0 | F78: 0
A79: 1199.940839 | B79: 0.405925306 | C79: 0.3579463896 | D79: 0.1201282064 | E79: 0 | F79: 0
A80: 1202.940691 | B80: 0.4053621196 | C80: 0.3579851103 | D80: 0.1206925148 | E80: 0 | F80: 0
A81: 1205.948043 | B81: 0.4047994116 | C81: 0.3580236062 | D81: 0.1212563274 | E81: 0 | F81: 0
A82: 1208.962913 | B82: 0.4042371864 | C82: 0.3580618757 | D82: 0.1218196398 | E82: 0 | F82: 0
A83: 1211.98532 | B83: 0.4036754483 | C83: 0.3580999171 | D83: 0.1223824476 | E83: 0 | F83: 0
A84: 1215.015283 | B84: 0.4031142015 | C84: 0.3581377287 | D84: 0.1229447464 | E84: 0 | F84: 0
A85: 1218.052821 | B85: 0.4025534503 | C85: 0.3581753089 | D85: 0.123506532 | E85: 0 | F85: 0
A86: 1221.097953 | B86: 0.4019931988 | C86: 0.3582126559 | D86: 0.1240677999 | E86: 0 | F86: 0
A87: 1224.150698 | B87: 0.4014334513 | C87: 0.3582497681 | D87: 0.124628546 | E87: 0 | F87: 0
A88: 1227.211075 | B88: 0.4008742119 | C88: 0.3582866437 | D88: 0.1251887659 | E88: 0 | F88: 0
A89: 1230.279103 | B89: 0.4003154847 | C89: 0.3583232812 | D89: 0.1257484555 | E89: 0 | F89: 0
A90: 1233.354801 | B90: 0.3997572739 | C90: 0.3583596789 | D90: 0.1263076105 | E90: 0 | F90: 0
A91: 1236.438188 | B91: 0.3991995836 | C91: 0.358395835 | D91: 0.1268662268 | E91: 0 | F91: 0
A92: 1239.529283 | B92: 0.3986424177 | C92: 0.3584317479 | D92: 0.1274243002 | E92: 0 | F92: 0
A93: 1242.628106 | B93: 0.3980857803 | C93: 0.3584674159 | D93: 0.1279818266 | E93: 0 | F93: 0
A94: 1245.734676 | B94: 0.3975296755 | C94: 0.3585028374 | D94: 0.1285388019 | E94: 0 | F94: 0
A95: 1248.849013 | B95: 0.3969741072 | C95: 0.3585380106 | D95: 0.129095222 | E95: 0 | F95: 0
A96: 1251.971136 | B96: 0.3964190793 | C96: 0.358572934 | D96: 0.1296510829 | E96: 0 | F96: 0
A97: 1255.101064 | B97: 0.3958645958 | C97: 0.3586076058 | D97: 0.1302063806 | E97: 0 | F97: 0
A98: 1258.238816 | B98: 0.3953106606 | C98: 0.3586420243 | D98: 0.1307611111 | E98: 0 | F98: 0
A99: 1261.384413 | B99: 0.3947572775 | C99: 0.3586761879 | D99: 0.1313152704 | E99: 0 | F99: 0
A100: 1264.537874 | B100: 0.3942044505 | C100: 0.358710095 | D100: 0.1318688545 | E100: 0 | F100: 0
A101: 1267.699219 | B101: 0.3936521833 | C101: 0.3587437438 | D101: 0.1324218597 | E101: 0 | F101: 0
A102: 1270.868467 | B102: 0.3931004797 | C102: 0.3587771327 | D102: 0.1329742818 | E102: 0 | F102: 0
A103: 1274.045638 | B103: 0.3925493436 | C103: 0.3588102601 | D103: 0.1335261173 | E103: 0 | F103: 0
A104: 1277.230752 | B104: 0.3919987786 | C104: 0.3588431243 | D104: 0.1340773621 | E104: 0 | F104: 0
A105: 1280.423829 | B105: 0.3914487885 | C105: 0.3588757235 | D105: 0.1346280124 | E105: 0 | F105: 0
A106: 1283.624889 | B106: 0.390899377 | C106: 0.3589080563 | D106: 0.1351780646 | E106: 0 | F106: 0
A107: 1286.833951 | B107: 0.3903505479 | C107: 0.3589401209 | D107: 0.1357275148 | E107: 0 | F107: 0
A108: 1290.051036 | B108: 0.3898023046 | C108: 0.3589719156 | D108: 0.1362763593 | E108: 0 | F108: 0
A109: 1293.276163 | B109: 0.3892546509 | C109: 0.3590034389 | D109: 0.1368245943 | E109: 0 | F109: 0
A110: 1296.509354 | B110: 0.3887075903 | C110: 0.359034689 | D110: 0.1373722163 | E110: 0 | F110: 0
A111: 1299.750627 | B111: 0.3881611265 | C111: 0.3590656644 | D111: 0.1379192216 | E111: 0 | F111: 0
A112: 1303.000004 | B112: 0.3876152629 | C112: 0.3590963634 | D112: 0.1384656065 | E112: 0 | F112: 0
A113: 1306.257504 | B113: 0.3870700032 | C113: 0.3591267843 | D113: 0.1390113675 | E113: 0 | F113: 0
A114: 1309.523148 | B114: 0.3865253508 | C114: 0.3591569255 | D114: 0.1395565008 | E114: 0 | F114: 0
A115: 1312.796955 | B115: 0.3859813092 | C115: 0.3591867854 | D115: 0.1401010031 | E115: 0 | F115: 0
A116: 1316.078948 | B116: 0.3854378818 | C116: 0.3592163624 | D116: 0.1406448708 | E116: 0 | F116: 0
A117: 1319.369145 | B117: 0.3848950722 | C117: 0.3592456548 | D117: 0.1411881004 | E117: 0 | F117: 0
A118: 1322.667568 | B118: 0.3843528836 | C118: 0.3592746609 | D118: 0.1417306883 | E118: 0 | F118: 0
A119: 1325.974237 | B119: 0.3838113195 | C119: 0.3593033793 | D119: 0.1422726312 | E119: 0 | F119: 0
A120: 1329.289173 | B120: 0.3832703832 | C120: 0.3593318082 | D120: 0.1428139257 | E120: 0 | F120: 0
A121: 1332.612395 | B121: 0.382730078 | C121: 0.359359946 | D121: 0.1433545682 | E121: 0 | F121: 0
A122: 1335.943926 | B122: 0.3821904074 | C122: 0.3593877912 | D122: 0.1438945555 | E122: 0 | F122: 0
A123: 1339.283786 | B123: 0.3816513745 | C123: 0.3594153421 | D123: 0.1444338843 | E123: 0 | F123: 0
A124: 1342.631996 | B124: 0.3811129826 | C124: 0.3594425971 | D124: 0.1449725511 | E124: 0 | F124: 0
A125: 1345.988576 | B125: 0.3805752349 | C125: 0.3594695546 | D125: 0.1455105527 | E125: 0 | F125: 0
A126: 1349.353547 | B126: 0.3800381348 | C126: 0.359496213 | D126: 0.1460478858 | E126: 0 | F126: 0
A127: 1352.726931 | B127: 0.3795016853 | C127: 0.3595225707 | D127: 0.1465845472 | E127: 0 | F127: 0
A128: 1356.108748 | B128: 0.3789658896 | C128: 0.3595486262 | D128: 0.1471205336 | E128: 0 | F128: 0
A129: 1359.49902 | B129: 0.3784307509 | C129: 0.3595743777 | D129: 0.1476558418 | E129: 0 | F129: 0
A130: 1362.897768 | B130: 0.3778962722 | C130: 0.3595998239 | D130: 0.1481904687 | E130: 0 | F130: 0
A131: 1366.305012 | B131: 0.3773624568 | C131: 0.359624963 | D131: 0.1487244112 | E131: 0 | F131: 0
A132: 1369.720775 | B132: 0.3768293076 | C132: 0.3596497935 | D132: 0.149257666 | E132: 0 | F132: 0
A133: 1373.145077 | B133: 0.3762968277 | C133: 0.3596743138 | D133: 0.1497902301 | E133: 0 | F133: 0
A134: 1376.577939 | B134: 0.3757650202 | C134: 0.3596985224 | D134: =SQRT(($G$1-B134)^2+($G$2-C134)^2) -> 0.1503221005 | E134: 0 | F134: 0
A135: 1380.019384 | B135: 0.3752338879 | C135: 0.3597224177 | D135: 0.150853274 | E135: =IF((D135-E134)<0,D135,0) -> 0 | F135: =IF(E135<>0,F134+1,0) -> 0
A136: 1383.469433 | B136: 0.374703434 | C136: 0.3597459981 | D136: 0.1513837476 | E136: 0 | F136: 0
A137: 1386.928106 | B137: 0.3741736614 | C137: 0.3597692621 | D137: 0.1519135184 | E137: 0 | F137: 0
A138: 1390.395427 | B138: 0.373644573 | C138: 0.3597922081 | D138: 0.1524425834 | E138: 0 | F138: 0
A139: 1393.871415 | B139: 0.3731161716 | C139: 0.3598148347 | D139: 0.1529709396 | E139: 0 | F139: 0
A140: 1397.356094 | B140: 0.3725884603 | C140: 0.3598371401 | D140: 0.153498584 | E140: 0 | F140: 0
A141: 1400.849484 | B141: 0.3720614418 | C141: 0.359859123 | D141: 0.1540255138 | E141: 0 | F141: 0
A142: 1404.351608 | B142: 0.3715351191 | C142: 0.3598807818 | D142: 0.1545517261 | E142: 0 | F142: 0
A143: 1407.862487 | B143: 0.3710094949 | C143: 0.359902115 | D143: 0.1550772181 | E143: 0 | F143: 0
A144: 1411.382143 | B144: 0.3704845719 | C144: 0.3599231209 | D144: 0.1556019868 | E144: 0 | F144: 0
A145: 1414.910598 | B145: 0.3699603531 | C145: 0.3599437983 | D145: 0.1561260296 | E145: 0 | F145: 0
A146: 1418.447875 | B146: 0.3694368412 | C146: 0.3599641454 | D146: 0.1566493435 | E146: 0 | F146: 0
A147: 1421.993994 | B147: 0.3689140388 | C147: 0.3599841608 | D147: 0.1571719259 | E147: 0 | F147: 0
A148: 1425.548979 | B148: 0.3683919487 | C148: 0.3600038431 | D148: 0.157693774 | E148: 0 | F148: 0
A149: 1429.112852 | B149: 0.3678705736 | C149: 0.3600231907 | D149: 0.1582148852 | E149: 0 | F149: 0
A150: 1432.685634 | B150: 0.3673499161 | C150: 0.3600422021 | D150: 0.1587352566 | E150: 0 | F150: 0
A151: 1436.267348 | B151: 0.3668299789 | C151: 0.3600608759 | D151: 0.1592548857 | E151: 0 | F151: 0
A152: 1439.858016 | B152: 0.3663107646 | C152: 0.3600792105 | D152: 0.1597737697 | E152: 0 | F152: 0
A153: 1443.457661 | B153: 0.3657922758 | C153: 0.3600972046 | D153: 0.1602919062 | E153: 0 | F153: 0
A154: 1447.066306 | B154: 0.3652745151 | C154: 0.3601148566 | D154: 0.1608092924 | E154: 0 | F154: 0
A155: 1450.683971 | B155: 0.364757485 | C155: 0.3601321651 | D155: 0.1613259259 | E155: 0 | F155: 0
A156: 1454.310681 | B156: 0.3642411881 | C156: 0.3601491287 | D156: 0.161841804 | E156: 0 | F156: 0
A157: 1457.946458 | B157: 0.3637256268 | C157: 0.3601657458 | D157: 0.1623569242 | E157: 0 | F157: 0
A158: 1461.591324 | B158: 0.3632108037 | C158: 0.3601820151 | D158: 0.1628712841 | E158: 0 | F158: 0
A159: 1465.245302 | B159: 0.3626967212 | C159: 0.3601979351 | D159: 0.1633848812 | E159: 0 | F159: 0
A160: 1468.908416 | B160: 0.3621833818 | C160: 0.3602135044 | D160: 0.1638977129 | E160: 0 | F160: 0
A161: 1472.580687 | B161: 0.3616707878 | C161: 0.3602287216 | D161: 0.1644097769 | E161: 0 | F161: 0
A162: 1476.262138 | B162: 0.3611589418 | C162: 0.3602435853 | D162: 0.1649210707 | E162: 0 | F162: 0
A163: 1479.952794 | B163: 0.3606478461 | C163: 0.360258094 | D163: 0.165431592 | E163: 0 | F163: 0
A164: 1483.652676 | B164: 0.360137503 | C164: 0.3602722464 | D164: 0.1659413384 | E164: 0 | F164: 0
A165: 1487.361807 | B165: 0.3596279149 | C165: 0.3602860411 | D165: 0.1664503076 | E165: 0 | F165: 0
A166: 1491.080212 | B166: 0.3591190841 | C166: 0.3602994767 | D166: 0.1669584972 | E166: 0 | F166: 0
A167: 1494.807913 | B167: 0.3586110129 | C167: 0.3603125517 | D167: 0.1674659049 | E167: 0 | F167: 0
A168: 1498.544932 | B168: 0.3581037036 | C168: 0.3603252649 | D168: 0.1679725285 | E168: 0 | F168: 0
A169: 1502.291295 | B169: 0.3575971585 | C169: 0.3603376149 | D169: 0.1684783657 | E169: 0 | F169: 0
A170: 1506.047023 | B170: 0.3570913797 | C170: 0.3603496003 | D170: 0.1689834142 | E170: 0 | F170: 0
A171: 1509.81214 | B171: 0.3565863695 | C171: 0.3603612198 | D171: 0.1694876719 | E171: 0 | F171: 0
A172: 1513.586671 | B172: 0.3560821302 | C172: 0.360372472 | D172: 0.1699911366 | E172: 0 | F172: 0
A173: 1517.370637 | B173: 0.3555786638 | C173: 0.3603833556 | D173: 0.1704938062 | E173: 0 | F173: 0
A174: 1521.164064 | B174: 0.3550759725 | C174: 0.3603938693 | D174: 0.1709956784 | E174: 0 | F174: 0
A175: 1524.966974 | B175: 0.3545740585 | C175: 0.3604040118 | D175: 0.1714967511 | E175: 0 | F175: 0
A176: 1528.779392 | B176: 0.3540729239 | C176: 0.3604137817 | D176: 0.1719970223 | E176: 0 | F176: 0
A177: 1532.60134 | B177: 0.3535725707 | C177: 0.3604231778 | D177: 0.1724964899 | E177: 0 | F177: 0
A178: 1536.432843 | B178: 0.3530730011 | C178: 0.3604321987 | D178: 0.1729951518 | E178: 0 | F178: 0
A179: 1540.273926 | B179: 0.3525742171 | C179: 0.3604408432 | D179: 0.173493006 | E179: 0 | F179: 0
A180: 1544.12461 | B180: 0.3520762208 | C180: 0.3604491099 | D180: 0.1739900505 | E180: 0 | F180: 0
A181: 1547.984922 | B181: 0.3515790141 | C181: 0.3604569977 | D181: 0.1744862833 | E181: 0 | F181: 0
A182: 1551.854884 | B182: 0.351082599 | C182: 0.3604645053 | D182: 0.1749817023 | E182: 0 | F182: 0
A183: 1555.734521 | B183: 0.3505869776 | C183: 0.3604716314 | D183: 0.1754763058 | E183: 0 | F183: 0
A184: 1559.623858 | B184: 0.3500921518 | C184: 0.3604783748 | D184: 0.1759700917 | E184: 0 | F184: 0
A185: 1563.522917 | B185: 0.3495981235 | C185: 0.3604847342 | D185: 0.1764630582 | E185: 0 | F185: 0
A186: 1567.431725 | B186: 0.3491048947 | C186: 0.3604907084 | D186: 0.1769552034 | E186: 0 | F186: 0
A187: 1571.350304 | B187: 0.3486124672 | C187: 0.3604962962 | D187: 0.1774465253 | E187: 0 | F187: 0
A188: 1575.27868 | B188: 0.3481208429 | C188: 0.3605014964 | D188: 0.1779370222 | E188: 0 | F188: 0
A189: 1579.216876 | B189: 0.3476300237 | C189: 0.3605063078 | D189: 0.1784266922 | E189: 0 | F189: 0
A190: 1583.164919 | B190: 0.3471400115 | C190: 0.3605107292 | D190: 0.1789155336 | E190: 0 | F190: 0
A191: 1587.122831 | B191: 0.346650808 | C191: 0.3605147594 | D191: 0.1794035446 | E191: 0 | F191: 0
A192: 1591.090638 | B192: 0.3461624151 | C192: 0.3605183972 | D192: 0.1798907234 | E192: 0 | F192: 0
A193: 1595.068365 | B193: 0.3456748345 | C193: 0.3605216416 | D193: 0.1803770682 | E193: 0 | F193: 0
A194: 1599.056036 | B194: 0.345188068 | C194: 0.3605244912 | D194: 0.1808625775 | E194: 0 | F194: 0
A195: 1603.053676 | B195: 0.3447021174 | C195: 0.3605269451 | D195: 0.1813472494 | E195: 0 | F195: 0
A196: 1607.06131 | B196: 0.3442169843 | C196: 0.360529002 | D196: 0.1818310822 | E196: 0 | F196: 0
A197: 1611.078963 | B197: 0.3437326706 | C197: 0.3605306609 | D197: 0.1823140745 | E197: 0 | F197: 0
A198: 1615.10666 | B198: 0.3432491778 | C198: 0.3605319206 | D198: =SQRT(($G$1-B198)^2+($G$2-C198)^2) -> 0.1827962244 | E198: 0 | F198: 0
A199: 1619.144427 | B199: 0.3427665078 | C199: 0.36053278 | D199: 0.1832775305 | E199: =IF((D199-E198)<0,D199,0) -> 0 | F199: =IF(E199<>0,F198+1,0) -> 0
A200: 1623.192288 | B200: 0.342284662 | C200: 0.360533238 | D200: 0.183757991 | E200: 0 | F200: 0
... 1021 more rows

Sheet CRI (hidden)
A1: CCT calculation, follow J. S. Botero et al, International Journal on Smart Sensing and Intelligent Systems, Vol. 8, No. 3, Sept, 2015.
A3: Original Data | D3: (1) CCT calculation | I3: (2) Calculate "reference Illumination" based on CCT | M3: CIE1931 matching (2-Deg) | U3: (3) Calculate the CIE1931 when the target & reference light on Sample R1-R14 | AK3: Kt | AL3: =100/SUMPRODUCT(Photonic!$BC12:$BC506,Photonic!$C12:$C506) -> 14.18999188 | BB3: (4) Convert to CIE1960 (u,v) system. Apply the adaptive colot shift Von Kries, to respect the difference between the states of the chromatic adaption of the light source of intesest and the reference illumination. | BS3: (5) CRI engineering analysis
I4: SPD_Ref_warmwhite | K4: 3999 | L4: =+SUM(K6:K500) -> 9.078535935e+12 | M4: X | N4: Y | O4: Z | P4: daylight | S4: SPD_Ref | AJ4: (3.1) CIE1931, Target -> Sample | AR4: (3.1) CIE1931, Target -> Sample | BB4: Target | BC4: Reference | BD4: R1 | BE4: R2 | BF4: R3 | BG4: R4 | BH4: R5 | BI4: R6 | BJ4: R7 | BK4: R8 | BL4: R9 | BM4: R10 | BN4: R11 | BO4: R12 | BP4: R13 | BQ4: R14 | BS4: (5.1) select the worst 3 CRI
A5: wd | B5: Nomalized SPD | D5: From Equation | E5: =Photonic!I16 -> 4746.050136 | F5: K | G5: =2*PI()*6.62607004E-34*((299792458)^2) -> 3.74177179e-16 | I5: warmwhite | J5: daylight | K5: SPD_Ref | L5: Norm(SPD_Ref) | M5: =SUM(M6:M500) -> 0.2045153481 | N5: =SUM(N6:N500) -> 0.1579808782 | O5: =SUM(O6:O500) -> 0.02087591701 | P5: S1 | Q5: S2 | R5: S3 | S5: X | T5: =+M5*(100/$N$5) -> 129.455761 | U5: R1 | V5: F2 | W5: R3 | X5: R4 | Y5: R5 | Z5: R6 | AA5: R7 | AB5: R8 | AC5: R9 | AD5: R10 | AE5: R11 | AF5: R12 | AG5: R13 | AH5: R14 | AI5: R15(fake) | AJ5: R1 | AK5: X | AL5: =SUMPRODUCT(Photonic!$BB$12:$BB$506,CRI!$B$6:$B$500,CRI!$U$6:$U$500)*100/SUMPRODUCT(Photonic!$BC12:$BC506,CRI!$B$6:$B$500,CRI!$U$6:$U$500) -> 228.511912 | AM5: u | AN5: =4*AL5/(AL5+15*AL6+3*AL7) -> 0.5280932101 | AO5: x | AP5: =+AL5/(SUM($AL$5:$AL$7)) -> 0.6939540096 | AR5: R1 | AS5: X | AT5: =SUMPRODUCT(Photonic!$BB$12:$BB$506,CRI!$L$6:$L$500,CRI!$U$6:$U$500)*100/SUMPRODUCT(Photonic!$BC12:$BC506,CRI!$L$6:$L$500,CRI!$U$6:$U$500) -> 149.022773 | AU5: u | AV5: =4*AT5/(AT5+15*AT6+3*AT7) -> 0.3560309193 | AW5: x | AX5: =+AT5/(SUM($AT$5:$AT$7)) -> 0.5788691091 | BA5: u | BB5: =+(4*E14)/(E14+15*E15+3*E16) -> 0.525502105 | BC5: =4*T5/(T5+15*T6+3*T7) -> 0.3102411766 | BS5: put tem all in transverse way | BZ5: Select worst 3 in R14
A6: =Photonic!B12 -> 360 | B6: =Photonic!D12 -> 5.211828352e-05 | D6: From Complicate Equation | E6: =E7 -> 1937.873155 | F6: K | G6: =(6.62607004E-34*299792458)/(1.38064852E-23) -> 0.01438777354 | I6: =$G$5*((A6*0.000000001)^(-5)) / (EXP($G$6/(($E$6*0.000000001*A6)))-1) -> 68363287.15 | J6: =+P6+$H$11*Q6+$H$12*R6 -> 60.35673548 | K6: =IF($E$6<=$K$4,I6,J6) -> 68363287.15 | L6: =+K6/$L$4 -> 7.530210558e-06 | M6: =+$L6*Photonic!BB12 -> 9.789273725e-10 | N6: =+$L6*Photonic!BC12 -> 2.951842539e-11 | O6: =+$L6*Photonic!BD12 -> 4.564060619e-09 | P6: 61.5 | Q6: 38 | R6: 5.3 | S6: Y | T6: 100 | U6: 0.116 | V6: 0.053 | W6: 0.058 | X6: 0.057 | Y6: 0.143 | Z6: 0.079 | AA6: 0.15 | AB6: 0.075 | AC6: 0.069 | AD6: 0.042 | AE6: 0.074 | AF6: 0.189 | AG6: 0.071 | AH6: 0.036 | AI6: 0.036 | AK6: Y | AL6: 100 | AM6: v | AN6: =6*AL6/(AL5+15*AL6+3*AL7) -> 0.346651432 | AO6: y | AP6: =+AL6/(SUM($AL$5:$AL$7)) -> 0.3036839539 | AS6: Y | AT6: 100 | AU6: v | AV6: =6*AT6/(AT5+15*AT6+3*AT7) -> 0.3583656164 | AW6: y | AX6: =+AT6/(SUM($AT$5:$AT$7)) -> 0.3884433887 | BA6: v | BB6: =6*E15/(E14+15*E15+3*E16) -> 0.3464520222 | BC6: =6*T6/(T5+15*T6+3*T7) -> 0.3594755161 | BZ6: Col1 | CA6: =MAX(CA10:CA27)+1 -> 1 | CB6: =MIN(BT10:BT23) -> 0
A7: =Photonic!B13 -> 361 | B7: =Photonic!D13 -> 6.485830838e-05 | E7: =Photonic!I17 -> 1937.873155 | G7: xD1 | H7: =-(4.607*1000000000/(E6^3))+(2.9678*1000000/(E6^2))+(0.09911*1000/(E6))+0.244063 -> 0.4524359964 | I7: 71385556.68 | J7: =+P7+$H$11*Q7+$H$12*R7 -> 61.29221869 | K7: =IF($E$6<=$K$4,I7,J7) -> 71385556.68 | L7: =+K7/$L$4 -> 7.863113302e-06 | M7: =+$L7*Photonic!BB13 -> 1.182140454e-09 | N7: =+$L7*Photonic!BC13 -> 3.561990326e-11 | O7: =+$L7*Photonic!BD13 -> 5.520534587e-09 | P7: 62.23 | Q7: 38.44 | R7: 5.38 | S7: Z | T7: =+O5*(100/$N$5) -> 13.21420494 | U7: 0.12 | V7: 0.0534 | W7: 0.0582 | X7: 0.0574 | Y7: 0.1518 | Z7: 0.0794 | AA7: 0.1554 | AB7: 0.0756 | AC7: 0.0696 | AD7: 0.0422 | AE7: 0.075 | AF7: 0.1862 | AG7: 0.072 | AH7: 0.036 | AI7: 0.036 | AK7: Z | AL7: =SUMPRODUCT(Photonic!$BD$12:$BD$506,CRI!$B$6:$B$500,CRI!$U$6:$U$500)*100/SUMPRODUCT(Photonic!$BC12:$BC506,CRI!$B$6:$B$500,CRI!$U$6:$U$500) -> 0.7777943115 | AO7: z | AP7: =+AL7/(SUM($AL$5:$AL$7)) -> 0.002362036518 | AS7: Z | AT7: =SUMPRODUCT(Photonic!$BD$12:$BD$506,CRI!$L$6:$L$500,CRI!$U$6:$U$500)*100/SUMPRODUCT(Photonic!$BC12:$BC506,CRI!$L$6:$L$500,CRI!$U$6:$U$500) -> 8.414997693 | AW7: z | AX7: =+AT7/(SUM($AT$5:$AT$7)) -> 0.03268750219 | BA7: c | BB7: =(4-BB5-10*BB6)/BB6 -> 0.02879958145 | BC7: =(4-BC5-10*BC6)/BC6 -> 0.2642840988 | BZ7: Col2 | CA7: =MAX(CE10:CE23)+1 -> 4 | CB7: =MIN(CC10:CC23) -> 0
A8: =Photonic!B14 -> 362 | B8: =Photonic!D14 -> 7.763969696e-05 | G8: xD2 | H8: =-(2.0064*1000000000/(E6^3))+(1.9018*1000000/(E6^2))+(0.24748*1000/(E6))+0.23704 -> 0.5954678742 | I8: 74520772.77 | J8: 62.2277019 | K8: 74520772.77 | L8: 8.208457102e-06 | M8: =+$L8*Photonic!BB14 -> 1.401840304e-09 | N8: =+$L8*Photonic!BC14 -> 4.21914695e-11 | O8: =+$L8*Photonic!BD14 -> 6.550841275e-09 | P8: 62.96 | Q8: 38.88 | R8: 5.46 | U8: 0.124 | V8: 0.0538 | W8: 0.0584 | X8: 0.0578 | Y8: 0.1606 | Z8: 0.0798 | AA8: 0.1608 | AB8: 0.0762 | AC8: 0.0702 | AD8: 0.0424 | AE8: 0.076 | AF8: 0.1834 | AG8: 0.073 | AH8: 0.036 | AI8: 0.036 | AJ8: R2 | AK8: X | AL8: =SUMPRODUCT(Photonic!$BB$12:$BB$506,CRI!$B$6:$B$500,CRI!$V$6:$V$500)*100/SUMPRODUCT(Photonic!$BC12:$BC506,CRI!$B$6:$B$500,CRI!$V$6:$V$500) -> 227.6631503 | AM8: u | AN8: =4*AL8/(AL8+15*AL9+3*AL10) -> 0.5265266566 | AO8: x | AP8: =+AL8/(SUM($AL$8:$AL$10)) -> 0.6934795043 | AR8: R2 | AS8: X | AT8: =SUMPRODUCT(Photonic!$BB$12:$BB$506,CRI!$L$6:$L$500,CRI!$V$6:$V$500)*100/SUMPRODUCT(Photonic!$BC12:$BC506,CRI!$L$6:$L$500,CRI!$V$6:$V$500) -> 135.6386933 | AU8: u | AV8: =4*AT8/(AT8+15*AT9+3*AT10) -> 0.3278134661 | AW8: x | AX8: =+AT8/(SUM($AT$8:$AT$10)) -> 0.5602211347 | BA8: d | BB8: =(1.708*BB6+0.404-1.481*BB5)/BB6 -> 0.6277101085 | BC8: =(1.708*BC6+0.404-1.481*BC5)/BC6 -> 1.553699693 | BZ8: Col3 | CA8: =MAX(CH10:CH26)+1 -> 5 | CB8: =MIN(CF10:CF24) -> 0
A9: =Photonic!B15 -> 363 | B9: =Photonic!D15 -> 3.921280379e-05 | G9: xD | H9: =IF(E6<=7000,H7,H8) -> 0.4524359964 | I9: 77772305.89 | J9: 63.1631851 | K9: 77772305.89 | L9: 8.566613213e-06 | M9: =+$L9*Photonic!BB15 -> 1.638107779e-09 | N9: =+$L9*Photonic!BC15 -> 4.925802597e-11 | O9: =+$L9*Photonic!BD15 -> 7.658894877e-09 | P9: 63.69 | Q9: 39.32 | R9: 5.54 | S9: x | T9: =+T5/(SUM(T5:T7)) -> 0.5334642896 | U9: 0.128 | V9: 0.0542 | W9: 0.0586 | X9: 0.0582 | Y9: 0.1694 | Z9: 0.0802 | AA9: 0.1662 | AB9: 0.0768 | AC9: 0.0708 | AD9: 0.0426 | AE9: 0.077 | AF9: 0.1806 | AG9: 0.074 | AH9: 0.036 | AI9: 0.036 | AK9: Y | AL9: 100 | AM9: v | AN9: =6*AL9/(AL8+15*AL9+3*AL10) -> 0.3469116472 | AO9: y | AP9: =+AL9/(SUM($AL$8:$AL$10)) -> 0.304607708 | AS9: Y | AT9: 100 | AU9: v | AV9: =6*AT9/(AT8+15*AT9+3*AT10) -> 0.3625220702 | AW9: y | AX9: =+AT9/(SUM($AT$8:$AT$10)) -> 0.4130245735 | AZ9: Target->Samle | BA9: u | BD9: =AN5 -> 0.5280932101 | BE9: =AN8 -> 0.5265266566 | BF9: =AN11 -> 0.522392256 | BG9: =AN14 -> 0.5189381884 | BH9: =AN17 -> 0.5196659895 | BI9: =AN20 -> 0.5244369478 | BJ9: =AN23 -> 0.5296869388 | BK9: =AN26 -> 0.5339695295 | BL9: =AN29 -> 0.5411287635 | BM9: =AN32 -> 0.5270559954 | BN9: =AN35 -> 0.5157064625 | BO9: =AN38 -> 0.5049630148 | BP9: =AN41 -> 0.5271857679 | BQ9: =AN44 -> 0.5225053004 | BT9: Index | BV9: u | BW9: v | BX9: u0 | BY9: v0 | BZ9: select Col1 | CB9: select Col2 | CF9: select Col3
A10: =Photonic!B16 -> 364 | B10: =Photonic!D16 -> 5.13323729e-05 | G10: yD | H10: =-3*H9^2+2.87*H9-0.275 -> 0.4093963171 | I10: 81143597.34 | J10: 64.09866831 | K10: 81143597.34 | L10: 8.937960693e-06 | M10: =+$L10*Photonic!BB16 -> 1.89180876e-09 | N10: =+$L10*Photonic!BC16 -> 5.684543001e-11 | O10: =+$L10*Photonic!BD16 -> 8.848759845e-09 | P10: 64.42 | Q10: 39.76 | R10: 5.62 | S10: y | T10: =+T6/(SUM(T5:T7)) -> 0.4120823095 | U10: 0.132 | V10: 0.0546 | W10: 0.0588 | X10: 0.0586 | Y10: 0.1782 | Z10: 0.0806 | AA10: 0.1716 | AB10: 0.0774 | AC10: 0.0714 | AD10: 0.0428 | AE10: 0.078 | AF10: 0.1778 | AG10: 0.075 | AH10: 0.036 | AI10: 0.036 | AK10: Z | AL10: =SUMPRODUCT(Photonic!$BD$12:$BD$506,CRI!$B$6:$B$500,CRI!$V$6:$V$500)*100/SUMPRODUCT(Photonic!$BC12:$BC506,CRI!$B$6:$B$500,CRI!$V$6:$V$500) -> 0.6279511904 | AO10: z | AP10: =+AL10/(SUM($AL$8:$AL$10)) -> 0.001912787729 | AS10: Z | AT10: =SUMPRODUCT(Photonic!$BD$12:$BD$506,CRI!$L$6:$L$500,CRI!$V$6:$V$500)*100/SUMPRODUCT(Photonic!$BC12:$BC506,CRI!$L$6:$L$500,CRI!$V$6:$V$500) -> 6.477651343 | AW10: z | AX10: =+AT10/(SUM($AT$8:$AT$10)) -> 0.02675429183 | BA10: v | BD10: =AN6 -> 0.346651432 | BE10: =AN9 -> 0.3469116472 | BF10: =AN12 -> 0.3473485619 | BG10: =AN15 -> 0.3469567267 | BH10: =AN18 -> 0.346135925 | BI10: =AN21 -> 0.3453499987 | BJ10: =AN24 -> 0.3457568206 | BK10: =AN27 -> 0.3458191432 | BL10: =AN30 -> 0.3457490561 | BM10: =AN33 -> 0.3470912675 | BN10: =AN36 -> 0.3468711595 | BO10: =AN39 -> 0.336935431 | BP10: =AN42 -> 0.3467457357 | BQ10: =AN45 -> 0.3471717264 | BS10: R1 | BT10: =BU10 -> 0 | BU10: =BD35 -> 0 | BV10: =BD18 -> 0.3169619324 | BW10: =BD19 -> 0.3631202238 | BX10: =BD13 -> 0.3560309193 | BY10: =BD14 -> 0.3583656164 | BZ10: =BT10 -> 0 | CA10: =IF(BT10-CB6>0,1,0) -> 0 | CB10: 1 | CC10: =IF(CB10<>$CA$6,BT10,"") ->  | CD10: =IF(CC10<>"",CC10,"") ->  | CE10: =IF(CD10<>"",IF(CD10<>0,IF(CC10-CB7>0,1,0),0),1) -> 1 | CF10: =IF(CC10<>"",IF(CB10<>$CA$7,BT10,""),"") ->  | CG10: =CF10 ->  | CH10: =IF(CG10<>"",IF(CG10<>0,IF(CF10-CB8>0,1,0),0),1) -> 1
A11: =Photonic!B17 -> 365 | B11: =Photonic!D17 -> 6.349330572e-05 | G11: M1 | H11: =(-1.3515-1.7703*H9+5.9114*H10)/(0.0241+0.2562*H9-0.7341*H10) -> -1.667404177 | I11: 84638159.84 | J11: 65.03415152 | K11: 84638159.84 | L11: 9.322886471e-06 | M11: =+$L11*Photonic!BB17 -> 2.16384195e-09 | N11: =+$L11*Photonic!BC17 -> 6.49805187e-11 | O11: =+$L11*Photonic!BD17 -> 1.012465471e-08 | P11: 65.15 | Q11: 40.2 | R11: 5.7 | U11: 0.136 | V11: 0.055 | W11: 0.059 | X11: 0.059 | Y11: 0.187 | Z11: 0.081 | AA11: 0.177 | AB11: 0.078 | AC11: 0.072 | AD11: 0.043 | AE11: 0.079 | AF11: 0.175 | AG11: 0.076 | AH11: 0.036 | AI11: 0.036 | AJ11: R3 | AK11: X | AL11: =SUMPRODUCT(Photonic!$BB$12:$BB$506,CRI!$B$6:$B$500,CRI!$W$6:$W$500)*100/SUMPRODUCT(Photonic!$BC12:$BC506,CRI!$B$6:$B$500,CRI!$W$6:$W$500) -> 225.5913713 | AM11: u | AN11: =4*AL11/(AL11+15*AL12+3*AL13) -> 0.522392256 | AO11: x | AP11: =+AL11/(SUM($AL$11:$AL$13)) -> 0.6916061441 | AR11: R3 | AS11: X | AT11: =SUMPRODUCT(Photonic!$BB$12:$BB$506,CRI!$L$6:$L$500,CRI!$W$6:$W$500)*100/SUMPRODUCT(Photonic!$BC12:$BC506,CRI!$L$6:$L$500,CRI!$W$6:$W$500) -> 116.0503809 | AU11: u | AV11: =4*AT11/(AT11+15*AT12+3*AT13) -> 0.2844863128 | AW11: x | AX11: =+AT11/(SUM($AT$11:$AT$13)) -> 0.5244669236 | BA11: c | BD11: =(4-BD9-10*BD10)/BD10 -> 0.01555588623 | BE11: =(4-BE9-10*BE10)/BE10 -> 0.01255902381 | BF11: =(4-BF9-10*BF10)/BF10 -> 0.01186740308 | BG11: 0.03312962044 | BH11: 0.05481881299 | BI11: 0.06388610222 | BJ11: 0.03686074867 | BK11: 0.02266802807 | BL11: 0.003993288788 | BM11: 0.005852435542 | BN11: 0.04492141319 | BO11: 0.373017092 | BP11: 0.01544900175 | BQ11: 0.01664143546 | BS11: R2 | BT11: =BU11 -> 42.46786979 | BU11: =BE35 -> 42.46786979 | BV11: =BE18 -> 0.3125619041 | BW11: =BE19 -> 0.3645424596 | BX11: =BE13 -> 0.3278134661 | BY11: =BE14 -> 0.3625220702 | BZ11: =IF(BT11<BZ10,BT11,BZ10) -> 0 | CA11: =IF(BT11-$CB$6>0,IF(CA10<>0,1+CA10,),0) -> 0 | CB11: 2 | CC11: 42.46786979 | CD11: =IF(CC11<>"",IF(CC11<CD10,CC11,CD10),CD10) -> 42.46786979 | CE11: =IF(CC11<>"",IF(CC11-$CB$7>0,IF(CE10<>0,1+CE10,),0),IF(CE10<>0,1+CE10,0)) -> 2 | CF11: =IF(CC11<>"",IF(CB11<>$CA$7,BT11,""),"") -> 42.46786979 | CG11: =IF(CF11<>"",IF(CF11<CG10,CF11,CG10),CG10) -> 42.46786979 | CH11: =IF(CF11<>"",IF(CF11-$CB$8>0,IF(CH10<>0,1+CH10,),0),IF(CH10<>0,1+CH10,0)) -> 2
A12: =Photonic!B18 -> 366 | B12: =Photonic!D18 -> 7.160059426e-05 | G12: M2 | H12: =(0.03-31.4424*H9+30.0717*H10)/(0.0241+0.2562*H9-0.7341*H10) -> 11.73926306 | I12: =$G$5*((A12*0.000000001)^(-5)) / (EXP($G$6/(($E$6*0.000000001*A12)))-1) -> 88259578.23 | J12: 65.96963472 | K12: 88259578.23 | L12: 9.721785413e-06 | M12: =+$L12*Photonic!BB18 -> 2.611854869e-09 | N12: =+$L12*Photonic!BC18 -> 7.829925972e-11 | O12: =+$L12*Photonic!BD18 -> 1.223000605e-08 | P12: 65.88 | Q12: 40.64 | R12: 5.78 | U12: 0.1406 | V12: 0.0558 | W12: 0.0594 | X12: 0.0596 | Y12: 0.1962 | Z12: 0.0826 | AA12: 0.1852 | AB12: 0.0792 | AC12: 0.0722 | AD12: 0.0434 | AE12: 0.0804 | AF12: 0.1716 | AG12: 0.0772 | AH12: 0.036 | AI12: 0.036 | AK12: Y | AL12: 100 | AM12: v | AN12: =6*AL12/(AL11+15*AL12+3*AL13) -> 0.3473485619 | AO12: y | AP12: =+AL12/(SUM($AL$11:$AL$13)) -> 0.3065747329 | AS12: Y | AT12: 100 | AU12: v | AV12: =6*AT12/(AT11+15*AT12+3*AT13) -> 0.3677105288 | AW12: y | AX12: =+AT12/(SUM($AT$11:$AT$13)) -> 0.4519303768 | BA12: d | BD12: =(1.708*BD10+0.404-1.481*BD9)/BD10 -> 0.617261554 | BE12: =(1.708*BE10+0.404-1.481*BE9)/BE10 -> 0.6247674782 | BF12: =(1.708*BF10+0.404-1.481*BF9)/BF10 -> 0.6437579913 | BG12: 0.65729993 | BH12: 0.6516943583 | BI12: 0.6288306902 | BJ12: 0.6076128675 | BK12: 0.5894706161 | BL12: 0.558577632 | BM12: 0.6230694227 | BN12: 0.6708389068 | BO12: 0.6874773917 | BP12: 0.6214340135 | BQ12: 0.6427336726 | BS12: R3 | BT12: 31.05968881 | BU12: =BF35 -> 31.05968881 | BV12: =BF18 -> 0.3010972369 | BW12: =BF19 -> 0.3659054497 | BX12: =BF13 -> 0.2844863128 | BY12: =BF14 -> 0.3677105288 | BZ12: =IF(BT12<BZ11,BT12,BZ11) -> 0 | CA12: 0 | CB12: 3 | CC12: 31.05968881 | CD12: =IF(CC12<>"",IF(CC12<CD11,CC12,CD11),CD11) -> 31.05968881 | CE12: 3 | CF12: 31.05968881 | CG12: =IF(CF12<>"",IF(CF12<CG11,CF12,CG11),CG11) -> 31.05968881 | CH12: =IF(CF12<>"",IF(CF12-$CB$8>0,IF(CH11<>0,1+CH11,),0),IF(CH11<>0,1+CH11,0)) -> 3
A13: =Photonic!B19 -> 367 | B13: =Photonic!D19 -> 5.542738089e-05 | I13: 92011509.98 | J13: 66.90511793 | K13: 92011509.98 | L13: 1.013506039e-05 | M13: =+$L13*Photonic!BB19 -> 3.093423133e-09 | N13: =+$L13*Photonic!BC19 -> 9.261418188e-11 | O13: =+$L13*Photonic!BD19 -> 1.449313636e-08 | P13: 66.61 | Q13: 41.08 | R13: 5.86 | U13: 0.1452 | V13: 0.0566 | W13: 0.0598 | X13: 0.0602 | Y13: 0.2054 | Z13: 0.0842 | AA13: 0.1934 | AB13: 0.0804 | AC13: 0.0724 | AD13: 0.0438 | AE13: 0.0818 | AF13: 0.1682 | AG13: 0.0784 | AH13: 0.036 | AI13: 0.036 | AK13: Z | AL13: =SUMPRODUCT(Photonic!$BD$12:$BD$506,CRI!$B$6:$B$500,CRI!$W$6:$W$500)*100/SUMPRODUCT(Photonic!$BC12:$BC506,CRI!$B$6:$B$500,CRI!$W$6:$W$500) -> 0.593370154 | AO13: z | AP13: =+AL13/(SUM($AL$11:$AL$13)) -> 0.001819122965 | AS13: Z | AT13: =SUMPRODUCT(Photonic!$BD$12:$BD$506,CRI!$L$6:$L$500,CRI!$W$6:$W$500)*100/SUMPRODUCT(Photonic!$BC12:$BC506,CRI!$L$6:$L$500,CRI!$W$6:$W$500) -> 5.222640658 | AW13: z | AX13: =+AT13/(SUM($AT$11:$AT$13)) -> 0.02360269961 | AZ13: Reference-> Sample | BA13: u | BD13: =AV5 -> 0.3560309193 | BE13: =AV8 -> 0.3278134661 | BF13: =AV11 -> 0.2844863128 | BG13: =AV14 -> 0.2493452421 | BH13: =AV17 -> 0.2595937006 | BI13: =AV20 -> 0.284729714 | BJ13: =AV23 -> 0.3402431644 | BK13: =AV26 -> 0.374078847 | BL13: =AV29 -> 0.4990933597 | BM13: =AV32 -> 0.3295876798 | BN13: =AV35 -> 0.2225335667 | BO13: =AV38 -> 0.193767081 | BP13: =AV41 -> 0.3405973385 | BQ13: =AV44 -> 0.2826876085 | BS13: R4 | BT13: 0 | BU13: =BG35 -> 0 | BV13: =BG18 -> 0.2924823856 | BW13: =BG19 -> 0.3598127551 | BX13: =BG13 -> 0.2493452421 | BY13: =BG14 -> 0.3658388797 | BZ13: 0 | CA13: 0 | CB13: 4 | CC13: 0 | CD13: 0 | CE13: 0 | CG13: 31.05968881 | CH13: 4
A14: =Photonic!B20 -> 368 | B14: =Photonic!D20 -> 5.608920036e-05 | D14: X | E14: =SUMPRODUCT(Photonic!$BB$12:$BB$506,CRI!$B$6:$B$500)*100/SUMPRODUCT(Photonic!$BC12:$BC506,CRI!$B$6:$B$500) -> 227.5215923 | I14: 95897685.86 | J14: 67.84060114 | K14: 95897685.86 | L14: 1.056312235e-05 | M14: =+$L14*Photonic!BB20 -> 3.610263957e-09 | N14: =+$L14*Photonic!BC20 -> 1.079762367e-10 | O14: =+$L14*Photonic!BD20 -> 1.692212201e-08 | P14: 67.34 | Q14: 41.52 | R14: 5.94 | U14: 0.1498 | V14: 0.0574 | W14: 0.0602 | X14: 0.0608 | Y14: 0.2146 | Z14: 0.0858 | AA14: 0.2016 | AB14: 0.0816 | AC14: 0.0726 | AD14: 0.0442 | AE14: 0.0832 | AF14: 0.1648 | AG14: 0.0796 | AH14: 0.036 | AI14: 0.036 | AJ14: R4 | AK14: X | AL14: =SUMPRODUCT(Photonic!$BB$12:$BB$506,CRI!$B$6:$B$500,CRI!$X$6:$X$500)*100/SUMPRODUCT(Photonic!$BC12:$BC506,CRI!$B$6:$B$500,CRI!$X$6:$X$500) -> 224.3528437 | AM14: u | AN14: =4*AL14/(AL14+15*AL15+3*AL16) -> 0.5189381884 | AO14: x | AP14: =+AL14/(SUM($AL$14:$AL$16)) -> 0.6881792227 | AR14: R4 | AS14: X | AT14: =SUMPRODUCT(Photonic!$BB$12:$BB$506,CRI!$L$6:$L$500,CRI!$X$6:$X$500)*100/SUMPRODUCT(Photonic!$BC12:$BC506,CRI!$L$6:$L$500,CRI!$X$6:$X$500) -> 102.2356791 | AU14: u | AV14: =4*AT14/(AT14+15*AT15+3*AT16) -> 0.2493452421 | AW14: x | AX14: =+AT14/(SUM($AT$14:$AT$16)) -> 0.4758559202 | BA14: v | BD14: =AV6 -> 0.3583656164 | BE14: =AV9 -> 0.3625220702 | BF14: =AV12 -> 0.3677105288 | BG14: =AV15 -> 0.3658388797 | BH14: =AV18 -> 0.3600758813 | BI14: =AV21 -> 0.3530197453 | BJ14: =AV24 -> 0.3525266714 | BK14: =AV27 -> 0.3528580397 | BL14: =AV30 -> 0.3485371619 | BM14: =AV33 -> 0.3647509107 | BN14: =AV36 -> 0.366745894 | BO14: =AV39 -> 0.3176858745 | BP14: =AV42 -> 0.3600876585 | BQ14: =AV45 -> 0.3668133327 | BS14: R5 | BT14: 0 | BU14: =BH35 -> 0 | BV14: =BH18 -> 0.2953984369 | BW14: =BH19 -> 0.3527166111 | BX14: =BH13 -> 0.2595937006 | BY14: =BH14 -> 0.3600758813 | BZ14: 0 | CA14: 0 | CB14: 5 | CC14: 0 | CD14: 0 | CE14: 0 | CF14: 0 | CG14: 0 | CH14: 0
A15: =Photonic!B21 -> 369 | B15: =Photonic!D21 -> 5.675101983e-05 | D15: Y | E15: 100 | I15: 99921910.41 | J15: 68.77608434 | K15: 99921910.41 | L15: 1.100639036e-05 | M15: =+$L15*Photonic!BB21 -> 4.16415773e-09 | N15: =+$L15*Photonic!BC21 -> 1.244382494e-10 | O15: =+$L15*Photonic!BD21 -> 1.95253365e-08 | P15: 68.07 | Q15: 41.96 | R15: 6.02 | U15: 0.1544 | V15: 0.0582 | W15: 0.0606 | X15: 0.0614 | Y15: 0.2238 | Z15: 0.0874 | AA15: 0.2098 | AB15: 0.0828 | AC15: 0.0728 | AD15: 0.0446 | AE15: 0.0846 | AF15: 0.1614 | AG15: 0.0808 | AH15: 0.036 | AI15: 0.036 | AK15: Y | AL15: 100 | AM15: v | AN15: =6*AL15/(AL14+15*AL15+3*AL16) -> 0.3469567267 | AO15: y | AP15: =+AL15/(SUM($AL$14:$AL$16)) -> 0.3067396925 | AS15: Y | AT15: 100 | AU15: v | AV15: =6*AT15/(AT14+15*AT15+3*AT16) -> 0.3658388797 | AW15: y | AX15: =+AT15/(SUM($AT$14:$AT$16)) -> 0.4654499528 | BA15: c | BD15: =(4-BD13-10*BD14)/BD14 -> 0.1682999539 | BE15: 0.1295530269 | BF15: 0.1044528132 | BG15: 0.2522038153 | BH15: 0.387827937 | BI15: 0.5242563216 | BJ15: 0.3815033935 | BK15: 0.2758637892 | BL15: 0.04457206669 | BM15: 0.0627913803 | BN15: 0.2999556235 | BO15: 1.981121052 | BP15: 0.1625328575 | BQ15: 0.1340710942 | BS15: R6 | BT15: 17.01804795 | BU15: =BI35 -> 17.01804795 | BV15: =BI18 -> 0.3084664667 | BW15: =BI19 -> 0.3487098436 | BX15: =BI13 -> 0.284729714 | BY15: =BI14 -> 0.3530197453 | BZ15: 0 | CA15: 0 | CB15: 6 | CC15: 17.01804795 | CD15: 0 | CE15: 0 | CF15: 17.01804795 | CG15: 0 | CH15: 0
A16: =Photonic!B22 -> 370 | B16: =Photonic!D22 -> 5.832284108e-05 | D16: Z | E16: =SUMPRODUCT(Photonic!$BD$12:$BD$506,CRI!$B$6:$B$500)*100/SUMPRODUCT(Photonic!$BC12:$BC506,CRI!$B$6:$B$500) -> 1.439979073 | I16: 104088062.6 | J16: 69.71156755 | K16: 104088062.6 | L16: 1.146529169e-05 | M16: =+$L16*Photonic!BB22 -> 4.756949521e-09 | N16: =+$L16*Photonic!BC22 -> 1.42054964e-10 | O16: =+$L16*Photonic!BD22 -> 2.231145763e-08 | P16: 68.8 | Q16: 42.4 | R16: 6.1 | U16: 0.159 | V16: 0.059 | W16: 0.061 | X16: 0.062 | Y16: 0.233 | Z16: 0.089 | AA16: 0.218 | AB16: 0.084 | AC16: 0.073 | AD16: 0.045 | AE16: 0.086 | AF16: 0.158 | AG16: 0.082 | AH16: 0.036 | AI16: 0.036 | AK16: Z | AL16: =SUMPRODUCT(Photonic!$BD$12:$BD$506,CRI!$B$6:$B$500,CRI!$X$6:$X$500)*100/SUMPRODUCT(Photonic!$BC12:$BC506,CRI!$B$6:$B$500,CRI!$X$6:$X$500) -> 1.656481022 | AO16: z | AP16: =+AL16/(SUM($AL$14:$AL$16)) -> 0.005081084793 | AS16: Z | AT16: =SUMPRODUCT(Photonic!$BD$12:$BD$506,CRI!$L$6:$L$500,CRI!$X$6:$X$500)*100/SUMPRODUCT(Photonic!$BC12:$BC506,CRI!$L$6:$L$500,CRI!$X$6:$X$500) -> 12.61019077 | AW16: z | AX16: =+AT16/(SUM($AT$14:$AT$16)) -> 0.05869412697 | BA16: d | BD16: =(1.708*BD14+0.404-1.481*BD13)/BD14 -> 1.363988784 | BE16: =(1.708*BE14+0.404-1.481*BE13)/BE14 -> 1.483208877 | BF16: =(1.708*BF14+0.404-1.481*BF13)/BF14 -> 1.66088623 | BG16: 1.802904337 | BH16: 1.762271142 | BI16: 1.657904484 | BJ16: 1.424616828 | BK16: 1.282869337 | BL16: 0.7463887216 | BM16: 1.477378633 | BN16: 1.910941025 | BO16: 2.076385762 | BP16: 1.429110524 | BQ16: 1.668033219 | BS16: R7 | BT16: 30.09294271 | BU16: =BJ35 -> 30.09294271 | BV16: =BJ18 -> 0.3218068673 | BW16: =BJ19 -> 0.3557845891 | BX16: =BJ13 -> 0.3402431644 | BY16: =BJ14 -> 0.3525266714 | BZ16: 0 | CA16: 0 | CB16: 7 | CC16: 30.09294271 | CD16: 0 | CE16: 0 | CF16: 30.09294271 | CG16: 0 | CH16: 0
A17: =Photonic!B23 -> 371 | B17: =Photonic!D23 -> 5.989466233e-05 | I17: 108400096.3 | J17: 66.18268363 | K17: 108400096.3 | L17: 1.194026185e-05 | M17: =+$L17*Photonic!BB23 -> 5.73419135e-09 | N17: =+$L17*Photonic!BC23 -> 1.709367886e-10 | O17: =+$L17*Photonic!BD23 -> 2.69133502e-08 | P17: 68.26 | Q17: 42.01 | R17: 5.79 | U17: 0.1652 | V17: 0.06 | W17: 0.0614 | X17: 0.063 | Y17: 0.2402 | Z17: 0.0938 | AA17: 0.233 | AB17: 0.0852 | AC17: 0.0724 | AD17: 0.0454 | AE17: 0.0884 | AF17: 0.1542 | AG17: 0.0836 | AH17: 0.036 | AI17: 0.036 | AJ17: R5 | AK17: X | AL17: =SUMPRODUCT(Photonic!$BB$12:$BB$506,CRI!$B$6:$B$500,CRI!$Y$6:$Y$500)*100/SUMPRODUCT(Photonic!$BC12:$BC506,CRI!$B$6:$B$500,CRI!$Y$6:$Y$500) -> 225.2002545 | AM17: u | AN17: =4*AL17/(AL17+15*AL18+3*AL19) -> 0.5196659895 | AO17: x | AP17: =+AL17/(SUM($AL$17:$AL$19)) -> 0.6867092572 | AR17: R5 | AS17: X | AT17: =SUMPRODUCT(Photonic!$BB$12:$BB$506,CRI!$L$6:$L$500,CRI!$Y$6:$Y$500)*100/SUMPRODUCT(Photonic!$BC12:$BC506,CRI!$L$6:$L$500,CRI!$Y$6:$Y$500) -> 108.1412477 | AU17: u | AV17: =4*AT17/(AT17+15*AT18+3*AT19) -> 0.2595937006 | AW17: x | AX17: =+AT17/(SUM($AT$17:$AT$19)) -> 0.475277945 | BS17: R8 | BT17: 0 | BU17: =BK35 -> 0 | BV17: =BK18 -> 0.3331705504 | BW17: =BK19 -> 0.3592107546 | BX17: =BK13 -> 0.374078847 | BY17: =BK14 -> 0.3528580397 | BZ17: 0 | CA17: 0 | CB17: 8 | CC17: 0 | CD17: 0 | CE17: 0 | CF17: 0 | CG17: 0 | CH17: 0
